Workbook

Sheet Cover
C2: Powercor
C3: Revised regulatory proposal 2026-31
C5: =REPLACE(LEFT(_xlfn.TEXTAFTER(CELL("filename")," - ",1),FIND("Dec2025",_xlfn.TEXTAFTER(CELL("filename")," - "),1)-4),1,1,UPPER(LEFT(LEFT(_xlfn.TEXTAFTER(CELL("filename")," - ",1),FIND("Dec2025",_xlfn.TEXTAFTER(CELL("filename")," - "),1)-4),1))) -> Public lighting cost model
C6: Model number: | D6: =LEFT(_xlfn.TEXTAFTER(CELL("filename")," MOD "),FIND(" - ",_xlfn.TEXTAFTER(CELL("filename")," MOD "),1)-1) -> 6.05
C8: 2025-12-01

Sheet Log Book
B2: =IFERROR(Cover!$C$2&" Log Book","") -> Powercor Log Book
B5: Changelog
B7: Sheet | C7: Cell range | D7: Description
B8: Log Book | D8: Added Log Book sheet to record changes in the model compared to 'CP MOD 11.07 - Public lighting cost model - Jan2025 - Public.xlsm'
B9: Opex_Inputs | C9: L6:Q6 | D9: Amended CPI to be consistent with other parts of AER draft decision.
B10: PTRM input | C10: G373:K373 | D10: Amended CPI to be consistent with other parts of AER draft decision.
B11: PTRM input | C11: G383 | D11: Amended 'Return on Equity' to be consistent with other parts of AER draft decision.
B12: PTRM input | C12: G388:K388 | D12: Amended 'Trailing Average Portfolio Return on Debt' to be consistent with other parts of AER draft decision.
B13: PTRM input | C13: G395 | D13: Amended ICPR to be consistent with other parts of AER draft decision.
B14: PTRM input | C14: G399 | D14: Amended DRC to be consistent with other parts of AER draft decision.
B15: Opex_Inputs | C15: C8:G8 | D15: Amended labour rate X factors to be consistent with AER draft decision for ANS.
B16: Opex_Inputs | C16: C12, C33 | D16: Amended labour rate to be consistent with AER benchmark rate for field worker.
B17: Opex_Inputs | C17: C15 | D17: Amended Elevated platform vehicle (per hour) - rural rate to reflect AER draft decision.
B18: Opex_Inputs | C18: C16 | D18: Amended Patrol vehicle (per hour) rate to reflect AER draft decision.
B19: Roll Forward | C19: D25-30, D79-84 | D19: Amended historical capex to be consistent with the Annual RIN/RIO responses.
B20: PTRM_Inputs | C20: C40-C58 | D20: Amended 2025-26 prices to be consistent with the approved 2025-26 pricing proposal.
B22: Changes requested as a result of our consultation with the Councils and DTP
B23: Quantity | C23: B26-M26 | D23: Quantities updated as per our latest reports and include the Category P LED Lamps ('Corncobs')
B24: Opex_Inputs | C24: B171-C196 | D24: Opex inputs for the Category P LED Lamps ('Corncobs')
B25: Opex_Calcs | C25: B468-AF551 | D25: Opex calculations for the Category P LED Lamps ('Corncobs')
B26: Opex_Outputs | C26: B34-G37 | D26: Inclusion of the Category P LED Lamps ('Corncobs')
B27: PTRM_Inputs | C27: B59-C59 | D27: Inclusion of the Category P LED Lamps ('Corncobs')
B28: Quantity | C28: B27-M27 | D28: Quantities of the Accelerated replacement charge
B29: Opex_Inputs | C29: C49-50, C78-79, C99-100, C119-120 | D29: Amended replacement cycle for non-LEDs to reflect no bulk replacement frequency due to accelerated LED rollout
B30: Opex_Inputs | C30: B239-C240 | D30: Opex inputs for the Accelerated replacement charge
B31: Opex_Outputs | C31: B110-G113 | D31: Inclusion of the Accelerated replacement charge
B32: PTRM_Inputs | C32: B60-C60 | D32: Inclusion of the Accelerated replacement charge volumes as cumulative
B33: PTRM Forecast Revenues | C33: E68-K68 | D33: Inclusion of the Accelerated replacement charge and excluding X factor from price escalation
B34: Capex_Inputs | C34: B70-G78 | D34: Inclusion of the Infill Smart Cell inputs
B35: Capex_Calcs | C35: B194-G198 | D35: Inclusion of the Infill Smart Cell calculations
B36: Capex_Outputs | C36: C8-G8 | D36: Inclusion of the Infill Smart Cell outputs

Sheet General_inputs
B2: =IFERROR($C$5&" public lighting general inputs","") -> Powercor public lighting general inputs
B5: Business short name | C5: Powercor
B7: Base regulatory year | C7: 2026-27
B9: Real dollars | C9: 2025-26
B11: Formatting
B13: Input

Sheet Quantity
B2: =IFERROR(General_inputs!$C$5&" public lighting quantities","") -> Powercor public lighting quantities
C5: Forecast numbers
B6: Light types | C6: =(LEFT(D6,4)-1&IF(MID(D6,5,1)="","","-"&TEXT(MOD(MID(D6,6,2)-1,100),"00"))) -> 2025-26 | D6: =General_inputs!C7 -> 2026-27 | E6: =(LEFT(D6,4)+1&IF(MID(D6,5,1)="","","-"&TEXT(MOD(MID(D6,6,2)+1,100),"00"))) -> 2027-28 | F6: =(LEFT(E6,4)+1&IF(MID(E6,5,1)="","","-"&TEXT(MOD(MID(E6,6,2)+1,100),"00"))) -> 2028-29 | G6: 2029-30 | H6: 2030-31 | K6: Code | L6: Reference light | M6: Price factor | N6: LED Category
B7: Mercury Vapour 80W | C7: 1959 | D7: 0 | E7: 0 | F7: 0 | G7: 0 | H7: 0 | K7: MV80 | L7: MV80 | M7: 1 | N7: P
B8: Sodium High Pressure 70W | C8: 0 | D8: 0 | E8: 0 | F8: 0 | G8: 0 | H8: 0 | K8: S-HP 70 | N8: P
B9: Sodium High Pressure 100W | C9: 0 | D9: 0 | E9: 0 | F9: 0 | G9: 0 | H9: 0 | K9: S-HP 100 | N9: P
B10: Sodium High Pressure 150W | C10: 10610 | D10: 8610 | E10: 6610 | F10: 4610 | G10: 2610 | H10: 610 | K10: S-HP 150 | L10: S-HP 150 | M10: 1 | N10: V
B11: Sodium High Pressure 250W | C11: 6606 | D11: 5406 | E11: 4206 | F11: 3006 | G11: 1806 | H11: 606 | K11: S-HP 250 | L11: S-HP 250 | M11: 1 | N11: V
B12: Sodium High Pressure 400W | C12: 164.4 | D12: 98.64 | E12: 59.184 | F12: 35.5104 | G12: 0 | H12: 0 | K12: S-HP 400 | L12: S-HP 250 | M12: 1.33 | N12: V
B13: Metal Halide 70W | C13: 0 | D13: 0 | E13: 0 | F13: 0 | G13: 0 | H13: 0 | K13: MH70 | L13: MV80 | M13: 2.12 | N13: P
B14: Metal Halide 100W | C14: 0 | D14: 0 | E14: 0 | F14: 0 | G14: 0 | H14: 0 | K14: MH100 | N14: P
B15: Metal Halide 150W | C15: 6 | D15: 3 | E15: 2.1 | F15: 0 | G15: 0 | H15: 0 | K15: MH150 | L15: S-HP 150 | M15: 1.33 | N15: V
B16: Metal Halide 250W | C16: 25 | D16: 12.5 | E16: 8.75 | F16: 0 | G16: 0 | H16: 0 | K16: MH250 | L16: S-HP 250 | M16: 1.33 | N16: V
B17: Metal Halide 400W | C17: 0 | D17: 0 | E17: 0 | F17: 0 | G17: 0 | H17: 0 | K17: MH400 | L17: S-HP 250 | M17: 1.33 | N17: V
B18: Fluorescent T5 2X14W | C18: 8886 | D18: 6886 | E18: 4886 | F18: 2886 | G18: 0 | H18: 0 | K18: T5 (2 x 14W) | L18: T5 (2 x 14W) | M18: 1 | N18: P
B19: Fluorescent T5 2X24W | C19: 475 | D19: 275 | E19: 75 | F19: 0 | G19: 0 | H19: 0 | K19: T5 (2 x 24W) | L19: T5 (2 x 14W) | M19: 1 | N19: P
B20: Compact Fluorescent 32W | C20: 722.5 | D20: 361.25 | E20: 0 | F20: 0 | G20: 0 | H20: 0 | K20: Compact Fluoro 32W | L20: T5 (2 x 14W) | M20: 0.9612856452 | N20: P
B21: Compact Fluorescent 42W | C21: 929 | D21: 464.5 | E21: 0 | F21: 0 | G21: 0 | H21: 0 | K21: Compact Fluoro 42W | L21: T5 (2 x 14W) | M21: 0.9612856452 | N21: P
B22: Category P LED Standard / High Output | C22: 128045.7 | D22: 134143.839 | E22: 141849.4148 | F22: 149613.3257 | G22: 158164.7269 | H22: 163762.9827 | K22: LED P | L22: LED P | M22: 1 | N22: P
B23: Category V LED L1 Standard Output | C23: 30441.4 | D23: 33087.83002 | E23: 35948.72292 | F23: 38700.56605 | G23: 41473.33824 | H23: 44310.25752 | K23: LED V L1 | L23: LED V L1 | M23: 1 | N23: V
B24: Category V LED L2 Medium Output | C24: 13568.34 | D24: 15073.97028 | E24: 16679.41875 | F24: 18247.95141 | G24: 19825.227 | H24: 21439.41561 | K24: LED V L2 | L24: LED V L1 | M24: 1.108013937 | N24: V
B25: Category V LED L4 High Output | C25: 756.363 | D25: 834.2765283 | E25: 890.61267 | F25: 927.1438233 | G25: 975.6905339 | H25: 987.7418874 | K25: LED V L3 | L25: LED V L1 | M25: 1.254905557 | N25: V
B26: Category P LED Lamps | C26: 12823.5 | D26: 15608.25 | E26: 14790.6 | F26: 13311.54 | G26: 11980.386 | H26: 10782.3474 | K26: LED P Lamps | L26: LED P | M26: 2 | N26: P
B27: Accelerated replacement charge | C27: 0 | D27: 3281 | E27: 3244 | F27: 3234 | G27: 3235 | H27: 3200 | K27: Accelerated replacement charge
B28: spare
B29: spare
B30: spare
B31: spare
B32: spare
B33: TOTAL | C33: =SUM(C7:C26) -> 216018.203 | D33: =SUM(D7:D26) -> 220865.0558 | E33: 226005.8032 | F33: 231338.0374 | G33: 236835.3687 | H33: 242498.7451

Sheet Opex_Inputs
B2: =IFERROR(General_inputs!$C$5&" public lighting opex inputs",0) -> Powercor public lighting opex inputs | C2: Inputs
B3: =IFERROR("($m Real "&General_inputs!$C$9&")",0) -> ($m Real 2025-26)
B5: General input parameters | C5: =Quantity!D$6 -> 2026-27 | D5: =Quantity!E$6 -> 2027-28 | E5: =Quantity!F$6 -> 2028-29 | F5: =Quantity!G$6 -> 2029-30 | G5: =Quantity!H$6 -> 2030-31 | J5: FY24 | K5: FY25 | L5: FY26 fct | M5: FY27 fct | N5: FY28 fct | O5: FY29 fct | P5: FY30 fct | Q5: FY31 fct
I6: RFM lagged CPI | K6: 0.04051987768 | L6: 0.0242468773 | M6: 0.026 | N6: 0.02575 | O6: 0.0255 | P6: 0.02525 | Q6: 0.025
B7: CPI index | C7: =M7 -> 1.079515072 | D7: =N7 -> 1.107447516 | E7: =O7 -> 1.13582585 | F7: =P7 -> 1.164647422 | G7: =Q7 -> 1.19390918 | J7: 1 | K7: =J7*(1+K$6)^0.5 -> 1.020058762 | L7: =K7*(1+K$6)^0.5*(1+L$6)^0.5 -> 1.053059003 | M7: 1.079515072 | N7: 1.107447516 | O7: 1.13582585 | P7: 1.164647422 | Q7: 1.19390918
B8: Internal labour escalators | C8: 0.009150651113 | D8: 0.009453290313 | E8: 0.01167710903 | F8: 0.01207897168 | G8: 0.01109252182
B9: External labour escalators | C9: 0 | D9: 0 | E9: 0 | F9: 0 | G9: 0
B11: Inputs - all lamps
B12: Labour rate (per hour) | C12: 118.1654827 | D12: =IFERROR(C12*(1+D$8),0) -> 119.2825353 | E12: 120.6754105 | F12: 122.1330454 | G12: 123.4878088
B13: Labour rate for night patrols (per hour) | C13: 178.29875 | D13: 179.9842598 | E13: 182.0859557 | F13: 184.2853668 | G13: 186.3295562
B14: Elevated platform vehicle (per hour) - urban | C14: 62.25276407 | D14: =IFERROR(C14,0) -> 62.25276407 | E14: 62.25276407 | F14: 62.25276407 | G14: 62.25276407
B15: Elevated platform vehicle (per hour) - rural | C15: 78.59613326 | D15: 78.59613326 | E15: 78.59613326 | F15: 78.59613326 | G15: 78.59613326
B16: Patrol vehicle (per hour) | C16: 15.20180163 | D16: 15.20180163 | E16: 15.20180163 | F16: 15.20180163 | G16: 15.20180163
B17: Number of hours in a day | C17: 8 | D17: 8 | E17: 8 | F17: 8 | G17: 8
B18: Indirect overheads | C18: =AVERAGE(C236:D236) -> 0.2402605656 | D18: 0.2402605656 | E18: 0.2402605656 | F18: 0.2402605656 | G18: 0.2402605656 | H18: Calculated based on actuals
B19: Material premium for rural areas | C19: 0.05 | D19: 0.05 | E19: 0.05 | F19: 0.05 | G19: 0.05
B20: Number of vehicles required | C20: 1
B22: Other direct costs
B23: Number of call centre calls | C23: 2262.454214 | D23: 2315.113995 | E23: 2369.735293 | F23: 2426.047778 | G23: 2484.061165
B24: Average cost per call ($) | C24: 13.71200182 | D24: 13.89752486 | E24: 14.08304791 | F24: 14.26857096 | G24: 14.454094
B25: Total call centre | C25: 31022.7763 | D25: 32174.35431 | E25: 33373.09566 | F25: 34616.23486 | G25: 35904.85358
B26: GIS and other | C26: 137120.0182 | D26: 138975.2486 | E26: 140830.4791 | F26: 142685.7096 | G26: 144540.94
B27: Complaints handling | C27: 41136.00545 | D27: 41692.57459 | E27: 42249.14373 | F27: 42805.71287 | G27: 43362.282
B28: Total number of lights | C28: 226245.4214 | D28: 231511.3995 | E28: 236973.5293 | F28: 242604.7778 | G28: 248406.1165
B29: Total other direct costs | C29: =IFERROR(SUM(C25:C27),0) -> 209278.7999 | D29: =IFERROR(SUM(D25:D27),0) -> 212842.1775 | E29: =IFERROR(SUM(E25:E27),0) -> 216452.7185 | F29: =IFERROR(SUM(F25:F27),0) -> 220107.6573 | G29: =IFERROR(SUM(G25:G27),0) -> 223808.0756
B30: Central Management System (CMS) costs | C30: 293593.6321 | D30: 325630.7481 | E30: 361455.6624 | F30: 397249.2594 | G30: 429755.8721
B32: Dedicated poles - inspection | C32: =Quantity!D$6 -> 2026-27 | D32: =Quantity!E$6 -> 2027-28 | E32: =Quantity!F$6 -> 2028-29 | F32: =Quantity!G$6 -> 2029-30 | G32: =Quantity!H$6 -> 2030-31
B33: Unit costs - crew | C33: =C12 -> 118.1654827 | D33: =IFERROR(C33*(1+D8),0) -> 119.2825353 | E33: =IFERROR(D33*(1+E8),0) -> 120.6754105 | F33: =IFERROR(E33*(1+F8),0) -> 122.1330454 | G33: =IFERROR(F33*(1+G8),0) -> 123.4878088
B34: Unit costs - vehicle | C34: =C16 -> 15.20180163 | D34: =IFERROR($C34,0) -> 15.20180163 | E34: 15.20180163 | F34: 15.20180163 | G34: 15.20180163
B35: Crew hours required | C35: 8 | D35: 8 | E35: 8 | F35: 8 | G35: 8
B36: Vehicle hours required | C36: 8 | D36: 8 | E36: 8 | F36: 8 | G36: 8
B37: Crew costs | C37: =IFERROR(C33*C35,0) -> 945.3238617 | D37: 954.2602827 | E37: 965.403284 | F37: 977.0643629 | G37: 987.9024707
B38: Vehicle costs | C38: 121.614413 | D38: 121.614413 | E38: 121.614413 | F38: 121.614413 | G38: 121.614413
B39: Overheads | C39: =IFERROR(SUM(C37:C38)*C18,0) -> 256.3431934 | D39: =IFERROR(SUM(D37:D38)*D18,0) -> 258.4902629 | E39: =IFERROR(SUM(E37:E38)*E18,0) -> 261.1674867 | F39: =IFERROR(SUM(F37:F38)*F18,0) -> 263.9691841 | G39: =IFERROR(SUM(G37:G38)*G18,0) -> 266.573154
B40: Inspection period (years) | C40: 5 | D40: 5 | E40: 5 | F40: 5 | G40: 5
B41: Annualised cost | C41: =IFERROR(SUM(C37:C39)/C40,0) -> 264.6562936 | D41: =IFERROR(SUM(D37:D39)/D40,0) -> 266.8729917 | E41: =IFERROR(SUM(E37:E39)/E40,0) -> 269.6370368 | F41: =IFERROR(SUM(F37:F39)/F40,0) -> 272.529592 | G41: =IFERROR(SUM(G37:G39)/G40,0) -> 275.2180076
B42: Pole inspection rate (poles per day) | C42: 75 | D42: 75 | E42: 75 | F42: 75 | G42: 75
B43: Annualised unit cost | C43: =IFERROR(C41/C42,0) -> 3.528750582 | D43: =IFERROR(D41/D42,0) -> 3.558306556 | E43: =IFERROR(E41/E42,0) -> 3.59516049 | F43: =IFERROR(F41/F42,0) -> 3.633727894 | G43: =IFERROR(G41/G42,0) -> 3.669573434
B44: Proportion of lights on dedicated poles | C44: 0.6210560203 | D44: 0.6310560203 | E44: 0.6410560203 | F44: 0.6510560203 | G44: 0.6610560203
B45: Dedicated poles - inspection | C45: =IFERROR(C43*C44,0) -> 2.191551793 | D45: =IFERROR(D43*D44,0) -> 2.245490774 | E45: =IFERROR(E43*E44,0) -> 2.304699276 | F45: =IFERROR(F43*F44,0) -> 2.365760421 | G45: =IFERROR(G43*G44,0) -> 2.42579361
B48: =IFERROR(Opex_Calcs!B7&" inputs",0) -> MV80 inputs | C48: =IFERROR(LEFT(Quantity!$D$6,4)&"-"&RIGHT(Quantity!$H$6,2),0) -> 2026-31
B49: Lamps - bulk change - frequency of replacement (years) | C49: 0
B50: PE cells - bulk change - frequency of replacement (years) | C50: 0
B51: Proportion of luminaires that fail between bulk lamp change | C51: 0.3345017353
B52: Proportion of lamps that will fail before bulk change (per year) | C52: 0.04968844497
B53: Escalator | C53: 0.8
B54: Unit cost - lamp | C54: 48.12762463
B55: Unit cost - PE cell | C55: 12.8072176
B56: Unit cost - MV80 | C56: 217.3027113
B57: Unit cost - miscellaneous materials (bulk lamp) | C57: 1.610376148
B58: Unit cost - miscellaneous materials (repair) | C58: 14.09519604
B59: Other maintenance and repair costs ($/light) | C59: 0.7356346365
B60: Number of men in crew | C60: 2
B61: Number of bulk lamp changes in 1 day - urban | C61: 77.76
B62: Number of bulk lamp changes in 1 day - rural | C62: 64.8
B63: Number of bulk lamp changes in 1 day - remote | C63: 54
B64: Number of repairs in 1 day - urban | C64: 25.92
B65: Number of repairs in 1 day - rural | C65: 21.6
B66: Number of repairs in 1 day - remote | C66: 17.28
B67: % of repairs - lamps | C67: 0.2
B68: % of repairs - PE cells | C68: 0.2
B69: % of repairs - luminaires | C69: 0.5
B70: % of repairs - other | C70: 0.1
B71: Location of lights in urban areas (%) | C71: 0.83
B72: Location of lights in rural areas (%) | C72: 0.15
B73: Location of lights in remote areas (%) | C73: 0.02
B76: =IFERROR(Opex_Calcs!B93&" inputs",0) -> S-HP 150 inputs | C76: =IFERROR(LEFT(Quantity!$D$6,4)&"-"&RIGHT(Quantity!$H$6,2),0) -> 2026-31
B77: Number of patrols per year | C77: 3
B78: Lamps - frequency of replacement (years) | C78: 0
B79: PE cells - frequency of replacement (years) | C79: 0
B80: Unit cost - lamp | C80: 8.740854031
B81: Unit cost - PE cell | C81: 12.44490616
B82: Unit cost - miscellaneous materials | C82: 2.819039209
B83: Other maintenance and repair costs ($/light) | C83: 2.43182136
B84: Number of men in crew - road patrols | C84: 2
B85: Number of men in crew - repairs | C85: 2
B86: Number of lamps patrolled in 1 day - urban | C86: 3000
B87: Number of lamps patrolled in 1 day - rural | C87: 2000
B88: Number of lamps patrolled in 1 day - remote | C88: 1000
B89: Number of repairs in 1 day - urban | C89: 19.2
B90: Number of repairs in 1 day - rural | C90: 15.36
B91: Number of repairs in 1 day - remote | C91: 11.52
B92: Location of lights in urban areas (%) | C92: 0.83
B93: Location of lights in rural areas (%) | C93: 0.15
B94: Location of lights in remote areas (%) | C94: 0.02
B97: =IFERROR(Opex_Calcs!B164&" inputs",0) -> S-HP 250 inputs | C97: =IFERROR(LEFT(Quantity!$D$6,4)&"-"&RIGHT(Quantity!$H$6,2),0) -> 2026-31
B98: Number of patrols per year | C98: 3
B99: Lamps - frequency of replacement (years) | C99: 0
B100: PE cells - frequency of replacement (years) | C100: 0
B101: Unit cost - lamp | C101: 8.740854031
B102: Unit cost - PE cell | C102: 12.44490616
B103: Unit cost - miscellaneous materials | C103: 2.819039209
B104: Other maintenance and repair costs ($/light) | C104: 2.408531973
B105: Number of men in crew - road patrols | C105: 2
B106: Number of men in crew - repairs | C106: 2
B107: Number of lamps patrolled in 1 day - urban | C107: 3000
B108: Number of lamps patrolled in 1 day - rural | C108: 2000
B109: Number of lamps patrolled in 1 day - remote | C109: 1000
B110: Number of repairs in 1 day - urban | C110: 19.2
B111: Number of repairs in 1 day - rural | C111: 15.36
B112: Number of repairs in 1 day - remote | C112: 11.52
B113: Location of lights in urban areas (%) | C113: 0.83
B114: Location of lights in rural areas (%) | C114: 0.15
B115: Location of lights in remote areas (%) | C115: 0.02
B118: =IFERROR(Opex_Calcs!B235&" inputs",0) -> T5 (2 x 14W) inputs | C118: =IFERROR(LEFT(Quantity!$D$6,4)&"-"&RIGHT(Quantity!$H$6,2),0) -> 2026-31
B119: Lamps - bulk change - frequency of replacement (years) | C119: 0
B120: PE cells - bulk change - frequency of replacement (years) | C120: 0
B121: Proportion of luminaires that fail between bulk lamp change | C121: 0.07490544756
B122: Proportion of lamps that will fail before bulk change (per year) | C122: 0.09937688995
B123: Escalator | C123: 0.8
B124: Unit cost - lamp | C124: 6.430625331
B125: Unit cost - PE cell | C125: 12.8072176
B126: Unit cost - luminaire | C126: 217.3027113
B127: Unit cost - miscellaneous materials (bulk lamp) | C127: 1.610376148
B128: Unit cost - miscellaneous materials (repair) | C128: 14.09519604
B129: Other maintenance and repair costs ($/light) | C129: 1.128340201
B130: Number of men in crew | C130: 2
B131: Number of bulk lamp changes in 1 day - urban | C131: 66.528
B132: Number of bulk lamp changes in 1 day - rural | C132: 55.296
B133: Number of bulk lamp changes in 1 day - remote | C133: 44.064
B134: Number of repairs in 1 day - urban | C134: 22.464
B135: Number of repairs in 1 day - rural | C135: 18.144
B136: Number of repairs in 1 day - remote | C136: 14.688
B137: % of repairs - lamps | C137: 0.6
B138: % of repairs - PE cells | C138: 0.5
B139: % of repairs - luminaires | C139: 0.15
B140: % of repairs - other | C140: 0.1
B141: Location of lights in urban areas (%) | C141: 0.83
B142: Location of lights in rural areas (%) | C142: 0.15
B143: Location of lights in remote areas (%) | C143: 0.02
B146: =IFERROR(Opex_Calcs!B321&" inputs",0) -> LED P inputs | C146: =IFERROR(LEFT(Quantity!$D$6,4)&"-"&RIGHT(Quantity!$H$6,2),0) -> 2026-31
B147: Depreciation period (years) | C147: 20
B148: PE cells - bulk change - frequency of replacement (years) | C148: 10
B149: Proportion of luminaires that fail between bulk lamp change | C149: 0.008796604577
B150: Proportion of PE cells that will fail before bulk change (per year) | C150: 0.004261569635
B151: Unit cost - PE cell | C151: 12.44490616
B152: Unit cost - luminaire | C152: 217.3027113
B153: Unit cost - miscellaneous materials (bulk lamp) | C153: 1.610376148
B154: Unit cost - miscellaneous materials (repair) | C154: 14.09519604
B155: Other maintenance and repair costs ($/light) | C155: 0.06186093725
B156: Number of men in crew | C156: 2
B157: Number of bulk PE cells changes in 1 day - urban | C157: 66.528
B158: Number of bulk PE cells changes in 1 day - rural | C158: 55.296
B159: Number of bulk PE cells changes in 1 day - remote | C159: 44.064
B160: Number of repairs in 1 day - urban | C160: 22.464
B161: Number of repairs in 1 day - rural | C161: 18.144
B162: Number of repairs in 1 day - remote | C162: 14.688
B163: % of repairs - PE cells | C163: 0.5
B164: % of repairs - luminaires | C164: 0.15
B165: % of repairs - other | C165: 0.1
B166: Location of lights in urban areas (%) | C166: 0.83
B167: Location of lights in rural areas (%) | C167: 0.15
B168: Location of lights in remote areas (%) | C168: 0.02
B171: =IFERROR(Opex_Calcs!B469&" inputs",0) -> Category P LED Lamps inputs | C171: =IFERROR(LEFT(Quantity!$D$6,4)&"-"&RIGHT(Quantity!$H$6,2),0) -> 2026-31
B172: Lamps - bulk change - frequency of replacement (years) | C172: 5
B173: PE cells - bulk change - frequency of replacement (years) | C173: 10
B174: Proportion of luminaires that fail between bulk lamp change | C174: 0.009469952159
B175: Proportion of lamps that will fail before bulk change (per year) | C175: 0.003529304316
B176: Escalator | C176: 0.8
B177: Unit cost - lamp | C177: 51.98849134
B178: Unit cost - PE cell | C178: 12.15527061
B179: Unit cost - luminaire | C179: 197.3087249
B180: Unit cost - miscellaneous materials (bulk lamp) | C180: 1.610376148
B181: Unit cost - miscellaneous materials (repair) | C181: 14.09519604
B182: Other maintenance and repair costs ($/light) | C182: 0.06186093725
B183: Number of men in crew | C183: 2
B184: Number of bulk lamp changes in 1 day - urban | C184: 66.528
B185: Number of bulk lamp changes in 1 day - rural | C185: 55.296
B186: Number of bulk lamp changes in 1 day - remote | C186: 44.064
B187: Number of repairs in 1 day - urban | C187: 22.464
B188: Number of repairs in 1 day - rural | C188: 18.144
B189: Number of repairs in 1 day - remote | C189: 14.688
B190: % of repairs - lamps | C190: 0.6
B191: % of repairs - PE cells | C191: 0.5
B192: % of repairs - luminaires | C192: 0.15
B193: % of repairs - other | C193: 0.1
B194: Location of lights in urban areas (%) | C194: 0.83
B195: Location of lights in rural areas (%) | C195: 0.15
B196: Location of lights in remote areas (%) | C196: 0.02
B199: =IFERROR(Opex_Calcs!B401&" inputs",0) -> LED V L1 inputs | C199: =IFERROR(LEFT(Quantity!$D$6,4)&"-"&RIGHT(Quantity!$H$6,2),0) -> 2026-31
B200: Number of patrols per year | C200: 3
B201: PE cells - frequency of replacement (years) | C201: 10
B202: Unit cost - luminaire | C202: 386.1758246
B203: Unit cost - PE cell | C203: 91.81781171
B204: Unit cost - miscellaneous materials | C204: 1.610376148
B205: Other maintenance and repair costs ($/light) | C205: 2.377249506
B206: Number of men in crew - road patrols | C206: 2
B207: Number of men in crew - repairs | C207: 2
B208: Number of lamps patrolled in 1 day - urban | C208: 3000
B209: Number of lamps patrolled in 1 day - rural | C209: 2000
B210: Number of lamps patrolled in 1 day - remote | C210: 1000
B211: Number of repairs in 1 day - urban | C211: 19.2
B212: Number of repairs in 1 day - rural | C212: 15.36
B213: Number of repairs in 1 day - remote | C213: 11.52
B214: Location of lights in urban areas (%) | C214: 0.83
B215: Location of lights in rural areas (%) | C215: 0.15
B216: Location of lights in remote areas (%) | C216: 0.02
B219: ANNUAL REPORTING RIN
B220: 8.1 - INCOME
B221: 8.1.1 - INCOME STATEMENT | C221: 2021-22 | E221: 2022-23
... 14 more rows

Sheet Opex_Calcs
B2: =IFERROR(General_inputs!$C$5&" public lighting opex inputs",0) -> Powercor public lighting opex inputs
B3: =IFERROR("($m Real "&General_inputs!$C$9&")",0) -> ($m Real 2025-26)
B6: Mercury Vapour 80 Watt Standard Light Type - Cost build-up
B7: MV80
B9: =IFERROR($B$7&" calcs",0) -> MV80 calcs | C9: =Quantity!D$6 -> 2026-27 | D9: =Quantity!E$6 -> 2027-28 | E9: =Quantity!F$6 -> 2028-29 | F9: =Quantity!G$6 -> 2029-30 | G9: =Quantity!H$6 -> 2030-31
B10: Bulk change & repairs | C10: =IFERROR(H43*Opex_Inputs!$C71+H66*Opex_Inputs!$C72+H89*Opex_Inputs!$C73,0) -> 14.48181651 | D10: =IFERROR(N43*Opex_Inputs!$C71+N66*Opex_Inputs!$C72+N89*Opex_Inputs!$C73,0) -> 14.53463518 | E10: =IFERROR(T43*Opex_Inputs!$C71+T66*Opex_Inputs!$C72+T89*Opex_Inputs!$C73,0) -> 14.60049583 | F10: =IFERROR(Z43*Opex_Inputs!$C71+Z66*Opex_Inputs!$C72+Z89*Opex_Inputs!$C73,0) -> 14.66941859 | G10: =IFERROR(AF43*Opex_Inputs!$C71+AF66*Opex_Inputs!$C72+AF89*Opex_Inputs!$C73,0) -> 14.73347717
B11: Dedicated poles - inspection | C11: =IFERROR(Opex_Inputs!C$45,0) -> 2.191551793 | D11: =IFERROR(Opex_Inputs!D$45,0) -> 2.245490774 | E11: =IFERROR(Opex_Inputs!E$45,0) -> 2.304699276 | F11: =IFERROR(Opex_Inputs!F$45,0) -> 2.365760421 | G11: =IFERROR(Opex_Inputs!G$45,0) -> 2.42579361
B12: Other costs | C12: =IFERROR(IF(Opex_Inputs!C$28=0,0,Opex_Inputs!C$29/Opex_Inputs!C$28),0) -> 0.9250078901 | D12: =IFERROR(IF(Opex_Inputs!D$28=0,0,Opex_Inputs!D$29/Opex_Inputs!D$28),0) -> 0.9193593835 | E12: =IFERROR(IF(Opex_Inputs!E$28=0,0,Opex_Inputs!E$29/Opex_Inputs!E$28),0) -> 0.9134046286 | F12: =IFERROR(IF(Opex_Inputs!F$28=0,0,Opex_Inputs!F$29/Opex_Inputs!F$28),0) -> 0.9072684359 | G12: =IFERROR(IF(Opex_Inputs!G$28=0,0,Opex_Inputs!G$29/Opex_Inputs!G$28),0) -> 0.9009765088
B13: CMS service costs | C13: =IFERROR(IF(Opex_Inputs!C$28=0,0,Opex_Inputs!C$30/Opex_Inputs!C$28),0) -> 1.297677673 | D13: =IFERROR(IF(Opex_Inputs!D$28=0,0,Opex_Inputs!D$30/Opex_Inputs!D$28),0) -> 1.406543042 | E13: =IFERROR(IF(Opex_Inputs!E$28=0,0,Opex_Inputs!E$30/Opex_Inputs!E$28),0) -> 1.525299739 | F13: =IFERROR(IF(Opex_Inputs!F$28=0,0,Opex_Inputs!F$30/Opex_Inputs!F$28),0) -> 1.637433784 | G13: =IFERROR(IF(Opex_Inputs!G$28=0,0,Opex_Inputs!G$30/Opex_Inputs!G$28),0) -> 1.730053504
B14: Unit cost | C14: =IFERROR(SUM(C10:C13),0) -> 18.89605386 | D14: =IFERROR(SUM(D10:D13),0) -> 19.10602838 | E14: 19.34389948 | F14: 19.57988123 | G14: 19.79030079
B16: =IFERROR($B$7&" - Avoided costs",0) -> MV80 - Avoided costs | C16: =Quantity!D$6 -> 2026-27 | D16: =Quantity!E$6 -> 2027-28 | E16: =Quantity!F$6 -> 2028-29 | F16: =Quantity!G$6 -> 2029-30 | G16: =Quantity!H$6 -> 2030-31
B17: Materials & labour - bulk lamp change | C17: =-((H25+H34)*Opex_Inputs!$C71+(H48+H57)*Opex_Inputs!$C72+(H71+H80)*Opex_Inputs!$C73)*2 -> 0 | D17: =-((N25+N34)*Opex_Inputs!$C71+(N48+N57)*Opex_Inputs!$C72+(N71+N80)*Opex_Inputs!$C73)*2 -> 0 | E17: =-((T25+T34)*Opex_Inputs!$C71+(T48+T57)*Opex_Inputs!$C72+(T71+T80)*Opex_Inputs!$C73)*2 -> 0 | F17: =-((Z25+Z34)*Opex_Inputs!$C71+(Z48+Z57)*Opex_Inputs!$C72+(Z71+Z80)*Opex_Inputs!$C73)*2 -> 0 | G17: =-((AF25+AF34)*Opex_Inputs!$C71+(AF48+AF57)*Opex_Inputs!$C72+(AF71+AF80)*Opex_Inputs!$C73)*2 -> 0
B18: Materials & Labour - repair of faults | C18: =-((H29+H37+H40)*Opex_Inputs!$C71+(H52+H60+H63)*Opex_Inputs!$C72+(H75+H83+H86)*Opex_Inputs!$C73)/2 -> -5.838215334 | D18: =-((N29+N37+N40)*Opex_Inputs!$C71+(N52+N60+N63)*Opex_Inputs!$C72+(N75+N83+N86)*Opex_Inputs!$C73)/2 -> -5.859508712 | E18: =-((T29+T37+T40)*Opex_Inputs!$C71+(T52+T60+T63)*Opex_Inputs!$C72+(T75+T83+T86)*Opex_Inputs!$C73)/2 -> -5.886059849 | F18: =-((Z29+Z37+Z40)*Opex_Inputs!$C71+(Z52+Z60+Z63)*Opex_Inputs!$C72+(Z75+Z83+Z86)*Opex_Inputs!$C73)/2 -> -5.913845442 | G18: =-((AF29+AF37+AF40)*Opex_Inputs!$C71+(AF52+AF60+AF63)*Opex_Inputs!$C72+(AF75+AF83+AF86)*Opex_Inputs!$C73)/2 -> -5.93967009
B19: Total | C19: =SUM(C17:C18) -> -5.838215334 | D19: =SUM(D17:D18) -> -5.859508712 | E19: =SUM(E17:E18) -> -5.886059849 | F19: =SUM(F17:F18) -> -5.913845442 | G19: =SUM(G17:G18) -> -5.93967009
C21: =C9 -> 2026-27 | I21: =D9 -> 2027-28 | O21: =E9 -> 2028-29 | U21: =F9 -> 2029-30 | AA21: =G9 -> 2030-31
B22: =IFERROR($B$7&" detailed cost build-up - urban",0) -> MV80 detailed cost build-up - urban | C22: Unit rate | D22: Number | E22: Hours | F22: Cost | G22: Annualised | H22: Annualised | I22: Unit rate | J22: Number | K22: Hours | L22: Cost | M22: Annualised | N22: Annualised | O22: Unit rate | P22: Number | Q22: Hours | R22: Cost | S22: Annualised | T22: Annualised | U22: Unit rate | V22: Number | W22: Hours | X22: Cost | Y22: Annualised | Z22: Annualised | AA22: Unit rate | AB22: Number | AC22: Hours | AD22: Cost | AE22: Annualised | AF22: Annualised
G23: cost | H23: unit cost | M23: cost | N23: unit cost | S23: cost | T23: unit cost | Y23: cost | Z23: unit cost | AE23: cost | AF23: unit cost
B24: Patrols and repairs
B25: Materials - bulk lamp change | H25: =IFERROR(SUM(G26:G28)/D26,0) -> 0 | N25: =IFERROR(SUM(M26:M28)/J26,0) -> 0 | T25: =IFERROR(SUM(S26:S28)/P26,0) -> 0 | Z25: =IFERROR(SUM(Y26:Y28)/V26,0) -> 0 | AF25: =IFERROR(SUM(AE26:AE28)/AB26,0) -> 0
B26: Lamp | C26: =IFERROR(Opex_Inputs!$C$54,0) -> 48.12762463 | D26: =IFERROR(Opex_Inputs!$C$61,0) -> 77.76 | F26: =IFERROR(C26*D26,0) -> 3742.404091 | G26: =IFERROR(F26/Opex_Inputs!$C$49*Opex_Inputs!$C$53,0) -> 0 | I26: =IFERROR(Opex_Inputs!$C$54,0) -> 48.12762463 | J26: =IFERROR(Opex_Inputs!$C$61,0) -> 77.76 | L26: =IFERROR(I26*J26,0) -> 3742.404091 | M26: =IFERROR(L26/Opex_Inputs!$C$49*Opex_Inputs!$C$53,0) -> 0 | O26: =IFERROR(Opex_Inputs!$C$54,0) -> 48.12762463 | P26: =IFERROR(Opex_Inputs!$C$61,0) -> 77.76 | R26: =IFERROR(O26*P26,0) -> 3742.404091 | S26: =IFERROR(R26/Opex_Inputs!$C$49*Opex_Inputs!$C$53,0) -> 0 | U26: =IFERROR(Opex_Inputs!$C$54,0) -> 48.12762463 | V26: =IFERROR(Opex_Inputs!$C$61,0) -> 77.76 | X26: =IFERROR(U26*V26,0) -> 3742.404091 | Y26: =IFERROR(X26/Opex_Inputs!$C$49*Opex_Inputs!$C$53,0) -> 0 | AA26: =IFERROR(Opex_Inputs!$C$54,0) -> 48.12762463 | AB26: =IFERROR(Opex_Inputs!$C$61,0) -> 77.76 | AD26: =IFERROR(AA26*AB26,0) -> 3742.404091 | AE26: =IFERROR(AD26/Opex_Inputs!$C$49*Opex_Inputs!$C$53,0) -> 0
B27: PE cell | C27: =IFERROR(Opex_Inputs!$C$55,0) -> 12.8072176 | D27: =IFERROR(D26*Opex_Inputs!$C$49/Opex_Inputs!$C$50,0) -> 0 | F27: =IFERROR(C27*D27,0) -> 0 | G27: =IFERROR(F27/Opex_Inputs!$C$49,0) -> 0 | I27: =IFERROR(Opex_Inputs!$C$55,0) -> 12.8072176 | J27: =IFERROR(J26*Opex_Inputs!$C$49/Opex_Inputs!$C$50,0) -> 0 | L27: =IFERROR(I27*J27,0) -> 0 | M27: =IFERROR(L27/Opex_Inputs!$C$49,0) -> 0 | O27: =IFERROR(Opex_Inputs!$C$55,0) -> 12.8072176 | P27: =IFERROR(P26*Opex_Inputs!$C$49/Opex_Inputs!$C$50,0) -> 0 | R27: =IFERROR(O27*P27,0) -> 0 | S27: =IFERROR(R27/Opex_Inputs!$C$49,0) -> 0 | U27: =IFERROR(Opex_Inputs!$C$55,0) -> 12.8072176 | V27: =IFERROR(V26*Opex_Inputs!$C$49/Opex_Inputs!$C$50,0) -> 0 | X27: =IFERROR(U27*V27,0) -> 0 | Y27: =IFERROR(X27/Opex_Inputs!$C$49,0) -> 0 | AA27: =IFERROR(Opex_Inputs!$C$55,0) -> 12.8072176 | AB27: =IFERROR(AB26*Opex_Inputs!$C$49/Opex_Inputs!$C$50,0) -> 0 | AD27: =IFERROR(AA27*AB27,0) -> 0 | AE27: =IFERROR(AD27/Opex_Inputs!$C$49,0) -> 0
B28: Miscellaneous | C28: =IFERROR(Opex_Inputs!$C$57,0) -> 1.610376148 | D28: =IFERROR(Opex_Inputs!$C$61,0) -> 77.76 | F28: =IFERROR(C28*D28,0) -> 125.2228493 | G28: =IFERROR(F28/Opex_Inputs!$C$49*Opex_Inputs!$C$53,0) -> 0 | I28: =IFERROR(Opex_Inputs!$C$57,0) -> 1.610376148 | J28: =IFERROR(Opex_Inputs!$C$61,0) -> 77.76 | L28: =IFERROR(I28*J28,0) -> 125.2228493 | M28: =IFERROR(L28/Opex_Inputs!$C$49*Opex_Inputs!$C$53,0) -> 0 | O28: =IFERROR(Opex_Inputs!$C$57,0) -> 1.610376148 | P28: =IFERROR(Opex_Inputs!$C$61,0) -> 77.76 | R28: =IFERROR(O28*P28,0) -> 125.2228493 | S28: =IFERROR(R28/Opex_Inputs!$C$49*Opex_Inputs!$C$53,0) -> 0 | U28: =IFERROR(Opex_Inputs!$C$57,0) -> 1.610376148 | V28: =IFERROR(Opex_Inputs!$C$61,0) -> 77.76 | X28: =IFERROR(U28*V28,0) -> 125.2228493 | Y28: =IFERROR(X28/Opex_Inputs!$C$49*Opex_Inputs!$C$53,0) -> 0 | AA28: =IFERROR(Opex_Inputs!$C$57,0) -> 1.610376148 | AB28: =IFERROR(Opex_Inputs!$C$61,0) -> 77.76 | AD28: =IFERROR(AA28*AB28,0) -> 125.2228493 | AE28: =IFERROR(AD28/Opex_Inputs!$C$49*Opex_Inputs!$C$53,0) -> 0
B29: Materials - repair of faults | G29: =IFERROR(SUM(F30:F33)/Opex_Inputs!$C$64,0) -> 122.2478437 | H29: =IFERROR(G29*Opex_Inputs!$C$52,0) -> 6.074305256 | M29: =IFERROR(SUM(L30:L33)/Opex_Inputs!$C$64,0) -> 122.2478437 | N29: =IFERROR(M29*Opex_Inputs!$C$52,0) -> 6.074305256 | S29: =IFERROR(SUM(R30:R33)/Opex_Inputs!$C$64,0) -> 122.2478437 | T29: =IFERROR(S29*Opex_Inputs!$C$52,0) -> 6.074305256 | Y29: =IFERROR(SUM(X30:X33)/Opex_Inputs!$C$64,0) -> 122.2478437 | Z29: =IFERROR(Y29*Opex_Inputs!$C$52,0) -> 6.074305256 | AE29: =IFERROR(SUM(AD30:AD33)/Opex_Inputs!$C$64,0) -> 122.2478437 | AF29: =IFERROR(AE29*Opex_Inputs!$C$52,0) -> 6.074305256
B30: Lamp | C30: =IFERROR(Opex_Inputs!$C$54,0) -> 48.12762463 | D30: =IFERROR(Opex_Inputs!$C$64*Opex_Inputs!$C$67,0) -> 5.184 | F30: =IFERROR(C30*D30,0) -> 249.4936061 | I30: =IFERROR(Opex_Inputs!$C$54,0) -> 48.12762463 | J30: =IFERROR(Opex_Inputs!$C$64*Opex_Inputs!$C$67,0) -> 5.184 | L30: =IFERROR(I30*J30,0) -> 249.4936061 | O30: =IFERROR(Opex_Inputs!$C$54,0) -> 48.12762463 | P30: =IFERROR(Opex_Inputs!$C$64*Opex_Inputs!$C$67,0) -> 5.184 | R30: =IFERROR(O30*P30,0) -> 249.4936061 | U30: =IFERROR(Opex_Inputs!$C$54,0) -> 48.12762463 | V30: =IFERROR(Opex_Inputs!$C$64*Opex_Inputs!$C$67,0) -> 5.184 | X30: =IFERROR(U30*V30,0) -> 249.4936061 | AA30: =IFERROR(Opex_Inputs!$C$54,0) -> 48.12762463 | AB30: =IFERROR(Opex_Inputs!$C$64*Opex_Inputs!$C$67,0) -> 5.184 | AD30: =IFERROR(AA30*AB30,0) -> 249.4936061
B31: PE cell | C31: =IFERROR(Opex_Inputs!$C$55,0) -> 12.8072176 | D31: =IFERROR(Opex_Inputs!$C$64*Opex_Inputs!$C$68,0) -> 5.184 | F31: =IFERROR(C31*D31,0) -> 66.39261602 | I31: =IFERROR(Opex_Inputs!$C$55,0) -> 12.8072176 | J31: =IFERROR(Opex_Inputs!$C$64*Opex_Inputs!$C$68,0) -> 5.184 | L31: =IFERROR(I31*J31,0) -> 66.39261602 | O31: =IFERROR(Opex_Inputs!$C$55,0) -> 12.8072176 | P31: =IFERROR(Opex_Inputs!$C$64*Opex_Inputs!$C$68,0) -> 5.184 | R31: =IFERROR(O31*P31,0) -> 66.39261602 | U31: =IFERROR(Opex_Inputs!$C$55,0) -> 12.8072176 | V31: =IFERROR(Opex_Inputs!$C$64*Opex_Inputs!$C$68,0) -> 5.184 | X31: =IFERROR(U31*V31,0) -> 66.39261602 | AA31: =IFERROR(Opex_Inputs!$C$55,0) -> 12.8072176 | AB31: =IFERROR(Opex_Inputs!$C$64*Opex_Inputs!$C$68,0) -> 5.184 | AD31: =IFERROR(AA31*AB31,0) -> 66.39261602
B32: Luminaire | C32: =IFERROR(Opex_Inputs!$C$56,0) -> 217.3027113 | D32: =IFERROR(Opex_Inputs!$C$64*Opex_Inputs!$C$69,0) -> 12.96 | F32: =IFERROR(C32*D32,0) -> 2816.243139 | I32: =IFERROR(Opex_Inputs!$C$56,0) -> 217.3027113 | J32: =IFERROR(Opex_Inputs!$C$64*Opex_Inputs!$C$69,0) -> 12.96 | L32: =IFERROR(I32*J32,0) -> 2816.243139 | O32: =IFERROR(Opex_Inputs!$C$56,0) -> 217.3027113 | P32: =IFERROR(Opex_Inputs!$C$64*Opex_Inputs!$C$69,0) -> 12.96 | R32: =IFERROR(O32*P32,0) -> 2816.243139 | U32: =IFERROR(Opex_Inputs!$C$56,0) -> 217.3027113 | V32: =IFERROR(Opex_Inputs!$C$64*Opex_Inputs!$C$69,0) -> 12.96 | X32: =IFERROR(U32*V32,0) -> 2816.243139 | AA32: =IFERROR(Opex_Inputs!$C$56,0) -> 217.3027113 | AB32: =IFERROR(Opex_Inputs!$C$64*Opex_Inputs!$C$69,0) -> 12.96 | AD32: =IFERROR(AA32*AB32,0) -> 2816.243139
B33: Miscellaneous | C33: =IFERROR(Opex_Inputs!$C$58,0) -> 14.09519604 | D33: =IFERROR(Opex_Inputs!$C$64*Opex_Inputs!$C$70,0) -> 2.592 | F33: =IFERROR(C33*D33,0) -> 36.53474815 | I33: =IFERROR(Opex_Inputs!$C$58,0) -> 14.09519604 | J33: =IFERROR(Opex_Inputs!$C$64*Opex_Inputs!$C$70,0) -> 2.592 | L33: =IFERROR(I33*J33,0) -> 36.53474815 | O33: =IFERROR(Opex_Inputs!$C$58,0) -> 14.09519604 | P33: =IFERROR(Opex_Inputs!$C$64*Opex_Inputs!$C$70,0) -> 2.592 | R33: =IFERROR(O33*P33,0) -> 36.53474815 | U33: =IFERROR(Opex_Inputs!$C$58,0) -> 14.09519604 | V33: =IFERROR(Opex_Inputs!$C$64*Opex_Inputs!$C$70,0) -> 2.592 | X33: =IFERROR(U33*V33,0) -> 36.53474815 | AA33: =IFERROR(Opex_Inputs!$C$58,0) -> 14.09519604 | AB33: =IFERROR(Opex_Inputs!$C$64*Opex_Inputs!$C$70,0) -> 2.592 | AD33: =IFERROR(AA33*AB33,0) -> 36.53474815
B34: Labour - bulk lamp change | H34: =IFERROR(SUM(G35:G36)/D26,0) -> 0 | N34: =IFERROR(SUM(M35:M36)/J26,0) -> 0 | T34: =IFERROR(SUM(S35:S36)/P26,0) -> 0 | Z34: =IFERROR(SUM(Y35:Y36)/V26,0) -> 0 | AF34: =IFERROR(SUM(AE35:AE36)/AB26,0) -> 0
B35: Crew costs | C35: =IFERROR(Opex_Inputs!$C$12,0) -> 118.1654827 | D35: =IFERROR(Opex_Inputs!$C$60,0) -> 2 | E35: =IFERROR(Opex_Inputs!$C$17,0) -> 8 | F35: =IFERROR(C35*D35*E35,0) -> 1890.647723 | G35: =IFERROR(F35/Opex_Inputs!$C$49*(D$26+D$27)/D$26*Opex_Inputs!$C$53,0) -> 0 | I35: =IFERROR(Opex_Inputs!$D$12,0) -> 119.2825353 | J35: =IFERROR(Opex_Inputs!$C$60,0) -> 2 | K35: =IFERROR(Opex_Inputs!$D$17,0) -> 8 | L35: =IFERROR(I35*J35*K35,0) -> 1908.520565 | M35: =IFERROR(L35/Opex_Inputs!$C$49*(J$26+J$27)/J$26*Opex_Inputs!$C$53,0) -> 0 | O35: =IFERROR(Opex_Inputs!$E$12,0) -> 120.6754105 | P35: =IFERROR(Opex_Inputs!$C$60,0) -> 2 | Q35: =IFERROR(Opex_Inputs!$E$17,0) -> 8 | R35: =IFERROR(O35*P35*Q35,0) -> 1930.806568 | S35: =IFERROR(R35/Opex_Inputs!$C$49*(P$26+P$27)/P$26*Opex_Inputs!$C$53,0) -> 0 | U35: =IFERROR(Opex_Inputs!$F$12,0) -> 122.1330454 | V35: =IFERROR(Opex_Inputs!$C$60,0) -> 2 | W35: =IFERROR(Opex_Inputs!$F$17,0) -> 8 | X35: =IFERROR(U35*V35*W35,0) -> 1954.128726 | Y35: =IFERROR(X35/Opex_Inputs!$C$49*(V$26+V$27)/V$26*Opex_Inputs!$C$53,0) -> 0 | AA35: =IFERROR(Opex_Inputs!$G$12,0) -> 123.4878088 | AB35: =IFERROR(Opex_Inputs!$C$60,0) -> 2 | AC35: =IFERROR(Opex_Inputs!$G$17,0) -> 8 | AD35: =IFERROR(AA35*AB35*AC35,0) -> 1975.804941 | AE35: =IFERROR(AD35/Opex_Inputs!$C$49*(AB$26+AB$27)/AB$26*Opex_Inputs!$C$53,0) -> 0
B36: Elevated platform vehicle costs | C36: =IFERROR(Opex_Inputs!$C$14,0) -> 62.25276407 | D36: =IFERROR(Opex_Inputs!$C$20,0) -> 1 | E36: =IFERROR(E$35,0) -> 8 | F36: =IFERROR(C36*D36*E36,0) -> 498.0221125 | G36: =IFERROR(F36/Opex_Inputs!$C$49*(D$26+D$27)/D$26*Opex_Inputs!$C$53,0) -> 0 | I36: =IFERROR(Opex_Inputs!$D$14,0) -> 62.25276407 | J36: =IFERROR(Opex_Inputs!$C$20,0) -> 1 | K36: =IFERROR(K35,0) -> 8 | L36: =IFERROR(I36*J36*K36,0) -> 498.0221125 | M36: =IFERROR(L36/Opex_Inputs!$C$49*(J$26+J$27)/J$26*Opex_Inputs!$C$53,0) -> 0 | O36: =IFERROR(Opex_Inputs!$E$14,0) -> 62.25276407 | P36: =IFERROR(Opex_Inputs!$C$20,0) -> 1 | Q36: =IFERROR(Q35,0) -> 8 | R36: =IFERROR(O36*P36*Q36,0) -> 498.0221125 | S36: =IFERROR(R36/Opex_Inputs!$C$49*(P$26+P$27)/P$26*Opex_Inputs!$C$53,0) -> 0 | U36: =IFERROR(Opex_Inputs!$F$14,0) -> 62.25276407 | V36: =IFERROR(Opex_Inputs!$C$20,0) -> 1 | W36: =IFERROR(W35,0) -> 8 | X36: =IFERROR(U36*V36*W36,0) -> 498.0221125 | Y36: =IFERROR(X36/Opex_Inputs!$C$49*(V$26+V$27)/V$26*Opex_Inputs!$C$53,0) -> 0 | AA36: =IFERROR(Opex_Inputs!$G$14,0) -> 62.25276407 | AB36: =IFERROR(Opex_Inputs!$C$20,0) -> 1 | AC36: =IFERROR(AC35,0) -> 8 | AD36: =IFERROR(AA36*AB36*AC36,0) -> 498.0221125 | AE36: =IFERROR(AD36/Opex_Inputs!$C$49*(AB$26+AB$27)/AB$26*Opex_Inputs!$C$53,0) -> 0
B37: Labour - Repair of faults | G37: =IFERROR((F38+F39)/Opex_Inputs!$C$64,0) -> 92.15547207 | H37: =IFERROR(G37*Opex_Inputs!$C$52,0) -> 4.579062103 | M37: =IFERROR((L38+L39)/Opex_Inputs!$C$64,0) -> 92.84501072 | N37: =IFERROR(M37*Opex_Inputs!$C$52,0) -> 4.613324206 | S37: =IFERROR((R38+R39)/Opex_Inputs!$C$64,0) -> 93.70481021 | T37: =IFERROR(S37*Opex_Inputs!$C$52,0) -> 4.656046306 | Y37: =IFERROR((X38+X39)/Opex_Inputs!$C$64,0) -> 94.60458482 | Z37: =IFERROR(Y37*Opex_Inputs!$C$52,0) -> 4.700754707 | AE37: =IFERROR((AD38+AD39)/Opex_Inputs!$C$64,0) -> 95.44085856 | AF37: =IFERROR(AE37*Opex_Inputs!$C$52,0) -> 4.742307849
B38: Crew costs | C38: =IFERROR(Opex_Inputs!$C$12,0) -> 118.1654827 | D38: =IFERROR(Opex_Inputs!$C$60,0) -> 2 | E38: =IFERROR(E$35,0) -> 8 | F38: =IFERROR(C38*D38*E38,0) -> 1890.647723 | I38: =IFERROR(Opex_Inputs!$D$12,0) -> 119.2825353 | J38: =IFERROR(Opex_Inputs!$C$60,0) -> 2 | K38: =IFERROR(K35,0) -> 8 | L38: =IFERROR(I38*J38*K38,0) -> 1908.520565 | O38: =IFERROR(Opex_Inputs!$E$12,0) -> 120.6754105 | P38: =IFERROR(Opex_Inputs!$C$60,0) -> 2 | Q38: =IFERROR(Q35,0) -> 8 | R38: =IFERROR(O38*P38*Q38,0) -> 1930.806568 | U38: =IFERROR(Opex_Inputs!$F$12,0) -> 122.1330454 | V38: =IFERROR(Opex_Inputs!$C$60,0) -> 2 | W38: =IFERROR(W35,0) -> 8 | X38: =IFERROR(U38*V38*W38,0) -> 1954.128726 | AA38: =IFERROR(Opex_Inputs!$G$12,0) -> 123.4878088 | AB38: =IFERROR(Opex_Inputs!$C$60,0) -> 2 | AC38: =IFERROR(AC35,0) -> 8 | AD38: =IFERROR(AA38*AB38*AC38,0) -> 1975.804941
B39: Elevated platform vehicle costs | C39: =IFERROR(Opex_Inputs!$C$14,0) -> 62.25276407 | D39: =IFERROR(Opex_Inputs!$C$20,0) -> 1 | E39: =IFERROR(E$35,0) -> 8 | F39: =IFERROR(C39*D39*E39,0) -> 498.0221125 | I39: =IFERROR(Opex_Inputs!$D$14,0) -> 62.25276407 | J39: =IFERROR(Opex_Inputs!$C$20,0) -> 1 | K39: =IFERROR(K35,0) -> 8 | L39: =IFERROR(I39*J39*K39,0) -> 498.0221125 | O39: =IFERROR(Opex_Inputs!$E$14,0) -> 62.25276407 | P39: =IFERROR(Opex_Inputs!$C$20,0) -> 1 | Q39: =IFERROR(Q35,0) -> 8 | R39: =IFERROR(O39*P39*Q39,0) -> 498.0221125 | U39: =IFERROR(Opex_Inputs!$F$14,0) -> 62.25276407 | V39: =IFERROR(Opex_Inputs!$C$20,0) -> 1 | W39: =IFERROR(W35,0) -> 8 | X39: =IFERROR(U39*V39*W39,0) -> 498.0221125 | AA39: =IFERROR(Opex_Inputs!$G$14,0) -> 62.25276407 | AB39: =IFERROR(Opex_Inputs!$C$20,0) -> 1 | AC39: =IFERROR(AC35,0) -> 8 | AD39: =IFERROR(AA39*AB39*AC39,0) -> 498.0221125
B40: Other Maintenance and Repair costs | H40: =IFERROR(Opex_Inputs!$C$59,0) -> 0.7356346365 | N40: =IFERROR(H40*(1+Opex_Inputs!$D$8),0) -> 0.7425888043 | T40: =IFERROR(N40*(1+Opex_Inputs!$E$8),0) -> 0.7512600947 | Z40: =IFERROR(T40*(1+Opex_Inputs!$F$8),0) -> 0.7603345441 | AF40: =IFERROR(Z40*(1+Opex_Inputs!$G$8),0) -> 0.7687685716
B41: Overheads | C41: =IFERROR(Opex_Inputs!$C$18,0) -> 0.2402605656 | H41: =IFERROR(C41*SUM(H25:H40),0) -> 2.736328061 | I41: =IFERROR(Opex_Inputs!$D$18,0) -> 0.2402605656 | N41: =IFERROR(I41*SUM(N25:N40),0) -> 2.746230706 | O41: =IFERROR(Opex_Inputs!$E$18,0) -> 0.2402605656 | T41: =IFERROR(O41*SUM(T25:T40),0) -> 2.758578511 | U41: =IFERROR(Opex_Inputs!$F$18,0) -> 0.2402605656 | Z41: =IFERROR(U41*SUM(Z25:Z40),0) -> 2.771500409 | AA41: =IFERROR(Opex_Inputs!$G$18,0) -> 0.2402605656 | AF41: =IFERROR(AA41*SUM(AF25:AF40),0) -> 2.783510354
H43: =IFERROR(SUM(H25:H41),0) -> 14.12533006 | N43: =IFERROR(SUM(N25:N41),0) -> 14.17644897 | T43: =IFERROR(SUM(T25:T41),0) -> 14.24019017 | Z43: =IFERROR(SUM(Z25:Z41),0) -> 14.30689492 | AF43: =IFERROR(SUM(AF25:AF41),0) -> 14.36889203
B45: =IFERROR($B$7&" detailed cost build-up - rural",0) -> MV80 detailed cost build-up - rural | C45: Unit rate | D45: Number | E45: Hours | F45: Cost | G45: Annualised | H45: Annualised | I45: Unit rate | J45: Number | K45: Hours | L45: Cost | M45: Annualised | N45: Annualised | O45: Unit rate | P45: Number | Q45: Hours | R45: Cost | S45: Annualised | T45: Annualised | U45: Unit rate | V45: Number | W45: Hours | X45: Cost | Y45: Annualised | Z45: Annualised | AA45: Unit rate | AB45: Number | AC45: Hours | AD45: Cost | AE45: Annualised | AF45: Annualised
G46: cost | H46: unit cost | M46: cost | N46: unit cost | S46: cost | T46: unit cost | Y46: cost | Z46: unit cost | AE46: cost | AF46: unit cost
B47: Patrols and repairs
B48: Materials - bulk lamp change | H48: =IFERROR(SUM(G49:G51)/D49,0) -> 0 | N48: =IFERROR(SUM(M49:M51)/J49,0) -> 0 | T48: =IFERROR(SUM(S49:S51)/P49,0) -> 0 | Z48: =IFERROR(SUM(Y49:Y51)/V49,0) -> 0 | AF48: =IFERROR(SUM(AE49:AE51)/AB49,0) -> 0
B49: Lamp | C49: =IFERROR(C26*(1+Opex_Inputs!$C$19),0) -> 50.53400587 | D49: =IFERROR(Opex_Inputs!$C$62,0) -> 64.8 | F49: =IFERROR(C49*D49,0) -> 3274.60358 | G49: =IFERROR(F49/Opex_Inputs!$C$49*Opex_Inputs!$C$53,0) -> 0 | I49: =IFERROR(I26*(1+Opex_Inputs!$C$19),0) -> 50.53400587 | J49: =IFERROR(Opex_Inputs!$C$62,0) -> 64.8 | L49: =IFERROR(I49*J49,0) -> 3274.60358 | M49: =IFERROR(L49/Opex_Inputs!$C$49*Opex_Inputs!$C$53,0) -> 0 | O49: =IFERROR(O26*(1+Opex_Inputs!$C$19),0) -> 50.53400587 | P49: =IFERROR(Opex_Inputs!$C$62,0) -> 64.8 | R49: =IFERROR(O49*P49,0) -> 3274.60358 | S49: =IFERROR(R49/Opex_Inputs!$C$49*Opex_Inputs!$C$53,0) -> 0 | U49: =IFERROR(U26*(1+Opex_Inputs!$C$19),0) -> 50.53400587 | V49: =IFERROR(Opex_Inputs!$C$62,0) -> 64.8 | X49: =IFERROR(U49*V49,0) -> 3274.60358 | Y49: =IFERROR(X49/Opex_Inputs!$C$49*Opex_Inputs!$C$53,0) -> 0 | AA49: =IFERROR(AA26*(1+Opex_Inputs!$C$19),0) -> 50.53400587 | AB49: =IFERROR(Opex_Inputs!$C$62,0) -> 64.8 | AD49: =IFERROR(AA49*AB49,0) -> 3274.60358 | AE49: =IFERROR(AD49/Opex_Inputs!$C$49*Opex_Inputs!$C$53,0) -> 0
B50: PE cell | C50: =IFERROR(C27*(1+Opex_Inputs!$C$19),0) -> 13.44757848 | D50: =IFERROR(D49*Opex_Inputs!$C$49/Opex_Inputs!$C$50,0) -> 0 | F50: =IFERROR(C50*D50,0) -> 0 | G50: =IFERROR(F50/Opex_Inputs!$C$49,0) -> 0 | I50: =IFERROR(I27*(1+Opex_Inputs!$C$19),0) -> 13.44757848 | J50: =IFERROR(J49*Opex_Inputs!$C$49/Opex_Inputs!$C$50,0) -> 0 | L50: =IFERROR(I50*J50,0) -> 0 | M50: =IFERROR(L50/Opex_Inputs!$C$49,0) -> 0 | O50: =IFERROR(O27*(1+Opex_Inputs!$C$19),0) -> 13.44757848 | P50: =IFERROR(P49*Opex_Inputs!$C$49/Opex_Inputs!$C$50,0) -> 0 | R50: =IFERROR(O50*P50,0) -> 0 | S50: =IFERROR(R50/Opex_Inputs!$C$49,0) -> 0 | U50: =IFERROR(U27*(1+Opex_Inputs!$C$19),0) -> 13.44757848 | V50: =IFERROR(V49*Opex_Inputs!$C$49/Opex_Inputs!$C$50,0) -> 0 | X50: =IFERROR(U50*V50,0) -> 0 | Y50: =IFERROR(X50/Opex_Inputs!$C$49,0) -> 0 | AA50: =IFERROR(AA27*(1+Opex_Inputs!$C$19),0) -> 13.44757848 | AB50: =IFERROR(AB49*Opex_Inputs!$C$49/Opex_Inputs!$C$50,0) -> 0 | AD50: =IFERROR(AA50*AB50,0) -> 0 | AE50: =IFERROR(AD50/Opex_Inputs!$C$49,0) -> 0
B51: Miscellaneous | C51: =IFERROR(C28*(1+Opex_Inputs!$C$19),0) -> 1.690894955 | D51: =IFERROR(Opex_Inputs!$C$62,0) -> 64.8 | F51: =IFERROR(C51*D51,0) -> 109.5699931 | G51: =IFERROR(F51/Opex_Inputs!$C$49*Opex_Inputs!$C$53,0) -> 0 | I51: =IFERROR(I28*(1+Opex_Inputs!$C$19),0) -> 1.690894955 | J51: =IFERROR(Opex_Inputs!$C$62,0) -> 64.8 | L51: =IFERROR(I51*J51,0) -> 109.5699931 | M51: =IFERROR(L51/Opex_Inputs!$C$49*Opex_Inputs!$C$53,0) -> 0 | O51: =IFERROR(O28*(1+Opex_Inputs!$C$19),0) -> 1.690894955 | P51: =IFERROR(Opex_Inputs!$C$62,0) -> 64.8 | R51: =IFERROR(O51*P51,0) -> 109.5699931 | S51: =IFERROR(R51/Opex_Inputs!$C$49*Opex_Inputs!$C$53,0) -> 0 | U51: =IFERROR(U28*(1+Opex_Inputs!$C$19),0) -> 1.690894955 | V51: =IFERROR(Opex_Inputs!$C$62,0) -> 64.8 | X51: =IFERROR(U51*V51,0) -> 109.5699931 | Y51: =IFERROR(X51/Opex_Inputs!$C$49*Opex_Inputs!$C$53,0) -> 0 | AA51: =IFERROR(AA28*(1+Opex_Inputs!$C$19),0) -> 1.690894955 | AB51: =IFERROR(Opex_Inputs!$C$62,0) -> 64.8 | AD51: =IFERROR(AA51*AB51,0) -> 109.5699931 | AE51: =IFERROR(AD51/Opex_Inputs!$C$49*Opex_Inputs!$C$53,0) -> 0
B52: Materials - repair of faults | G52: =IFERROR(SUM(F53:F56)/Opex_Inputs!$C$65,0) -> 128.3602359 | H52: =IFERROR(G52*Opex_Inputs!$C$52,0) -> 6.378020518 | M52: =IFERROR(SUM(L53:L56)/Opex_Inputs!$C$65,0) -> 128.3602359 | N52: =IFERROR(M52*Opex_Inputs!$C$52,0) -> 6.378020518 | S52: =IFERROR(SUM(R53:R56)/Opex_Inputs!$C$65,0) -> 128.3602359 | T52: =IFERROR(S52*Opex_Inputs!$C$52,0) -> 6.378020518 | Y52: =IFERROR(SUM(X53:X56)/Opex_Inputs!$C$65,0) -> 128.3602359 | Z52: =IFERROR(Y52*Opex_Inputs!$C$52,0) -> 6.378020518 | AE52: =IFERROR(SUM(AD53:AD56)/Opex_Inputs!$C$65,0) -> 128.3602359 | AF52: =IFERROR(AE52*Opex_Inputs!$C$52,0) -> 6.378020518
B53: Lamp | C53: =IFERROR(C30*(1+Opex_Inputs!$C$19),0) -> 50.53400587 | D53: =IFERROR(Opex_Inputs!$C$65*Opex_Inputs!$C$67,0) -> 4.32 | F53: =IFERROR(C53*D53,0) -> 218.3069053 | I53: =IFERROR(I30*(1+Opex_Inputs!$C$19),0) -> 50.53400587 | J53: =IFERROR(Opex_Inputs!$C$65*Opex_Inputs!$C$67,0) -> 4.32 | L53: =IFERROR(I53*J53,0) -> 218.3069053 | O53: =IFERROR(O30*(1+Opex_Inputs!$C$19),0) -> 50.53400587 | P53: =IFERROR(Opex_Inputs!$C$65*Opex_Inputs!$C$67,0) -> 4.32 | R53: =IFERROR(O53*P53,0) -> 218.3069053 | U53: =IFERROR(U30*(1+Opex_Inputs!$C$19),0) -> 50.53400587 | V53: =IFERROR(Opex_Inputs!$C$65*Opex_Inputs!$C$67,0) -> 4.32 | X53: =IFERROR(U53*V53,0) -> 218.3069053 | AA53: =IFERROR(AA30*(1+Opex_Inputs!$C$19),0) -> 50.53400587 | AB53: =IFERROR(Opex_Inputs!$C$65*Opex_Inputs!$C$67,0) -> 4.32 | AD53: =IFERROR(AA53*AB53,0) -> 218.3069053
B54: PE cell | C54: =IFERROR(C31*(1+Opex_Inputs!$C$19),0) -> 13.44757848 | D54: =IFERROR(Opex_Inputs!$C$65*Opex_Inputs!$C$68,0) -> 4.32 | F54: =IFERROR(C54*D54,0) -> 58.09353902 | I54: =IFERROR(I31*(1+Opex_Inputs!$C$19),0) -> 13.44757848 | J54: =IFERROR(Opex_Inputs!$C$65*Opex_Inputs!$C$68,0) -> 4.32 | L54: =IFERROR(I54*J54,0) -> 58.09353902 | O54: =IFERROR(O31*(1+Opex_Inputs!$C$19),0) -> 13.44757848 | P54: =IFERROR(Opex_Inputs!$C$65*Opex_Inputs!$C$68,0) -> 4.32 | R54: =IFERROR(O54*P54,0) -> 58.09353902 | U54: =IFERROR(U31*(1+Opex_Inputs!$C$19),0) -> 13.44757848 | V54: =IFERROR(Opex_Inputs!$C$65*Opex_Inputs!$C$68,0) -> 4.32 | X54: =IFERROR(U54*V54,0) -> 58.09353902 | AA54: =IFERROR(AA31*(1+Opex_Inputs!$C$19),0) -> 13.44757848 | AB54: =IFERROR(Opex_Inputs!$C$65*Opex_Inputs!$C$68,0) -> 4.32 | AD54: =IFERROR(AA54*AB54,0) -> 58.09353902
B55: Luminaire | C55: =IFERROR(C32*(1+Opex_Inputs!$C$19),0) -> 228.1678469 | D55: =IFERROR(Opex_Inputs!$C$65*Opex_Inputs!$C$69,0) -> 10.8 | F55: =IFERROR(C55*D55,0) -> 2464.212747 | I55: =IFERROR(I32*(1+Opex_Inputs!$C$19),0) -> 228.1678469 | J55: =IFERROR(Opex_Inputs!$C$65*Opex_Inputs!$C$69,0) -> 10.8 | L55: =IFERROR(I55*J55,0) -> 2464.212747 | O55: =IFERROR(O32*(1+Opex_Inputs!$C$19),0) -> 228.1678469 | P55: =IFERROR(Opex_Inputs!$C$65*Opex_Inputs!$C$69,0) -> 10.8 | R55: =IFERROR(O55*P55,0) -> 2464.212747 | U55: =IFERROR(U32*(1+Opex_Inputs!$C$19),0) -> 228.1678469 | V55: =IFERROR(Opex_Inputs!$C$65*Opex_Inputs!$C$69,0) -> 10.8 | X55: =IFERROR(U55*V55,0) -> 2464.212747 | AA55: =IFERROR(AA32*(1+Opex_Inputs!$C$19),0) -> 228.1678469 | AB55: =IFERROR(Opex_Inputs!$C$65*Opex_Inputs!$C$69,0) -> 10.8 | AD55: =IFERROR(AA55*AB55,0) -> 2464.212747
B56: Miscellaneous | C56: =IFERROR(C33*(1+Opex_Inputs!$C$19),0) -> 14.79995585 | D56: =IFERROR(Opex_Inputs!$C$65*Opex_Inputs!$C$70,0) -> 2.16 | F56: =IFERROR(C56*D56,0) -> 31.96790463 | I56: =IFERROR(I33*(1+Opex_Inputs!$C$19),0) -> 14.79995585 | J56: =IFERROR(Opex_Inputs!$C$65*Opex_Inputs!$C$70,0) -> 2.16 | L56: =IFERROR(I56*J56,0) -> 31.96790463 | O56: =IFERROR(O33*(1+Opex_Inputs!$C$19),0) -> 14.79995585 | P56: =IFERROR(Opex_Inputs!$C$65*Opex_Inputs!$C$70,0) -> 2.16 | R56: =IFERROR(O56*P56,0) -> 31.96790463 | U56: =IFERROR(U33*(1+Opex_Inputs!$C$19),0) -> 14.79995585 | V56: =IFERROR(Opex_Inputs!$C$65*Opex_Inputs!$C$70,0) -> 2.16 | X56: =IFERROR(U56*V56,0) -> 31.96790463 | AA56: =IFERROR(AA33*(1+Opex_Inputs!$C$19),0) -> 14.79995585 | AB56: =IFERROR(Opex_Inputs!$C$65*Opex_Inputs!$C$70,0) -> 2.16 | AD56: =IFERROR(AA56*AB56,0) -> 31.96790463
B57: Labour - bulk lamp change | H57: =IFERROR(SUM(G58:G59)/D49,0) -> 0 | N57: =IFERROR(SUM(M58:M59)/J49,0) -> 0 | T57: =IFERROR(SUM(S58:S59)/P49,0) -> 0 | Z57: =IFERROR(SUM(Y58:Y59)/V49,0) -> 0 | AF57: =IFERROR(SUM(AE58:AE59)/AB49,0) -> 0
B58: Crew costs | C58: =IFERROR(Opex_Inputs!$C$12,0) -> 118.1654827 | D58: =IFERROR(Opex_Inputs!$C$60,0) -> 2 | E58: =IFERROR(Opex_Inputs!$C$17,0) -> 8 | F58: =IFERROR(C58*D58*E58,0) -> 1890.647723 | G58: =IFERROR(F58/Opex_Inputs!$C$49*(D$49+D$50)/D$49*Opex_Inputs!$C$53,0) -> 0 | I58: =IFERROR(Opex_Inputs!$D$12,0) -> 119.2825353 | J58: =IFERROR(Opex_Inputs!$C$60,0) -> 2 | K58: =IFERROR(Opex_Inputs!$D$17,0) -> 8 | L58: =IFERROR(I58*J58*K58,0) -> 1908.520565 | M58: =IFERROR(L58/Opex_Inputs!$C$49*(J$49+J$50)/J$49*Opex_Inputs!$C$53,0) -> 0 | O58: =IFERROR(Opex_Inputs!$E$12,0) -> 120.6754105 | P58: =IFERROR(Opex_Inputs!$C$60,0) -> 2 | Q58: =IFERROR(Opex_Inputs!$E$17,0) -> 8 | R58: =IFERROR(O58*P58*Q58,0) -> 1930.806568 | S58: =IFERROR(R58/Opex_Inputs!$C$49*(P$49+P$50)/P$49*Opex_Inputs!$C$53,0) -> 0 | U58: =IFERROR(Opex_Inputs!$F$12,0) -> 122.1330454 | V58: =IFERROR(Opex_Inputs!$C$60,0) -> 2 | W58: =IFERROR(Opex_Inputs!$F$17,0) -> 8 | X58: =IFERROR(U58*V58*W58,0) -> 1954.128726 | Y58: =IFERROR(X58/Opex_Inputs!$C$49*(V$49+V$50)/V$49*Opex_Inputs!$C$53,0) -> 0 | AA58: =IFERROR(Opex_Inputs!$G$12,0) -> 123.4878088 | AB58: =IFERROR(Opex_Inputs!$C$60,0) -> 2 | AC58: =IFERROR(Opex_Inputs!$G$17,0) -> 8 | AD58: =IFERROR(AA58*AB58*AC58,0) -> 1975.804941 | AE58: =IFERROR(AD58/Opex_Inputs!$C$49*(AB$49+AB$50)/AB$49*Opex_Inputs!$C$53,0) -> 0
B59: Elevated platform vehicle costs | C59: =IFERROR(Opex_Inputs!$C$15,0) -> 78.59613326 | D59: =IFERROR(Opex_Inputs!$C$20,0) -> 1 | E59: =IFERROR(E$58,0) -> 8 | F59: =IFERROR(C59*D59*E59,0) -> 628.7690661 | G59: =IFERROR(F59/Opex_Inputs!$C$49*(D$49+D$50)/D$49*Opex_Inputs!$C$53,0) -> 0 | I59: =IFERROR(Opex_Inputs!$D$15,0) -> 78.59613326 | J59: =IFERROR(Opex_Inputs!$C$20,0) -> 1 | K59: =IFERROR(K58,0) -> 8 | L59: =IFERROR(I59*J59*K59,0) -> 628.7690661 | M59: =IFERROR(L59/Opex_Inputs!$C$49*(J$49+J$50)/J$49*Opex_Inputs!$C$53,0) -> 0 | O59: =IFERROR(Opex_Inputs!$E$15,0) -> 78.59613326 | P59: =IFERROR(Opex_Inputs!$C$20,0) -> 1 | Q59: =IFERROR(Q58,0) -> 8 | R59: =IFERROR(O59*P59*Q59,0) -> 628.7690661 | S59: =IFERROR(R59/Opex_Inputs!$C$49*(P$49+P$50)/P$49*Opex_Inputs!$C$53,0) -> 0 | U59: =IFERROR(Opex_Inputs!$F$15,0) -> 78.59613326 | V59: =IFERROR(Opex_Inputs!$C$20,0) -> 1 | W59: =IFERROR(W58,0) -> 8 | X59: =IFERROR(U59*V59*W59,0) -> 628.7690661 | Y59: =IFERROR(X59/Opex_Inputs!$C$49*(V$49+V$50)/V$49*Opex_Inputs!$C$53,0) -> 0 | AA59: =IFERROR(Opex_Inputs!$G$15,0) -> 78.59613326 | AB59: =IFERROR(Opex_Inputs!$C$20,0) -> 1 | AC59: =IFERROR(AC58,0) -> 8 | AD59: =IFERROR(AA59*AB59*AC59,0) -> 628.7690661 | AE59: =IFERROR(AD59/Opex_Inputs!$C$49*(AB$49+AB$50)/AB$49*Opex_Inputs!$C$53,0) -> 0
B60: Labour - Repair of faults | G60: =IFERROR((F61+F62)/Opex_Inputs!$C$65,0) -> 116.6396662 | H60: =IFERROR(G60*Opex_Inputs!$C$52,0) -> 5.795643635 | M60: =IFERROR((L61+L62)/Opex_Inputs!$C$65,0) -> 117.4671126 | N60: =IFERROR(M60*Opex_Inputs!$C$52,0) -> 5.836758159 | S60: =IFERROR((R61+R62)/Opex_Inputs!$C$65,0) -> 118.4988719 | T60: =IFERROR(S60*Opex_Inputs!$C$52,0) -> 5.888024678 | Y60: =IFERROR((X61+X62)/Opex_Inputs!$C$65,0) -> 119.5786015 | Z60: =IFERROR(Y60*Opex_Inputs!$C$52,0) -> 5.94167476 | AE60: =IFERROR((AD61+AD62)/Opex_Inputs!$C$65,0) -> 120.58213 | AF60: =IFERROR(AE60*Opex_Inputs!$C$52,0) -> 5.99153853
B61: Crew costs | C61: =IFERROR(Opex_Inputs!$C$12,0) -> 118.1654827 | D61: =IFERROR(Opex_Inputs!$C$60,0) -> 2 | E61: =IFERROR(E$58,0) -> 8 | F61: =IFERROR(C61*D61*E61,0) -> 1890.647723 | I61: =IFERROR(Opex_Inputs!$D$12,0) -> 119.2825353 | J61: =IFERROR(Opex_Inputs!$C$60,0) -> 2 | K61: =IFERROR(K58,0) -> 8 | L61: =IFERROR(I61*J61*K61,0) -> 1908.520565 | O61: =IFERROR(Opex_Inputs!$E$12,0) -> 120.6754105 | P61: =IFERROR(Opex_Inputs!$C$60,0) -> 2 | Q61: =IFERROR(Q58,0) -> 8 | R61: =IFERROR(O61*P61*Q61,0) -> 1930.806568 | U61: =IFERROR(Opex_Inputs!$F$12,0) -> 122.1330454 | V61: =IFERROR(Opex_Inputs!$C$60,0) -> 2 | W61: =IFERROR(W58,0) -> 8 | X61: =IFERROR(U61*V61*W61,0) -> 1954.128726 | AA61: =IFERROR(Opex_Inputs!$G$12,0) -> 123.4878088 | AB61: =IFERROR(Opex_Inputs!$C$60,0) -> 2 | AC61: =IFERROR(AC58,0) -> 8 | AD61: =IFERROR(AA61*AB61*AC61,0) -> 1975.804941
B62: Elevated platform vehicle costs | C62: =IFERROR(Opex_Inputs!$C$15,0) -> 78.59613326 | D62: =IFERROR(Opex_Inputs!$C$20,0) -> 1 | E62: =IFERROR(E$58,0) -> 8 | F62: =IFERROR(C62*D62*E62,0) -> 628.7690661 | I62: =IFERROR(Opex_Inputs!$D$15,0) -> 78.59613326 | J62: =IFERROR(Opex_Inputs!$C$20,0) -> 1 | K62: =IFERROR(K58,0) -> 8 | L62: =IFERROR(I62*J62*K62,0) -> 628.7690661 | O62: =IFERROR(Opex_Inputs!$E$15,0) -> 78.59613326 | P62: =IFERROR(Opex_Inputs!$C$20,0) -> 1 | Q62: =IFERROR(Q58,0) -> 8 | R62: =IFERROR(O62*P62*Q62,0) -> 628.7690661 | U62: =IFERROR(Opex_Inputs!$F$15,0) -> 78.59613326 | V62: =IFERROR(Opex_Inputs!$C$20,0) -> 1 | W62: =IFERROR(W58,0) -> 8 | X62: =IFERROR(U62*V62*W62,0) -> 628.7690661 | AA62: =IFERROR(Opex_Inputs!$G$15,0) -> 78.59613326 | AB62: =IFERROR(Opex_Inputs!$C$20,0) -> 1 | AC62: =IFERROR(AC58,0) -> 8 | AD62: =IFERROR(AA62*AB62*AC62,0) -> 628.7690661
B63: Other Maintenance and Repair costs | H63: =IFERROR(Opex_Inputs!$C$59,0) -> 0.7356346365 | N63: =IFERROR(N40,0) -> 0.7425888043 | T63: =IFERROR(T40,0) -> 0.7512600947 | Z63: =IFERROR(Z40,0) -> 0.7603345441 | AF63: =IFERROR(AF40,0) -> 0.7687685716
B64: Overheads | C64: =IFERROR(Opex_Inputs!$C$18,0) -> 0.2402605656 | H64: =IFERROR(C64*SUM(H48:H63),0) -> 3.101595429 | I64: =IFERROR(Opex_Inputs!$D$18,0) -> 0.2402605656 | N64: =IFERROR(I64*SUM(N48:N63),0) -> 3.11314444 | O64: =IFERROR(Opex_Inputs!$E$18,0) -> 0.2402605656 | T64: =IFERROR(O64*SUM(T48:T63),0) -> 3.127545132 | U64: =IFERROR(Opex_Inputs!$F$18,0) -> 0.2402605656 | Z64: =IFERROR(U64*SUM(Z48:Z63),0) -> 3.142615363 | AA64: =IFERROR(Opex_Inputs!$G$18,0) -> 0.2402605656 | AF64: =IFERROR(AA64*SUM(AF48:AF63),0) -> 3.156622025
H66: =IFERROR(SUM(H48:H64),0) -> 16.01089422 | N66: =IFERROR(SUM(N48:N64),0) -> 16.07051192 | T66: =IFERROR(SUM(T48:T64),0) -> 16.14485042 | Z66: =IFERROR(SUM(Z48:Z64),0) -> 16.22264519 | AF66: =IFERROR(SUM(AF48:AF64),0) -> 16.29494965
B68: =IFERROR($B$7&" detailed cost build-up - remote",0) -> MV80 detailed cost build-up - remote | C68: Unit rate | D68: Number | E68: Hours | F68: Cost | G68: Annualised | H68: Annualised | I68: Unit rate | J68: Number | K68: Hours | L68: Cost | M68: Annualised | N68: Annualised | O68: Unit rate | P68: Number | Q68: Hours | R68: Cost | S68: Annualised | T68: Annualised | U68: Unit rate | V68: Number | W68: Hours | X68: Cost | Y68: Annualised | Z68: Annualised | AA68: Unit rate | AB68: Number | AC68: Hours | AD68: Cost | AE68: Annualised | AF68: Annualised
G69: cost | H69: unit cost | M69: cost | N69: unit cost | S69: cost | T69: unit cost | Y69: cost | Z69: unit cost | AE69: cost | AF69: unit cost
B70: Patrols and repairs
B71: Materials - bulk lamp change | H71: =IFERROR(SUM(G72:G74)/D72,0) -> 0 | N71: =IFERROR(SUM(M72:M74)/J72,0) -> 0 | T71: =IFERROR(SUM(S72:S74)/P72,0) -> 0 | Z71: =IFERROR(SUM(Y72:Y74)/V72,0) -> 0 | AF71: =IFERROR(SUM(AE72:AE74)/AB72,0) -> 0
B72: Lamp | C72: =IFERROR(C26*(1+Opex_Inputs!$C$19),0) -> 50.53400587 | D72: =IFERROR(Opex_Inputs!$C$63,0) -> 54 | F72: =IFERROR(C72*D72,0) -> 2728.836317 | G72: =IFERROR(F72/Opex_Inputs!$C$49*Opex_Inputs!$C$53,0) -> 0 | I72: =IFERROR(I26*(1+Opex_Inputs!$C$19),0) -> 50.53400587 | J72: =IFERROR(Opex_Inputs!$C$63,0) -> 54 | L72: =IFERROR(I72*J72,0) -> 2728.836317 | M72: =IFERROR(L72/Opex_Inputs!$C$49*Opex_Inputs!$C$53,0) -> 0 | O72: =IFERROR(O26*(1+Opex_Inputs!$C$19),0) -> 50.53400587 | P72: =IFERROR(Opex_Inputs!$C$63,0) -> 54 | R72: =IFERROR(O72*P72,0) -> 2728.836317 | S72: =IFERROR(R72/Opex_Inputs!$C$49*Opex_Inputs!$C$53,0) -> 0 | U72: =IFERROR(U26*(1+Opex_Inputs!$C$19),0) -> 50.53400587 | V72: =IFERROR(Opex_Inputs!$C$63,0) -> 54 | X72: =IFERROR(U72*V72,0) -> 2728.836317 | Y72: =IFERROR(X72/Opex_Inputs!$C$49*Opex_Inputs!$C$53,0) -> 0 | AA72: =IFERROR(AA26*(1+Opex_Inputs!$C$19),0) -> 50.53400587 | AB72: =IFERROR(Opex_Inputs!$C$63,0) -> 54 | AD72: =IFERROR(AA72*AB72,0) -> 2728.836317 | AE72: =IFERROR(AD72/Opex_Inputs!$C$49*Opex_Inputs!$C$53,0) -> 0
B73: PE cell | C73: =IFERROR(C27*(1+Opex_Inputs!$C$19),0) -> 13.44757848 | D73: =IFERROR(D72*Opex_Inputs!$C$49/Opex_Inputs!$C$50,0) -> 0 | F73: =IFERROR(C73*D73,0) -> 0 | G73: =IFERROR(F73/Opex_Inputs!$C$49,0) -> 0 | I73: =IFERROR(I27*(1+Opex_Inputs!$C$19),0) -> 13.44757848 | J73: =IFERROR(J72*Opex_Inputs!$C$49/Opex_Inputs!$C$50,0) -> 0 | L73: =IFERROR(I73*J73,0) -> 0 | M73: =IFERROR(L73/Opex_Inputs!$C$49,0) -> 0 | O73: =IFERROR(O27*(1+Opex_Inputs!$C$19),0) -> 13.44757848 | P73: =IFERROR(P72*Opex_Inputs!$C$49/Opex_Inputs!$C$50,0) -> 0 | R73: =IFERROR(O73*P73,0) -> 0 | S73: =IFERROR(R73/Opex_Inputs!$C$49,0) -> 0 | U73: =IFERROR(U27*(1+Opex_Inputs!$C$19),0) -> 13.44757848 | V73: =IFERROR(V72*Opex_Inputs!$C$49/Opex_Inputs!$C$50,0) -> 0 | X73: =IFERROR(U73*V73,0) -> 0 | Y73: =IFERROR(X73/Opex_Inputs!$C$49,0) -> 0 | AA73: =IFERROR(AA27*(1+Opex_Inputs!$C$19),0) -> 13.44757848 | AB73: =IFERROR(AB72*Opex_Inputs!$C$49/Opex_Inputs!$C$50,0) -> 0 | AD73: =IFERROR(AA73*AB73,0) -> 0 | AE73: =IFERROR(AD73/Opex_Inputs!$C$49,0) -> 0
B74: Miscellaneous | C74: =IFERROR(C28*(1+Opex_Inputs!$C$19),0) -> 1.690894955 | D74: =IFERROR(Opex_Inputs!$C$63,0) -> 54 | F74: =IFERROR(C74*D74,0) -> 91.30832759 | G74: =IFERROR(F74/Opex_Inputs!$C$49*Opex_Inputs!$C$53,0) -> 0 | I74: =IFERROR(I28*(1+Opex_Inputs!$C$19),0) -> 1.690894955 | J74: =IFERROR(Opex_Inputs!$C$63,0) -> 54 | L74: =IFERROR(I74*J74,0) -> 91.30832759 | M74: =IFERROR(L74/Opex_Inputs!$C$49*Opex_Inputs!$C$53,0) -> 0 | O74: =IFERROR(O28*(1+Opex_Inputs!$C$19),0) -> 1.690894955 | P74: =IFERROR(Opex_Inputs!$C$63,0) -> 54 | R74: =IFERROR(O74*P74,0) -> 91.30832759 | S74: =IFERROR(R74/Opex_Inputs!$C$49*Opex_Inputs!$C$53,0) -> 0 | U74: =IFERROR(U28*(1+Opex_Inputs!$C$19),0) -> 1.690894955 | V74: =IFERROR(Opex_Inputs!$C$63,0) -> 54 | X74: =IFERROR(U74*V74,0) -> 91.30832759 | Y74: =IFERROR(X74/Opex_Inputs!$C$49*Opex_Inputs!$C$53,0) -> 0 | AA74: =IFERROR(AA28*(1+Opex_Inputs!$C$19),0) -> 1.690894955 | AB74: =IFERROR(Opex_Inputs!$C$63,0) -> 54 | AD74: =IFERROR(AA74*AB74,0) -> 91.30832759 | AE74: =IFERROR(AD74/Opex_Inputs!$C$49*Opex_Inputs!$C$53,0) -> 0
B75: Materials - repair of faults | G75: =IFERROR(SUM(F76:F79)/Opex_Inputs!$C$66,0) -> 128.3602359 | H75: =IFERROR(G75*Opex_Inputs!$C$52,0) -> 6.378020518 | M75: =IFERROR(SUM(L76:L79)/Opex_Inputs!$C$66,0) -> 128.3602359 | N75: =IFERROR(M75*Opex_Inputs!$C$52,0) -> 6.378020518 | S75: =IFERROR(SUM(R76:R79)/Opex_Inputs!$C$66,0) -> 128.3602359 | T75: =IFERROR(S75*Opex_Inputs!$C$52,0) -> 6.378020518 | Y75: =IFERROR(SUM(X76:X79)/Opex_Inputs!$C$66,0) -> 128.3602359 | Z75: =IFERROR(Y75*Opex_Inputs!$C$52,0) -> 6.378020518 | AE75: =IFERROR(SUM(AD76:AD79)/Opex_Inputs!$C$66,0) -> 128.3602359 | AF75: =IFERROR(AE75*Opex_Inputs!$C$52,0) -> 6.378020518
B76: Lamp | C76: =IFERROR(C30*(1+Opex_Inputs!$C$19),0) -> 50.53400587 | D76: =IFERROR(Opex_Inputs!$C$66*Opex_Inputs!$C$67,0) -> 3.456 | F76: =IFERROR(C76*D76,0) -> 174.6455243 | I76: =IFERROR(I30*(1+Opex_Inputs!$C$19),0) -> 50.53400587 | J76: =IFERROR(Opex_Inputs!$C$66*Opex_Inputs!$C$67,0) -> 3.456 | L76: =IFERROR(I76*J76,0) -> 174.6455243 | O76: =IFERROR(O30*(1+Opex_Inputs!$C$19),0) -> 50.53400587 | P76: =IFERROR(Opex_Inputs!$C$66*Opex_Inputs!$C$67,0) -> 3.456 | R76: =IFERROR(O76*P76,0) -> 174.6455243 | U76: =IFERROR(U30*(1+Opex_Inputs!$C$19),0) -> 50.53400587 | V76: =IFERROR(Opex_Inputs!$C$66*Opex_Inputs!$C$67,0) -> 3.456 | X76: =IFERROR(U76*V76,0) -> 174.6455243 | AA76: =IFERROR(AA30*(1+Opex_Inputs!$C$19),0) -> 50.53400587 | AB76: =IFERROR(Opex_Inputs!$C$66*Opex_Inputs!$C$67,0) -> 3.456 | AD76: =IFERROR(AA76*AB76,0) -> 174.6455243
B77: PE cell | C77: =IFERROR(C31*(1+Opex_Inputs!$C$19),0) -> 13.44757848 | D77: =IFERROR(Opex_Inputs!$C$66*Opex_Inputs!$C$68,0) -> 3.456 | F77: =IFERROR(C77*D77,0) -> 46.47483122 | I77: =IFERROR(I31*(1+Opex_Inputs!$C$19),0) -> 13.44757848 | J77: =IFERROR(Opex_Inputs!$C$66*Opex_Inputs!$C$68,0) -> 3.456 | L77: =IFERROR(I77*J77,0) -> 46.47483122 | O77: =IFERROR(O31*(1+Opex_Inputs!$C$19),0) -> 13.44757848 | P77: =IFERROR(Opex_Inputs!$C$66*Opex_Inputs!$C$68,0) -> 3.456 | R77: =IFERROR(O77*P77,0) -> 46.47483122 | U77: =IFERROR(U31*(1+Opex_Inputs!$C$19),0) -> 13.44757848 | V77: =IFERROR(Opex_Inputs!$C$66*Opex_Inputs!$C$68,0) -> 3.456 | X77: =IFERROR(U77*V77,0) -> 46.47483122 | AA77: =IFERROR(AA31*(1+Opex_Inputs!$C$19),0) -> 13.44757848 | AB77: =IFERROR(Opex_Inputs!$C$66*Opex_Inputs!$C$68,0) -> 3.456 | AD77: =IFERROR(AA77*AB77,0) -> 46.47483122
B78: Luminaire | C78: =IFERROR(C32*(1+Opex_Inputs!$C$19),0) -> 228.1678469 | D78: =IFERROR(Opex_Inputs!$C$66*Opex_Inputs!$C$69,0) -> 8.64 | F78: =IFERROR(C78*D78,0) -> 1971.370197 | I78: =IFERROR(I32*(1+Opex_Inputs!$C$19),0) -> 228.1678469 | J78: =IFERROR(Opex_Inputs!$C$66*Opex_Inputs!$C$69,0) -> 8.64 | L78: =IFERROR(I78*J78,0) -> 1971.370197 | O78: =IFERROR(O32*(1+Opex_Inputs!$C$19),0) -> 228.1678469 | P78: =IFERROR(Opex_Inputs!$C$66*Opex_Inputs!$C$69,0) -> 8.64 | R78: =IFERROR(O78*P78,0) -> 1971.370197 | U78: =IFERROR(U32*(1+Opex_Inputs!$C$19),0) -> 228.1678469 | V78: =IFERROR(Opex_Inputs!$C$66*Opex_Inputs!$C$69,0) -> 8.64 | X78: =IFERROR(U78*V78,0) -> 1971.370197 | AA78: =IFERROR(AA32*(1+Opex_Inputs!$C$19),0) -> 228.1678469 | AB78: =IFERROR(Opex_Inputs!$C$66*Opex_Inputs!$C$69,0) -> 8.64 | AD78: =IFERROR(AA78*AB78,0) -> 1971.370197
B79: Miscellaneous | C79: =IFERROR(C33*(1+Opex_Inputs!$C$19),0) -> 14.79995585 | D79: =IFERROR(Opex_Inputs!$C$66*Opex_Inputs!$C$70,0) -> 1.728 | F79: =IFERROR(C79*D79,0) -> 25.5743237 | I79: =IFERROR(I33*(1+Opex_Inputs!$C$19),0) -> 14.79995585 | J79: =IFERROR(Opex_Inputs!$C$66*Opex_Inputs!$C$70,0) -> 1.728 | L79: =IFERROR(I79*J79,0) -> 25.5743237 | O79: =IFERROR(O33*(1+Opex_Inputs!$C$19),0) -> 14.79995585 | P79: =IFERROR(Opex_Inputs!$C$66*Opex_Inputs!$C$70,0) -> 1.728 | R79: =IFERROR(O79*P79,0) -> 25.5743237 | U79: =IFERROR(U33*(1+Opex_Inputs!$C$19),0) -> 14.79995585 | V79: =IFERROR(Opex_Inputs!$C$66*Opex_Inputs!$C$70,0) -> 1.728 | X79: =IFERROR(U79*V79,0) -> 25.5743237 | AA79: =IFERROR(AA33*(1+Opex_Inputs!$C$19),0) -> 14.79995585 | AB79: =IFERROR(Opex_Inputs!$C$66*Opex_Inputs!$C$70,0) -> 1.728 | AD79: =IFERROR(AA79*AB79,0) -> 25.5743237
B80: Labour - bulk lamp change | H80: =IFERROR(SUM(G81:G82)/D72,0) -> 0 | N80: =IFERROR(SUM(M81:M82)/J72,0) -> 0 | T80: =IFERROR(SUM(S81:S82)/P72,0) -> 0 | Z80: =IFERROR(SUM(Y81:Y82)/V72,0) -> 0 | AF80: =IFERROR(SUM(AE81:AE82)/AB72,0) -> 0
B81: Crew costs | C81: =IFERROR(Opex_Inputs!$C$12,0) -> 118.1654827 | D81: =IFERROR(Opex_Inputs!$C$60,0) -> 2 | E81: =IFERROR(Opex_Inputs!$C$17,0) -> 8 | F81: =IFERROR(C81*D81*E81,0) -> 1890.647723 | G81: =IFERROR(F81/Opex_Inputs!$C$49*(D$72+D$73)/D$72*Opex_Inputs!$C$53,0) -> 0 | I81: =IFERROR(Opex_Inputs!$D$12,0) -> 119.2825353 | J81: =IFERROR(Opex_Inputs!$C$60,0) -> 2 | K81: =IFERROR(Opex_Inputs!$D$17,0) -> 8 | L81: =IFERROR(I81*J81*K81,0) -> 1908.520565 | M81: =IFERROR(L81/Opex_Inputs!$C$49*(J$72+J$73)/J$72*Opex_Inputs!$C$53,0) -> 0 | O81: =IFERROR(Opex_Inputs!$E$12,0) -> 120.6754105 | P81: =IFERROR(Opex_Inputs!$C$60,0) -> 2 | Q81: =IFERROR(Opex_Inputs!$E$17,0) -> 8 | R81: =IFERROR(O81*P81*Q81,0) -> 1930.806568 | S81: =IFERROR(R81/Opex_Inputs!$C$49*(P$72+P$73)/P$72*Opex_Inputs!$C$53,0) -> 0 | U81: =IFERROR(Opex_Inputs!$F$12,0) -> 122.1330454 | V81: =IFERROR(Opex_Inputs!$C$60,0) -> 2 | W81: =IFERROR(Opex_Inputs!$F$17,0) -> 8 | X81: =IFERROR(U81*V81*W81,0) -> 1954.128726 | Y81: =IFERROR(X81/Opex_Inputs!$C$49*(V$72+V$73)/V$72*Opex_Inputs!$C$53,0) -> 0 | AA81: =IFERROR(Opex_Inputs!$G$12,0) -> 123.4878088 | AB81: =IFERROR(Opex_Inputs!$C$60,0) -> 2 | AC81: =IFERROR(Opex_Inputs!$G$17,0) -> 8 | AD81: =IFERROR(AA81*AB81*AC81,0) -> 1975.804941 | AE81: =IFERROR(AD81/Opex_Inputs!$C$49*(AB$72+AB$73)/AB$72*Opex_Inputs!$C$53,0) -> 0
B82: Elevated platform vehicle costs | C82: =IFERROR(Opex_Inputs!$C$15,0) -> 78.59613326 | D82: =IFERROR(Opex_Inputs!$C$20,0) -> 1 | E82: =IFERROR(E$81,0) -> 8 | F82: =IFERROR(C82*D82*E82,0) -> 628.7690661 | G82: =IFERROR(F82/Opex_Inputs!$C$49*(D$72+D$73)/D$72*Opex_Inputs!$C$53,0) -> 0 | I82: =IFERROR(Opex_Inputs!$D$15,0) -> 78.59613326 | J82: =IFERROR(Opex_Inputs!$C$20,0) -> 1 | K82: =IFERROR(K81,0) -> 8 | L82: =IFERROR(I82*J82*K82,0) -> 628.7690661 | M82: =IFERROR(L82/Opex_Inputs!$C$49*(J$72+J$73)/J$72*Opex_Inputs!$C$53,0) -> 0 | O82: =IFERROR(Opex_Inputs!$E$15,0) -> 78.59613326 | P82: =IFERROR(Opex_Inputs!$C$20,0) -> 1 | Q82: =IFERROR(Q81,0) -> 8 | R82: =IFERROR(O82*P82*Q82,0) -> 628.7690661 | S82: =IFERROR(R82/Opex_Inputs!$C$49*(P$72+P$73)/P$72*Opex_Inputs!$C$53,0) -> 0 | U82: =IFERROR(Opex_Inputs!$F$15,0) -> 78.59613326 | V82: =IFERROR(Opex_Inputs!$C$20,0) -> 1 | W82: =IFERROR(W81,0) -> 8 | X82: =IFERROR(U82*V82*W82,0) -> 628.7690661 | Y82: =IFERROR(X82/Opex_Inputs!$C$49*(V$72+V$73)/V$72*Opex_Inputs!$C$53,0) -> 0 | AA82: =IFERROR(Opex_Inputs!$G$15,0) -> 78.59613326 | AB82: =IFERROR(Opex_Inputs!$C$20,0) -> 1 | AC82: =IFERROR(AC81,0) -> 8 | AD82: =IFERROR(AA82*AB82*AC82,0) -> 628.7690661 | AE82: =IFERROR(AD82/Opex_Inputs!$C$49*(AB$72+AB$73)/AB$72*Opex_Inputs!$C$53,0) -> 0
B83: Labour - Repair of faults | G83: =IFERROR((F84+F85)/Opex_Inputs!$C$66,0) -> 145.7995827 | H83: =IFERROR(G83*Opex_Inputs!$C$52,0) -> 7.244554544 | M83: =IFERROR((L84+L85)/Opex_Inputs!$C$66,0) -> 146.8338907 | N83: =IFERROR(M83*Opex_Inputs!$C$52,0) -> 7.295947699 | S83: =IFERROR((R84+R85)/Opex_Inputs!$C$66,0) -> 148.1235899 | T83: =IFERROR(S83*Opex_Inputs!$C$52,0) -> 7.360030848 | Y83: =IFERROR((X84+X85)/Opex_Inputs!$C$66,0) -> 149.4732518 | Z83: =IFERROR(Y83*Opex_Inputs!$C$52,0) -> 7.42709345 | AE83: =IFERROR((AD84+AD85)/Opex_Inputs!$C$66,0) -> 150.7276625 | AF83: =IFERROR(AE83*Opex_Inputs!$C$52,0) -> 7.489423163
B84: Crew costs | C84: =IFERROR(Opex_Inputs!$C$12,0) -> 118.1654827 | D84: =IFERROR(Opex_Inputs!$C$60,0) -> 2 | E84: =IFERROR(E$81,0) -> 8 | F84: =IFERROR(C84*D84*E84,0) -> 1890.647723 | I84: =IFERROR(Opex_Inputs!$D$12,0) -> 119.2825353 | J84: =IFERROR(Opex_Inputs!$C$60,0) -> 2 | K84: =IFERROR(K81,0) -> 8 | L84: =IFERROR(I84*J84*K84,0) -> 1908.520565 | O84: =IFERROR(Opex_Inputs!$E$12,0) -> 120.6754105 | P84: =IFERROR(Opex_Inputs!$C$60,0) -> 2 | Q84: =IFERROR(Q81,0) -> 8 | R84: =IFERROR(O84*P84*Q84,0) -> 1930.806568 | U84: =IFERROR(Opex_Inputs!$F$12,0) -> 122.1330454 | V84: =IFERROR(Opex_Inputs!$C$60,0) -> 2 | W84: =IFERROR(W81,0) -> 8 | X84: =IFERROR(U84*V84*W84,0) -> 1954.128726 | AA84: =IFERROR(Opex_Inputs!$G$12,0) -> 123.4878088 | AB84: =IFERROR(Opex_Inputs!$C$60,0) -> 2 | AC84: =IFERROR(AC81,0) -> 8 | AD84: =IFERROR(AA84*AB84*AC84,0) -> 1975.804941
B85: Elevated platform vehicle costs | C85: =IFERROR(Opex_Inputs!$C$15,0) -> 78.59613326 | D85: =IFERROR(Opex_Inputs!$C$20,0) -> 1 | E85: =IFERROR(E$81,0) -> 8 | F85: =IFERROR(C85*D85*E85,0) -> 628.7690661 | I85: =IFERROR(Opex_Inputs!$D$15,0) -> 78.59613326 | J85: =IFERROR(Opex_Inputs!$C$20,0) -> 1 | K85: =IFERROR(K81,0) -> 8 | L85: =IFERROR(I85*J85*K85,0) -> 628.7690661 | O85: =IFERROR(Opex_Inputs!$E$15,0) -> 78.59613326 | P85: =IFERROR(Opex_Inputs!$C$20,0) -> 1 | Q85: =IFERROR(Q81,0) -> 8 | R85: =IFERROR(O85*P85*Q85,0) -> 628.7690661 | U85: =IFERROR(Opex_Inputs!$F$15,0) -> 78.59613326 | V85: =IFERROR(Opex_Inputs!$C$20,0) -> 1 | W85: =IFERROR(W81,0) -> 8 | X85: =IFERROR(U85*V85*W85,0) -> 628.7690661 | AA85: =IFERROR(Opex_Inputs!$G$15,0) -> 78.59613326 | AB85: =IFERROR(Opex_Inputs!$C$20,0) -> 1 | AC85: =IFERROR(AC81,0) -> 8 | AD85: =IFERROR(AA85*AB85*AC85,0) -> 628.7690661
B86: Other Maintenance and Repair costs | H86: =IFERROR(Opex_Inputs!$C$59,0) -> 0.7356346365 | N86: =IFERROR(N63,0) -> 0.7425888043 | T86: =IFERROR(T63,0) -> 0.7512600947 | Z86: =IFERROR(Z63,0) -> 0.7603345441 | AF86: =IFERROR(AF63,0) -> 0.7687685716
B87: Overheads | C87: =IFERROR(Opex_Inputs!$C$18,0) -> 0.2402605656 | H87: =IFERROR(C87*SUM(H71:H86),0) -> 3.449711583 | I87: =IFERROR(Opex_Inputs!$D$18,0) -> 0.2402605656 | N87: =IFERROR(I87*SUM(N71:N86),0) -> 3.463730144 | O87: =IFERROR(Opex_Inputs!$E$18,0) -> 0.2402605656 | T87: =IFERROR(O87*SUM(T71:T86),0) -> 3.481210167 | U87: =IFERROR(Opex_Inputs!$F$18,0) -> 0.2402605656 | Z87: =IFERROR(U87*SUM(Z71:Z86),0) -> 3.499502898 | AA87: =IFERROR(Opex_Inputs!$G$18,0) -> 0.2402605656 | AF87: =IFERROR(AA87*SUM(AF71:AF86),0) -> 3.516504634
H89: =IFERROR(SUM(H71:H87),0) -> 17.80792128 | N89: =IFERROR(SUM(N71:N87),0) -> 17.88028717 | T89: =IFERROR(SUM(T71:T87),0) -> 17.97052163 | Z89: =IFERROR(SUM(Z71:Z87),0) -> 18.06495141 | AF89: =IFERROR(SUM(AF71:AF87),0) -> 18.15271689
B92: Sodium High Pressure 150 Watt Standard Light Type - Cost build-up
B93: S-HP 150
B95: =IFERROR($B$93&" calcs",0) -> S-HP 150 calcs | C95: =Quantity!D$6 -> 2026-27 | D95: =Quantity!E$6 -> 2027-28 | E95: =Quantity!F$6 -> 2028-29 | F95: =Quantity!G$6 -> 2029-30 | G95: =Quantity!H$6 -> 2030-31
B96: Patrols and repairs | C96: =IFERROR(H124*Opex_Inputs!$C92+H142*Opex_Inputs!$C93+H160*Opex_Inputs!$C94,0) -> 7.129354003 | D96: =IFERROR(N124*Opex_Inputs!$C92+N142*Opex_Inputs!$C93+N160*Opex_Inputs!$C94,0) -> 7.195160007 | E96: =IFERROR(T124*Opex_Inputs!$C92+T142*Opex_Inputs!$C93+T160*Opex_Inputs!$C94,0) -> 7.277214826 | F96: =IFERROR(Z124*Opex_Inputs!$C92+Z142*Opex_Inputs!$C93+Z160*Opex_Inputs!$C94,0) -> 7.363084663 | G96: =IFERROR(AF124*Opex_Inputs!$C92+AF142*Opex_Inputs!$C93+AF160*Opex_Inputs!$C94,0) -> 7.442894307
B97: Dedicated poles - inspection | C97: =IFERROR(Opex_Inputs!C$45,0) -> 2.191551793 | D97: =IFERROR(Opex_Inputs!D$45,0) -> 2.245490774 | E97: =IFERROR(Opex_Inputs!E$45,0) -> 2.304699276 | F97: =IFERROR(Opex_Inputs!F$45,0) -> 2.365760421 | G97: =IFERROR(Opex_Inputs!G$45,0) -> 2.42579361
B98: Other costs | C98: =IFERROR(IF(Opex_Inputs!C$28=0,0,Opex_Inputs!C$29/Opex_Inputs!C$28),0) -> 0.9250078901 | D98: =IFERROR(IF(Opex_Inputs!D$28=0,0,Opex_Inputs!D$29/Opex_Inputs!D$28),0) -> 0.9193593835 | E98: =IFERROR(IF(Opex_Inputs!E$28=0,0,Opex_Inputs!E$29/Opex_Inputs!E$28),0) -> 0.9134046286 | F98: =IFERROR(IF(Opex_Inputs!F$28=0,0,Opex_Inputs!F$29/Opex_Inputs!F$28),0) -> 0.9072684359 | G98: =IFERROR(IF(Opex_Inputs!G$28=0,0,Opex_Inputs!G$29/Opex_Inputs!G$28),0) -> 0.9009765088
B99: CMS service costs | C99: =IFERROR(IF(Opex_Inputs!C$28=0,0,Opex_Inputs!C$30/Opex_Inputs!C$28),0) -> 1.297677673 | D99: =IFERROR(IF(Opex_Inputs!D$28=0,0,Opex_Inputs!D$30/Opex_Inputs!D$28),0) -> 1.406543042 | E99: =IFERROR(IF(Opex_Inputs!E$28=0,0,Opex_Inputs!E$30/Opex_Inputs!E$28),0) -> 1.525299739 | F99: =IFERROR(IF(Opex_Inputs!F$28=0,0,Opex_Inputs!F$30/Opex_Inputs!F$28),0) -> 1.637433784 | G99: =IFERROR(IF(Opex_Inputs!G$28=0,0,Opex_Inputs!G$30/Opex_Inputs!G$28),0) -> 1.730053504
B100: Unit cost | C100: =IFERROR(SUM(C96:C99),0) -> 11.54359136 | D100: =IFERROR(SUM(D96:D99),0) -> 11.76655321 | E100: 12.02061847 | F100: 12.2735473 | G100: 12.49971793
B102: =IFERROR($B$93&" - Avoided costs",0) -> S-HP 150 - Avoided costs | C102: =Quantity!D$6 -> 2026-27 | D102: =Quantity!E$6 -> 2027-28 | E102: =Quantity!F$6 -> 2028-29 | F102: =Quantity!G$6 -> 2029-30 | G102: =Quantity!H$6 -> 2030-31
B103: Materials & labour - bulk lamp change | C103: 0 | D103: 0 | E103: 0 | F103: 0 | G103: 0
B104: Materials & Labour - repair of faults | C104: =-((H111+H118+H121)*Opex_Inputs!$C92+(H129+H136+H139)*Opex_Inputs!$C93+(H147+H154+H157)*Opex_Inputs!$C94)/2 -> -1.21591068 | D104: =-((N111+N118+N121)*Opex_Inputs!$C92+(N129+N136+N139)*Opex_Inputs!$C93+(N147+N154+N157)*Opex_Inputs!$C94)/2 -> -1.227405036 | E104: =-((T111+T118+T121)*Opex_Inputs!$C92+(T129+T136+T139)*Opex_Inputs!$C93+(T147+T154+T157)*Opex_Inputs!$C94)/2 -> -1.241737579 | F104: =-((Z111+Z118+Z121)*Opex_Inputs!$C92+(Z129+Z136+Z139)*Opex_Inputs!$C93+(Z147+Z154+Z157)*Opex_Inputs!$C94)/2 -> -1.256736492 | G104: =-((AF111+AF118+AF121)*Opex_Inputs!$C92+(AF129+AF136+AF139)*Opex_Inputs!$C93+(AF147+AF154+AF157)*Opex_Inputs!$C94)/2 -> -1.270676869
B105: Total | C105: =SUM(C103:C104) -> -1.21591068 | D105: =SUM(D103:D104) -> -1.227405036 | E105: =SUM(E103:E104) -> -1.241737579 | F105: =SUM(F103:F104) -> -1.256736492 | G105: =SUM(G103:G104) -> -1.270676869
C107: =C95 -> 2026-27 | I107: =D95 -> 2027-28 | O107: =E95 -> 2028-29 | U107: =F95 -> 2029-30 | AA107: =G95 -> 2030-31
B108: =IFERROR($B$93&" detailed cost build-up - urban",0) -> S-HP 150 detailed cost build-up - urban | C108: Unit rate | D108: Number | E108: Hours | F108: Cost | G108: Annualised | H108: Annualised | I108: Unit rate | J108: Number | K108: Hours | L108: Cost | M108: Annualised | N108: Annualised | O108: Unit rate | P108: Number | Q108: Hours | R108: Cost | S108: Annualised | T108: Annualised | U108: Unit rate | V108: Number | W108: Hours | X108: Cost | Y108: Annualised | Z108: Annualised | AA108: Unit rate | AB108: Number | AC108: Hours | AD108: Cost | AE108: Annualised | AF108: Annualised
G109: cost | H109: unit cost | M109: cost | N109: unit cost | S109: cost | T109: unit cost | Y109: cost | Z109: unit cost | AE109: cost | AF109: unit cost
B110: Patrols and repairs
B111: Materials | G111: =IFERROR(SUM(F112:F114)/D112,0) -> 11.55989324 | H111: =IFERROR(G111/Opex_Inputs!$C$78,0) -> 0 | M111: =IFERROR(SUM(L112:L114)/J112,0) -> 11.55989324 | N111: =IFERROR(M111/Opex_Inputs!$C$78,0) -> 0 | S111: =IFERROR(SUM(R112:R114)/P112,0) -> 11.55989324 | T111: =IFERROR(S111/Opex_Inputs!$C$78,0) -> 0 | Y111: =IFERROR(SUM(X112:X114)/V112,0) -> 11.55989324 | Z111: =IFERROR(Y111/Opex_Inputs!$C$78,0) -> 0 | AE111: =IFERROR(SUM(AD112:AD114)/AB112,0) -> 11.55989324 | AF111: =IFERROR(AE111/Opex_Inputs!$C$78,0) -> 0
B112: Lamp | C112: =IFERROR(Opex_Inputs!$C$80,0) -> 8.740854031 | D112: =IFERROR(Opex_Inputs!$C$89,0) -> 19.2 | F112: =IFERROR(C112*D112,0) -> 167.8243974 | I112: =IFERROR(Opex_Inputs!$C$80,0) -> 8.740854031 | J112: =IFERROR(Opex_Inputs!$C$89,0) -> 19.2 | L112: =IFERROR(I112*J112,0) -> 167.8243974 | O112: =IFERROR(Opex_Inputs!$C$80,0) -> 8.740854031 | P112: =IFERROR(Opex_Inputs!$C$89,0) -> 19.2 | R112: =IFERROR(O112*P112,0) -> 167.8243974 | U112: =IFERROR(Opex_Inputs!$C$80,0) -> 8.740854031 | V112: =IFERROR(Opex_Inputs!$C$89,0) -> 19.2 | X112: =IFERROR(U112*V112,0) -> 167.8243974 | AA112: =IFERROR(Opex_Inputs!$C$80,0) -> 8.740854031 | AB112: =IFERROR(Opex_Inputs!$C$89,0) -> 19.2 | AD112: =IFERROR(AA112*AB112,0) -> 167.8243974
B113: PE cell | C113: =IFERROR(Opex_Inputs!$C$81,0) -> 12.44490616 | D113: =IFERROR(D112*Opex_Inputs!$C$78/Opex_Inputs!$C$79,0) -> 0 | F113: =IFERROR(C113*D113,0) -> 0 | I113: =IFERROR(Opex_Inputs!$C$81,0) -> 12.44490616 | J113: =IFERROR(J112*Opex_Inputs!$C$78/Opex_Inputs!$C$79,0) -> 0 | L113: =IFERROR(I113*J113,0) -> 0 | O113: =IFERROR(Opex_Inputs!$C$81,0) -> 12.44490616 | P113: =IFERROR(P112*Opex_Inputs!$C$78/Opex_Inputs!$C$79,0) -> 0 | R113: =IFERROR(O113*P113,0) -> 0 | U113: =IFERROR(Opex_Inputs!$C$81,0) -> 12.44490616 | V113: =IFERROR(V112*Opex_Inputs!$C$78/Opex_Inputs!$C$79,0) -> 0 | X113: =IFERROR(U113*V113,0) -> 0 | AA113: =IFERROR(Opex_Inputs!$C$81,0) -> 12.44490616 | AB113: =IFERROR(AB112*Opex_Inputs!$C$78/Opex_Inputs!$C$79,0) -> 0 | AD113: =IFERROR(AA113*AB113,0) -> 0
B114: Miscellaneous | C114: =IFERROR(Opex_Inputs!$C$82,0) -> 2.819039209 | D114: =IFERROR(Opex_Inputs!$C$89,0) -> 19.2 | F114: =IFERROR(C114*D114,0) -> 54.12555281 | I114: =IFERROR(Opex_Inputs!$C$82,0) -> 2.819039209 | J114: =IFERROR(Opex_Inputs!$C$89,0) -> 19.2 | L114: =IFERROR(I114*J114,0) -> 54.12555281 | O114: =IFERROR(Opex_Inputs!$C$82,0) -> 2.819039209 | P114: =IFERROR(Opex_Inputs!$C$89,0) -> 19.2 | R114: =IFERROR(O114*P114,0) -> 54.12555281 | U114: =IFERROR(Opex_Inputs!$C$82,0) -> 2.819039209 | V114: =IFERROR(Opex_Inputs!$C$89,0) -> 19.2 | X114: =IFERROR(U114*V114,0) -> 54.12555281 | AA114: =IFERROR(Opex_Inputs!$C$82,0) -> 2.819039209 | AB114: =IFERROR(Opex_Inputs!$C$89,0) -> 19.2 | AD114: =IFERROR(AA114*AB114,0) -> 54.12555281
B115: Labour - Patrol | G115: =IFERROR(SUM(F116:F117)/Opex_Inputs!$C$86,0) -> 0.9914648043 | H115: =IFERROR(G115*Opex_Inputs!$C$77,0) -> 2.974394413 | M115: =IFERROR(SUM(L116:L117)/Opex_Inputs!$C$86,0) -> 1.00045419 | N115: =IFERROR(M115*Opex_Inputs!$C$77,0) -> 3.001362571 | S115: =IFERROR(SUM(R116:R117)/Opex_Inputs!$C$86,0) -> 1.011663235 | T115: =IFERROR(S115*Opex_Inputs!$C$77,0) -> 3.034989704 | Y115: =IFERROR(SUM(X116:X117)/Opex_Inputs!$C$86,0) -> 1.023393427 | Z115: =IFERROR(Y115*Opex_Inputs!$C$77,0) -> 3.070180281 | AE115: =IFERROR(SUM(AD116:AD117)/Opex_Inputs!$C$86,0) -> 1.034295771 | AF115: =IFERROR(AE115*Opex_Inputs!$C$77,0) -> 3.102887313
B116: Crew costs | C116: =IFERROR(Opex_Inputs!$C$13,0) -> 178.29875 | D116: =IFERROR(Opex_Inputs!$C$84,0) -> 2 | E116: =IFERROR(Opex_Inputs!$C$17,0) -> 8 | F116: =IFERROR(C116*D116*E116,0) -> 2852.78 | I116: =IFERROR(Opex_Inputs!$D$13,0) -> 179.9842598 | J116: =IFERROR(Opex_Inputs!$C$84,0) -> 2 | K116: =IFERROR(Opex_Inputs!$D$17,0) -> 8 | L116: =IFERROR(I116*J116*K116,0) -> 2879.748158 | O116: =IFERROR(Opex_Inputs!$E$13,0) -> 182.0859557 | P116: =IFERROR(Opex_Inputs!$C$84,0) -> 2 | Q116: =IFERROR(Opex_Inputs!$E$17,0) -> 8 | R116: =IFERROR(O116*P116*Q116,0) -> 2913.375291 | U116: =IFERROR(Opex_Inputs!$F$13,0) -> 184.2853668 | V116: =IFERROR(Opex_Inputs!$C$84,0) -> 2 | W116: =IFERROR(Opex_Inputs!$F$17,0) -> 8 | X116: =IFERROR(U116*V116*W116,0) -> 2948.565868 | AA116: =IFERROR(Opex_Inputs!$G$13,0) -> 186.3295562 | AB116: =IFERROR(Opex_Inputs!$C$84,0) -> 2 | AC116: =IFERROR(Opex_Inputs!$G$17,0) -> 8 | AD116: =IFERROR(AA116*AB116*AC116,0) -> 2981.2729
B117: Vehicle costs | C117: =IFERROR(Opex_Inputs!$C$16,0) -> 15.20180163 | D117: =IFERROR(Opex_Inputs!$C$20,0) -> 1 | E117: =IFERROR(E$116,0) -> 8 | F117: =IFERROR(C117*D117*E117,0) -> 121.614413 | I117: =IFERROR(Opex_Inputs!$D$16,0) -> 15.20180163 | J117: =IFERROR(Opex_Inputs!$C$20,0) -> 1 | K117: =IFERROR(K116,0) -> 8 | L117: =IFERROR(I117*J117*K117,0) -> 121.614413 | O117: =IFERROR(Opex_Inputs!$E$16,0) -> 15.20180163 | P117: =IFERROR(Opex_Inputs!$C$20,0) -> 1 | Q117: =IFERROR(Q116,0) -> 8 | R117: =IFERROR(O117*P117*Q117,0) -> 121.614413 | U117: =IFERROR(Opex_Inputs!$F$16,0) -> 15.20180163 | V117: =IFERROR(Opex_Inputs!$C$20,0) -> 1 | W117: =IFERROR(W116,0) -> 8 | X117: =IFERROR(U117*V117*W117,0) -> 121.614413 | AA117: =IFERROR(Opex_Inputs!$G$16,0) -> 15.20180163 | AB117: =IFERROR(Opex_Inputs!$C$20,0) -> 1 | AC117: =IFERROR(AC116,0) -> 8 | AD117: =IFERROR(AA117*AB117*AC117,0) -> 121.614413
B118: Labour - Repair of faults | G118: =IFERROR((F119+F120)/Opex_Inputs!$C$89*(D112+D113)/D112,0) -> 124.4098873 | H118: =IFERROR(G118/Opex_Inputs!$C$78,0) -> 0 | M118: =IFERROR((L119+L120)/Opex_Inputs!$C$89*(J112+J113)/J112,0) -> 125.3407645 | N118: =IFERROR(M118/Opex_Inputs!$C$78,0) -> 0 | S118: =IFERROR((R119+R120)/Opex_Inputs!$C$89*(P112+P113)/P112,0) -> 126.5014938 | T118: =IFERROR(S118/Opex_Inputs!$C$78,0) -> 0 | Y118: =IFERROR((X119+X120)/Opex_Inputs!$C$89*(V112+V113)/V112,0) -> 127.7161895 | Z118: =IFERROR(Y118/Opex_Inputs!$C$78,0) -> 0 | AE118: =IFERROR((AD119+AD120)/Opex_Inputs!$C$89*(AB112+AB113)/AB112,0) -> 128.8451591 | AF118: =IFERROR(AE118/Opex_Inputs!$C$78,0) -> 0
B119: Crew costs | C119: =IFERROR(Opex_Inputs!$C$12,0) -> 118.1654827 | D119: =IFERROR(Opex_Inputs!$C$85,0) -> 2 | E119: =IFERROR(E$116,0) -> 8 | F119: =IFERROR(C119*D119*E119,0) -> 1890.647723 | I119: =IFERROR(Opex_Inputs!$D$12,0) -> 119.2825353 | J119: =IFERROR(Opex_Inputs!$C$85,0) -> 2 | K119: =IFERROR(K116,0) -> 8 | L119: =IFERROR(I119*J119*K119,0) -> 1908.520565 | O119: =IFERROR(Opex_Inputs!$E$12,0) -> 120.6754105 | P119: =IFERROR(Opex_Inputs!$C$85,0) -> 2 | Q119: =IFERROR(Q116,0) -> 8 | R119: =IFERROR(O119*P119*Q119,0) -> 1930.806568 | U119: =IFERROR(Opex_Inputs!$F$12,0) -> 122.1330454 | V119: =IFERROR(Opex_Inputs!$C$85,0) -> 2 | W119: =IFERROR(W116,0) -> 8 | X119: =IFERROR(U119*V119*W119,0) -> 1954.128726 | AA119: =IFERROR(Opex_Inputs!$G$12,0) -> 123.4878088 | AB119: =IFERROR(Opex_Inputs!$C$85,0) -> 2 | AC119: =IFERROR(AC116,0) -> 8 | AD119: =IFERROR(AA119*AB119*AC119,0) -> 1975.804941
B120: Elevated platform vehicle costs | C120: =IFERROR(Opex_Inputs!$C$14,0) -> 62.25276407 | D120: =IFERROR(Opex_Inputs!$C$20,0) -> 1 | E120: =IFERROR(E$116,0) -> 8 | F120: =IFERROR(C120*D120*E120,0) -> 498.0221125 | I120: =IFERROR(Opex_Inputs!$D$14,0) -> 62.25276407 | J120: =IFERROR(Opex_Inputs!$C$20,0) -> 1 | K120: =IFERROR(K116,0) -> 8 | L120: =IFERROR(I120*J120*K120,0) -> 498.0221125 | O120: =IFERROR(Opex_Inputs!$E$14,0) -> 62.25276407 | P120: =IFERROR(Opex_Inputs!$C$20,0) -> 1 | Q120: =IFERROR(Q116,0) -> 8 | R120: =IFERROR(O120*P120*Q120,0) -> 498.0221125 | U120: =IFERROR(Opex_Inputs!$F$14,0) -> 62.25276407 | V120: =IFERROR(Opex_Inputs!$C$20,0) -> 1 | W120: =IFERROR(W116,0) -> 8 | X120: =IFERROR(U120*V120*W120,0) -> 498.0221125 | AA120: =IFERROR(Opex_Inputs!$G$14,0) -> 62.25276407 | AB120: =IFERROR(Opex_Inputs!$C$20,0) -> 1 | AC120: =IFERROR(AC116,0) -> 8 | AD120: =IFERROR(AA120*AB120*AC120,0) -> 498.0221125
B121: Other Maintenance and Repair costs | H121: =IFERROR(Opex_Inputs!$C$83,0) -> 2.43182136 | N121: =IFERROR(H121*(1+Opex_Inputs!$D$8),0) -> 2.454810073 | T121: =IFERROR(N121*(1+Opex_Inputs!$E$8),0) -> 2.483475158 | Z121: =IFERROR(T121*(1+Opex_Inputs!$F$8),0) -> 2.513472984 | AF121: =IFERROR(Z121*(1+Opex_Inputs!$G$8),0) -> 2.541353738
B122: Overheads | C122: =IFERROR(Opex_Inputs!$C$18,0) -> 0.2402605656 | H122: =IFERROR(C122*(H111+H115+H118+H121),0) -> 1.298900459 | I122: =IFERROR(Opex_Inputs!$D$18,0) -> 0.2402605656 | N122: =I122*(N111+N115+N118+N121) -> 1.310903125 | O122: =IFERROR(Opex_Inputs!$E$18,0) -> 0.2402605656 | T122: =O122*(T111+T115+T118+T121) -> 1.325869489 | U122: =IFERROR(Opex_Inputs!$F$18,0) -> 0.2402605656 | Z122: =U122*(Z111+Z115+Z118+Z121) -> 1.341531692 | AA122: =IFERROR(Opex_Inputs!$G$18,0) -> 0.2402605656 | AF122: =AA122*(AF111+AF115+AF118+AF121) -> 1.356088547
H124: =IFERROR(SUM(H111,H115,H118,H121,H122),0) -> 6.705116232 | N124: =SUM(N111,N115,N118,N121,N122) -> 6.767075769 | T124: =SUM(T111,T115,T118,T121,T122) -> 6.844334351 | Z124: =SUM(Z111,Z115,Z118,Z121,Z122) -> 6.925184957 | AF124: =SUM(AF111,AF115,AF118,AF121,AF122) -> 7.000329598
B126: =IFERROR($B$93&" detailed cost build-up - rural",0) -> S-HP 150 detailed cost build-up - rural | C126: Unit rate | D126: Number | E126: Hours | F126: Cost | G126: Annualised | H126: Annualised | I126: Unit rate | J126: Number | K126: Hours | L126: Cost | M126: Annualised | N126: Annualised | O126: Unit rate | P126: Number | Q126: Hours | R126: Cost | S126: Annualised | T126: Annualised | U126: Unit rate | V126: Number | W126: Hours | X126: Cost | Y126: Annualised | Z126: Annualised | AA126: Unit rate | AB126: Number | AC126: Hours | AD126: Cost | AE126: Annualised | AF126: Annualised
G127: cost | H127: unit cost | M127: cost | N127: unit cost | S127: cost | T127: unit cost | Y127: cost | Z127: unit cost | AE127: cost | AF127: unit cost
B128: Patrols and repairs
B129: Materials | G129: =IFERROR(SUM(F130:F132)/D130,0) -> 12.1378879 | H129: =IFERROR(G129/Opex_Inputs!$C$78,0) -> 0 | M129: =IFERROR(SUM(L130:L132)/J130,0) -> 12.1378879 | N129: =IFERROR(M129/Opex_Inputs!$C$78,0) -> 0 | S129: =IFERROR(SUM(R130:R132)/P130,0) -> 12.1378879 | T129: =IFERROR(S129/Opex_Inputs!$C$78,0) -> 0 | Y129: =IFERROR(SUM(X130:X132)/V130,0) -> 12.1378879 | Z129: =IFERROR(Y129/Opex_Inputs!$C$78,0) -> 0 | AE129: =IFERROR(SUM(AD130:AD132)/AB130,0) -> 12.1378879 | AF129: =IFERROR(AE129/Opex_Inputs!$C$78,0) -> 0
B130: Lamp | C130: =IFERROR(C112*(1+Opex_Inputs!$C$19),0) -> 9.177896732 | D130: =IFERROR(Opex_Inputs!$C$90,0) -> 15.36 | F130: =IFERROR(C130*D130,0) -> 140.9724938 | I130: =IFERROR(I112*(1+Opex_Inputs!$D$19),0) -> 9.177896732 | J130: =IFERROR(Opex_Inputs!$C$90,0) -> 15.36 | L130: =IFERROR(I130*J130,0) -> 140.9724938 | O130: =IFERROR(O112*(1+Opex_Inputs!$E$19),0) -> 9.177896732 | P130: =IFERROR(Opex_Inputs!$C$90,0) -> 15.36 | R130: =IFERROR(O130*P130,0) -> 140.9724938 | U130: =IFERROR(U112*(1+Opex_Inputs!$F$19),0) -> 9.177896732 | V130: =IFERROR(Opex_Inputs!$C$90,0) -> 15.36 | X130: =IFERROR(U130*V130,0) -> 140.9724938 | AA130: =IFERROR(AA112*(1+Opex_Inputs!$G$19),0) -> 9.177896732 | AB130: =IFERROR(Opex_Inputs!$C$90,0) -> 15.36 | AD130: =IFERROR(AA130*AB130,0) -> 140.9724938
B131: PE cell | C131: =IFERROR(C113*(1+Opex_Inputs!$C$19),0) -> 13.06715147 | D131: =IFERROR(D130*Opex_Inputs!$C$78/Opex_Inputs!$C$79,0) -> 0 | F131: =IFERROR(C131*D131,0) -> 0 | I131: =IFERROR(I113*(1+Opex_Inputs!$D$19),0) -> 13.06715147 | J131: =IFERROR(J130*Opex_Inputs!$C$78/Opex_Inputs!$C$79,0) -> 0 | L131: =IFERROR(I131*J131,0) -> 0 | O131: =IFERROR(O113*(1+Opex_Inputs!$E$19),0) -> 13.06715147 | P131: =IFERROR(P130*Opex_Inputs!$C$78/Opex_Inputs!$C$79,0) -> 0 | R131: =IFERROR(O131*P131,0) -> 0 | U131: =IFERROR(U113*(1+Opex_Inputs!$F$19),0) -> 13.06715147 | V131: =IFERROR(V130*Opex_Inputs!$C$78/Opex_Inputs!$C$79,0) -> 0 | X131: =IFERROR(U131*V131,0) -> 0 | AA131: =IFERROR(AA113*(1+Opex_Inputs!$G$19),0) -> 13.06715147 | AB131: =IFERROR(AB130*Opex_Inputs!$C$78/Opex_Inputs!$C$79,0) -> 0 | AD131: =IFERROR(AA131*AB131,0) -> 0
B132: Miscellaneous | C132: =IFERROR(C114*(1+Opex_Inputs!$C$19),0) -> 2.959991169 | D132: =IFERROR(Opex_Inputs!$C$90,0) -> 15.36 | F132: =IFERROR(C132*D132,0) -> 45.46546436 | I132: =IFERROR(I114*(1+Opex_Inputs!$D$19),0) -> 2.959991169 | J132: =IFERROR(Opex_Inputs!$C$90,0) -> 15.36 | L132: =IFERROR(I132*J132,0) -> 45.46546436 | O132: =IFERROR(O114*(1+Opex_Inputs!$E$19),0) -> 2.959991169 | P132: =IFERROR(Opex_Inputs!$C$90,0) -> 15.36 | R132: =IFERROR(O132*P132,0) -> 45.46546436 | U132: =IFERROR(U114*(1+Opex_Inputs!$F$19),0) -> 2.959991169 | V132: =IFERROR(Opex_Inputs!$C$90,0) -> 15.36 | X132: =IFERROR(U132*V132,0) -> 45.46546436 | AA132: =IFERROR(AA114*(1+Opex_Inputs!$G$19),0) -> 2.959991169 | AB132: =IFERROR(Opex_Inputs!$C$90,0) -> 15.36 | AD132: =IFERROR(AA132*AB132,0) -> 45.46546436
B133: Labour - Patrol | G133: =IFERROR(SUM(F134:F135)/Opex_Inputs!$C$87,0) -> 1.487197207 | H133: =IFERROR(G133*Opex_Inputs!$C$77,0) -> 4.46159162 | M133: =IFERROR(SUM(L134:L135)/Opex_Inputs!$C$87,0) -> 1.500681285 | N133: =IFERROR(M133*Opex_Inputs!$C$77,0) -> 4.502043856 | S133: =IFERROR(SUM(R134:R135)/Opex_Inputs!$C$87,0) -> 1.517494852 | T133: =IFERROR(S133*Opex_Inputs!$C$77,0) -> 4.552484556 | Y133: =IFERROR(SUM(X134:X135)/Opex_Inputs!$C$87,0) -> 1.535090141 | Z133: =IFERROR(Y133*Opex_Inputs!$C$77,0) -> 4.605270422 | AE133: =IFERROR(SUM(AD134:AD135)/Opex_Inputs!$C$87,0) -> 1.551443656 | AF133: =IFERROR(AE133*Opex_Inputs!$C$77,0) -> 4.654330969
B134: Crew costs | C134: =IFERROR(Opex_Inputs!$C$13,0) -> 178.29875 | D134: =IFERROR(Opex_Inputs!$C$84,0) -> 2 | E134: =IFERROR(Opex_Inputs!$C$17,0) -> 8 | F134: =IFERROR(C134*D134*E134,0) -> 2852.78 | I134: =IFERROR(Opex_Inputs!$D$13,0) -> 179.9842598 | J134: =IFERROR(Opex_Inputs!$C$84,0) -> 2 | K134: =IFERROR(Opex_Inputs!$D$17,0) -> 8 | L134: =IFERROR(I134*J134*K134,0) -> 2879.748158 | O134: =IFERROR(Opex_Inputs!$E$13,0) -> 182.0859557 | P134: =IFERROR(Opex_Inputs!$C$84,0) -> 2 | Q134: =IFERROR(Opex_Inputs!$E$17,0) -> 8 | R134: =IFERROR(O134*P134*Q134,0) -> 2913.375291 | U134: =IFERROR(Opex_Inputs!$F$13,0) -> 184.2853668 | V134: =IFERROR(Opex_Inputs!$C$84,0) -> 2 | W134: =IFERROR(Opex_Inputs!$F$17,0) -> 8 | X134: =IFERROR(U134*V134*W134,0) -> 2948.565868 | AA134: =IFERROR(Opex_Inputs!$G$13,0) -> 186.3295562 | AB134: =IFERROR(Opex_Inputs!$C$84,0) -> 2 | AC134: =IFERROR(Opex_Inputs!$G$17,0) -> 8 | AD134: =IFERROR(AA134*AB134*AC134,0) -> 2981.2729
B135: Vehicle costs | C135: =IFERROR(Opex_Inputs!$C$16,0) -> 15.20180163 | D135: =IFERROR(Opex_Inputs!$C$20,0) -> 1 | E135: =IFERROR(E134,0) -> 8 | F135: =IFERROR(C135*D135*E135,0) -> 121.614413 | I135: =IFERROR(Opex_Inputs!$D$16,0) -> 15.20180163 | J135: =IFERROR(Opex_Inputs!$C$20,0) -> 1 | K135: =IFERROR(K134,0) -> 8 | L135: =IFERROR(I135*J135*K135,0) -> 121.614413 | O135: =IFERROR(Opex_Inputs!$E$16,0) -> 15.20180163 | P135: =IFERROR(Opex_Inputs!$C$20,0) -> 1 | Q135: =IFERROR(Q134,0) -> 8 | R135: =IFERROR(O135*P135*Q135,0) -> 121.614413 | U135: =IFERROR(Opex_Inputs!$F$16,0) -> 15.20180163 | V135: =IFERROR(Opex_Inputs!$C$20,0) -> 1 | W135: =IFERROR(W134,0) -> 8 | X135: =IFERROR(U135*V135*W135,0) -> 121.614413 | AA135: =IFERROR(Opex_Inputs!$G$16,0) -> 15.20180163 | AB135: =IFERROR(Opex_Inputs!$C$20,0) -> 1 | AC135: =IFERROR(AC134,0) -> 8 | AD135: =IFERROR(AA135*AB135*AC135,0) -> 121.614413
B136: Labour - Repair of faults | G136: =IFERROR((F137+F138)/Opex_Inputs!$C$90*(D130+D131)/D130,0) -> 164.0245306 | H136: =IFERROR(G136/Opex_Inputs!$C$78,0) -> 0 | M136: =IFERROR((L137+L138)/Opex_Inputs!$C$90*(J130+J131)/J130,0) -> 165.188127 | N136: =IFERROR(M136/Opex_Inputs!$C$78,0) -> 0 | S136: =IFERROR((R137+R138)/Opex_Inputs!$C$90*(P130+P131)/P130,0) -> 166.6390387 | T136: =IFERROR(S136/Opex_Inputs!$C$78,0) -> 0 | Y136: =IFERROR((X137+X138)/Opex_Inputs!$C$90*(V130+V131)/V130,0) -> 168.1574083 | Z136: =IFERROR(Y136/Opex_Inputs!$C$78,0) -> 0 | AE136: =IFERROR((AD137+AD138)/Opex_Inputs!$C$90*(AB130+AB131)/AB130,0) -> 169.5686203 | AF136: =IFERROR(AE136/Opex_Inputs!$C$78,0) -> 0
B137: Crew costs | C137: =IFERROR(Opex_Inputs!$C$12,0) -> 118.1654827 | D137: =IFERROR(Opex_Inputs!$C$85,0) -> 2 | E137: =IFERROR(E134,0) -> 8 | F137: =IFERROR(C137*D137*E137,0) -> 1890.647723 | I137: =IFERROR(Opex_Inputs!$D$12,0) -> 119.2825353 | J137: =IFERROR(Opex_Inputs!$C$85,0) -> 2 | K137: =IFERROR(K134,0) -> 8 | L137: =IFERROR(I137*J137*K137,0) -> 1908.520565 | O137: =IFERROR(Opex_Inputs!$E$12,0) -> 120.6754105 | P137: =IFERROR(Opex_Inputs!$C$85,0) -> 2 | Q137: =IFERROR(Q134,0) -> 8 | R137: =IFERROR(O137*P137*Q137,0) -> 1930.806568 | U137: =IFERROR(Opex_Inputs!$F$12,0) -> 122.1330454 | V137: =IFERROR(Opex_Inputs!$C$85,0) -> 2 | W137: =IFERROR(W134,0) -> 8 | X137: =IFERROR(U137*V137*W137,0) -> 1954.128726 | AA137: =IFERROR(Opex_Inputs!$G$12,0) -> 123.4878088 | AB137: =IFERROR(Opex_Inputs!$C$85,0) -> 2 | AC137: =IFERROR(AC134,0) -> 8 | AD137: =IFERROR(AA137*AB137*AC137,0) -> 1975.804941
B138: Elevated platform vehicle costs | C138: =IFERROR(Opex_Inputs!$C$15,0) -> 78.59613326 | D138: =IFERROR(Opex_Inputs!$C$20,0) -> 1 | E138: =IFERROR(E134,0) -> 8 | F138: =IFERROR(C138*D138*E138,0) -> 628.7690661 | I138: =IFERROR(Opex_Inputs!$D$15,0) -> 78.59613326 | J138: =IFERROR(Opex_Inputs!$C$20,0) -> 1 | K138: =IFERROR(K134,0) -> 8 | L138: =IFERROR(I138*J138*K138,0) -> 628.7690661 | O138: =IFERROR(Opex_Inputs!$E$15,0) -> 78.59613326 | P138: =IFERROR(Opex_Inputs!$C$20,0) -> 1 | Q138: =IFERROR(Q134,0) -> 8 | R138: =IFERROR(O138*P138*Q138,0) -> 628.7690661 | U138: =IFERROR(Opex_Inputs!$F$15,0) -> 78.59613326 | V138: =IFERROR(Opex_Inputs!$C$20,0) -> 1 | W138: =IFERROR(W134,0) -> 8 | X138: =IFERROR(U138*V138*W138,0) -> 628.7690661 | AA138: =IFERROR(Opex_Inputs!$G$15,0) -> 78.59613326 | AB138: =IFERROR(Opex_Inputs!$C$20,0) -> 1 | AC138: =IFERROR(AC134,0) -> 8 | AD138: =IFERROR(AA138*AB138*AC138,0) -> 628.7690661
B139: Other Maintenance and Repair costs | H139: =IFERROR(H121,0) -> 2.43182136 | N139: =IFERROR(N121,0) -> 2.454810073 | T139: =IFERROR(T121,0) -> 2.483475158 | Z139: =IFERROR(Z121,0) -> 2.513472984 | AF139: =IFERROR(AF121,0) -> 2.541353738
B140: Overheads | C140: =IFERROR(Opex_Inputs!$C$18,0) -> 0.2402605656 | H140: =IFERROR(C140*(H129+H133+H136+H139),0) -> 1.656215301 | I140: =IFERROR(Opex_Inputs!$D$18,0) -> 0.2402605656 | N140: =IFERROR(I140*(N129+N133+N136+N139),0) -> 1.67145766 | O140: =IFERROR(Opex_Inputs!$E$18,0) -> 0.2402605656 | T140: =IFERROR(O140*(T129+T133+T136+T139),0) -> 1.69046366 | U140: =IFERROR(Opex_Inputs!$F$18,0) -> 0.2402605656 | Z140: =IFERROR(U140*(Z129+Z133+Z136+Z139),0) -> 1.710353317 | AA140: =IFERROR(Opex_Inputs!$G$18,0) -> 0.2402605656 | AF140: =IFERROR(AA140*(AF129+AF133+AF136+AF139),0) -> 1.728839278
H142: =IFERROR(SUM(H129,H133,H136,H139,H140),0) -> 8.549628281 | N142: =SUM(N129,N133,N136,N139,N140) -> 8.628311589 | T142: =SUM(T129,T133,T136,T139,T140) -> 8.726423374 | Z142: =SUM(Z129,Z133,Z136,Z139,Z140) -> 8.829096723 | AF142: =SUM(AF129,AF133,AF136,AF139,AF140) -> 8.924523984
B144: =IFERROR($B$93&" detailed cost build-up - remote",0) -> S-HP 150 detailed cost build-up - remote | C144: Unit rate | D144: Number | E144: Hours | F144: Cost | G144: Annualised | H144: Annualised | I144: Unit rate | J144: Number | K144: Hours | L144: Cost | M144: Annualised | N144: Annualised | O144: Unit rate | P144: Number | Q144: Hours | R144: Cost | S144: Annualised | T144: Annualised | U144: Unit rate | V144: Number | W144: Hours | X144: Cost | Y144: Annualised | Z144: Annualised | AA144: Unit rate | AB144: Number | AC144: Hours | AD144: Cost | AE144: Annualised | AF144: Annualised
G145: cost | H145: unit cost | M145: cost | N145: unit cost | S145: cost | T145: unit cost | Y145: cost | Z145: unit cost | AE145: cost | AF145: unit cost
B146: Patrols and repairs
B147: Materials | G147: =IFERROR(SUM(F148:F150)/D148,0) -> 12.1378879 | H147: =IFERROR(G147/Opex_Inputs!$C$78,0) -> 0 | M147: =IFERROR(SUM(L148:L150)/J148,0) -> 12.1378879 | N147: =IFERROR(M147/Opex_Inputs!$C$78,0) -> 0 | S147: =IFERROR(SUM(R148:R150)/P148,0) -> 12.1378879 | T147: =IFERROR(S147/Opex_Inputs!$C$78,0) -> 0 | Y147: =IFERROR(SUM(X148:X150)/V148,0) -> 12.1378879 | Z147: =IFERROR(Y147/Opex_Inputs!$C$78,0) -> 0 | AE147: =IFERROR(SUM(AD148:AD150)/AB148,0) -> 12.1378879 | AF147: =IFERROR(AE147/Opex_Inputs!$C$78,0) -> 0
B148: Lamp | C148: =IFERROR(C112*(1+Opex_Inputs!$C$19),0) -> 9.177896732 | D148: =IFERROR(Opex_Inputs!$C$91,0) -> 11.52 | F148: =IFERROR(C148*D148,0) -> 105.7293704 | I148: =IFERROR(I112*(1+Opex_Inputs!$C$19),0) -> 9.177896732 | J148: =IFERROR(Opex_Inputs!$C$91,0) -> 11.52 | L148: =IFERROR(I148*J148,0) -> 105.7293704 | O148: =IFERROR(O112*(1+Opex_Inputs!$C$19),0) -> 9.177896732 | P148: =IFERROR(Opex_Inputs!$C$91,0) -> 11.52 | R148: =IFERROR(O148*P148,0) -> 105.7293704 | U148: =IFERROR(U112*(1+Opex_Inputs!$C$19),0) -> 9.177896732 | V148: =IFERROR(Opex_Inputs!$C$91,0) -> 11.52 | X148: =IFERROR(U148*V148,0) -> 105.7293704 | AA148: =IFERROR(AA112*(1+Opex_Inputs!$C$19),0) -> 9.177896732 | AB148: =IFERROR(Opex_Inputs!$C$91,0) -> 11.52 | AD148: =IFERROR(AA148*AB148,0) -> 105.7293704
B149: PE cell | C149: =IFERROR(C113*(1+Opex_Inputs!$C$19),0) -> 13.06715147 | D149: =IFERROR(D148*Opex_Inputs!$C$78/Opex_Inputs!$C$79,0) -> 0 | F149: =IFERROR(C149*D149,0) -> 0 | I149: =IFERROR(I113*(1+Opex_Inputs!$C$19),0) -> 13.06715147 | J149: =IFERROR(J148*Opex_Inputs!$C$78/Opex_Inputs!$C$79,0) -> 0 | L149: =IFERROR(I149*J149,0) -> 0 | O149: =IFERROR(O113*(1+Opex_Inputs!$C$19),0) -> 13.06715147 | P149: =IFERROR(P148*Opex_Inputs!$C$78/Opex_Inputs!$C$79,0) -> 0 | R149: =IFERROR(O149*P149,0) -> 0 | U149: =IFERROR(U113*(1+Opex_Inputs!$C$19),0) -> 13.06715147 | V149: =IFERROR(V148*Opex_Inputs!$C$78/Opex_Inputs!$C$79,0) -> 0 | X149: =IFERROR(U149*V149,0) -> 0 | AA149: =IFERROR(AA113*(1+Opex_Inputs!$C$19),0) -> 13.06715147 | AB149: =IFERROR(AB148*Opex_Inputs!$C$78/Opex_Inputs!$C$79,0) -> 0 | AD149: =IFERROR(AA149*AB149,0) -> 0
B150: Miscellaneous | C150: =IFERROR(C114*(1+Opex_Inputs!$C$19),0) -> 2.959991169 | D150: =IFERROR(Opex_Inputs!$C$91,0) -> 11.52 | F150: =IFERROR(C150*D150,0) -> 34.09909827 | I150: =IFERROR(I114*(1+Opex_Inputs!$C$19),0) -> 2.959991169 | J150: =IFERROR(Opex_Inputs!$C$91,0) -> 11.52 | L150: =IFERROR(I150*J150,0) -> 34.09909827 | O150: =IFERROR(O114*(1+Opex_Inputs!$C$19),0) -> 2.959991169 | P150: =IFERROR(Opex_Inputs!$C$91,0) -> 11.52 | R150: =IFERROR(O150*P150,0) -> 34.09909827 | U150: =IFERROR(U114*(1+Opex_Inputs!$C$19),0) -> 2.959991169 | V150: =IFERROR(Opex_Inputs!$C$91,0) -> 11.52 | X150: =IFERROR(U150*V150,0) -> 34.09909827 | AA150: =IFERROR(AA114*(1+Opex_Inputs!$C$19),0) -> 2.959991169 | AB150: =IFERROR(Opex_Inputs!$C$91,0) -> 11.52 | AD150: =IFERROR(AA150*AB150,0) -> 34.09909827
B151: Labour - Patrol | G151: =IFERROR(SUM(F152:F153)/Opex_Inputs!$C$88,0) -> 2.974394413 | H151: =IFERROR(G151*Opex_Inputs!$C$77,0) -> 8.923183239 | M151: =IFERROR(SUM(L152:L153)/Opex_Inputs!$C$88,0) -> 3.001362571 | N151: =IFERROR(M151*Opex_Inputs!$C$77,0) -> 9.004087712 | S151: =IFERROR(SUM(R152:R153)/Opex_Inputs!$C$88,0) -> 3.034989704 | T151: =IFERROR(S151*Opex_Inputs!$C$77,0) -> 9.104969111 | Y151: =IFERROR(SUM(X152:X153)/Opex_Inputs!$C$88,0) -> 3.070180281 | Z151: =IFERROR(Y151*Opex_Inputs!$C$77,0) -> 9.210540844 | AE151: =IFERROR(SUM(AD152:AD153)/Opex_Inputs!$C$88,0) -> 3.102887313 | AF151: =IFERROR(AE151*Opex_Inputs!$C$77,0) -> 9.308661938
B152: Crew costs | C152: =IFERROR(Opex_Inputs!$C$13,0) -> 178.29875 | D152: =IFERROR(Opex_Inputs!$C$84,0) -> 2 | E152: =IFERROR(Opex_Inputs!$C$17,0) -> 8 | F152: =IFERROR(C152*D152*E152,0) -> 2852.78 | I152: =IFERROR(Opex_Inputs!$D$13,0) -> 179.9842598 | J152: =IFERROR(Opex_Inputs!$C$84,0) -> 2 | K152: =IFERROR(Opex_Inputs!$D$17,0) -> 8 | L152: =IFERROR(I152*J152*K152,0) -> 2879.748158 | O152: =IFERROR(Opex_Inputs!$E$13,0) -> 182.0859557 | P152: =IFERROR(Opex_Inputs!$C$84,0) -> 2 | Q152: =IFERROR(Opex_Inputs!$E$17,0) -> 8 | R152: =IFERROR(O152*P152*Q152,0) -> 2913.375291 | U152: =IFERROR(Opex_Inputs!$F$13,0) -> 184.2853668 | V152: =IFERROR(Opex_Inputs!$C$84,0) -> 2 | W152: =IFERROR(Opex_Inputs!$F$17,0) -> 8 | X152: =IFERROR(U152*V152*W152,0) -> 2948.565868 | AA152: =IFERROR(Opex_Inputs!$G$13,0) -> 186.3295562 | AB152: =IFERROR(Opex_Inputs!$C$84,0) -> 2 | AC152: =IFERROR(Opex_Inputs!$G$17,0) -> 8 | AD152: =IFERROR(AA152*AB152*AC152,0) -> 2981.2729
B153: Vehicle costs | C153: =IFERROR(Opex_Inputs!$C$16,0) -> 15.20180163 | D153: =IFERROR(Opex_Inputs!$C$20,0) -> 1 | E153: =IFERROR(E152,0) -> 8 | F153: =IFERROR(C153*D153*E153,0) -> 121.614413 | I153: =IFERROR(Opex_Inputs!$D$16,0) -> 15.20180163 | J153: =IFERROR(Opex_Inputs!$C$20,0) -> 1 | K153: =IFERROR(K152,0) -> 8 | L153: =IFERROR(I153*J153*K153,0) -> 121.614413 | O153: =IFERROR(Opex_Inputs!$E$16,0) -> 15.20180163 | P153: =IFERROR(Opex_Inputs!$C$20,0) -> 1 | Q153: =IFERROR(Q152,0) -> 8 | R153: =IFERROR(O153*P153*Q153,0) -> 121.614413 | U153: =IFERROR(Opex_Inputs!$F$16,0) -> 15.20180163 | V153: =IFERROR(Opex_Inputs!$C$20,0) -> 1 | W153: =IFERROR(W152,0) -> 8 | X153: =IFERROR(U153*V153*W153,0) -> 121.614413 | AA153: =IFERROR(Opex_Inputs!$G$16,0) -> 15.20180163 | AB153: =IFERROR(Opex_Inputs!$C$20,0) -> 1 | AC153: =IFERROR(AC152,0) -> 8 | AD153: =IFERROR(AA153*AB153*AC153,0) -> 121.614413
B154: Labour - Repair of faults | G154: =IFERROR((F155+F156)/Opex_Inputs!$C$91*(D148+D149)/D148,0) -> 218.6993741 | H154: =IFERROR(G154/Opex_Inputs!$C$78,0) -> 0 | M154: =IFERROR((L155+L156)/Opex_Inputs!$C$91*(J148+J149)/J148,0) -> 220.2508361 | N154: =IFERROR(M154/Opex_Inputs!$C$78,0) -> 0 | S154: =IFERROR((R155+R156)/Opex_Inputs!$C$91*(P148+P149)/P148,0) -> 222.1853849 | T154: =IFERROR(S154/Opex_Inputs!$C$78,0) -> 0 | Y154: =IFERROR((X155+X156)/Opex_Inputs!$C$91*(V148+V149)/V148,0) -> 224.2098778 | Z154: =IFERROR(Y154/Opex_Inputs!$C$78,0) -> 0 | AE154: =IFERROR((AD155+AD156)/Opex_Inputs!$C$91*(AB148+AB149)/AB148,0) -> 226.0914937 | AF154: =IFERROR(AE154/Opex_Inputs!$C$78,0) -> 0
B155: Crew costs | C155: =IFERROR(Opex_Inputs!$C$12,0) -> 118.1654827 | D155: =IFERROR(Opex_Inputs!$C$85,0) -> 2 | E155: =IFERROR(E152,0) -> 8 | F155: =IFERROR(C155*D155*E155,0) -> 1890.647723 | I155: =IFERROR(Opex_Inputs!$D$12,0) -> 119.2825353 | J155: =IFERROR(Opex_Inputs!$C$85,0) -> 2 | K155: =IFERROR(K152,0) -> 8 | L155: =IFERROR(I155*J155*K155,0) -> 1908.520565 | O155: =IFERROR(Opex_Inputs!$E$12,0) -> 120.6754105 | P155: =IFERROR(Opex_Inputs!$C$85,0) -> 2 | Q155: =IFERROR(Q152,0) -> 8 | R155: =IFERROR(O155*P155*Q155,0) -> 1930.806568 | U155: =IFERROR(Opex_Inputs!$F$12,0) -> 122.1330454 | V155: =IFERROR(Opex_Inputs!$C$85,0) -> 2 | W155: =IFERROR(W152,0) -> 8 | X155: =IFERROR(U155*V155*W155,0) -> 1954.128726 | AA155: =IFERROR(Opex_Inputs!$G$12,0) -> 123.4878088 | AB155: =IFERROR(Opex_Inputs!$C$85,0) -> 2 | AC155: =IFERROR(AC152,0) -> 8 | AD155: =IFERROR(AA155*AB155*AC155,0) -> 1975.804941
B156: Elevated platform vehicle costs | C156: =IFERROR(Opex_Inputs!$C$15,0) -> 78.59613326 | D156: =IFERROR(Opex_Inputs!$C$20,0) -> 1 | E156: =IFERROR(E152,0) -> 8 | F156: =IFERROR(C156*D156*E156,0) -> 628.7690661 | I156: =IFERROR(Opex_Inputs!$D$15,0) -> 78.59613326 | J156: =IFERROR(Opex_Inputs!$C$20,0) -> 1 | K156: =IFERROR(K152,0) -> 8 | L156: =IFERROR(I156*J156*K156,0) -> 628.7690661 | O156: =IFERROR(Opex_Inputs!$E$15,0) -> 78.59613326 | P156: =IFERROR(Opex_Inputs!$C$20,0) -> 1 | Q156: =IFERROR(Q152,0) -> 8 | R156: =IFERROR(O156*P156*Q156,0) -> 628.7690661 | U156: =IFERROR(Opex_Inputs!$F$15,0) -> 78.59613326 | V156: =IFERROR(Opex_Inputs!$C$20,0) -> 1 | W156: =IFERROR(W152,0) -> 8 | X156: =IFERROR(U156*V156*W156,0) -> 628.7690661 | AA156: =IFERROR(Opex_Inputs!$G$15,0) -> 78.59613326 | AB156: =IFERROR(Opex_Inputs!$C$20,0) -> 1 | AC156: =IFERROR(AC152,0) -> 8 | AD156: =IFERROR(AA156*AB156*AC156,0) -> 628.7690661
B157: Other Maintenance and Repair costs | H157: =IFERROR(H139,0) -> 2.43182136 | N157: =IFERROR(N139,0) -> 2.454810073 | T157: =IFERROR(T139,0) -> 2.483475158 | Z157: =IFERROR(Z139,0) -> 2.513472984 | AF157: =IFERROR(AF139,0) -> 2.541353738
B158: Overheads | C158: =IFERROR(Opex_Inputs!$C$18,0) -> 0.2402605656 | H158: =IFERROR(C158*(H147+H151+H154+H157),0) -> 2.728159827 | I158: =IFERROR(Opex_Inputs!$D$18,0) -> 0.2402605656 | N158: =IFERROR(I158*(N147+N151+N154+N157),0) -> 2.753121263 | O158: =IFERROR(Opex_Inputs!$E$18,0) -> 0.2402605656 | T158: =IFERROR(O158*(T147+T151+T154+T157),0) -> 2.784246175 | U158: =IFERROR(Opex_Inputs!$F$18,0) -> 0.2402605656 | Z158: =IFERROR(U158*(Z147+Z151+Z154+Z157),0) -> 2.816818194 | AA158: =IFERROR(Opex_Inputs!$G$18,0) -> 0.2402605656 | AF158: =IFERROR(AA158*(AF147+AF151+AF154+AF157),0) -> 2.847091469
H160: =IFERROR(SUM(H147,H151,H154,H157,H158),0) -> 14.08316443 | N160: =SUM(N147,N151,N154,N157,N158) -> 14.21201905 | T160: =SUM(T147,T151,T154,T157,T158) -> 14.37269044 | Z160: =SUM(Z147,Z151,Z154,Z157,Z158) -> 14.54083202 | AF160: =SUM(AF147,AF151,AF154,AF157,AF158) -> 14.69710714
B163: Sodium High Pressure 250 Watt Standard Light Type - Cost build-up
B164: S-HP 250
B166: =IFERROR(Opex_Inputs!$B$97&" calcs",0) -> S-HP 250 inputs calcs | C166: =Quantity!D$6 -> 2026-27 | D166: =Quantity!E$6 -> 2027-28 | E166: =Quantity!F$6 -> 2028-29 | F166: =Quantity!G$6 -> 2029-30 | G166: =Quantity!H$6 -> 2030-31
B167: Patrols and repairs | C167: =IFERROR(H195*Opex_Inputs!$C113+H213*Opex_Inputs!$C114+H231*Opex_Inputs!$C115,0) -> 7.100469096 | D167: =IFERROR(N195*Opex_Inputs!$C113+N213*Opex_Inputs!$C114+N231*Opex_Inputs!$C115,0) -> 7.166002043 | E167: =IFERROR(T195*Opex_Inputs!$C113+T213*Opex_Inputs!$C114+T231*Opex_Inputs!$C115,0) -> 7.24771638 | F167: =IFERROR(Z195*Opex_Inputs!$C113+Z213*Opex_Inputs!$C114+Z231*Opex_Inputs!$C115,0) -> 7.333229907 | G167: =IFERROR(AF195*Opex_Inputs!$C113+AF213*Opex_Inputs!$C114+AF231*Opex_Inputs!$C115,0) -> 7.412708386
B168: Dedicated poles - inspection | C168: =IFERROR(Opex_Inputs!C$45,0) -> 2.191551793 | D168: =IFERROR(Opex_Inputs!D$45,0) -> 2.245490774 | E168: =IFERROR(Opex_Inputs!E$45,0) -> 2.304699276 | F168: =IFERROR(Opex_Inputs!F$45,0) -> 2.365760421 | G168: =IFERROR(Opex_Inputs!G$45,0) -> 2.42579361
B169: Other costs | C169: =IFERROR(IF(Opex_Inputs!C$28=0,0,Opex_Inputs!C$29/Opex_Inputs!C$28),0) -> 0.9250078901 | D169: =IFERROR(IF(Opex_Inputs!D$28=0,0,Opex_Inputs!D$29/Opex_Inputs!D$28),0) -> 0.9193593835 | E169: =IFERROR(IF(Opex_Inputs!E$28=0,0,Opex_Inputs!E$29/Opex_Inputs!E$28),0) -> 0.9134046286 | F169: =IFERROR(IF(Opex_Inputs!F$28=0,0,Opex_Inputs!F$29/Opex_Inputs!F$28),0) -> 0.9072684359 | G169: =IFERROR(IF(Opex_Inputs!G$28=0,0,Opex_Inputs!G$29/Opex_Inputs!G$28),0) -> 0.9009765088
B170: CMS service costs | C170: =IFERROR(IF(Opex_Inputs!C$28=0,0,Opex_Inputs!C$30/Opex_Inputs!C$28),0) -> 1.297677673 | D170: =IFERROR(IF(Opex_Inputs!D$28=0,0,Opex_Inputs!D$30/Opex_Inputs!D$28),0) -> 1.406543042 | E170: =IFERROR(IF(Opex_Inputs!E$28=0,0,Opex_Inputs!E$30/Opex_Inputs!E$28),0) -> 1.525299739 | F170: =IFERROR(IF(Opex_Inputs!F$28=0,0,Opex_Inputs!F$30/Opex_Inputs!F$28),0) -> 1.637433784 | G170: =IFERROR(IF(Opex_Inputs!G$28=0,0,Opex_Inputs!G$30/Opex_Inputs!G$28),0) -> 1.730053504
B171: Unit cost | C171: =IFERROR(SUM(C167:C170),0) -> 11.51470645 | D171: =IFERROR(SUM(D167:D170),0) -> 11.73739524 | E171: =IFERROR(SUM(E167:E170),0) -> 11.99112002 | F171: =IFERROR(SUM(F167:F170),0) -> 12.24369255 | G171: =IFERROR(SUM(G167:G170),0) -> 12.46953201
B173: =IFERROR($B$164&" - Avoided costs",0) -> S-HP 250 - Avoided costs | C173: =Quantity!D$6 -> 2026-27 | D173: =Quantity!E$6 -> 2027-28 | E173: =Quantity!F$6 -> 2028-29 | F173: =Quantity!G$6 -> 2029-30 | G173: =Quantity!H$6 -> 2030-31
B174: Materials & labour - bulk lamp change | C174: 0 | D174: 0 | E174: 0 | F174: 0 | G174: 0
B175: Materials & Labour - repair of faults | C175: =-((H182+H189+H192)*Opex_Inputs!$C113+(H200+H207+H210)*Opex_Inputs!$C114+(H218+H225+H228)*Opex_Inputs!$C115)/2 -> -1.204265987 | D175: =-((N182+N189+N192)*Opex_Inputs!$C113+(N200+N207+N210)*Opex_Inputs!$C114+(N218+N225+N228)*Opex_Inputs!$C115)/2 -> -1.215650263 | E175: =-((T182+T189+T192)*Opex_Inputs!$C113+(T200+T207+T210)*Opex_Inputs!$C114+(T218+T225+T228)*Opex_Inputs!$C115)/2 -> -1.229845543 | F175: =-((Z182+Z189+Z192)*Opex_Inputs!$C113+(Z200+Z207+Z210)*Opex_Inputs!$C114+(Z218+Z225+Z228)*Opex_Inputs!$C115)/2 -> -1.244700813 | G175: =-((AF182+AF189+AF192)*Opex_Inputs!$C113+(AF200+AF207+AF210)*Opex_Inputs!$C114+(AF218+AF225+AF228)*Opex_Inputs!$C115)/2 -> -1.258507684
B176: Total | C176: =SUM(C174:C175) -> -1.204265987 | D176: =SUM(D174:D175) -> -1.215650263 | E176: =SUM(E174:E175) -> -1.229845543 | F176: =SUM(F174:F175) -> -1.244700813 | G176: =SUM(G174:G175) -> -1.258507684
C178: =C166 -> 2026-27 | I178: =D166 -> 2027-28 | O178: =E166 -> 2028-29 | U178: =F166 -> 2029-30 | AA178: =G166 -> 2030-31
B179: =IFERROR(Opex_Inputs!$B$97&" detailed cost build-up - urban",0) -> S-HP 250 inputs detailed cost build-up - urban | C179: Unit rate | D179: Number | E179: Hours | F179: Cost | G179: Annualised | H179: Annualised | I179: Unit rate | J179: Number | K179: Hours | L179: Cost | M179: Annualised | N179: Annualised | O179: Unit rate | P179: Number | Q179: Hours | R179: Cost | S179: Annualised | T179: Annualised | U179: Unit rate | V179: Number | W179: Hours | X179: Cost | Y179: Annualised | Z179: Annualised | AA179: Unit rate | AB179: Number | AC179: Hours | AD179: Cost | AE179: Annualised | AF179: Annualised
G180: cost | H180: unit cost | M180: cost | N180: unit cost | S180: cost | T180: unit cost | Y180: cost | Z180: unit cost | AE180: cost | AF180: unit cost
B181: Patrols and repairs
B182: Materials | G182: =IFERROR(SUM(F183:F185)/D183,0) -> 11.55989324 | H182: =IFERROR(G182/Opex_Inputs!$C$99,0) -> 0 | M182: =IFERROR(SUM(L183:L185)/J183,0) -> 11.55989324 | N182: =IFERROR(M182/Opex_Inputs!$C$99,0) -> 0 | S182: =IFERROR(SUM(R183:R185)/P183,0) -> 11.55989324 | T182: =IFERROR(S182/Opex_Inputs!$C$99,0) -> 0 | Y182: =IFERROR(SUM(X183:X185)/V183,0) -> 11.55989324 | Z182: =IFERROR(Y182/Opex_Inputs!$C$99,0) -> 0 | AE182: =IFERROR(SUM(AD183:AD185)/AB183,0) -> 11.55989324 | AF182: =IFERROR(AE182/Opex_Inputs!$C$99,0) -> 0
B183: Lamp | C183: =IFERROR(Opex_Inputs!$C$101,0) -> 8.740854031 | D183: =IFERROR(Opex_Inputs!$C$110,0) -> 19.2 | F183: =IFERROR(C183*D183,0) -> 167.8243974 | I183: =IFERROR(Opex_Inputs!$C$101,0) -> 8.740854031 | J183: =IFERROR(Opex_Inputs!$C$110,0) -> 19.2 | L183: =IFERROR(I183*J183,0) -> 167.8243974 | O183: =IFERROR(Opex_Inputs!$C$101,0) -> 8.740854031 | P183: =IFERROR(Opex_Inputs!$C$110,0) -> 19.2 | R183: =IFERROR(O183*P183,0) -> 167.8243974 | U183: =IFERROR(Opex_Inputs!$C$101,0) -> 8.740854031 | V183: =IFERROR(Opex_Inputs!$C$110,0) -> 19.2 | X183: =IFERROR(U183*V183,0) -> 167.8243974 | AA183: =IFERROR(Opex_Inputs!$C$101,0) -> 8.740854031 | AB183: =IFERROR(Opex_Inputs!$C$110,0) -> 19.2 | AD183: =IFERROR(AA183*AB183,0) -> 167.8243974
B184: PE cell | C184: =IFERROR(Opex_Inputs!$C$102,0) -> 12.44490616 | D184: =IFERROR(D183*Opex_Inputs!$C$99/Opex_Inputs!$C$100,0) -> 0 | F184: =IFERROR(C184*D184,0) -> 0 | I184: =IFERROR(Opex_Inputs!$C$102,0) -> 12.44490616 | J184: =IFERROR(J183*Opex_Inputs!$C$99/Opex_Inputs!$C$100,0) -> 0 | L184: =IFERROR(I184*J184,0) -> 0 | O184: =IFERROR(Opex_Inputs!$C$102,0) -> 12.44490616 | P184: =IFERROR(P183*Opex_Inputs!$C$99/Opex_Inputs!$C$100,0) -> 0 | R184: =IFERROR(O184*P184,0) -> 0 | U184: =IFERROR(Opex_Inputs!$C$102,0) -> 12.44490616 | V184: =IFERROR(V183*Opex_Inputs!$C$99/Opex_Inputs!$C$100,0) -> 0 | X184: =IFERROR(U184*V184,0) -> 0 | AA184: =IFERROR(Opex_Inputs!$C$102,0) -> 12.44490616 | AB184: =IFERROR(AB183*Opex_Inputs!$C$99/Opex_Inputs!$C$100,0) -> 0 | AD184: =IFERROR(AA184*AB184,0) -> 0
B185: Miscellaneous | C185: =IFERROR(Opex_Inputs!$C$103,0) -> 2.819039209 | D185: =IFERROR(Opex_Inputs!$C$110,0) -> 19.2 | F185: =IFERROR(C185*D185,0) -> 54.12555281 | I185: =IFERROR(Opex_Inputs!$C$103,0) -> 2.819039209 | J185: =IFERROR(Opex_Inputs!$C$110,0) -> 19.2 | L185: =IFERROR(I185*J185,0) -> 54.12555281 | O185: =IFERROR(Opex_Inputs!$C$103,0) -> 2.819039209 | P185: =IFERROR(Opex_Inputs!$C$110,0) -> 19.2 | R185: =IFERROR(O185*P185,0) -> 54.12555281 | U185: =IFERROR(Opex_Inputs!$C$103,0) -> 2.819039209 | V185: =IFERROR(Opex_Inputs!$C$110,0) -> 19.2 | X185: =IFERROR(U185*V185,0) -> 54.12555281 | AA185: =IFERROR(Opex_Inputs!$C$103,0) -> 2.819039209 | AB185: =IFERROR(Opex_Inputs!$C$110,0) -> 19.2 | AD185: =IFERROR(AA185*AB185,0) -> 54.12555281
B186: Labour - Patrol | G186: =IFERROR(SUM(F187:F188)/Opex_Inputs!$C$107,0) -> 0.9914648043 | H186: =IFERROR(G186*Opex_Inputs!$C$98,0) -> 2.974394413 | M186: =IFERROR(SUM(L187:L188)/Opex_Inputs!$C$107,0) -> 1.00045419 | N186: =IFERROR(M186*Opex_Inputs!$C$98,0) -> 3.001362571 | S186: =IFERROR(SUM(R187:R188)/Opex_Inputs!$C$107,0) -> 1.011663235 | T186: =IFERROR(S186*Opex_Inputs!$C$98,0) -> 3.034989704 | Y186: =IFERROR(SUM(X187:X188)/Opex_Inputs!$C$107,0) -> 1.023393427 | Z186: =IFERROR(Y186*Opex_Inputs!$C$98,0) -> 3.070180281 | AE186: =IFERROR(SUM(AD187:AD188)/Opex_Inputs!$C$107,0) -> 1.034295771 | AF186: =IFERROR(AE186*Opex_Inputs!$C$98,0) -> 3.102887313
B187: Crew costs | C187: =IFERROR(Opex_Inputs!$C$13,0) -> 178.29875 | D187: =IFERROR(Opex_Inputs!$C$105,0) -> 2 | E187: =IFERROR(Opex_Inputs!$C$17,0) -> 8 | F187: =IFERROR(C187*D187*E187,0) -> 2852.78 | I187: =IFERROR(Opex_Inputs!$D$13,0) -> 179.9842598 | J187: =IFERROR(Opex_Inputs!$C$105,0) -> 2 | K187: =IFERROR(Opex_Inputs!$D$17,0) -> 8 | L187: =IFERROR(I187*J187*K187,0) -> 2879.748158 | O187: =IFERROR(Opex_Inputs!$E$13,0) -> 182.0859557 | P187: =IFERROR(Opex_Inputs!$C$105,0) -> 2 | Q187: =IFERROR(Opex_Inputs!$E$17,0) -> 8 | R187: =IFERROR(O187*P187*Q187,0) -> 2913.375291 | U187: =IFERROR(Opex_Inputs!$F$13,0) -> 184.2853668 | V187: =IFERROR(Opex_Inputs!$C$105,0) -> 2 | W187: =IFERROR(Opex_Inputs!$F$17,0) -> 8 | X187: =IFERROR(U187*V187*W187,0) -> 2948.565868 | AA187: =IFERROR(Opex_Inputs!$G$13,0) -> 186.3295562 | AB187: =IFERROR(Opex_Inputs!$C$105,0) -> 2 | AC187: =IFERROR(Opex_Inputs!$G$17,0) -> 8 | AD187: =IFERROR(AA187*AB187*AC187,0) -> 2981.2729
B188: Vehicle costs | C188: =IFERROR(Opex_Inputs!$C$16,0) -> 15.20180163 | D188: =IFERROR(Opex_Inputs!$C$20,0) -> 1 | E188: =IFERROR(E$187,0) -> 8 | F188: =IFERROR(C188*D188*E188,0) -> 121.614413 | I188: =IFERROR(Opex_Inputs!$D$16,0) -> 15.20180163 | J188: =IFERROR(Opex_Inputs!$C$20,0) -> 1 | K188: =IFERROR(K187,0) -> 8 | L188: =IFERROR(I188*J188*K188,0) -> 121.614413 | O188: =IFERROR(Opex_Inputs!$E$16,0) -> 15.20180163 | P188: =IFERROR(Opex_Inputs!$C$20,0) -> 1 | Q188: =IFERROR(Q187,0) -> 8 | R188: =IFERROR(O188*P188*Q188,0) -> 121.614413 | U188: =IFERROR(Opex_Inputs!$F$16,0) -> 15.20180163 | V188: =IFERROR(Opex_Inputs!$C$20,0) -> 1 | W188: =IFERROR(W187,0) -> 8 | X188: =IFERROR(U188*V188*W188,0) -> 121.614413 | AA188: =IFERROR(Opex_Inputs!$G$16,0) -> 15.20180163 | AB188: =IFERROR(Opex_Inputs!$C$20,0) -> 1 | AC188: =IFERROR(AC187,0) -> 8 | AD188: =IFERROR(AA188*AB188*AC188,0) -> 121.614413
B189: Labour - Repair of faults | G189: =IFERROR((F190+F191)/Opex_Inputs!$C$110*(D183+D184)/D183,0) -> 124.4098873 | H189: =IFERROR(G189/Opex_Inputs!$C$99,0) -> 0 | M189: =IFERROR((L190+L191)/Opex_Inputs!$C$110*(J183+J184)/J183,0) -> 125.3407645 | N189: =IFERROR(M189/Opex_Inputs!$C$99,0) -> 0 | S189: =IFERROR((R190+R191)/Opex_Inputs!$C$110*(P183+P184)/P183,0) -> 126.5014938 | T189: =IFERROR(S189/Opex_Inputs!$C$99,0) -> 0 | Y189: =IFERROR((X190+X191)/Opex_Inputs!$C$110*(V183+V184)/V183,0) -> 127.7161895 | Z189: =IFERROR(Y189/Opex_Inputs!$C$99,0) -> 0 | AE189: =IFERROR((AD190+AD191)/Opex_Inputs!$C$110*(AB183+AB184)/AB183,0) -> 128.8451591 | AF189: =IFERROR(AE189/Opex_Inputs!$C$99,0) -> 0
B190: Crew costs | C190: =IFERROR(Opex_Inputs!$C$12,0) -> 118.1654827 | D190: =IFERROR(Opex_Inputs!$C$106,0) -> 2 | E190: =IFERROR(E$187,0) -> 8 | F190: =IFERROR(C190*D190*E190,0) -> 1890.647723 | I190: =IFERROR(Opex_Inputs!$D$12,0) -> 119.2825353 | J190: =IFERROR(Opex_Inputs!$C$106,0) -> 2 | K190: =IFERROR(K187,0) -> 8 | L190: =IFERROR(I190*J190*K190,0) -> 1908.520565 | O190: =IFERROR(Opex_Inputs!$E$12,0) -> 120.6754105 | P190: =IFERROR(Opex_Inputs!$C$106,0) -> 2 | Q190: =IFERROR(Q187,0) -> 8 | R190: =IFERROR(O190*P190*Q190,0) -> 1930.806568 | U190: =IFERROR(Opex_Inputs!$F$12,0) -> 122.1330454 | V190: =IFERROR(Opex_Inputs!$C$106,0) -> 2 | W190: =IFERROR(W187,0) -> 8 | X190: =IFERROR(U190*V190*W190,0) -> 1954.128726 | AA190: =IFERROR(Opex_Inputs!$G$12,0) -> 123.4878088 | AB190: =IFERROR(Opex_Inputs!$C$106,0) -> 2 | AC190: =IFERROR(AC187,0) -> 8 | AD190: =IFERROR(AA190*AB190*AC190,0) -> 1975.804941
B191: Elevated platform vehicle costs | C191: =IFERROR(Opex_Inputs!$C$14,0) -> 62.25276407 | D191: =IFERROR(Opex_Inputs!$C$20,0) -> 1 | E191: =IFERROR(E$187,0) -> 8 | F191: =IFERROR(C191*D191*E191,0) -> 498.0221125 | I191: =IFERROR(Opex_Inputs!$D$14,0) -> 62.25276407 | J191: =IFERROR(Opex_Inputs!$C$20,0) -> 1 | K191: =IFERROR(K187,0) -> 8 | L191: =IFERROR(I191*J191*K191,0) -> 498.0221125 | O191: =IFERROR(Opex_Inputs!$E$14,0) -> 62.25276407 | P191: =IFERROR(Opex_Inputs!$C$20,0) -> 1 | Q191: =IFERROR(Q187,0) -> 8 | R191: =IFERROR(O191*P191*Q191,0) -> 498.0221125 | U191: =IFERROR(Opex_Inputs!$F$14,0) -> 62.25276407 | V191: =IFERROR(Opex_Inputs!$C$20,0) -> 1 | W191: =IFERROR(W187,0) -> 8 | X191: =IFERROR(U191*V191*W191,0) -> 498.0221125 | AA191: =IFERROR(Opex_Inputs!$G$14,0) -> 62.25276407 | AB191: =IFERROR(Opex_Inputs!$C$20,0) -> 1 | AC191: =IFERROR(AC187,0) -> 8 | AD191: =IFERROR(AA191*AB191*AC191,0) -> 498.0221125
B192: Other Maintenance and Repair costs | H192: =IFERROR(Opex_Inputs!$C$104,0) -> 2.408531973 | N192: =IFERROR(H192*(1+Opex_Inputs!$D$8),0) -> 2.431300525 | T192: =IFERROR(N192*(1+Opex_Inputs!$E$8),0) -> 2.459691087 | Z192: =IFERROR(T192*(1+Opex_Inputs!$F$8),0) -> 2.489401626 | AF192: =IFERROR(Z192*(1+Opex_Inputs!$G$8),0) -> 2.517015367
B193: Overheads | C193: =IFERROR(Opex_Inputs!$C$18,0) -> 0.2402605656 | H193: =IFERROR(C193*(H182+H186+H189+H192),0) -> 1.293304938 | I193: =IFERROR(Opex_Inputs!$D$18,0) -> 0.2402605656 | N193: =I193*(N182+N186+N189+N192) -> 1.305254708 | O193: =IFERROR(Opex_Inputs!$E$18,0) -> 0.2402605656 | T193: =O193*(T182+T186+T189+T192) -> 1.320155115 | U193: =IFERROR(Opex_Inputs!$F$18,0) -> 0.2402605656 | Z193: =U193*(Z182+Z186+Z189+Z192) -> 1.335748294 | AA193: =IFERROR(Opex_Inputs!$G$18,0) -> 0.2402605656 | AF193: =AA193*(AF182+AF186+AF189+AF192) -> 1.350240997
H195: =IFERROR(SUM(H182,H186,H189,H192,H193),0) -> 6.676231325 | N195: =SUM(N182,N186,N189,N192,N193) -> 6.737917804 | T195: =SUM(T182,T186,T189,T192,T193) -> 6.814835905 | Z195: =SUM(Z182,Z186,Z189,Z192,Z193) -> 6.895330201 | AF195: =SUM(AF182,AF186,AF189,AF192,AF193) -> 6.970143677
B197: =IFERROR(Opex_Inputs!$B$97&" detailed cost build-up - rural",0) -> S-HP 250 inputs detailed cost build-up - rural | C197: Unit rate | D197: Number | E197: Hours | F197: Cost | G197: Annualised | H197: Annualised | I197: Unit rate | J197: Number | K197: Hours | L197: Cost | M197: Annualised | N197: Annualised | O197: Unit rate | P197: Number | Q197: Hours | R197: Cost | S197: Annualised | T197: Annualised | U197: Unit rate | V197: Number | W197: Hours | X197: Cost | Y197: Annualised | Z197: Annualised | AA197: Unit rate | AB197: Number | AC197: Hours | AD197: Cost | AE197: Annualised | AF197: Annualised
G198: cost | H198: unit cost | M198: cost | N198: unit cost | S198: cost | T198: unit cost | Y198: cost | Z198: unit cost | AE198: cost | AF198: unit cost
B199: Patrols and repairs
B200: Materials | G200: =IFERROR(SUM(F201:F203)/D201,0) -> 12.1378879 | H200: =IFERROR(G200/Opex_Inputs!$C$99,0) -> 0 | M200: =IFERROR(SUM(L201:L203)/J201,0) -> 12.1378879 | N200: =IFERROR(M200/Opex_Inputs!$C$99,0) -> 0 | S200: =IFERROR(SUM(R201:R203)/P201,0) -> 12.1378879 | T200: =IFERROR(S200/Opex_Inputs!$C$99,0) -> 0 | Y200: =IFERROR(SUM(X201:X203)/V201,0) -> 12.1378879 | Z200: =IFERROR(Y200/Opex_Inputs!$C$99,0) -> 0 | AE200: =IFERROR(SUM(AD201:AD203)/AB201,0) -> 12.1378879 | AF200: =IFERROR(AE200/Opex_Inputs!$C$99,0) -> 0
B201: Lamp | C201: =IFERROR(C183*(1+Opex_Inputs!$C$19),0) -> 9.177896732 | D201: =IFERROR(Opex_Inputs!$C$111,0) -> 15.36 | F201: =IFERROR(C201*D201,0) -> 140.9724938 | I201: =IFERROR(I183*(1+Opex_Inputs!$C$19),0) -> 9.177896732 | J201: =IFERROR(Opex_Inputs!$C$111,0) -> 15.36 | L201: =IFERROR(I201*J201,0) -> 140.9724938 | O201: =IFERROR(O183*(1+Opex_Inputs!$C$19),0) -> 9.177896732 | P201: =IFERROR(Opex_Inputs!$C$111,0) -> 15.36 | R201: =IFERROR(O201*P201,0) -> 140.9724938 | U201: =IFERROR(U183*(1+Opex_Inputs!$C$19),0) -> 9.177896732 | V201: =IFERROR(Opex_Inputs!$C$111,0) -> 15.36 | X201: =IFERROR(U201*V201,0) -> 140.9724938 | AA201: =IFERROR(AA183*(1+Opex_Inputs!$C$19),0) -> 9.177896732 | AB201: =IFERROR(Opex_Inputs!$C$111,0) -> 15.36 | AD201: =IFERROR(AA201*AB201,0) -> 140.9724938
B202: PE cell | C202: =IFERROR(C184*(1+Opex_Inputs!$C$19),0) -> 13.06715147 | D202: =IFERROR(D201*Opex_Inputs!$C$99/Opex_Inputs!$C$100,0) -> 0 | F202: =IFERROR(C202*D202,0) -> 0 | I202: =IFERROR(I184*(1+Opex_Inputs!$C$19),0) -> 13.06715147 | J202: =IFERROR(J201*Opex_Inputs!$C$99/Opex_Inputs!$C$100,0) -> 0 | L202: =IFERROR(I202*J202,0) -> 0 | O202: =IFERROR(O184*(1+Opex_Inputs!$C$19),0) -> 13.06715147 | P202: =IFERROR(P201*Opex_Inputs!$C$99/Opex_Inputs!$C$100,0) -> 0 | R202: =IFERROR(O202*P202,0) -> 0 | U202: =IFERROR(U184*(1+Opex_Inputs!$C$19),0) -> 13.06715147 | V202: =IFERROR(V201*Opex_Inputs!$C$99/Opex_Inputs!$C$100,0) -> 0 | X202: =IFERROR(U202*V202,0) -> 0 | AA202: =IFERROR(AA184*(1+Opex_Inputs!$C$19),0) -> 13.06715147 | AB202: =IFERROR(AB201*Opex_Inputs!$C$99/Opex_Inputs!$C$100,0) -> 0 | AD202: =IFERROR(AA202*AB202,0) -> 0
B203: Miscellaneous | C203: =IFERROR(C185*(1+Opex_Inputs!$C$19),0) -> 2.959991169 | D203: =IFERROR(Opex_Inputs!$C$111,0) -> 15.36 | F203: =IFERROR(C203*D203,0) -> 45.46546436 | I203: =IFERROR(I185*(1+Opex_Inputs!$C$19),0) -> 2.959991169 | J203: =IFERROR(Opex_Inputs!$C$111,0) -> 15.36 | L203: =IFERROR(I203*J203,0) -> 45.46546436 | O203: =IFERROR(O185*(1+Opex_Inputs!$C$19),0) -> 2.959991169 | P203: =IFERROR(Opex_Inputs!$C$111,0) -> 15.36 | R203: =IFERROR(O203*P203,0) -> 45.46546436 | U203: =IFERROR(U185*(1+Opex_Inputs!$C$19),0) -> 2.959991169 | V203: =IFERROR(Opex_Inputs!$C$111,0) -> 15.36 | X203: =IFERROR(U203*V203,0) -> 45.46546436 | AA203: =IFERROR(AA185*(1+Opex_Inputs!$C$19),0) -> 2.959991169 | AB203: =IFERROR(Opex_Inputs!$C$111,0) -> 15.36 | AD203: =IFERROR(AA203*AB203,0) -> 45.46546436
B204: Labour - Patrol | G204: =IFERROR(SUM(F205:F206)/Opex_Inputs!$C$108,0) -> 1.487197207 | H204: =IFERROR(G204*Opex_Inputs!$C$98,0) -> 4.46159162 | M204: =IFERROR(SUM(L205:L206)/Opex_Inputs!$C$108,0) -> 1.500681285 | N204: =IFERROR(M204*Opex_Inputs!$C$98,0) -> 4.502043856 | S204: =IFERROR(SUM(R205:R206)/Opex_Inputs!$C$108,0) -> 1.517494852 | T204: =IFERROR(S204*Opex_Inputs!$C$98,0) -> 4.552484556 | Y204: =IFERROR(SUM(X205:X206)/Opex_Inputs!$C$108,0) -> 1.535090141 | Z204: =IFERROR(Y204*Opex_Inputs!$C$98,0) -> 4.605270422 | AE204: =IFERROR(SUM(AD205:AD206)/Opex_Inputs!$C$108,0) -> 1.551443656 | AF204: =IFERROR(AE204*Opex_Inputs!$C$98,0) -> 4.654330969
B205: Crew costs | C205: =IFERROR(Opex_Inputs!$C$13,0) -> 178.29875 | D205: =IFERROR(Opex_Inputs!$C$105,0) -> 2 | E205: =IFERROR(Opex_Inputs!$C$17,0) -> 8 | F205: =IFERROR(C205*D205*E205,0) -> 2852.78 | I205: =IFERROR(Opex_Inputs!$D$13,0) -> 179.9842598 | J205: =IFERROR(Opex_Inputs!$C$105,0) -> 2 | K205: =IFERROR(Opex_Inputs!$D$17,0) -> 8 | L205: =IFERROR(I205*J205*K205,0) -> 2879.748158 | O205: =IFERROR(Opex_Inputs!$E$13,0) -> 182.0859557 | P205: =IFERROR(Opex_Inputs!$C$105,0) -> 2 | Q205: =IFERROR(Opex_Inputs!$E$17,0) -> 8 | R205: =IFERROR(O205*P205*Q205,0) -> 2913.375291 | U205: =IFERROR(Opex_Inputs!$F$13,0) -> 184.2853668 | V205: =IFERROR(Opex_Inputs!$C$105,0) -> 2 | W205: =IFERROR(Opex_Inputs!$F$17,0) -> 8 | X205: =IFERROR(U205*V205*W205,0) -> 2948.565868 | AA205: =IFERROR(Opex_Inputs!$G$13,0) -> 186.3295562 | AB205: =IFERROR(Opex_Inputs!$C$105,0) -> 2 | AC205: =IFERROR(Opex_Inputs!$G$17,0) -> 8 | AD205: =IFERROR(AA205*AB205*AC205,0) -> 2981.2729
B206: Vehicle costs | C206: =IFERROR(Opex_Inputs!$C$16,0) -> 15.20180163 | D206: =IFERROR(Opex_Inputs!$C$20,0) -> 1 | E206: =IFERROR(E$187,0) -> 8 | F206: =IFERROR(C206*D206*E206,0) -> 121.614413 | I206: =IFERROR(Opex_Inputs!$D$16,0) -> 15.20180163 | J206: =IFERROR(Opex_Inputs!$C$20,0) -> 1 | K206: =IFERROR(K205,0) -> 8 | L206: =IFERROR(I206*J206*K206,0) -> 121.614413 | O206: =IFERROR(Opex_Inputs!$E$16,0) -> 15.20180163 | P206: =IFERROR(Opex_Inputs!$C$20,0) -> 1 | Q206: =IFERROR(Q205,0) -> 8 | R206: =IFERROR(O206*P206*Q206,0) -> 121.614413 | U206: =IFERROR(Opex_Inputs!$F$16,0) -> 15.20180163 | V206: =IFERROR(Opex_Inputs!$C$20,0) -> 1 | W206: =IFERROR(W205,0) -> 8 | X206: =IFERROR(U206*V206*W206,0) -> 121.614413 | AA206: =IFERROR(Opex_Inputs!$G$16,0) -> 15.20180163 | AB206: =IFERROR(Opex_Inputs!$C$20,0) -> 1 | AC206: =IFERROR(AC205,0) -> 8 | AD206: =IFERROR(AA206*AB206*AC206,0) -> 121.614413
B207: Labour - Repair of faults | G207: =IFERROR((F208+F209)/Opex_Inputs!$C$111*(D201+D202)/D201,0) -> 164.0245306 | H207: =IFERROR(G207/Opex_Inputs!$C$99,0) -> 0 | M207: =IFERROR((L208+L209)/Opex_Inputs!$C$111*(J201+J202)/J201,0) -> 165.188127 | N207: =IFERROR(M207/Opex_Inputs!$C$99,0) -> 0 | S207: =IFERROR((R208+R209)/Opex_Inputs!$C$111*(P201+P202)/P201,0) -> 166.6390387 | T207: =IFERROR(S207/Opex_Inputs!$C$99,0) -> 0 | Y207: =IFERROR((X208+X209)/Opex_Inputs!$C$111*(V201+V202)/V201,0) -> 168.1574083 | Z207: =IFERROR(Y207/Opex_Inputs!$C$99,0) -> 0 | AE207: =IFERROR((AD208+AD209)/Opex_Inputs!$C$111*(AB201+AB202)/AB201,0) -> 169.5686203 | AF207: =IFERROR(AE207/Opex_Inputs!$C$99,0) -> 0
B208: Crew costs | C208: =IFERROR(Opex_Inputs!$C$12,0) -> 118.1654827 | D208: =IFERROR(Opex_Inputs!$C$106,0) -> 2 | E208: =IFERROR(E$187,0) -> 8 | F208: =IFERROR(C208*D208*E208,0) -> 1890.647723 | I208: =IFERROR(Opex_Inputs!$D$12,0) -> 119.2825353 | J208: =IFERROR(Opex_Inputs!$C$106,0) -> 2 | K208: =IFERROR(K205,0) -> 8 | L208: =IFERROR(I208*J208*K208,0) -> 1908.520565 | O208: =IFERROR(Opex_Inputs!$E$12,0) -> 120.6754105 | P208: =IFERROR(Opex_Inputs!$C$106,0) -> 2 | Q208: =IFERROR(Q205,0) -> 8 | R208: =IFERROR(O208*P208*Q208,0) -> 1930.806568 | U208: =IFERROR(Opex_Inputs!$F$12,0) -> 122.1330454 | V208: =IFERROR(Opex_Inputs!$C$106,0) -> 2 | W208: =IFERROR(W205,0) -> 8 | X208: =IFERROR(U208*V208*W208,0) -> 1954.128726 | AA208: =IFERROR(Opex_Inputs!$G$12,0) -> 123.4878088 | AB208: =IFERROR(Opex_Inputs!$C$106,0) -> 2 | AC208: =IFERROR(AC205,0) -> 8 | AD208: =IFERROR(AA208*AB208*AC208,0) -> 1975.804941
B209: Elevated platform vehicle costs | C209: =IFERROR(Opex_Inputs!$C$15,0) -> 78.59613326 | D209: =IFERROR(Opex_Inputs!$C$20,0) -> 1 | E209: =IFERROR(E$187,0) -> 8 | F209: =IFERROR(C209*D209*E209,0) -> 628.7690661 | I209: =IFERROR(Opex_Inputs!$D$15,0) -> 78.59613326 | J209: =IFERROR(Opex_Inputs!$C$20,0) -> 1 | K209: =IFERROR(K205,0) -> 8 | L209: =IFERROR(I209*J209*K209,0) -> 628.7690661 | O209: =IFERROR(Opex_Inputs!$E$15,0) -> 78.59613326 | P209: =IFERROR(Opex_Inputs!$C$20,0) -> 1 | Q209: =IFERROR(Q205,0) -> 8 | R209: =IFERROR(O209*P209*Q209,0) -> 628.7690661 | U209: =IFERROR(Opex_Inputs!$F$15,0) -> 78.59613326 | V209: =IFERROR(Opex_Inputs!$C$20,0) -> 1 | W209: =IFERROR(W205,0) -> 8 | X209: =IFERROR(U209*V209*W209,0) -> 628.7690661 | AA209: =IFERROR(Opex_Inputs!$G$15,0) -> 78.59613326 | AB209: =IFERROR(Opex_Inputs!$C$20,0) -> 1 | AC209: =IFERROR(AC205,0) -> 8 | AD209: =IFERROR(AA209*AB209*AC209,0) -> 628.7690661
B210: Other Maintenance and Repair costs | H210: =IFERROR(H192,0) -> 2.408531973 | N210: =IFERROR(N192,0) -> 2.431300525 | T210: =IFERROR(T192,0) -> 2.459691087 | Z210: =IFERROR(Z192,0) -> 2.489401626 | AF210: =IFERROR(AF192,0) -> 2.517015367
B211: Overheads | C211: =IFERROR(Opex_Inputs!$C$18,0) -> 0.2402605656 | H211: =IFERROR(C211*(H200+H204+H207+H210),0) -> 1.65061978 | I211: =IFERROR(Opex_Inputs!$D$18,0) -> 0.2402605656 | N211: =IFERROR(I211*(N200+N204+N207+N210),0) -> 1.665809243 | O211: =IFERROR(Opex_Inputs!$E$18,0) -> 0.2402605656 | T211: =IFERROR(O211*(T200+T204+T207+T210),0) -> 1.684749286 | U211: =IFERROR(Opex_Inputs!$F$18,0) -> 0.2402605656 | Z211: =IFERROR(U211*(Z200+Z204+Z207+Z210),0) -> 1.704569919 | AA211: =IFERROR(Opex_Inputs!$G$18,0) -> 0.2402605656 | AF211: =IFERROR(AA211*(AF200+AF204+AF207+AF210),0) -> 1.722991727
H213: =IFERROR(SUM(H200,H204,H207,H210,H211),0) -> 8.520743373 | N213: =SUM(N200,N204,N207,N210,N211) -> 8.599153624 | T213: =SUM(T200,T204,T207,T210,T211) -> 8.696924928 | Z213: =SUM(Z200,Z204,Z207,Z210,Z211) -> 8.799241967 | AF213: =SUM(AF200,AF204,AF207,AF210,AF211) -> 8.894338063
B215: =IFERROR(Opex_Inputs!$B$97&" detailed cost build-up - remote",0) -> S-HP 250 inputs detailed cost build-up - remote | C215: Unit rate | D215: Number | E215: Hours | F215: Cost | G215: Annualised | H215: Annualised | I215: Unit rate | J215: Number | K215: Hours | L215: Cost | M215: Annualised | N215: Annualised | O215: Unit rate | P215: Number | Q215: Hours | R215: Cost | S215: Annualised | T215: Annualised | U215: Unit rate | V215: Number | W215: Hours | X215: Cost | Y215: Annualised | Z215: Annualised | AA215: Unit rate | AB215: Number | AC215: Hours | AD215: Cost | AE215: Annualised | AF215: Annualised
G216: cost | H216: unit cost | M216: cost | N216: unit cost | S216: cost | T216: unit cost | Y216: cost | Z216: unit cost | AE216: cost | AF216: unit cost
B217: Patrols and repairs
B218: Materials | G218: =IFERROR(SUM(F219:F221)/D219,0) -> 12.1378879 | H218: =IFERROR(G218/Opex_Inputs!$C$99,0) -> 0 | M218: =IFERROR(SUM(L219:L221)/J219,0) -> 12.1378879 | N218: =IFERROR(M218/Opex_Inputs!$C$99,0) -> 0 | S218: =IFERROR(SUM(R219:R221)/P219,0) -> 12.1378879 | T218: =IFERROR(S218/Opex_Inputs!$C$99,0) -> 0 | Y218: =IFERROR(SUM(X219:X221)/V219,0) -> 12.1378879 | Z218: =IFERROR(Y218/Opex_Inputs!$C$99,0) -> 0 | AE218: =IFERROR(SUM(AD219:AD221)/AB219,0) -> 12.1378879 | AF218: =IFERROR(AE218/Opex_Inputs!$C$99,0) -> 0
B219: Lamp | C219: =IFERROR(C183*(1+Opex_Inputs!$C$19),0) -> 9.177896732 | D219: =IFERROR(Opex_Inputs!$C$112,0) -> 11.52 | F219: =IFERROR(C219*D219,0) -> 105.7293704 | I219: =IFERROR(I183*(1+Opex_Inputs!$C$19),0) -> 9.177896732 | J219: =IFERROR(Opex_Inputs!$C$112,0) -> 11.52 | L219: =IFERROR(I219*J219,0) -> 105.7293704 | O219: =IFERROR(O183*(1+Opex_Inputs!$C$19),0) -> 9.177896732 | P219: =IFERROR(Opex_Inputs!$C$112,0) -> 11.52 | R219: =IFERROR(O219*P219,0) -> 105.7293704 | U219: =IFERROR(U183*(1+Opex_Inputs!$C$19),0) -> 9.177896732 | V219: =IFERROR(Opex_Inputs!$C$112,0) -> 11.52 | X219: =IFERROR(U219*V219,0) -> 105.7293704 | AA219: =IFERROR(AA183*(1+Opex_Inputs!$C$19),0) -> 9.177896732 | AB219: =IFERROR(Opex_Inputs!$C$112,0) -> 11.52 | AD219: =IFERROR(AA219*AB219,0) -> 105.7293704
B220: PE cell | C220: =IFERROR(C184*(1+Opex_Inputs!$C$19),0) -> 13.06715147 | D220: =IFERROR(D219*Opex_Inputs!$C$99/Opex_Inputs!$C$100,0) -> 0 | F220: =IFERROR(C220*D220,0) -> 0 | I220: =IFERROR(I184*(1+Opex_Inputs!$C$19),0) -> 13.06715147 | J220: =IFERROR(J219*Opex_Inputs!$C$99/Opex_Inputs!$C$100,0) -> 0 | L220: =IFERROR(I220*J220,0) -> 0 | O220: =IFERROR(O184*(1+Opex_Inputs!$C$19),0) -> 13.06715147 | P220: =IFERROR(P219*Opex_Inputs!$C$99/Opex_Inputs!$C$100,0) -> 0 | R220: =IFERROR(O220*P220,0) -> 0 | U220: =IFERROR(U184*(1+Opex_Inputs!$C$19),0) -> 13.06715147 | V220: =IFERROR(V219*Opex_Inputs!$C$99/Opex_Inputs!$C$100,0) -> 0 | X220: =IFERROR(U220*V220,0) -> 0 | AA220: =IFERROR(AA184*(1+Opex_Inputs!$C$19),0) -> 13.06715147 | AB220: =IFERROR(AB219*Opex_Inputs!$C$99/Opex_Inputs!$C$100,0) -> 0 | AD220: =IFERROR(AA220*AB220,0) -> 0
B221: Miscellaneous | C221: =IFERROR(C185*(1+Opex_Inputs!$C$19),0) -> 2.959991169 | D221: =IFERROR(Opex_Inputs!$C$112,0) -> 11.52 | F221: =IFERROR(C221*D221,0) -> 34.09909827 | I221: =IFERROR(I185*(1+Opex_Inputs!$C$19),0) -> 2.959991169 | J221: =IFERROR(Opex_Inputs!$C$112,0) -> 11.52 | L221: =IFERROR(I221*J221,0) -> 34.09909827 | O221: =IFERROR(O185*(1+Opex_Inputs!$C$19),0) -> 2.959991169 | P221: =IFERROR(Opex_Inputs!$C$112,0) -> 11.52 | R221: =IFERROR(O221*P221,0) -> 34.09909827 | U221: =IFERROR(U185*(1+Opex_Inputs!$C$19),0) -> 2.959991169 | V221: =IFERROR(Opex_Inputs!$C$112,0) -> 11.52 | X221: =IFERROR(U221*V221,0) -> 34.09909827 | AA221: =IFERROR(AA185*(1+Opex_Inputs!$C$19),0) -> 2.959991169 | AB221: =IFERROR(Opex_Inputs!$C$112,0) -> 11.52 | AD221: =IFERROR(AA221*AB221,0) -> 34.09909827
B222: Labour - Patrol | G222: =IFERROR(SUM(F223:F224)/Opex_Inputs!$C$109,0) -> 2.974394413 | H222: =IFERROR(G222*Opex_Inputs!$C$98,0) -> 8.923183239 | M222: =IFERROR(SUM(L223:L224)/Opex_Inputs!$C$109,0) -> 3.001362571 | N222: =IFERROR(M222*Opex_Inputs!$C$98,0) -> 9.004087712 | S222: =IFERROR(SUM(R223:R224)/Opex_Inputs!$C$109,0) -> 3.034989704 | T222: =IFERROR(S222*Opex_Inputs!$C$98,0) -> 9.104969111 | Y222: =IFERROR(SUM(X223:X224)/Opex_Inputs!$C$109,0) -> 3.070180281 | Z222: =IFERROR(Y222*Opex_Inputs!$C$98,0) -> 9.210540844 | AE222: =IFERROR(SUM(AD223:AD224)/Opex_Inputs!$C$109,0) -> 3.102887313 | AF222: =IFERROR(AE222*Opex_Inputs!$C$98,0) -> 9.308661938
B223: Crew costs | C223: =IFERROR(Opex_Inputs!$C$13,0) -> 178.29875 | D223: =IFERROR(Opex_Inputs!$C$105,0) -> 2 | E223: =IFERROR(Opex_Inputs!$C$17,0) -> 8 | F223: =IFERROR(C223*D223*E223,0) -> 2852.78 | I223: =IFERROR(Opex_Inputs!$D$13,0) -> 179.9842598 | J223: =IFERROR(Opex_Inputs!$C$105,0) -> 2 | K223: =IFERROR(Opex_Inputs!$D$17,0) -> 8 | L223: =IFERROR(I223*J223*K223,0) -> 2879.748158 | O223: =IFERROR(Opex_Inputs!$E$13,0) -> 182.0859557 | P223: =IFERROR(Opex_Inputs!$C$105,0) -> 2 | Q223: =IFERROR(Opex_Inputs!$E$17,0) -> 8 | R223: =IFERROR(O223*P223*Q223,0) -> 2913.375291 | U223: =IFERROR(Opex_Inputs!$F$13,0) -> 184.2853668 | V223: =IFERROR(Opex_Inputs!$C$105,0) -> 2 | W223: =IFERROR(Opex_Inputs!$F$17,0) -> 8 | X223: =IFERROR(U223*V223*W223,0) -> 2948.565868 | AA223: =IFERROR(Opex_Inputs!$G$13,0) -> 186.3295562 | AB223: =IFERROR(Opex_Inputs!$C$105,0) -> 2 | AC223: =IFERROR(Opex_Inputs!$G$17,0) -> 8 | AD223: =IFERROR(AA223*AB223*AC223,0) -> 2981.2729
B224: Vehicle costs | C224: =IFERROR(Opex_Inputs!$C$16,0) -> 15.20180163 | D224: =IFERROR(Opex_Inputs!$C$20,0) -> 1 | E224: =IFERROR(E$223,0) -> 8 | F224: =IFERROR(C224*D224*E224,0) -> 121.614413 | I224: =IFERROR(Opex_Inputs!$D$16,0) -> 15.20180163 | J224: =IFERROR(Opex_Inputs!$C$20,0) -> 1 | K224: =IFERROR(K223,0) -> 8 | L224: =IFERROR(I224*J224*K224,0) -> 121.614413 | O224: =IFERROR(Opex_Inputs!$E$16,0) -> 15.20180163 | P224: =IFERROR(Opex_Inputs!$C$20,0) -> 1 | Q224: =IFERROR(Q223,0) -> 8 | R224: =IFERROR(O224*P224*Q224,0) -> 121.614413 | U224: =IFERROR(Opex_Inputs!$F$16,0) -> 15.20180163 | V224: =IFERROR(Opex_Inputs!$C$20,0) -> 1 | W224: =IFERROR(W223,0) -> 8 | X224: =IFERROR(U224*V224*W224,0) -> 121.614413 | AA224: =IFERROR(Opex_Inputs!$G$16,0) -> 15.20180163 | AB224: =IFERROR(Opex_Inputs!$C$20,0) -> 1 | AC224: =IFERROR(AC223,0) -> 8 | AD224: =IFERROR(AA224*AB224*AC224,0) -> 121.614413
B225: Labour - Repair of faults | G225: =IFERROR((F226+F227)/Opex_Inputs!$C$112*(D219+D220)/D219,0) -> 218.6993741 | H225: =IFERROR(G225/Opex_Inputs!$C$99,0) -> 0 | M225: =IFERROR((L226+L227)/Opex_Inputs!$C$112*(J219+J220)/J219,0) -> 220.2508361 | N225: =IFERROR(M225/Opex_Inputs!$C$99,0) -> 0 | S225: =IFERROR((R226+R227)/Opex_Inputs!$C$112*(P219+P220)/P219,0) -> 222.1853849 | T225: =IFERROR(S225/Opex_Inputs!$C$99,0) -> 0 | Y225: =IFERROR((X226+X227)/Opex_Inputs!$C$112*(V219+V220)/V219,0) -> 224.2098778 | Z225: =IFERROR(Y225/Opex_Inputs!$C$99,0) -> 0 | AE225: =IFERROR((AD226+AD227)/Opex_Inputs!$C$112*(AB219+AB220)/AB219,0) -> 226.0914937 | AF225: =IFERROR(AE225/Opex_Inputs!$C$99,0) -> 0
B226: Crew costs | C226: =IFERROR(Opex_Inputs!$C$12,0) -> 118.1654827 | D226: =IFERROR(Opex_Inputs!$C$106,0) -> 2 | E226: =IFERROR(E$223,0) -> 8 | F226: =IFERROR(C226*D226*E226,0) -> 1890.647723 | I226: =IFERROR(Opex_Inputs!$D$12,0) -> 119.2825353 | J226: =IFERROR(Opex_Inputs!$C$106,0) -> 2 | K226: =IFERROR(K223,0) -> 8 | L226: =IFERROR(I226*J226*K226,0) -> 1908.520565 | O226: =IFERROR(Opex_Inputs!$E$12,0) -> 120.6754105 | P226: =IFERROR(Opex_Inputs!$C$106,0) -> 2 | Q226: =IFERROR(Q223,0) -> 8 | R226: =IFERROR(O226*P226*Q226,0) -> 1930.806568 | U226: =IFERROR(Opex_Inputs!$F$12,0) -> 122.1330454 | V226: =IFERROR(Opex_Inputs!$C$106,0) -> 2 | W226: =IFERROR(W223,0) -> 8 | X226: =IFERROR(U226*V226*W226,0) -> 1954.128726 | AA226: =IFERROR(Opex_Inputs!$G$12,0) -> 123.4878088 | AB226: =IFERROR(Opex_Inputs!$C$106,0) -> 2 | AC226: =IFERROR(AC223,0) -> 8 | AD226: =IFERROR(AA226*AB226*AC226,0) -> 1975.804941
B227: Elevated platform vehicle costs | C227: =IFERROR(Opex_Inputs!$C$15,0) -> 78.59613326 | D227: =IFERROR(Opex_Inputs!$C$20,0) -> 1 | E227: =IFERROR(E$223,0) -> 8 | F227: =IFERROR(C227*D227*E227,0) -> 628.7690661 | I227: =IFERROR(Opex_Inputs!$D$15,0) -> 78.59613326 | J227: =IFERROR(Opex_Inputs!$C$20,0) -> 1 | K227: =IFERROR(K223,0) -> 8 | L227: =IFERROR(I227*J227*K227,0) -> 628.7690661 | O227: =IFERROR(Opex_Inputs!$E$15,0) -> 78.59613326 | P227: =IFERROR(Opex_Inputs!$C$20,0) -> 1 | Q227: =IFERROR(Q223,0) -> 8 | R227: =IFERROR(O227*P227*Q227,0) -> 628.7690661 | U227: =IFERROR(Opex_Inputs!$F$15,0) -> 78.59613326 | V227: =IFERROR(Opex_Inputs!$C$20,0) -> 1 | W227: =IFERROR(W223,0) -> 8 | X227: =IFERROR(U227*V227*W227,0) -> 628.7690661 | AA227: =IFERROR(Opex_Inputs!$G$15,0) -> 78.59613326 | AB227: =IFERROR(Opex_Inputs!$C$20,0) -> 1 | AC227: =IFERROR(AC223,0) -> 8 | AD227: =IFERROR(AA227*AB227*AC227,0) -> 628.7690661
B228: Other Maintenance and Repair costs | H228: =IFERROR(H210,0) -> 2.408531973 | N228: =IFERROR(N210,0) -> 2.431300525 | T228: =IFERROR(T210,0) -> 2.459691087 | Z228: =IFERROR(Z210,0) -> 2.489401626 | AF228: =IFERROR(AF210,0) -> 2.517015367
B229: Overheads | C229: =IFERROR(Opex_Inputs!$C$18,0) -> 0.2402605656 | H229: =IFERROR(C229*(H218+H222+H225+H228),0) -> 2.722564306 | I229: =IFERROR(Opex_Inputs!$D$18,0) -> 0.2402605656 | N229: =IFERROR(I229*(N218+N222+N225+N228),0) -> 2.747472846 | O229: =IFERROR(Opex_Inputs!$E$18,0) -> 0.2402605656 | T229: =IFERROR(O229*(T218+T222+T225+T228),0) -> 2.7785318 | U229: =IFERROR(Opex_Inputs!$F$18,0) -> 0.2402605656 | Z229: =IFERROR(U229*(Z218+Z222+Z225+Z228),0) -> 2.811034796 | AA229: =IFERROR(Opex_Inputs!$G$18,0) -> 0.2402605656 | AF229: =IFERROR(AA229*(AF218+AF222+AF225+AF228),0) -> 2.841243918
H231: =IFERROR(SUM(H218,H222,H225,H228,H229),0) -> 14.05427952 | N231: =SUM(N218,N222,N225,N228,N229) -> 14.18286108 | T231: =SUM(T218,T222,T225,T228,T229) -> 14.343192 | Z231: =SUM(Z218,Z222,Z225,Z228,Z229) -> 14.51097727 | AF231: =SUM(AF218,AF222,AF225,AF228,AF229) -> 14.66692122
... 280 more rows

Sheet Opex_Outputs
B2: =IFERROR(General_inputs!$C$5&" public lighting opex outputs",0) -> Powercor public lighting opex outputs
B3: =IFERROR("($m Real "&General_inputs!$C$9&")",0) -> ($m Real 2025-26)
B5: Total opex | C5: =PTRM_Inputs!D$12 -> 2026-27 | D5: =PTRM_Inputs!E$12 -> 2027-28 | E5: =PTRM_Inputs!F$12 -> 2028-29 | F5: =PTRM_Inputs!G$12 -> 2029-30 | G5: =PTRM_Inputs!H$12 -> 2030-31
B6: Total opex | C6: =IFERROR(SUMIFS(Opex_Outputs!C$9:C$163,$B$9:$B$163,"Opex")/10^6,0) -> 7.205783601 | D6: =IFERROR(SUMIFS(Opex_Outputs!D$9:D$163,$B$9:$B$163,"Opex")/10^6,0) -> 7.3581588 | E6: =IFERROR(SUMIFS(Opex_Outputs!E$9:E$163,$B$9:$B$163,"Opex")/10^6,0) -> 7.520255534 | F6: =IFERROR(SUMIFS(Opex_Outputs!F$9:F$163,$B$9:$B$163,"Opex")/10^6,0) -> 7.691342026 | G6: =IFERROR(SUMIFS(Opex_Outputs!G$9:G$163,$B$9:$B$163,"Opex")/10^6,0) -> 7.880286277
B8: Build-up
B9: =IFERROR(Opex_Calcs!$B$7&" outputs",0) -> MV80 outputs | C9: =PTRM_Inputs!D$12 -> 2026-27 | D9: =PTRM_Inputs!E$12 -> 2027-28 | E9: =PTRM_Inputs!F$12 -> 2028-29 | F9: =PTRM_Inputs!G$12 -> 2029-30 | G9: =PTRM_Inputs!H$12 -> 2030-31
B10: Unit cost | C10: =IFERROR(Opex_Calcs!C14,0) -> 18.89605386 | D10: =IFERROR(Opex_Calcs!D14,0) -> 19.10602838 | E10: =IFERROR(Opex_Calcs!E14,0) -> 19.34389948 | F10: =IFERROR(Opex_Calcs!F14,0) -> 19.57988123 | G10: =IFERROR(Opex_Calcs!G14,0) -> 19.79030079
B11: Volumes | C11: =IFERROR(INDEX(Quantity!D$7:D$32,MATCH(INDEX(Quantity!$B$7:$B$32,MATCH(LEFT($B9,FIND("outputs",$B9)-2),Quantity!$K$7:$K$32,0),0),Quantity!$B$7:$B$32,0)),0) -> 0 | D11: =IFERROR(INDEX(Quantity!E$7:E$32,MATCH(INDEX(Quantity!$B$7:$B$32,MATCH(LEFT($B9,FIND("outputs",$B9)-2),Quantity!$K$7:$K$32,0),0),Quantity!$B$7:$B$32,0)),0) -> 0 | E11: =IFERROR(INDEX(Quantity!F$7:F$32,MATCH(INDEX(Quantity!$B$7:$B$32,MATCH(LEFT($B9,FIND("outputs",$B9)-2),Quantity!$K$7:$K$32,0),0),Quantity!$B$7:$B$32,0)),0) -> 0 | F11: =IFERROR(INDEX(Quantity!G$7:G$32,MATCH(INDEX(Quantity!$B$7:$B$32,MATCH(LEFT($B9,FIND("outputs",$B9)-2),Quantity!$K$7:$K$32,0),0),Quantity!$B$7:$B$32,0)),0) -> 0 | G11: =IFERROR(INDEX(Quantity!H$7:H$32,MATCH(INDEX(Quantity!$B$7:$B$32,MATCH(LEFT($B9,FIND("outputs",$B9)-2),Quantity!$K$7:$K$32,0),0),Quantity!$B$7:$B$32,0)),0) -> 0
B12: Opex | C12: =IFERROR(C10*C11,0) -> 0 | D12: =IFERROR(D10*D11,0) -> 0 | E12: =IFERROR(E10*E11,0) -> 0 | F12: =IFERROR(F10*F11,0) -> 0 | G12: =IFERROR(G10*G11,0) -> 0
B14: =IFERROR(Opex_Calcs!$B$93&" outputs",0) -> S-HP 150 outputs | C14: =PTRM_Inputs!D$12 -> 2026-27 | D14: =PTRM_Inputs!E$12 -> 2027-28 | E14: =PTRM_Inputs!F$12 -> 2028-29 | F14: =PTRM_Inputs!G$12 -> 2029-30 | G14: =PTRM_Inputs!H$12 -> 2030-31
B15: Unit cost | C15: =IFERROR(Opex_Calcs!C100,0) -> 11.54359136 | D15: =IFERROR(Opex_Calcs!D100,0) -> 11.76655321 | E15: =IFERROR(Opex_Calcs!E100,0) -> 12.02061847 | F15: =IFERROR(Opex_Calcs!F100,0) -> 12.2735473 | G15: =IFERROR(Opex_Calcs!G100,0) -> 12.49971793
B16: Volumes | C16: =IFERROR(INDEX(Quantity!D$7:D$32,MATCH(INDEX(Quantity!$B$7:$B$32,MATCH(LEFT($B14,FIND("outputs",$B14)-2),Quantity!$K$7:$K$32,0),0),Quantity!$B$7:$B$32,0)),0) -> 8610 | D16: =IFERROR(INDEX(Quantity!E$7:E$32,MATCH(INDEX(Quantity!$B$7:$B$32,MATCH(LEFT($B14,FIND("outputs",$B14)-2),Quantity!$K$7:$K$32,0),0),Quantity!$B$7:$B$32,0)),0) -> 6610 | E16: =IFERROR(INDEX(Quantity!F$7:F$32,MATCH(INDEX(Quantity!$B$7:$B$32,MATCH(LEFT($B14,FIND("outputs",$B14)-2),Quantity!$K$7:$K$32,0),0),Quantity!$B$7:$B$32,0)),0) -> 4610 | F16: =IFERROR(INDEX(Quantity!G$7:G$32,MATCH(INDEX(Quantity!$B$7:$B$32,MATCH(LEFT($B14,FIND("outputs",$B14)-2),Quantity!$K$7:$K$32,0),0),Quantity!$B$7:$B$32,0)),0) -> 2610 | G16: =IFERROR(INDEX(Quantity!H$7:H$32,MATCH(INDEX(Quantity!$B$7:$B$32,MATCH(LEFT($B14,FIND("outputs",$B14)-2),Quantity!$K$7:$K$32,0),0),Quantity!$B$7:$B$32,0)),0) -> 610
B17: Opex | C17: =IFERROR(C15*C16,0) -> 99390.32161 | D17: =IFERROR(D15*D16,0) -> 77776.9167 | E17: =IFERROR(E15*E16,0) -> 55415.05115 | F17: =IFERROR(F15*F16,0) -> 32033.95847 | G17: =IFERROR(G15*G16,0) -> 7624.827937
B19: =IFERROR(Opex_Calcs!$B$164&" outputs",0) -> S-HP 250 outputs | C19: =PTRM_Inputs!D$12 -> 2026-27 | D19: =PTRM_Inputs!E$12 -> 2027-28 | E19: =PTRM_Inputs!F$12 -> 2028-29 | F19: =PTRM_Inputs!G$12 -> 2029-30 | G19: =PTRM_Inputs!H$12 -> 2030-31
B20: Unit cost | C20: =IFERROR(Opex_Calcs!C171,0) -> 11.51470645 | D20: =IFERROR(Opex_Calcs!D171,0) -> 11.73739524 | E20: =IFERROR(Opex_Calcs!E171,0) -> 11.99112002 | F20: =IFERROR(Opex_Calcs!F171,0) -> 12.24369255 | G20: =IFERROR(Opex_Calcs!G171,0) -> 12.46953201
B21: Volumes | C21: =IFERROR(INDEX(Quantity!D$7:D$32,MATCH(INDEX(Quantity!$B$7:$B$32,MATCH(LEFT($B19,FIND("outputs",$B19)-2),Quantity!$K$7:$K$32,0),0),Quantity!$B$7:$B$32,0)),0) -> 5406 | D21: =IFERROR(INDEX(Quantity!E$7:E$32,MATCH(INDEX(Quantity!$B$7:$B$32,MATCH(LEFT($B19,FIND("outputs",$B19)-2),Quantity!$K$7:$K$32,0),0),Quantity!$B$7:$B$32,0)),0) -> 4206 | E21: =IFERROR(INDEX(Quantity!F$7:F$32,MATCH(INDEX(Quantity!$B$7:$B$32,MATCH(LEFT($B19,FIND("outputs",$B19)-2),Quantity!$K$7:$K$32,0),0),Quantity!$B$7:$B$32,0)),0) -> 3006 | F21: =IFERROR(INDEX(Quantity!G$7:G$32,MATCH(INDEX(Quantity!$B$7:$B$32,MATCH(LEFT($B19,FIND("outputs",$B19)-2),Quantity!$K$7:$K$32,0),0),Quantity!$B$7:$B$32,0)),0) -> 1806 | G21: =IFERROR(INDEX(Quantity!H$7:H$32,MATCH(INDEX(Quantity!$B$7:$B$32,MATCH(LEFT($B19,FIND("outputs",$B19)-2),Quantity!$K$7:$K$32,0),0),Quantity!$B$7:$B$32,0)),0) -> 606
B22: Opex | C22: =IFERROR(C20*C21,0) -> 62248.50308 | D22: =IFERROR(D20*D21,0) -> 49367.48439 | E22: =IFERROR(E20*E21,0) -> 36045.30679 | F22: =IFERROR(F20*F21,0) -> 22112.10874 | G22: =IFERROR(G20*G21,0) -> 7556.536397
B24: =IFERROR(Opex_Calcs!$B$235&" outputs",0) -> T5 (2 x 14W) outputs | C24: =PTRM_Inputs!D$12 -> 2026-27 | D24: =PTRM_Inputs!E$12 -> 2027-28 | E24: =PTRM_Inputs!F$12 -> 2028-29 | F24: =PTRM_Inputs!G$12 -> 2029-30 | G24: =PTRM_Inputs!H$12 -> 2030-31
B25: Unit cost | C25: =IFERROR(Opex_Calcs!C242,0) -> 25.18401105 | D25: =IFERROR(Opex_Calcs!D242,0) -> 25.45699966 | E25: =IFERROR(Opex_Calcs!E242,0) -> 25.77344428 | F25: =IFERROR(Opex_Calcs!F242,0) -> 26.09165272 | G25: =IFERROR(Opex_Calcs!G242,0) -> 26.37849589
B26: Volumes | C26: =IFERROR(INDEX(Quantity!D$7:D$32,MATCH(INDEX(Quantity!$B$7:$B$32,MATCH(LEFT($B24,FIND("outputs",$B24)-2),Quantity!$K$7:$K$32,0),0),Quantity!$B$7:$B$32,0)),0) -> 6886 | D26: =IFERROR(INDEX(Quantity!E$7:E$32,MATCH(INDEX(Quantity!$B$7:$B$32,MATCH(LEFT($B24,FIND("outputs",$B24)-2),Quantity!$K$7:$K$32,0),0),Quantity!$B$7:$B$32,0)),0) -> 4886 | E26: =IFERROR(INDEX(Quantity!F$7:F$32,MATCH(INDEX(Quantity!$B$7:$B$32,MATCH(LEFT($B24,FIND("outputs",$B24)-2),Quantity!$K$7:$K$32,0),0),Quantity!$B$7:$B$32,0)),0) -> 2886 | F26: =IFERROR(INDEX(Quantity!G$7:G$32,MATCH(INDEX(Quantity!$B$7:$B$32,MATCH(LEFT($B24,FIND("outputs",$B24)-2),Quantity!$K$7:$K$32,0),0),Quantity!$B$7:$B$32,0)),0) -> 0 | G26: =IFERROR(INDEX(Quantity!H$7:H$32,MATCH(INDEX(Quantity!$B$7:$B$32,MATCH(LEFT($B24,FIND("outputs",$B24)-2),Quantity!$K$7:$K$32,0),0),Quantity!$B$7:$B$32,0)),0) -> 0
B27: Opex | C27: =IFERROR(C25*C26,0) -> 173417.1001 | D27: =IFERROR(D25*D26,0) -> 124382.9003 | E27: =IFERROR(E25*E26,0) -> 74382.1602 | F27: =IFERROR(F25*F26,0) -> 0 | G27: =IFERROR(G25*G26,0) -> 0
B29: =IFERROR(Opex_Calcs!$B$321&" outputs",0) -> LED P outputs | C29: =PTRM_Inputs!D$12 -> 2026-27 | D29: =PTRM_Inputs!E$12 -> 2027-28 | E29: =PTRM_Inputs!F$12 -> 2028-29 | F29: =PTRM_Inputs!G$12 -> 2029-30 | G29: =PTRM_Inputs!H$12 -> 2030-31
B30: Unit cost | C30: =IFERROR(Opex_Calcs!C328,0) -> 11.7436802 | D30: =IFERROR(Opex_Calcs!D328,0) -> 11.94063599 | E30: =IFERROR(Opex_Calcs!E328,0) -> 12.16227378 | F30: =IFERROR(Opex_Calcs!F328,0) -> 12.38126747 | G30: =IFERROR(Opex_Calcs!G328,0) -> 12.5758979
B31: Volumes | C31: =IFERROR(INDEX(Quantity!D$7:D$32,MATCH(INDEX(Quantity!$B$7:$B$32,MATCH(LEFT($B29,FIND("outputs",$B29)-2),Quantity!$K$7:$K$32,0),0),Quantity!$B$7:$B$32,0)),0) -> 134143.839 | D31: =IFERROR(INDEX(Quantity!E$7:E$32,MATCH(INDEX(Quantity!$B$7:$B$32,MATCH(LEFT($B29,FIND("outputs",$B29)-2),Quantity!$K$7:$K$32,0),0),Quantity!$B$7:$B$32,0)),0) -> 141849.4148 | E31: =IFERROR(INDEX(Quantity!F$7:F$32,MATCH(INDEX(Quantity!$B$7:$B$32,MATCH(LEFT($B29,FIND("outputs",$B29)-2),Quantity!$K$7:$K$32,0),0),Quantity!$B$7:$B$32,0)),0) -> 149613.3257 | F31: =IFERROR(INDEX(Quantity!G$7:G$32,MATCH(INDEX(Quantity!$B$7:$B$32,MATCH(LEFT($B29,FIND("outputs",$B29)-2),Quantity!$K$7:$K$32,0),0),Quantity!$B$7:$B$32,0)),0) -> 158164.7269 | G31: =IFERROR(INDEX(Quantity!H$7:H$32,MATCH(INDEX(Quantity!$B$7:$B$32,MATCH(LEFT($B29,FIND("outputs",$B29)-2),Quantity!$K$7:$K$32,0),0),Quantity!$B$7:$B$32,0)),0) -> 163762.9827
B32: Opex | C32: =IFERROR(C30*C31,0) -> 1575342.346 | D32: =IFERROR(D30*D31,0) -> 1693772.227 | E32: =IFERROR(E30*E31,0) -> 1819638.228 | F32: =IFERROR(F30*F31,0) -> 1958279.788 | G32: =IFERROR(G30*G31,0) -> 2059466.551
B34: =IFERROR(Quantity!K26&" outputs",0) -> LED P Lamps outputs | C34: =PTRM_Inputs!D$12 -> 2026-27 | D34: =PTRM_Inputs!E$12 -> 2027-28 | E34: =PTRM_Inputs!F$12 -> 2028-29 | F34: =PTRM_Inputs!G$12 -> 2029-30 | G34: =PTRM_Inputs!H$12 -> 2030-31
B35: Unit cost | C35: =Opex_Calcs!C476 -> 51.3734166 | D35: =Opex_Calcs!D476 -> 51.97592605 | E35: =Opex_Calcs!E476 -> 52.39752395 | F35: =Opex_Calcs!F476 -> 52.82577461 | G35: =Opex_Calcs!G476 -> 53.21489386
B36: Volumes | C36: =IFERROR(INDEX(Quantity!D$7:D$32,MATCH(INDEX(Quantity!$B$7:$B$32,MATCH(LEFT($B34,FIND("outputs",$B34)-2),Quantity!$K$7:$K$32,0),0),Quantity!$B$7:$B$32,0)),0) -> 15608.25 | D36: =IFERROR(INDEX(Quantity!E$7:E$32,MATCH(INDEX(Quantity!$B$7:$B$32,MATCH(LEFT($B34,FIND("outputs",$B34)-2),Quantity!$K$7:$K$32,0),0),Quantity!$B$7:$B$32,0)),0) -> 14790.6 | E36: =IFERROR(INDEX(Quantity!F$7:F$32,MATCH(INDEX(Quantity!$B$7:$B$32,MATCH(LEFT($B34,FIND("outputs",$B34)-2),Quantity!$K$7:$K$32,0),0),Quantity!$B$7:$B$32,0)),0) -> 13311.54 | F36: =IFERROR(INDEX(Quantity!G$7:G$32,MATCH(INDEX(Quantity!$B$7:$B$32,MATCH(LEFT($B34,FIND("outputs",$B34)-2),Quantity!$K$7:$K$32,0),0),Quantity!$B$7:$B$32,0)),0) -> 11980.386 | G36: =IFERROR(INDEX(Quantity!H$7:H$32,MATCH(INDEX(Quantity!$B$7:$B$32,MATCH(LEFT($B34,FIND("outputs",$B34)-2),Quantity!$K$7:$K$32,0),0),Quantity!$B$7:$B$32,0)),0) -> 10782.3474
B37: Opex | C37: =IFERROR(C35*C36,0) -> 801849.1297 | D37: =IFERROR(D35*D36,0) -> 768755.1318 | E37: =IFERROR(E35*E36,0) -> 697491.7359 | F37: =IFERROR(F35*F36,0) -> 632873.1706 | G37: =IFERROR(G35*G36,0) -> 573781.4725
B39: =IFERROR(Opex_Calcs!$B$401&" outputs",0) -> LED V L1 outputs | C39: =PTRM_Inputs!D$12 -> 2026-27 | D39: =PTRM_Inputs!E$12 -> 2027-28 | E39: =PTRM_Inputs!F$12 -> 2028-29 | F39: =PTRM_Inputs!G$12 -> 2029-30 | G39: =PTRM_Inputs!H$12 -> 2030-31
B40: Unit cost | C40: =IFERROR(Opex_Calcs!C408,0) -> 39.56287374 | D40: =IFERROR(Opex_Calcs!D408,0) -> 39.87864548 | E40: =IFERROR(Opex_Calcs!E408,0) -> 40.24843725 | F40: =IFERROR(Opex_Calcs!F408,0) -> 40.62247312 | G40: =IFERROR(Opex_Calcs!G408,0) -> 40.96120376
B41: Volumes | C41: =IFERROR(INDEX(Quantity!D$7:D$32,MATCH(INDEX(Quantity!$B$7:$B$32,MATCH(LEFT($B39,FIND("outputs",$B39)-2),Quantity!$K$7:$K$32,0),0),Quantity!$B$7:$B$32,0)),0) -> 33087.83002 | D41: =IFERROR(INDEX(Quantity!E$7:E$32,MATCH(INDEX(Quantity!$B$7:$B$32,MATCH(LEFT($B39,FIND("outputs",$B39)-2),Quantity!$K$7:$K$32,0),0),Quantity!$B$7:$B$32,0)),0) -> 35948.72292 | E41: =IFERROR(INDEX(Quantity!F$7:F$32,MATCH(INDEX(Quantity!$B$7:$B$32,MATCH(LEFT($B39,FIND("outputs",$B39)-2),Quantity!$K$7:$K$32,0),0),Quantity!$B$7:$B$32,0)),0) -> 38700.56605 | F41: =IFERROR(INDEX(Quantity!G$7:G$32,MATCH(INDEX(Quantity!$B$7:$B$32,MATCH(LEFT($B39,FIND("outputs",$B39)-2),Quantity!$K$7:$K$32,0),0),Quantity!$B$7:$B$32,0)),0) -> 41473.33824 | G41: =IFERROR(INDEX(Quantity!H$7:H$32,MATCH(INDEX(Quantity!$B$7:$B$32,MATCH(LEFT($B39,FIND("outputs",$B39)-2),Quantity!$K$7:$K$32,0),0),Quantity!$B$7:$B$32,0)),0) -> 44310.25752
B42: Opex | C42: =IFERROR(C40*C41,0) -> 1309049.641 | D42: =IFERROR(D40*D41,0) -> 1433586.377 | E42: =IFERROR(E40*E41,0) -> 1557637.304 | F42: =IFERROR(F40*F41,0) -> 1684749.568 | G42: =IFERROR(G40*G41,0) -> 1815001.487
B44: Scaled
B45: =IFERROR(Quantity!K8&" outputs",0) -> S-HP 70 outputs | C45: =PTRM_Inputs!D$12 -> 2026-27 | D45: =PTRM_Inputs!E$12 -> 2027-28 | E45: =PTRM_Inputs!F$12 -> 2028-29 | F45: =PTRM_Inputs!G$12 -> 2029-30 | G45: =PTRM_Inputs!H$12 -> 2030-31
B46: Unit cost | C46: =IFERROR(INDEX(Quantity!$M$7:$M$32,MATCH(LEFT($B45,FIND("outputs",$B45)-2),Quantity!$K$7:$K$32,0))*INDEX(C$9:C$42,MATCH(INDEX(Quantity!$L$7:$L$32,MATCH(LEFT($B45,FIND("outputs",$B45)-2),Quantity!$K$7:$K$32,0))&" outputs",$B$9:$B$42,0)+1),0) -> 0 | D46: =IFERROR(INDEX(Quantity!$M$7:$M$32,MATCH(LEFT($B45,FIND("outputs",$B45)-2),Quantity!$K$7:$K$32,0))*INDEX(D$9:D$42,MATCH(INDEX(Quantity!$L$7:$L$32,MATCH(LEFT($B45,FIND("outputs",$B45)-2),Quantity!$K$7:$K$32,0))&" outputs",$B$9:$B$42,0)+1),0) -> 0 | E46: =IFERROR(INDEX(Quantity!$M$7:$M$32,MATCH(LEFT($B45,FIND("outputs",$B45)-2),Quantity!$K$7:$K$32,0))*INDEX(E$9:E$42,MATCH(INDEX(Quantity!$L$7:$L$32,MATCH(LEFT($B45,FIND("outputs",$B45)-2),Quantity!$K$7:$K$32,0))&" outputs",$B$9:$B$42,0)+1),0) -> 0 | F46: =IFERROR(INDEX(Quantity!$M$7:$M$32,MATCH(LEFT($B45,FIND("outputs",$B45)-2),Quantity!$K$7:$K$32,0))*INDEX(F$9:F$42,MATCH(INDEX(Quantity!$L$7:$L$32,MATCH(LEFT($B45,FIND("outputs",$B45)-2),Quantity!$K$7:$K$32,0))&" outputs",$B$9:$B$42,0)+1),0) -> 0 | G46: =IFERROR(INDEX(Quantity!$M$7:$M$32,MATCH(LEFT($B45,FIND("outputs",$B45)-2),Quantity!$K$7:$K$32,0))*INDEX(G$9:G$42,MATCH(INDEX(Quantity!$L$7:$L$32,MATCH(LEFT($B45,FIND("outputs",$B45)-2),Quantity!$K$7:$K$32,0))&" outputs",$B$9:$B$42,0)+1),0) -> 0
B47: Volumes | C47: =IFERROR(INDEX(Quantity!D$7:D$32,MATCH(INDEX(Quantity!$B$7:$B$32,MATCH(LEFT($B45,FIND("outputs",$B45)-2),Quantity!$K$7:$K$32,0),0),Quantity!$B$7:$B$32,0)),0) -> 0 | D47: =IFERROR(INDEX(Quantity!E$7:E$32,MATCH(INDEX(Quantity!$B$7:$B$32,MATCH(LEFT($B45,FIND("outputs",$B45)-2),Quantity!$K$7:$K$32,0),0),Quantity!$B$7:$B$32,0)),0) -> 0 | E47: =IFERROR(INDEX(Quantity!F$7:F$32,MATCH(INDEX(Quantity!$B$7:$B$32,MATCH(LEFT($B45,FIND("outputs",$B45)-2),Quantity!$K$7:$K$32,0),0),Quantity!$B$7:$B$32,0)),0) -> 0 | F47: =IFERROR(INDEX(Quantity!G$7:G$32,MATCH(INDEX(Quantity!$B$7:$B$32,MATCH(LEFT($B45,FIND("outputs",$B45)-2),Quantity!$K$7:$K$32,0),0),Quantity!$B$7:$B$32,0)),0) -> 0 | G47: =IFERROR(INDEX(Quantity!H$7:H$32,MATCH(INDEX(Quantity!$B$7:$B$32,MATCH(LEFT($B45,FIND("outputs",$B45)-2),Quantity!$K$7:$K$32,0),0),Quantity!$B$7:$B$32,0)),0) -> 0
B48: Opex | C48: =IFERROR(C46*C47,0) -> 0 | D48: =IFERROR(D46*D47,0) -> 0 | E48: =IFERROR(E46*E47,0) -> 0 | F48: =IFERROR(F46*F47,0) -> 0 | G48: =IFERROR(G46*G47,0) -> 0
B50: =IFERROR(Quantity!K9&" outputs",0) -> S-HP 100 outputs | C50: =PTRM_Inputs!D$12 -> 2026-27 | D50: =PTRM_Inputs!E$12 -> 2027-28 | E50: =PTRM_Inputs!F$12 -> 2028-29 | F50: =PTRM_Inputs!G$12 -> 2029-30 | G50: =PTRM_Inputs!H$12 -> 2030-31
B51: Unit cost | C51: =IFERROR(INDEX(Quantity!$M$7:$M$32,MATCH(LEFT($B50,FIND("outputs",$B50)-2),Quantity!$K$7:$K$32,0))*INDEX(C$9:C$42,MATCH(INDEX(Quantity!$L$7:$L$32,MATCH(LEFT($B50,FIND("outputs",$B50)-2),Quantity!$K$7:$K$32,0))&" outputs",$B$9:$B$42,0)+1),0) -> 0 | D51: =IFERROR(INDEX(Quantity!$M$7:$M$32,MATCH(LEFT($B50,FIND("outputs",$B50)-2),Quantity!$K$7:$K$32,0))*INDEX(D$9:D$42,MATCH(INDEX(Quantity!$L$7:$L$32,MATCH(LEFT($B50,FIND("outputs",$B50)-2),Quantity!$K$7:$K$32,0))&" outputs",$B$9:$B$42,0)+1),0) -> 0 | E51: =IFERROR(INDEX(Quantity!$M$7:$M$32,MATCH(LEFT($B50,FIND("outputs",$B50)-2),Quantity!$K$7:$K$32,0))*INDEX(E$9:E$42,MATCH(INDEX(Quantity!$L$7:$L$32,MATCH(LEFT($B50,FIND("outputs",$B50)-2),Quantity!$K$7:$K$32,0))&" outputs",$B$9:$B$42,0)+1),0) -> 0 | F51: =IFERROR(INDEX(Quantity!$M$7:$M$32,MATCH(LEFT($B50,FIND("outputs",$B50)-2),Quantity!$K$7:$K$32,0))*INDEX(F$9:F$42,MATCH(INDEX(Quantity!$L$7:$L$32,MATCH(LEFT($B50,FIND("outputs",$B50)-2),Quantity!$K$7:$K$32,0))&" outputs",$B$9:$B$42,0)+1),0) -> 0 | G51: =IFERROR(INDEX(Quantity!$M$7:$M$32,MATCH(LEFT($B50,FIND("outputs",$B50)-2),Quantity!$K$7:$K$32,0))*INDEX(G$9:G$42,MATCH(INDEX(Quantity!$L$7:$L$32,MATCH(LEFT($B50,FIND("outputs",$B50)-2),Quantity!$K$7:$K$32,0))&" outputs",$B$9:$B$42,0)+1),0) -> 0
B52: Volumes | C52: =IFERROR(INDEX(Quantity!D$7:D$32,MATCH(INDEX(Quantity!$B$7:$B$32,MATCH(LEFT($B50,FIND("outputs",$B50)-2),Quantity!$K$7:$K$32,0),0),Quantity!$B$7:$B$32,0)),0) -> 0 | D52: =IFERROR(INDEX(Quantity!E$7:E$32,MATCH(INDEX(Quantity!$B$7:$B$32,MATCH(LEFT($B50,FIND("outputs",$B50)-2),Quantity!$K$7:$K$32,0),0),Quantity!$B$7:$B$32,0)),0) -> 0 | E52: =IFERROR(INDEX(Quantity!F$7:F$32,MATCH(INDEX(Quantity!$B$7:$B$32,MATCH(LEFT($B50,FIND("outputs",$B50)-2),Quantity!$K$7:$K$32,0),0),Quantity!$B$7:$B$32,0)),0) -> 0 | F52: =IFERROR(INDEX(Quantity!G$7:G$32,MATCH(INDEX(Quantity!$B$7:$B$32,MATCH(LEFT($B50,FIND("outputs",$B50)-2),Quantity!$K$7:$K$32,0),0),Quantity!$B$7:$B$32,0)),0) -> 0 | G52: =IFERROR(INDEX(Quantity!H$7:H$32,MATCH(INDEX(Quantity!$B$7:$B$32,MATCH(LEFT($B50,FIND("outputs",$B50)-2),Quantity!$K$7:$K$32,0),0),Quantity!$B$7:$B$32,0)),0) -> 0
B53: Opex | C53: =IFERROR(C51*C52,0) -> 0 | D53: =IFERROR(D51*D52,0) -> 0 | E53: =IFERROR(E51*E52,0) -> 0 | F53: =IFERROR(F51*F52,0) -> 0 | G53: =IFERROR(G51*G52,0) -> 0
B55: =IFERROR(Quantity!K12&" outputs",0) -> S-HP 400 outputs | C55: =PTRM_Inputs!D$12 -> 2026-27 | D55: =PTRM_Inputs!E$12 -> 2027-28 | E55: =PTRM_Inputs!F$12 -> 2028-29 | F55: =PTRM_Inputs!G$12 -> 2029-30 | G55: =PTRM_Inputs!H$12 -> 2030-31
B56: Unit cost | C56: =IFERROR(INDEX(Quantity!$M$7:$M$32,MATCH(LEFT($B55,FIND("outputs",$B55)-2),Quantity!$K$7:$K$32,0))*INDEX(C$9:C$42,MATCH(INDEX(Quantity!$L$7:$L$32,MATCH(LEFT($B55,FIND("outputs",$B55)-2),Quantity!$K$7:$K$32,0))&" outputs",$B$9:$B$42,0)+1),0) -> 15.31455958 | D56: =IFERROR(INDEX(Quantity!$M$7:$M$32,MATCH(LEFT($B55,FIND("outputs",$B55)-2),Quantity!$K$7:$K$32,0))*INDEX(D$9:D$42,MATCH(INDEX(Quantity!$L$7:$L$32,MATCH(LEFT($B55,FIND("outputs",$B55)-2),Quantity!$K$7:$K$32,0))&" outputs",$B$9:$B$42,0)+1),0) -> 15.61073567 | E56: =IFERROR(INDEX(Quantity!$M$7:$M$32,MATCH(LEFT($B55,FIND("outputs",$B55)-2),Quantity!$K$7:$K$32,0))*INDEX(E$9:E$42,MATCH(INDEX(Quantity!$L$7:$L$32,MATCH(LEFT($B55,FIND("outputs",$B55)-2),Quantity!$K$7:$K$32,0))&" outputs",$B$9:$B$42,0)+1),0) -> 15.94818963 | F56: =IFERROR(INDEX(Quantity!$M$7:$M$32,MATCH(LEFT($B55,FIND("outputs",$B55)-2),Quantity!$K$7:$K$32,0))*INDEX(F$9:F$42,MATCH(INDEX(Quantity!$L$7:$L$32,MATCH(LEFT($B55,FIND("outputs",$B55)-2),Quantity!$K$7:$K$32,0))&" outputs",$B$9:$B$42,0)+1),0) -> 16.28411109 | G56: =IFERROR(INDEX(Quantity!$M$7:$M$32,MATCH(LEFT($B55,FIND("outputs",$B55)-2),Quantity!$K$7:$K$32,0))*INDEX(G$9:G$42,MATCH(INDEX(Quantity!$L$7:$L$32,MATCH(LEFT($B55,FIND("outputs",$B55)-2),Quantity!$K$7:$K$32,0))&" outputs",$B$9:$B$42,0)+1),0) -> 16.58447757
B57: Volumes | C57: =IFERROR(INDEX(Quantity!D$7:D$32,MATCH(INDEX(Quantity!$B$7:$B$32,MATCH(LEFT($B55,FIND("outputs",$B55)-2),Quantity!$K$7:$K$32,0),0),Quantity!$B$7:$B$32,0)),0) -> 98.64 | D57: =IFERROR(INDEX(Quantity!E$7:E$32,MATCH(INDEX(Quantity!$B$7:$B$32,MATCH(LEFT($B55,FIND("outputs",$B55)-2),Quantity!$K$7:$K$32,0),0),Quantity!$B$7:$B$32,0)),0) -> 59.184 | E57: =IFERROR(INDEX(Quantity!F$7:F$32,MATCH(INDEX(Quantity!$B$7:$B$32,MATCH(LEFT($B55,FIND("outputs",$B55)-2),Quantity!$K$7:$K$32,0),0),Quantity!$B$7:$B$32,0)),0) -> 35.5104 | F57: =IFERROR(INDEX(Quantity!G$7:G$32,MATCH(INDEX(Quantity!$B$7:$B$32,MATCH(LEFT($B55,FIND("outputs",$B55)-2),Quantity!$K$7:$K$32,0),0),Quantity!$B$7:$B$32,0)),0) -> 0 | G57: =IFERROR(INDEX(Quantity!H$7:H$32,MATCH(INDEX(Quantity!$B$7:$B$32,MATCH(LEFT($B55,FIND("outputs",$B55)-2),Quantity!$K$7:$K$32,0),0),Quantity!$B$7:$B$32,0)),0) -> 0
B58: Opex | C58: =IFERROR(C56*C57,0) -> 1510.628157 | D58: =IFERROR(D56*D57,0) -> 923.9057801 | E58: =IFERROR(E56*E57,0) -> 566.3265931 | F58: =IFERROR(F56*F57,0) -> 0 | G58: =IFERROR(G56*G57,0) -> 0
B60: =IFERROR(Quantity!K13&" outputs",0) -> MH70 outputs | C60: =PTRM_Inputs!D$12 -> 2026-27 | D60: =PTRM_Inputs!E$12 -> 2027-28 | E60: =PTRM_Inputs!F$12 -> 2028-29 | F60: =PTRM_Inputs!G$12 -> 2029-30 | G60: =PTRM_Inputs!H$12 -> 2030-31
B61: Unit cost | C61: =IFERROR(INDEX(Quantity!$M$7:$M$32,MATCH(LEFT($B60,FIND("outputs",$B60)-2),Quantity!$K$7:$K$32,0))*INDEX(C$9:C$42,MATCH(INDEX(Quantity!$L$7:$L$32,MATCH(LEFT($B60,FIND("outputs",$B60)-2),Quantity!$K$7:$K$32,0))&" outputs",$B$9:$B$42,0)+1),0) -> 40.05963419 | D61: =IFERROR(INDEX(Quantity!$M$7:$M$32,MATCH(LEFT($B60,FIND("outputs",$B60)-2),Quantity!$K$7:$K$32,0))*INDEX(D$9:D$42,MATCH(INDEX(Quantity!$L$7:$L$32,MATCH(LEFT($B60,FIND("outputs",$B60)-2),Quantity!$K$7:$K$32,0))&" outputs",$B$9:$B$42,0)+1),0) -> 40.50478016 | E61: =IFERROR(INDEX(Quantity!$M$7:$M$32,MATCH(LEFT($B60,FIND("outputs",$B60)-2),Quantity!$K$7:$K$32,0))*INDEX(E$9:E$42,MATCH(INDEX(Quantity!$L$7:$L$32,MATCH(LEFT($B60,FIND("outputs",$B60)-2),Quantity!$K$7:$K$32,0))&" outputs",$B$9:$B$42,0)+1),0) -> 41.00906689 | F61: =IFERROR(INDEX(Quantity!$M$7:$M$32,MATCH(LEFT($B60,FIND("outputs",$B60)-2),Quantity!$K$7:$K$32,0))*INDEX(F$9:F$42,MATCH(INDEX(Quantity!$L$7:$L$32,MATCH(LEFT($B60,FIND("outputs",$B60)-2),Quantity!$K$7:$K$32,0))&" outputs",$B$9:$B$42,0)+1),0) -> 41.5093482 | G61: =IFERROR(INDEX(Quantity!$M$7:$M$32,MATCH(LEFT($B60,FIND("outputs",$B60)-2),Quantity!$K$7:$K$32,0))*INDEX(G$9:G$42,MATCH(INDEX(Quantity!$L$7:$L$32,MATCH(LEFT($B60,FIND("outputs",$B60)-2),Quantity!$K$7:$K$32,0))&" outputs",$B$9:$B$42,0)+1),0) -> 41.95543768
B62: Volumes | C62: =IFERROR(INDEX(Quantity!D$7:D$32,MATCH(INDEX(Quantity!$B$7:$B$32,MATCH(LEFT($B60,FIND("outputs",$B60)-2),Quantity!$K$7:$K$32,0),0),Quantity!$B$7:$B$32,0)),0) -> 0 | D62: =IFERROR(INDEX(Quantity!E$7:E$32,MATCH(INDEX(Quantity!$B$7:$B$32,MATCH(LEFT($B60,FIND("outputs",$B60)-2),Quantity!$K$7:$K$32,0),0),Quantity!$B$7:$B$32,0)),0) -> 0 | E62: =IFERROR(INDEX(Quantity!F$7:F$32,MATCH(INDEX(Quantity!$B$7:$B$32,MATCH(LEFT($B60,FIND("outputs",$B60)-2),Quantity!$K$7:$K$32,0),0),Quantity!$B$7:$B$32,0)),0) -> 0 | F62: =IFERROR(INDEX(Quantity!G$7:G$32,MATCH(INDEX(Quantity!$B$7:$B$32,MATCH(LEFT($B60,FIND("outputs",$B60)-2),Quantity!$K$7:$K$32,0),0),Quantity!$B$7:$B$32,0)),0) -> 0 | G62: =IFERROR(INDEX(Quantity!H$7:H$32,MATCH(INDEX(Quantity!$B$7:$B$32,MATCH(LEFT($B60,FIND("outputs",$B60)-2),Quantity!$K$7:$K$32,0),0),Quantity!$B$7:$B$32,0)),0) -> 0
B63: Opex | C63: =IFERROR(C61*C62,0) -> 0 | D63: =IFERROR(D61*D62,0) -> 0 | E63: =IFERROR(E61*E62,0) -> 0 | F63: =IFERROR(F61*F62,0) -> 0 | G63: =IFERROR(G61*G62,0) -> 0
B65: =IFERROR(Quantity!K14&" outputs",0) -> MH100 outputs | C65: =PTRM_Inputs!D$12 -> 2026-27 | D65: =PTRM_Inputs!E$12 -> 2027-28 | E65: =PTRM_Inputs!F$12 -> 2028-29 | F65: =PTRM_Inputs!G$12 -> 2029-30 | G65: =PTRM_Inputs!H$12 -> 2030-31
B66: Unit cost | C66: =IFERROR(INDEX(Quantity!$M$7:$M$32,MATCH(LEFT($B65,FIND("outputs",$B65)-2),Quantity!$K$7:$K$32,0))*INDEX(C$9:C$42,MATCH(INDEX(Quantity!$L$7:$L$32,MATCH(LEFT($B65,FIND("outputs",$B65)-2),Quantity!$K$7:$K$32,0))&" outputs",$B$9:$B$42,0)+1),0) -> 0 | D66: =IFERROR(INDEX(Quantity!$M$7:$M$32,MATCH(LEFT($B65,FIND("outputs",$B65)-2),Quantity!$K$7:$K$32,0))*INDEX(D$9:D$42,MATCH(INDEX(Quantity!$L$7:$L$32,MATCH(LEFT($B65,FIND("outputs",$B65)-2),Quantity!$K$7:$K$32,0))&" outputs",$B$9:$B$42,0)+1),0) -> 0 | E66: =IFERROR(INDEX(Quantity!$M$7:$M$32,MATCH(LEFT($B65,FIND("outputs",$B65)-2),Quantity!$K$7:$K$32,0))*INDEX(E$9:E$42,MATCH(INDEX(Quantity!$L$7:$L$32,MATCH(LEFT($B65,FIND("outputs",$B65)-2),Quantity!$K$7:$K$32,0))&" outputs",$B$9:$B$42,0)+1),0) -> 0 | F66: =IFERROR(INDEX(Quantity!$M$7:$M$32,MATCH(LEFT($B65,FIND("outputs",$B65)-2),Quantity!$K$7:$K$32,0))*INDEX(F$9:F$42,MATCH(INDEX(Quantity!$L$7:$L$32,MATCH(LEFT($B65,FIND("outputs",$B65)-2),Quantity!$K$7:$K$32,0))&" outputs",$B$9:$B$42,0)+1),0) -> 0 | G66: =IFERROR(INDEX(Quantity!$M$7:$M$32,MATCH(LEFT($B65,FIND("outputs",$B65)-2),Quantity!$K$7:$K$32,0))*INDEX(G$9:G$42,MATCH(INDEX(Quantity!$L$7:$L$32,MATCH(LEFT($B65,FIND("outputs",$B65)-2),Quantity!$K$7:$K$32,0))&" outputs",$B$9:$B$42,0)+1),0) -> 0
B67: Volumes | C67: =IFERROR(INDEX(Quantity!D$7:D$32,MATCH(INDEX(Quantity!$B$7:$B$32,MATCH(LEFT($B65,FIND("outputs",$B65)-2),Quantity!$K$7:$K$32,0),0),Quantity!$B$7:$B$32,0)),0) -> 0 | D67: =IFERROR(INDEX(Quantity!E$7:E$32,MATCH(INDEX(Quantity!$B$7:$B$32,MATCH(LEFT($B65,FIND("outputs",$B65)-2),Quantity!$K$7:$K$32,0),0),Quantity!$B$7:$B$32,0)),0) -> 0 | E67: =IFERROR(INDEX(Quantity!F$7:F$32,MATCH(INDEX(Quantity!$B$7:$B$32,MATCH(LEFT($B65,FIND("outputs",$B65)-2),Quantity!$K$7:$K$32,0),0),Quantity!$B$7:$B$32,0)),0) -> 0 | F67: =IFERROR(INDEX(Quantity!G$7:G$32,MATCH(INDEX(Quantity!$B$7:$B$32,MATCH(LEFT($B65,FIND("outputs",$B65)-2),Quantity!$K$7:$K$32,0),0),Quantity!$B$7:$B$32,0)),0) -> 0 | G67: =IFERROR(INDEX(Quantity!H$7:H$32,MATCH(INDEX(Quantity!$B$7:$B$32,MATCH(LEFT($B65,FIND("outputs",$B65)-2),Quantity!$K$7:$K$32,0),0),Quantity!$B$7:$B$32,0)),0) -> 0
B68: Opex | C68: =IFERROR(C66*C67,0) -> 0 | D68: =IFERROR(D66*D67,0) -> 0 | E68: =IFERROR(E66*E67,0) -> 0 | F68: =IFERROR(F66*F67,0) -> 0 | G68: =IFERROR(G66*G67,0) -> 0
B70: =IFERROR(Quantity!K15&" outputs",0) -> MH150 outputs | C70: =PTRM_Inputs!D$12 -> 2026-27 | D70: =PTRM_Inputs!E$12 -> 2027-28 | E70: =PTRM_Inputs!F$12 -> 2028-29 | F70: =PTRM_Inputs!G$12 -> 2029-30 | G70: =PTRM_Inputs!H$12 -> 2030-31
B71: Unit cost | C71: =IFERROR(INDEX(Quantity!$M$7:$M$32,MATCH(LEFT($B70,FIND("outputs",$B70)-2),Quantity!$K$7:$K$32,0))*INDEX(C$9:C$42,MATCH(INDEX(Quantity!$L$7:$L$32,MATCH(LEFT($B70,FIND("outputs",$B70)-2),Quantity!$K$7:$K$32,0))&" outputs",$B$9:$B$42,0)+1),0) -> 15.35297651 | D71: =IFERROR(INDEX(Quantity!$M$7:$M$32,MATCH(LEFT($B70,FIND("outputs",$B70)-2),Quantity!$K$7:$K$32,0))*INDEX(D$9:D$42,MATCH(INDEX(Quantity!$L$7:$L$32,MATCH(LEFT($B70,FIND("outputs",$B70)-2),Quantity!$K$7:$K$32,0))&" outputs",$B$9:$B$42,0)+1),0) -> 15.64951577 | E71: =IFERROR(INDEX(Quantity!$M$7:$M$32,MATCH(LEFT($B70,FIND("outputs",$B70)-2),Quantity!$K$7:$K$32,0))*INDEX(E$9:E$42,MATCH(INDEX(Quantity!$L$7:$L$32,MATCH(LEFT($B70,FIND("outputs",$B70)-2),Quantity!$K$7:$K$32,0))&" outputs",$B$9:$B$42,0)+1),0) -> 15.98742257 | F71: =IFERROR(INDEX(Quantity!$M$7:$M$32,MATCH(LEFT($B70,FIND("outputs",$B70)-2),Quantity!$K$7:$K$32,0))*INDEX(F$9:F$42,MATCH(INDEX(Quantity!$L$7:$L$32,MATCH(LEFT($B70,FIND("outputs",$B70)-2),Quantity!$K$7:$K$32,0))&" outputs",$B$9:$B$42,0)+1),0) -> 16.32381792 | G71: =IFERROR(INDEX(Quantity!$M$7:$M$32,MATCH(LEFT($B70,FIND("outputs",$B70)-2),Quantity!$K$7:$K$32,0))*INDEX(G$9:G$42,MATCH(INDEX(Quantity!$L$7:$L$32,MATCH(LEFT($B70,FIND("outputs",$B70)-2),Quantity!$K$7:$K$32,0))&" outputs",$B$9:$B$42,0)+1),0) -> 16.62462485
B72: Volumes | C72: =IFERROR(INDEX(Quantity!D$7:D$32,MATCH(INDEX(Quantity!$B$7:$B$32,MATCH(LEFT($B70,FIND("outputs",$B70)-2),Quantity!$K$7:$K$32,0),0),Quantity!$B$7:$B$32,0)),0) -> 3 | D72: =IFERROR(INDEX(Quantity!E$7:E$32,MATCH(INDEX(Quantity!$B$7:$B$32,MATCH(LEFT($B70,FIND("outputs",$B70)-2),Quantity!$K$7:$K$32,0),0),Quantity!$B$7:$B$32,0)),0) -> 2.1 | E72: =IFERROR(INDEX(Quantity!F$7:F$32,MATCH(INDEX(Quantity!$B$7:$B$32,MATCH(LEFT($B70,FIND("outputs",$B70)-2),Quantity!$K$7:$K$32,0),0),Quantity!$B$7:$B$32,0)),0) -> 0 | F72: =IFERROR(INDEX(Quantity!G$7:G$32,MATCH(INDEX(Quantity!$B$7:$B$32,MATCH(LEFT($B70,FIND("outputs",$B70)-2),Quantity!$K$7:$K$32,0),0),Quantity!$B$7:$B$32,0)),0) -> 0 | G72: =IFERROR(INDEX(Quantity!H$7:H$32,MATCH(INDEX(Quantity!$B$7:$B$32,MATCH(LEFT($B70,FIND("outputs",$B70)-2),Quantity!$K$7:$K$32,0),0),Quantity!$B$7:$B$32,0)),0) -> 0
B73: Opex | C73: =IFERROR(C71*C72,0) -> 46.05892952 | D73: =IFERROR(D71*D72,0) -> 32.86398311 | E73: =IFERROR(E71*E72,0) -> 0 | F73: =IFERROR(F71*F72,0) -> 0 | G73: =IFERROR(G71*G72,0) -> 0
B75: =IFERROR(Quantity!K16&" outputs",0) -> MH250 outputs | C75: =PTRM_Inputs!D$12 -> 2026-27 | D75: =PTRM_Inputs!E$12 -> 2027-28 | E75: =PTRM_Inputs!F$12 -> 2028-29 | F75: =PTRM_Inputs!G$12 -> 2029-30 | G75: =PTRM_Inputs!H$12 -> 2030-31
B76: Unit cost | C76: =IFERROR(INDEX(Quantity!$M$7:$M$32,MATCH(LEFT($B75,FIND("outputs",$B75)-2),Quantity!$K$7:$K$32,0))*INDEX(C$9:C$42,MATCH(INDEX(Quantity!$L$7:$L$32,MATCH(LEFT($B75,FIND("outputs",$B75)-2),Quantity!$K$7:$K$32,0))&" outputs",$B$9:$B$42,0)+1),0) -> 15.31455958 | D76: =IFERROR(INDEX(Quantity!$M$7:$M$32,MATCH(LEFT($B75,FIND("outputs",$B75)-2),Quantity!$K$7:$K$32,0))*INDEX(D$9:D$42,MATCH(INDEX(Quantity!$L$7:$L$32,MATCH(LEFT($B75,FIND("outputs",$B75)-2),Quantity!$K$7:$K$32,0))&" outputs",$B$9:$B$42,0)+1),0) -> 15.61073567 | E76: =IFERROR(INDEX(Quantity!$M$7:$M$32,MATCH(LEFT($B75,FIND("outputs",$B75)-2),Quantity!$K$7:$K$32,0))*INDEX(E$9:E$42,MATCH(INDEX(Quantity!$L$7:$L$32,MATCH(LEFT($B75,FIND("outputs",$B75)-2),Quantity!$K$7:$K$32,0))&" outputs",$B$9:$B$42,0)+1),0) -> 15.94818963 | F76: =IFERROR(INDEX(Quantity!$M$7:$M$32,MATCH(LEFT($B75,FIND("outputs",$B75)-2),Quantity!$K$7:$K$32,0))*INDEX(F$9:F$42,MATCH(INDEX(Quantity!$L$7:$L$32,MATCH(LEFT($B75,FIND("outputs",$B75)-2),Quantity!$K$7:$K$32,0))&" outputs",$B$9:$B$42,0)+1),0) -> 16.28411109 | G76: =IFERROR(INDEX(Quantity!$M$7:$M$32,MATCH(LEFT($B75,FIND("outputs",$B75)-2),Quantity!$K$7:$K$32,0))*INDEX(G$9:G$42,MATCH(INDEX(Quantity!$L$7:$L$32,MATCH(LEFT($B75,FIND("outputs",$B75)-2),Quantity!$K$7:$K$32,0))&" outputs",$B$9:$B$42,0)+1),0) -> 16.58447757
B77: Volumes | C77: =IFERROR(INDEX(Quantity!D$7:D$32,MATCH(INDEX(Quantity!$B$7:$B$32,MATCH(LEFT($B75,FIND("outputs",$B75)-2),Quantity!$K$7:$K$32,0),0),Quantity!$B$7:$B$32,0)),0) -> 12.5 | D77: =IFERROR(INDEX(Quantity!E$7:E$32,MATCH(INDEX(Quantity!$B$7:$B$32,MATCH(LEFT($B75,FIND("outputs",$B75)-2),Quantity!$K$7:$K$32,0),0),Quantity!$B$7:$B$32,0)),0) -> 8.75 | E77: =IFERROR(INDEX(Quantity!F$7:F$32,MATCH(INDEX(Quantity!$B$7:$B$32,MATCH(LEFT($B75,FIND("outputs",$B75)-2),Quantity!$K$7:$K$32,0),0),Quantity!$B$7:$B$32,0)),0) -> 0 | F77: =IFERROR(INDEX(Quantity!G$7:G$32,MATCH(INDEX(Quantity!$B$7:$B$32,MATCH(LEFT($B75,FIND("outputs",$B75)-2),Quantity!$K$7:$K$32,0),0),Quantity!$B$7:$B$32,0)),0) -> 0 | G77: =IFERROR(INDEX(Quantity!H$7:H$32,MATCH(INDEX(Quantity!$B$7:$B$32,MATCH(LEFT($B75,FIND("outputs",$B75)-2),Quantity!$K$7:$K$32,0),0),Quantity!$B$7:$B$32,0)),0) -> 0
B78: Opex | C78: =IFERROR(C76*C77,0) -> 191.4319948 | D78: =IFERROR(D76*D77,0) -> 136.5939371 | E78: =IFERROR(E76*E77,0) -> 0 | F78: =IFERROR(F76*F77,0) -> 0 | G78: =IFERROR(G76*G77,0) -> 0
B80: =IFERROR(Quantity!K17&" outputs",0) -> MH400 outputs | C80: =PTRM_Inputs!D$12 -> 2026-27 | D80: =PTRM_Inputs!E$12 -> 2027-28 | E80: =PTRM_Inputs!F$12 -> 2028-29 | F80: =PTRM_Inputs!G$12 -> 2029-30 | G80: =PTRM_Inputs!H$12 -> 2030-31
B81: Unit cost | C81: =IFERROR(INDEX(Quantity!$M$7:$M$32,MATCH(LEFT($B80,FIND("outputs",$B80)-2),Quantity!$K$7:$K$32,0))*INDEX(C$9:C$42,MATCH(INDEX(Quantity!$L$7:$L$32,MATCH(LEFT($B80,FIND("outputs",$B80)-2),Quantity!$K$7:$K$32,0))&" outputs",$B$9:$B$42,0)+1),0) -> 15.31455958 | D81: =IFERROR(INDEX(Quantity!$M$7:$M$32,MATCH(LEFT($B80,FIND("outputs",$B80)-2),Quantity!$K$7:$K$32,0))*INDEX(D$9:D$42,MATCH(INDEX(Quantity!$L$7:$L$32,MATCH(LEFT($B80,FIND("outputs",$B80)-2),Quantity!$K$7:$K$32,0))&" outputs",$B$9:$B$42,0)+1),0) -> 15.61073567 | E81: =IFERROR(INDEX(Quantity!$M$7:$M$32,MATCH(LEFT($B80,FIND("outputs",$B80)-2),Quantity!$K$7:$K$32,0))*INDEX(E$9:E$42,MATCH(INDEX(Quantity!$L$7:$L$32,MATCH(LEFT($B80,FIND("outputs",$B80)-2),Quantity!$K$7:$K$32,0))&" outputs",$B$9:$B$42,0)+1),0) -> 15.94818963 | F81: =IFERROR(INDEX(Quantity!$M$7:$M$32,MATCH(LEFT($B80,FIND("outputs",$B80)-2),Quantity!$K$7:$K$32,0))*INDEX(F$9:F$42,MATCH(INDEX(Quantity!$L$7:$L$32,MATCH(LEFT($B80,FIND("outputs",$B80)-2),Quantity!$K$7:$K$32,0))&" outputs",$B$9:$B$42,0)+1),0) -> 16.28411109 | G81: =IFERROR(INDEX(Quantity!$M$7:$M$32,MATCH(LEFT($B80,FIND("outputs",$B80)-2),Quantity!$K$7:$K$32,0))*INDEX(G$9:G$42,MATCH(INDEX(Quantity!$L$7:$L$32,MATCH(LEFT($B80,FIND("outputs",$B80)-2),Quantity!$K$7:$K$32,0))&" outputs",$B$9:$B$42,0)+1),0) -> 16.58447757
B82: Volumes | C82: =IFERROR(INDEX(Quantity!D$7:D$32,MATCH(INDEX(Quantity!$B$7:$B$32,MATCH(LEFT($B80,FIND("outputs",$B80)-2),Quantity!$K$7:$K$32,0),0),Quantity!$B$7:$B$32,0)),0) -> 0 | D82: =IFERROR(INDEX(Quantity!E$7:E$32,MATCH(INDEX(Quantity!$B$7:$B$32,MATCH(LEFT($B80,FIND("outputs",$B80)-2),Quantity!$K$7:$K$32,0),0),Quantity!$B$7:$B$32,0)),0) -> 0 | E82: =IFERROR(INDEX(Quantity!F$7:F$32,MATCH(INDEX(Quantity!$B$7:$B$32,MATCH(LEFT($B80,FIND("outputs",$B80)-2),Quantity!$K$7:$K$32,0),0),Quantity!$B$7:$B$32,0)),0) -> 0 | F82: =IFERROR(INDEX(Quantity!G$7:G$32,MATCH(INDEX(Quantity!$B$7:$B$32,MATCH(LEFT($B80,FIND("outputs",$B80)-2),Quantity!$K$7:$K$32,0),0),Quantity!$B$7:$B$32,0)),0) -> 0 | G82: =IFERROR(INDEX(Quantity!H$7:H$32,MATCH(INDEX(Quantity!$B$7:$B$32,MATCH(LEFT($B80,FIND("outputs",$B80)-2),Quantity!$K$7:$K$32,0),0),Quantity!$B$7:$B$32,0)),0) -> 0
B83: Opex | C83: =IFERROR(C81*C82,0) -> 0 | D83: =IFERROR(D81*D82,0) -> 0 | E83: =IFERROR(E81*E82,0) -> 0 | F83: =IFERROR(F81*F82,0) -> 0 | G83: =IFERROR(G81*G82,0) -> 0
B85: =IFERROR(Quantity!K19&" outputs",0) -> T5 (2 x 24W) outputs | C85: =PTRM_Inputs!D$12 -> 2026-27 | D85: =PTRM_Inputs!E$12 -> 2027-28 | E85: =PTRM_Inputs!F$12 -> 2028-29 | F85: =PTRM_Inputs!G$12 -> 2029-30 | G85: =PTRM_Inputs!H$12 -> 2030-31
B86: Unit cost | C86: =IFERROR(INDEX(Quantity!$M$7:$M$32,MATCH(LEFT($B85,FIND("outputs",$B85)-2),Quantity!$K$7:$K$32,0))*INDEX(C$9:C$42,MATCH(INDEX(Quantity!$L$7:$L$32,MATCH(LEFT($B85,FIND("outputs",$B85)-2),Quantity!$K$7:$K$32,0))&" outputs",$B$9:$B$42,0)+1),0) -> 25.18401105 | D86: =IFERROR(INDEX(Quantity!$M$7:$M$32,MATCH(LEFT($B85,FIND("outputs",$B85)-2),Quantity!$K$7:$K$32,0))*INDEX(D$9:D$42,MATCH(INDEX(Quantity!$L$7:$L$32,MATCH(LEFT($B85,FIND("outputs",$B85)-2),Quantity!$K$7:$K$32,0))&" outputs",$B$9:$B$42,0)+1),0) -> 25.45699966 | E86: =IFERROR(INDEX(Quantity!$M$7:$M$32,MATCH(LEFT($B85,FIND("outputs",$B85)-2),Quantity!$K$7:$K$32,0))*INDEX(E$9:E$42,MATCH(INDEX(Quantity!$L$7:$L$32,MATCH(LEFT($B85,FIND("outputs",$B85)-2),Quantity!$K$7:$K$32,0))&" outputs",$B$9:$B$42,0)+1),0) -> 25.77344428 | F86: =IFERROR(INDEX(Quantity!$M$7:$M$32,MATCH(LEFT($B85,FIND("outputs",$B85)-2),Quantity!$K$7:$K$32,0))*INDEX(F$9:F$42,MATCH(INDEX(Quantity!$L$7:$L$32,MATCH(LEFT($B85,FIND("outputs",$B85)-2),Quantity!$K$7:$K$32,0))&" outputs",$B$9:$B$42,0)+1),0) -> 26.09165272 | G86: =IFERROR(INDEX(Quantity!$M$7:$M$32,MATCH(LEFT($B85,FIND("outputs",$B85)-2),Quantity!$K$7:$K$32,0))*INDEX(G$9:G$42,MATCH(INDEX(Quantity!$L$7:$L$32,MATCH(LEFT($B85,FIND("outputs",$B85)-2),Quantity!$K$7:$K$32,0))&" outputs",$B$9:$B$42,0)+1),0) -> 26.37849589
B87: Volumes | C87: =IFERROR(INDEX(Quantity!D$7:D$32,MATCH(INDEX(Quantity!$B$7:$B$32,MATCH(LEFT($B85,FIND("outputs",$B85)-2),Quantity!$K$7:$K$32,0),0),Quantity!$B$7:$B$32,0)),0) -> 275 | D87: =IFERROR(INDEX(Quantity!E$7:E$32,MATCH(INDEX(Quantity!$B$7:$B$32,MATCH(LEFT($B85,FIND("outputs",$B85)-2),Quantity!$K$7:$K$32,0),0),Quantity!$B$7:$B$32,0)),0) -> 75 | E87: =IFERROR(INDEX(Quantity!F$7:F$32,MATCH(INDEX(Quantity!$B$7:$B$32,MATCH(LEFT($B85,FIND("outputs",$B85)-2),Quantity!$K$7:$K$32,0),0),Quantity!$B$7:$B$32,0)),0) -> 0 | F87: =IFERROR(INDEX(Quantity!G$7:G$32,MATCH(INDEX(Quantity!$B$7:$B$32,MATCH(LEFT($B85,FIND("outputs",$B85)-2),Quantity!$K$7:$K$32,0),0),Quantity!$B$7:$B$32,0)),0) -> 0 | G87: =IFERROR(INDEX(Quantity!H$7:H$32,MATCH(INDEX(Quantity!$B$7:$B$32,MATCH(LEFT($B85,FIND("outputs",$B85)-2),Quantity!$K$7:$K$32,0),0),Quantity!$B$7:$B$32,0)),0) -> 0
B88: Opex | C88: =IFERROR(C86*C87,0) -> 6925.603039 | D88: =IFERROR(D86*D87,0) -> 1909.274974 | E88: =IFERROR(E86*E87,0) -> 0 | F88: =IFERROR(F86*F87,0) -> 0 | G88: =IFERROR(G86*G87,0) -> 0
B90: =IFERROR(Quantity!K20&" outputs",0) -> Compact Fluoro 32W outputs | C90: =PTRM_Inputs!D$12 -> 2026-27 | D90: =PTRM_Inputs!E$12 -> 2027-28 | E90: =PTRM_Inputs!F$12 -> 2028-29 | F90: =PTRM_Inputs!G$12 -> 2029-30 | G90: =PTRM_Inputs!H$12 -> 2030-31
B91: Unit cost | C91: =IFERROR(INDEX(Quantity!$M$7:$M$32,MATCH(LEFT($B90,FIND("outputs",$B90)-2),Quantity!$K$7:$K$32,0))*INDEX(C$9:C$42,MATCH(INDEX(Quantity!$L$7:$L$32,MATCH(LEFT($B90,FIND("outputs",$B90)-2),Quantity!$K$7:$K$32,0))&" outputs",$B$9:$B$42,0)+1),0) -> 24.20902831 | D91: =IFERROR(INDEX(Quantity!$M$7:$M$32,MATCH(LEFT($B90,FIND("outputs",$B90)-2),Quantity!$K$7:$K$32,0))*INDEX(D$9:D$42,MATCH(INDEX(Quantity!$L$7:$L$32,MATCH(LEFT($B90,FIND("outputs",$B90)-2),Quantity!$K$7:$K$32,0))&" outputs",$B$9:$B$42,0)+1),0) -> 24.47144834 | E91: =IFERROR(INDEX(Quantity!$M$7:$M$32,MATCH(LEFT($B90,FIND("outputs",$B90)-2),Quantity!$K$7:$K$32,0))*INDEX(E$9:E$42,MATCH(INDEX(Quantity!$L$7:$L$32,MATCH(LEFT($B90,FIND("outputs",$B90)-2),Quantity!$K$7:$K$32,0))&" outputs",$B$9:$B$42,0)+1),0) -> 24.77564202 | F91: =IFERROR(INDEX(Quantity!$M$7:$M$32,MATCH(LEFT($B90,FIND("outputs",$B90)-2),Quantity!$K$7:$K$32,0))*INDEX(F$9:F$42,MATCH(INDEX(Quantity!$L$7:$L$32,MATCH(LEFT($B90,FIND("outputs",$B90)-2),Quantity!$K$7:$K$32,0))&" outputs",$B$9:$B$42,0)+1),0) -> 25.08153122 | G91: =IFERROR(INDEX(Quantity!$M$7:$M$32,MATCH(LEFT($B90,FIND("outputs",$B90)-2),Quantity!$K$7:$K$32,0))*INDEX(G$9:G$42,MATCH(INDEX(Quantity!$L$7:$L$32,MATCH(LEFT($B90,FIND("outputs",$B90)-2),Quantity!$K$7:$K$32,0))&" outputs",$B$9:$B$42,0)+1),0) -> 25.35726944
B92: Volumes | C92: =IFERROR(INDEX(Quantity!D$7:D$32,MATCH(INDEX(Quantity!$B$7:$B$32,MATCH(LEFT($B90,FIND("outputs",$B90)-2),Quantity!$K$7:$K$32,0),0),Quantity!$B$7:$B$32,0)),0) -> 361.25 | D92: =IFERROR(INDEX(Quantity!E$7:E$32,MATCH(INDEX(Quantity!$B$7:$B$32,MATCH(LEFT($B90,FIND("outputs",$B90)-2),Quantity!$K$7:$K$32,0),0),Quantity!$B$7:$B$32,0)),0) -> 0 | E92: =IFERROR(INDEX(Quantity!F$7:F$32,MATCH(INDEX(Quantity!$B$7:$B$32,MATCH(LEFT($B90,FIND("outputs",$B90)-2),Quantity!$K$7:$K$32,0),0),Quantity!$B$7:$B$32,0)),0) -> 0 | F92: =IFERROR(INDEX(Quantity!G$7:G$32,MATCH(INDEX(Quantity!$B$7:$B$32,MATCH(LEFT($B90,FIND("outputs",$B90)-2),Quantity!$K$7:$K$32,0),0),Quantity!$B$7:$B$32,0)),0) -> 0 | G92: =IFERROR(INDEX(Quantity!H$7:H$32,MATCH(INDEX(Quantity!$B$7:$B$32,MATCH(LEFT($B90,FIND("outputs",$B90)-2),Quantity!$K$7:$K$32,0),0),Quantity!$B$7:$B$32,0)),0) -> 0
B93: Opex | C93: =IFERROR(C91*C92,0) -> 8745.511478 | D93: =IFERROR(D91*D92,0) -> 0 | E93: =IFERROR(E91*E92,0) -> 0 | F93: =IFERROR(F91*F92,0) -> 0 | G93: =IFERROR(G91*G92,0) -> 0
B95: =IFERROR(Quantity!K21&" outputs",0) -> Compact Fluoro 42W outputs | C95: =PTRM_Inputs!D$12 -> 2026-27 | D95: =PTRM_Inputs!E$12 -> 2027-28 | E95: =PTRM_Inputs!F$12 -> 2028-29 | F95: =PTRM_Inputs!G$12 -> 2029-30 | G95: =PTRM_Inputs!H$12 -> 2030-31
B96: Unit cost | C96: =IFERROR(INDEX(Quantity!$M$7:$M$32,MATCH(LEFT($B95,FIND("outputs",$B95)-2),Quantity!$K$7:$K$32,0))*INDEX(C$9:C$42,MATCH(INDEX(Quantity!$L$7:$L$32,MATCH(LEFT($B95,FIND("outputs",$B95)-2),Quantity!$K$7:$K$32,0))&" outputs",$B$9:$B$42,0)+1),0) -> 24.20902831 | D96: =IFERROR(INDEX(Quantity!$M$7:$M$32,MATCH(LEFT($B95,FIND("outputs",$B95)-2),Quantity!$K$7:$K$32,0))*INDEX(D$9:D$42,MATCH(INDEX(Quantity!$L$7:$L$32,MATCH(LEFT($B95,FIND("outputs",$B95)-2),Quantity!$K$7:$K$32,0))&" outputs",$B$9:$B$42,0)+1),0) -> 24.47144834 | E96: =IFERROR(INDEX(Quantity!$M$7:$M$32,MATCH(LEFT($B95,FIND("outputs",$B95)-2),Quantity!$K$7:$K$32,0))*INDEX(E$9:E$42,MATCH(INDEX(Quantity!$L$7:$L$32,MATCH(LEFT($B95,FIND("outputs",$B95)-2),Quantity!$K$7:$K$32,0))&" outputs",$B$9:$B$42,0)+1),0) -> 24.77564202 | F96: =IFERROR(INDEX(Quantity!$M$7:$M$32,MATCH(LEFT($B95,FIND("outputs",$B95)-2),Quantity!$K$7:$K$32,0))*INDEX(F$9:F$42,MATCH(INDEX(Quantity!$L$7:$L$32,MATCH(LEFT($B95,FIND("outputs",$B95)-2),Quantity!$K$7:$K$32,0))&" outputs",$B$9:$B$42,0)+1),0) -> 25.08153122 | G96: =IFERROR(INDEX(Quantity!$M$7:$M$32,MATCH(LEFT($B95,FIND("outputs",$B95)-2),Quantity!$K$7:$K$32,0))*INDEX(G$9:G$42,MATCH(INDEX(Quantity!$L$7:$L$32,MATCH(LEFT($B95,FIND("outputs",$B95)-2),Quantity!$K$7:$K$32,0))&" outputs",$B$9:$B$42,0)+1),0) -> 25.35726944
B97: Volumes | C97: =IFERROR(INDEX(Quantity!D$7:D$32,MATCH(INDEX(Quantity!$B$7:$B$32,MATCH(LEFT($B95,FIND("outputs",$B95)-2),Quantity!$K$7:$K$32,0),0),Quantity!$B$7:$B$32,0)),0) -> 464.5 | D97: =IFERROR(INDEX(Quantity!E$7:E$32,MATCH(INDEX(Quantity!$B$7:$B$32,MATCH(LEFT($B95,FIND("outputs",$B95)-2),Quantity!$K$7:$K$32,0),0),Quantity!$B$7:$B$32,0)),0) -> 0 | E97: =IFERROR(INDEX(Quantity!F$7:F$32,MATCH(INDEX(Quantity!$B$7:$B$32,MATCH(LEFT($B95,FIND("outputs",$B95)-2),Quantity!$K$7:$K$32,0),0),Quantity!$B$7:$B$32,0)),0) -> 0 | F97: =IFERROR(INDEX(Quantity!G$7:G$32,MATCH(INDEX(Quantity!$B$7:$B$32,MATCH(LEFT($B95,FIND("outputs",$B95)-2),Quantity!$K$7:$K$32,0),0),Quantity!$B$7:$B$32,0)),0) -> 0 | G97: =IFERROR(INDEX(Quantity!H$7:H$32,MATCH(INDEX(Quantity!$B$7:$B$32,MATCH(LEFT($B95,FIND("outputs",$B95)-2),Quantity!$K$7:$K$32,0),0),Quantity!$B$7:$B$32,0)),0) -> 0
B98: Opex | C98: =IFERROR(C96*C97,0) -> 11245.09365 | D98: =IFERROR(D96*D97,0) -> 0 | E98: =IFERROR(E96*E97,0) -> 0 | F98: =IFERROR(F96*F97,0) -> 0 | G98: =IFERROR(G96*G97,0) -> 0
B100: =IFERROR(Quantity!K24&" outputs",0) -> LED V L2 outputs | C100: =PTRM_Inputs!D$12 -> 2026-27 | D100: =PTRM_Inputs!E$12 -> 2027-28 | E100: =PTRM_Inputs!F$12 -> 2028-29 | F100: =PTRM_Inputs!G$12 -> 2029-30 | G100: =PTRM_Inputs!H$12 -> 2030-31
B101: Unit cost | C101: =IFERROR(INDEX(Quantity!$M$7:$M$32,MATCH(LEFT($B100,FIND("outputs",$B100)-2),Quantity!$K$7:$K$32,0))*INDEX(C$9:C$42,MATCH(INDEX(Quantity!$L$7:$L$32,MATCH(LEFT($B100,FIND("outputs",$B100)-2),Quantity!$K$7:$K$32,0))&" outputs",$B$9:$B$42,0)+1),0) -> 43.8362155 | D101: =IFERROR(INDEX(Quantity!$M$7:$M$32,MATCH(LEFT($B100,FIND("outputs",$B100)-2),Quantity!$K$7:$K$32,0))*INDEX(D$9:D$42,MATCH(INDEX(Quantity!$L$7:$L$32,MATCH(LEFT($B100,FIND("outputs",$B100)-2),Quantity!$K$7:$K$32,0))&" outputs",$B$9:$B$42,0)+1),0) -> 44.18609499 | E101: =IFERROR(INDEX(Quantity!$M$7:$M$32,MATCH(LEFT($B100,FIND("outputs",$B100)-2),Quantity!$K$7:$K$32,0))*INDEX(E$9:E$42,MATCH(INDEX(Quantity!$L$7:$L$32,MATCH(LEFT($B100,FIND("outputs",$B100)-2),Quantity!$K$7:$K$32,0))&" outputs",$B$9:$B$42,0)+1),0) -> 44.59582942 | F101: =IFERROR(INDEX(Quantity!$M$7:$M$32,MATCH(LEFT($B100,FIND("outputs",$B100)-2),Quantity!$K$7:$K$32,0))*INDEX(F$9:F$42,MATCH(INDEX(Quantity!$L$7:$L$32,MATCH(LEFT($B100,FIND("outputs",$B100)-2),Quantity!$K$7:$K$32,0))&" outputs",$B$9:$B$42,0)+1),0) -> 45.01026638 | G101: =IFERROR(INDEX(Quantity!$M$7:$M$32,MATCH(LEFT($B100,FIND("outputs",$B100)-2),Quantity!$K$7:$K$32,0))*INDEX(G$9:G$42,MATCH(INDEX(Quantity!$L$7:$L$32,MATCH(LEFT($B100,FIND("outputs",$B100)-2),Quantity!$K$7:$K$32,0))&" outputs",$B$9:$B$42,0)+1),0) -> 45.38558465
B102: Volumes | C102: =IFERROR(INDEX(Quantity!D$7:D$32,MATCH(INDEX(Quantity!$B$7:$B$32,MATCH(LEFT($B100,FIND("outputs",$B100)-2),Quantity!$K$7:$K$32,0),0),Quantity!$B$7:$B$32,0)),0) -> 15073.97028 | D102: =IFERROR(INDEX(Quantity!E$7:E$32,MATCH(INDEX(Quantity!$B$7:$B$32,MATCH(LEFT($B100,FIND("outputs",$B100)-2),Quantity!$K$7:$K$32,0),0),Quantity!$B$7:$B$32,0)),0) -> 16679.41875 | E102: =IFERROR(INDEX(Quantity!F$7:F$32,MATCH(INDEX(Quantity!$B$7:$B$32,MATCH(LEFT($B100,FIND("outputs",$B100)-2),Quantity!$K$7:$K$32,0),0),Quantity!$B$7:$B$32,0)),0) -> 18247.95141 | F102: =IFERROR(INDEX(Quantity!G$7:G$32,MATCH(INDEX(Quantity!$B$7:$B$32,MATCH(LEFT($B100,FIND("outputs",$B100)-2),Quantity!$K$7:$K$32,0),0),Quantity!$B$7:$B$32,0)),0) -> 19825.227 | G102: =IFERROR(INDEX(Quantity!H$7:H$32,MATCH(INDEX(Quantity!$B$7:$B$32,MATCH(LEFT($B100,FIND("outputs",$B100)-2),Quantity!$K$7:$K$32,0),0),Quantity!$B$7:$B$32,0)),0) -> 21439.41561
B103: Opex | C103: =IFERROR(C101*C102,0) -> 660785.8098 | D103: =IFERROR(D101*D102,0) -> 736998.3814 | E103: =IFERROR(E101*E102,0) -> 813782.5284 | F103: =IFERROR(F101*F102,0) -> 892338.7486 | G103: =IFERROR(G101*G102,0) -> 973040.4122
B105: =IFERROR(Quantity!K25&" outputs",0) -> LED V L3 outputs | C105: =PTRM_Inputs!D$12 -> 2026-27 | D105: =PTRM_Inputs!E$12 -> 2027-28 | E105: =PTRM_Inputs!F$12 -> 2028-29 | F105: =PTRM_Inputs!G$12 -> 2029-30 | G105: =PTRM_Inputs!H$12 -> 2030-31
B106: Unit cost | C106: =IFERROR(INDEX(Quantity!$M$7:$M$32,MATCH(LEFT($B105,FIND("outputs",$B105)-2),Quantity!$K$7:$K$32,0))*INDEX(C$9:C$42,MATCH(INDEX(Quantity!$L$7:$L$32,MATCH(LEFT($B105,FIND("outputs",$B105)-2),Quantity!$K$7:$K$32,0))&" outputs",$B$9:$B$42,0)+1),0) -> 49.64767009 | D106: =IFERROR(INDEX(Quantity!$M$7:$M$32,MATCH(LEFT($B105,FIND("outputs",$B105)-2),Quantity!$K$7:$K$32,0))*INDEX(D$9:D$42,MATCH(INDEX(Quantity!$L$7:$L$32,MATCH(LEFT($B105,FIND("outputs",$B105)-2),Quantity!$K$7:$K$32,0))&" outputs",$B$9:$B$42,0)+1),0) -> 50.0439338 | E106: =IFERROR(INDEX(Quantity!$M$7:$M$32,MATCH(LEFT($B105,FIND("outputs",$B105)-2),Quantity!$K$7:$K$32,0))*INDEX(E$9:E$42,MATCH(INDEX(Quantity!$L$7:$L$32,MATCH(LEFT($B105,FIND("outputs",$B105)-2),Quantity!$K$7:$K$32,0))&" outputs",$B$9:$B$42,0)+1),0) -> 50.50798754 | F106: =IFERROR(INDEX(Quantity!$M$7:$M$32,MATCH(LEFT($B105,FIND("outputs",$B105)-2),Quantity!$K$7:$K$32,0))*INDEX(F$9:F$42,MATCH(INDEX(Quantity!$L$7:$L$32,MATCH(LEFT($B105,FIND("outputs",$B105)-2),Quantity!$K$7:$K$32,0))&" outputs",$B$9:$B$42,0)+1),0) -> 50.97736724 | G106: =IFERROR(INDEX(Quantity!$M$7:$M$32,MATCH(LEFT($B105,FIND("outputs",$B105)-2),Quantity!$K$7:$K$32,0))*INDEX(G$9:G$42,MATCH(INDEX(Quantity!$L$7:$L$32,MATCH(LEFT($B105,FIND("outputs",$B105)-2),Quantity!$K$7:$K$32,0))&" outputs",$B$9:$B$42,0)+1),0) -> 51.4024422
B107: Volumes | C107: =IFERROR(INDEX(Quantity!D$7:D$32,MATCH(INDEX(Quantity!$B$7:$B$32,MATCH(LEFT($B105,FIND("outputs",$B105)-2),Quantity!$K$7:$K$32,0),0),Quantity!$B$7:$B$32,0)),0) -> 834.2765283 | D107: =IFERROR(INDEX(Quantity!E$7:E$32,MATCH(INDEX(Quantity!$B$7:$B$32,MATCH(LEFT($B105,FIND("outputs",$B105)-2),Quantity!$K$7:$K$32,0),0),Quantity!$B$7:$B$32,0)),0) -> 890.61267 | E107: =IFERROR(INDEX(Quantity!F$7:F$32,MATCH(INDEX(Quantity!$B$7:$B$32,MATCH(LEFT($B105,FIND("outputs",$B105)-2),Quantity!$K$7:$K$32,0),0),Quantity!$B$7:$B$32,0)),0) -> 927.1438233 | F107: =IFERROR(INDEX(Quantity!G$7:G$32,MATCH(INDEX(Quantity!$B$7:$B$32,MATCH(LEFT($B105,FIND("outputs",$B105)-2),Quantity!$K$7:$K$32,0),0),Quantity!$B$7:$B$32,0)),0) -> 975.6905339 | G107: =IFERROR(INDEX(Quantity!H$7:H$32,MATCH(INDEX(Quantity!$B$7:$B$32,MATCH(LEFT($B105,FIND("outputs",$B105)-2),Quantity!$K$7:$K$32,0),0),Quantity!$B$7:$B$32,0)),0) -> 987.7418874
B108: Opex | C108: =IFERROR(C106*C107,0) -> 41419.88584 | D108: =IFERROR(D106*D107,0) -> 44569.7615 | E108: =IFERROR(E106*E107,0) -> 46828.16868 | F108: =IFERROR(F106*F107,0) -> 49738.13466 | G108: =IFERROR(G106*G107,0) -> 50772.34527
B110: =IFERROR(Quantity!K27&" outputs",0) -> Accelerated replacement charge outputs | C110: =PTRM_Inputs!D$12 -> 2026-27 | D110: =PTRM_Inputs!E$12 -> 2027-28 | E110: =PTRM_Inputs!F$12 -> 2028-29 | F110: =PTRM_Inputs!G$12 -> 2029-30 | G110: =PTRM_Inputs!H$12 -> 2030-31
B111: Unit cost | C111: =Opex_Inputs!$C$240 -> 747.8258266 | D111: =Opex_Inputs!$C$240 -> 747.8258266 | E111: =Opex_Inputs!$C$240 -> 747.8258266 | F111: =Opex_Inputs!$C$240 -> 747.8258266 | G111: =Opex_Inputs!$C$240 -> 747.8258266
B112: Volumes | C112: =IFERROR(INDEX(Quantity!D$7:D$32,MATCH(INDEX(Quantity!$B$7:$B$32,MATCH(LEFT($B110,FIND("outputs",$B110)-2),Quantity!$K$7:$K$32,0),0),Quantity!$B$7:$B$32,0)),0) -> 3281 | D112: =IFERROR(INDEX(Quantity!E$7:E$32,MATCH(INDEX(Quantity!$B$7:$B$32,MATCH(LEFT($B110,FIND("outputs",$B110)-2),Quantity!$K$7:$K$32,0),0),Quantity!$B$7:$B$32,0)),0) -> 3244 | E112: =IFERROR(INDEX(Quantity!F$7:F$32,MATCH(INDEX(Quantity!$B$7:$B$32,MATCH(LEFT($B110,FIND("outputs",$B110)-2),Quantity!$K$7:$K$32,0),0),Quantity!$B$7:$B$32,0)),0) -> 3234 | F112: =IFERROR(INDEX(Quantity!G$7:G$32,MATCH(INDEX(Quantity!$B$7:$B$32,MATCH(LEFT($B110,FIND("outputs",$B110)-2),Quantity!$K$7:$K$32,0),0),Quantity!$B$7:$B$32,0)),0) -> 3235 | G112: =IFERROR(INDEX(Quantity!H$7:H$32,MATCH(INDEX(Quantity!$B$7:$B$32,MATCH(LEFT($B110,FIND("outputs",$B110)-2),Quantity!$K$7:$K$32,0),0),Quantity!$B$7:$B$32,0)),0) -> 3200
B113: Opex | C113: =IFERROR(C111*C112,0) -> 2453616.537 | D113: =IFERROR(D111*D112,0) -> 2425946.982 | E113: =IFERROR(E111*E112,0) -> 2418468.723 | F113: =IFERROR(F111*F112,0) -> 2419216.549 | G113: =IFERROR(G111*G112,0) -> 2393042.645
B115: =IFERROR(Quantity!K28&" outputs",0) -> outputs | C115: =PTRM_Inputs!D$12 -> 2026-27 | D115: =PTRM_Inputs!E$12 -> 2027-28 | E115: =PTRM_Inputs!F$12 -> 2028-29 | F115: =PTRM_Inputs!G$12 -> 2029-30 | G115: =PTRM_Inputs!H$12 -> 2030-31
B116: Unit cost | C116: =IFERROR(INDEX(Quantity!$M$7:$M$32,MATCH(LEFT($B115,FIND("outputs",$B115)-2),Quantity!$K$7:$K$32,0))*INDEX(C$9:C$42,MATCH(INDEX(Quantity!$L$7:$L$32,MATCH(LEFT($B115,FIND("outputs",$B115)-2),Quantity!$K$7:$K$32,0))&" outputs",$B$9:$B$42,0)+1),0) -> 0 | D116: =IFERROR(INDEX(Quantity!$M$7:$M$32,MATCH(LEFT($B115,FIND("outputs",$B115)-2),Quantity!$K$7:$K$32,0))*INDEX(D$9:D$42,MATCH(INDEX(Quantity!$L$7:$L$32,MATCH(LEFT($B115,FIND("outputs",$B115)-2),Quantity!$K$7:$K$32,0))&" outputs",$B$9:$B$42,0)+1),0) -> 0 | E116: =IFERROR(INDEX(Quantity!$M$7:$M$32,MATCH(LEFT($B115,FIND("outputs",$B115)-2),Quantity!$K$7:$K$32,0))*INDEX(E$9:E$42,MATCH(INDEX(Quantity!$L$7:$L$32,MATCH(LEFT($B115,FIND("outputs",$B115)-2),Quantity!$K$7:$K$32,0))&" outputs",$B$9:$B$42,0)+1),0) -> 0 | F116: =IFERROR(INDEX(Quantity!$M$7:$M$32,MATCH(LEFT($B115,FIND("outputs",$B115)-2),Quantity!$K$7:$K$32,0))*INDEX(F$9:F$42,MATCH(INDEX(Quantity!$L$7:$L$32,MATCH(LEFT($B115,FIND("outputs",$B115)-2),Quantity!$K$7:$K$32,0))&" outputs",$B$9:$B$42,0)+1),0) -> 0 | G116: =IFERROR(INDEX(Quantity!$M$7:$M$32,MATCH(LEFT($B115,FIND("outputs",$B115)-2),Quantity!$K$7:$K$32,0))*INDEX(G$9:G$42,MATCH(INDEX(Quantity!$L$7:$L$32,MATCH(LEFT($B115,FIND("outputs",$B115)-2),Quantity!$K$7:$K$32,0))&" outputs",$B$9:$B$42,0)+1),0) -> 0
B117: Volumes | C117: =IFERROR(INDEX(Quantity!D$7:D$32,MATCH(INDEX(Quantity!$B$7:$B$32,MATCH(LEFT($B115,FIND("outputs",$B115)-2),Quantity!$K$7:$K$32,0),0),Quantity!$B$7:$B$32,0)),0) -> 0 | D117: =IFERROR(INDEX(Quantity!E$7:E$32,MATCH(INDEX(Quantity!$B$7:$B$32,MATCH(LEFT($B115,FIND("outputs",$B115)-2),Quantity!$K$7:$K$32,0),0),Quantity!$B$7:$B$32,0)),0) -> 0 | E117: =IFERROR(INDEX(Quantity!F$7:F$32,MATCH(INDEX(Quantity!$B$7:$B$32,MATCH(LEFT($B115,FIND("outputs",$B115)-2),Quantity!$K$7:$K$32,0),0),Quantity!$B$7:$B$32,0)),0) -> 0 | F117: =IFERROR(INDEX(Quantity!G$7:G$32,MATCH(INDEX(Quantity!$B$7:$B$32,MATCH(LEFT($B115,FIND("outputs",$B115)-2),Quantity!$K$7:$K$32,0),0),Quantity!$B$7:$B$32,0)),0) -> 0 | G117: =IFERROR(INDEX(Quantity!H$7:H$32,MATCH(INDEX(Quantity!$B$7:$B$32,MATCH(LEFT($B115,FIND("outputs",$B115)-2),Quantity!$K$7:$K$32,0),0),Quantity!$B$7:$B$32,0)),0) -> 0
B118: Opex | C118: =IFERROR(C116*C117,0) -> 0 | D118: =IFERROR(D116*D117,0) -> 0 | E118: =IFERROR(E116*E117,0) -> 0 | F118: =IFERROR(F116*F117,0) -> 0 | G118: =IFERROR(G116*G117,0) -> 0
B120: =IFERROR(Quantity!K29&" outputs",0) -> outputs | C120: =PTRM_Inputs!D$12 -> 2026-27 | D120: =PTRM_Inputs!E$12 -> 2027-28 | E120: =PTRM_Inputs!F$12 -> 2028-29 | F120: =PTRM_Inputs!G$12 -> 2029-30 | G120: =PTRM_Inputs!H$12 -> 2030-31
B121: Unit cost | C121: =IFERROR(INDEX(Quantity!$M$7:$M$32,MATCH(LEFT($B120,FIND("outputs",$B120)-2),Quantity!$K$7:$K$32,0))*INDEX(C$9:C$42,MATCH(INDEX(Quantity!$L$7:$L$32,MATCH(LEFT($B120,FIND("outputs",$B120)-2),Quantity!$K$7:$K$32,0))&" outputs",$B$9:$B$42,0)+1),0) -> 0 | D121: =IFERROR(INDEX(Quantity!$M$7:$M$32,MATCH(LEFT($B120,FIND("outputs",$B120)-2),Quantity!$K$7:$K$32,0))*INDEX(D$9:D$42,MATCH(INDEX(Quantity!$L$7:$L$32,MATCH(LEFT($B120,FIND("outputs",$B120)-2),Quantity!$K$7:$K$32,0))&" outputs",$B$9:$B$42,0)+1),0) -> 0 | E121: =IFERROR(INDEX(Quantity!$M$7:$M$32,MATCH(LEFT($B120,FIND("outputs",$B120)-2),Quantity!$K$7:$K$32,0))*INDEX(E$9:E$42,MATCH(INDEX(Quantity!$L$7:$L$32,MATCH(LEFT($B120,FIND("outputs",$B120)-2),Quantity!$K$7:$K$32,0))&" outputs",$B$9:$B$42,0)+1),0) -> 0 | F121: =IFERROR(INDEX(Quantity!$M$7:$M$32,MATCH(LEFT($B120,FIND("outputs",$B120)-2),Quantity!$K$7:$K$32,0))*INDEX(F$9:F$42,MATCH(INDEX(Quantity!$L$7:$L$32,MATCH(LEFT($B120,FIND("outputs",$B120)-2),Quantity!$K$7:$K$32,0))&" outputs",$B$9:$B$42,0)+1),0) -> 0 | G121: =IFERROR(INDEX(Quantity!$M$7:$M$32,MATCH(LEFT($B120,FIND("outputs",$B120)-2),Quantity!$K$7:$K$32,0))*INDEX(G$9:G$42,MATCH(INDEX(Quantity!$L$7:$L$32,MATCH(LEFT($B120,FIND("outputs",$B120)-2),Quantity!$K$7:$K$32,0))&" outputs",$B$9:$B$42,0)+1),0) -> 0
B122: Volumes | C122: =IFERROR(INDEX(Quantity!D$7:D$32,MATCH(INDEX(Quantity!$B$7:$B$32,MATCH(LEFT($B120,FIND("outputs",$B120)-2),Quantity!$K$7:$K$32,0),0),Quantity!$B$7:$B$32,0)),0) -> 0 | D122: =IFERROR(INDEX(Quantity!E$7:E$32,MATCH(INDEX(Quantity!$B$7:$B$32,MATCH(LEFT($B120,FIND("outputs",$B120)-2),Quantity!$K$7:$K$32,0),0),Quantity!$B$7:$B$32,0)),0) -> 0 | E122: =IFERROR(INDEX(Quantity!F$7:F$32,MATCH(INDEX(Quantity!$B$7:$B$32,MATCH(LEFT($B120,FIND("outputs",$B120)-2),Quantity!$K$7:$K$32,0),0),Quantity!$B$7:$B$32,0)),0) -> 0 | F122: =IFERROR(INDEX(Quantity!G$7:G$32,MATCH(INDEX(Quantity!$B$7:$B$32,MATCH(LEFT($B120,FIND("outputs",$B120)-2),Quantity!$K$7:$K$32,0),0),Quantity!$B$7:$B$32,0)),0) -> 0 | G122: =IFERROR(INDEX(Quantity!H$7:H$32,MATCH(INDEX(Quantity!$B$7:$B$32,MATCH(LEFT($B120,FIND("outputs",$B120)-2),Quantity!$K$7:$K$32,0),0),Quantity!$B$7:$B$32,0)),0) -> 0
B123: Opex | C123: =IFERROR(C121*C122,0) -> 0 | D123: =IFERROR(D121*D122,0) -> 0 | E123: =IFERROR(E121*E122,0) -> 0 | F123: =IFERROR(F121*F122,0) -> 0 | G123: =IFERROR(G121*G122,0) -> 0
B125: =IFERROR(Quantity!K30&" outputs",0) -> outputs | C125: =PTRM_Inputs!D$12 -> 2026-27 | D125: =PTRM_Inputs!E$12 -> 2027-28 | E125: =PTRM_Inputs!F$12 -> 2028-29 | F125: =PTRM_Inputs!G$12 -> 2029-30 | G125: =PTRM_Inputs!H$12 -> 2030-31
B126: Unit cost | C126: =IFERROR(INDEX(Quantity!$M$7:$M$32,MATCH(LEFT($B125,FIND("outputs",$B125)-2),Quantity!$K$7:$K$32,0))*INDEX(C$9:C$42,MATCH(INDEX(Quantity!$L$7:$L$32,MATCH(LEFT($B125,FIND("outputs",$B125)-2),Quantity!$K$7:$K$32,0))&" outputs",$B$9:$B$42,0)+1),0) -> 0 | D126: =IFERROR(INDEX(Quantity!$M$7:$M$32,MATCH(LEFT($B125,FIND("outputs",$B125)-2),Quantity!$K$7:$K$32,0))*INDEX(D$9:D$42,MATCH(INDEX(Quantity!$L$7:$L$32,MATCH(LEFT($B125,FIND("outputs",$B125)-2),Quantity!$K$7:$K$32,0))&" outputs",$B$9:$B$42,0)+1),0) -> 0 | E126: =IFERROR(INDEX(Quantity!$M$7:$M$32,MATCH(LEFT($B125,FIND("outputs",$B125)-2),Quantity!$K$7:$K$32,0))*INDEX(E$9:E$42,MATCH(INDEX(Quantity!$L$7:$L$32,MATCH(LEFT($B125,FIND("outputs",$B125)-2),Quantity!$K$7:$K$32,0))&" outputs",$B$9:$B$42,0)+1),0) -> 0 | F126: =IFERROR(INDEX(Quantity!$M$7:$M$32,MATCH(LEFT($B125,FIND("outputs",$B125)-2),Quantity!$K$7:$K$32,0))*INDEX(F$9:F$42,MATCH(INDEX(Quantity!$L$7:$L$32,MATCH(LEFT($B125,FIND("outputs",$B125)-2),Quantity!$K$7:$K$32,0))&" outputs",$B$9:$B$42,0)+1),0) -> 0 | G126: =IFERROR(INDEX(Quantity!$M$7:$M$32,MATCH(LEFT($B125,FIND("outputs",$B125)-2),Quantity!$K$7:$K$32,0))*INDEX(G$9:G$42,MATCH(INDEX(Quantity!$L$7:$L$32,MATCH(LEFT($B125,FIND("outputs",$B125)-2),Quantity!$K$7:$K$32,0))&" outputs",$B$9:$B$42,0)+1),0) -> 0
B127: Volumes | C127: =IFERROR(INDEX(Quantity!D$7:D$32,MATCH(INDEX(Quantity!$B$7:$B$32,MATCH(LEFT($B125,FIND("outputs",$B125)-2),Quantity!$K$7:$K$32,0),0),Quantity!$B$7:$B$32,0)),0) -> 0 | D127: =IFERROR(INDEX(Quantity!E$7:E$32,MATCH(INDEX(Quantity!$B$7:$B$32,MATCH(LEFT($B125,FIND("outputs",$B125)-2),Quantity!$K$7:$K$32,0),0),Quantity!$B$7:$B$32,0)),0) -> 0 | E127: =IFERROR(INDEX(Quantity!F$7:F$32,MATCH(INDEX(Quantity!$B$7:$B$32,MATCH(LEFT($B125,FIND("outputs",$B125)-2),Quantity!$K$7:$K$32,0),0),Quantity!$B$7:$B$32,0)),0) -> 0 | F127: =IFERROR(INDEX(Quantity!G$7:G$32,MATCH(INDEX(Quantity!$B$7:$B$32,MATCH(LEFT($B125,FIND("outputs",$B125)-2),Quantity!$K$7:$K$32,0),0),Quantity!$B$7:$B$32,0)),0) -> 0 | G127: =IFERROR(INDEX(Quantity!H$7:H$32,MATCH(INDEX(Quantity!$B$7:$B$32,MATCH(LEFT($B125,FIND("outputs",$B125)-2),Quantity!$K$7:$K$32,0),0),Quantity!$B$7:$B$32,0)),0) -> 0
B128: Opex | C128: =IFERROR(C126*C127,0) -> 0 | D128: =IFERROR(D126*D127,0) -> 0 | E128: =IFERROR(E126*E127,0) -> 0 | F128: =IFERROR(F126*F127,0) -> 0 | G128: =IFERROR(G126*G127,0) -> 0
B130: =IFERROR(Quantity!K31&" outputs",0) -> outputs | C130: =PTRM_Inputs!D$12 -> 2026-27 | D130: =PTRM_Inputs!E$12 -> 2027-28 | E130: =PTRM_Inputs!F$12 -> 2028-29 | F130: =PTRM_Inputs!G$12 -> 2029-30 | G130: =PTRM_Inputs!H$12 -> 2030-31
B131: Unit cost | C131: =IFERROR(INDEX(Quantity!$M$7:$M$32,MATCH(LEFT($B130,FIND("outputs",$B130)-2),Quantity!$K$7:$K$32,0))*INDEX(C$9:C$42,MATCH(INDEX(Quantity!$L$7:$L$32,MATCH(LEFT($B130,FIND("outputs",$B130)-2),Quantity!$K$7:$K$32,0))&" outputs",$B$9:$B$42,0)+1),0) -> 0 | D131: =IFERROR(INDEX(Quantity!$M$7:$M$32,MATCH(LEFT($B130,FIND("outputs",$B130)-2),Quantity!$K$7:$K$32,0))*INDEX(D$9:D$42,MATCH(INDEX(Quantity!$L$7:$L$32,MATCH(LEFT($B130,FIND("outputs",$B130)-2),Quantity!$K$7:$K$32,0))&" outputs",$B$9:$B$42,0)+1),0) -> 0 | E131: =IFERROR(INDEX(Quantity!$M$7:$M$32,MATCH(LEFT($B130,FIND("outputs",$B130)-2),Quantity!$K$7:$K$32,0))*INDEX(E$9:E$42,MATCH(INDEX(Quantity!$L$7:$L$32,MATCH(LEFT($B130,FIND("outputs",$B130)-2),Quantity!$K$7:$K$32,0))&" outputs",$B$9:$B$42,0)+1),0) -> 0 | F131: =IFERROR(INDEX(Quantity!$M$7:$M$32,MATCH(LEFT($B130,FIND("outputs",$B130)-2),Quantity!$K$7:$K$32,0))*INDEX(F$9:F$42,MATCH(INDEX(Quantity!$L$7:$L$32,MATCH(LEFT($B130,FIND("outputs",$B130)-2),Quantity!$K$7:$K$32,0))&" outputs",$B$9:$B$42,0)+1),0) -> 0 | G131: =IFERROR(INDEX(Quantity!$M$7:$M$32,MATCH(LEFT($B130,FIND("outputs",$B130)-2),Quantity!$K$7:$K$32,0))*INDEX(G$9:G$42,MATCH(INDEX(Quantity!$L$7:$L$32,MATCH(LEFT($B130,FIND("outputs",$B130)-2),Quantity!$K$7:$K$32,0))&" outputs",$B$9:$B$42,0)+1),0) -> 0
B132: Volumes | C132: =IFERROR(INDEX(Quantity!D$7:D$32,MATCH(INDEX(Quantity!$B$7:$B$32,MATCH(LEFT($B130,FIND("outputs",$B130)-2),Quantity!$K$7:$K$32,0),0),Quantity!$B$7:$B$32,0)),0) -> 0 | D132: =IFERROR(INDEX(Quantity!E$7:E$32,MATCH(INDEX(Quantity!$B$7:$B$32,MATCH(LEFT($B130,FIND("outputs",$B130)-2),Quantity!$K$7:$K$32,0),0),Quantity!$B$7:$B$32,0)),0) -> 0 | E132: =IFERROR(INDEX(Quantity!F$7:F$32,MATCH(INDEX(Quantity!$B$7:$B$32,MATCH(LEFT($B130,FIND("outputs",$B130)-2),Quantity!$K$7:$K$32,0),0),Quantity!$B$7:$B$32,0)),0) -> 0 | F132: =IFERROR(INDEX(Quantity!G$7:G$32,MATCH(INDEX(Quantity!$B$7:$B$32,MATCH(LEFT($B130,FIND("outputs",$B130)-2),Quantity!$K$7:$K$32,0),0),Quantity!$B$7:$B$32,0)),0) -> 0 | G132: =IFERROR(INDEX(Quantity!H$7:H$32,MATCH(INDEX(Quantity!$B$7:$B$32,MATCH(LEFT($B130,FIND("outputs",$B130)-2),Quantity!$K$7:$K$32,0),0),Quantity!$B$7:$B$32,0)),0) -> 0
B133: Opex | C133: =IFERROR(C131*C132,0) -> 0 | D133: =IFERROR(D131*D132,0) -> 0 | E133: =IFERROR(E131*E132,0) -> 0 | F133: =IFERROR(F131*F132,0) -> 0 | G133: =IFERROR(G131*G132,0) -> 0
B135: =IFERROR(Quantity!K32&" outputs",0) -> outputs | C135: =PTRM_Inputs!D$12 -> 2026-27 | D135: =PTRM_Inputs!E$12 -> 2027-28 | E135: =PTRM_Inputs!F$12 -> 2028-29 | F135: =PTRM_Inputs!G$12 -> 2029-30 | G135: =PTRM_Inputs!H$12 -> 2030-31
B136: Unit cost | C136: =IFERROR(INDEX(Quantity!$M$7:$M$32,MATCH(LEFT($B135,FIND("outputs",$B135)-2),Quantity!$K$7:$K$32,0))*INDEX(C$9:C$42,MATCH(INDEX(Quantity!$L$7:$L$32,MATCH(LEFT($B135,FIND("outputs",$B135)-2),Quantity!$K$7:$K$32,0))&" outputs",$B$9:$B$42,0)+1),0) -> 0 | D136: =IFERROR(INDEX(Quantity!$M$7:$M$32,MATCH(LEFT($B135,FIND("outputs",$B135)-2),Quantity!$K$7:$K$32,0))*INDEX(D$9:D$42,MATCH(INDEX(Quantity!$L$7:$L$32,MATCH(LEFT($B135,FIND("outputs",$B135)-2),Quantity!$K$7:$K$32,0))&" outputs",$B$9:$B$42,0)+1),0) -> 0 | E136: =IFERROR(INDEX(Quantity!$M$7:$M$32,MATCH(LEFT($B135,FIND("outputs",$B135)-2),Quantity!$K$7:$K$32,0))*INDEX(E$9:E$42,MATCH(INDEX(Quantity!$L$7:$L$32,MATCH(LEFT($B135,FIND("outputs",$B135)-2),Quantity!$K$7:$K$32,0))&" outputs",$B$9:$B$42,0)+1),0) -> 0 | F136: =IFERROR(INDEX(Quantity!$M$7:$M$32,MATCH(LEFT($B135,FIND("outputs",$B135)-2),Quantity!$K$7:$K$32,0))*INDEX(F$9:F$42,MATCH(INDEX(Quantity!$L$7:$L$32,MATCH(LEFT($B135,FIND("outputs",$B135)-2),Quantity!$K$7:$K$32,0))&" outputs",$B$9:$B$42,0)+1),0) -> 0 | G136: =IFERROR(INDEX(Quantity!$M$7:$M$32,MATCH(LEFT($B135,FIND("outputs",$B135)-2),Quantity!$K$7:$K$32,0))*INDEX(G$9:G$42,MATCH(INDEX(Quantity!$L$7:$L$32,MATCH(LEFT($B135,FIND("outputs",$B135)-2),Quantity!$K$7:$K$32,0))&" outputs",$B$9:$B$42,0)+1),0) -> 0
B137: Volumes | C137: =IFERROR(INDEX(Quantity!D$7:D$32,MATCH(INDEX(Quantity!$B$7:$B$32,MATCH(LEFT($B135,FIND("outputs",$B135)-2),Quantity!$K$7:$K$32,0),0),Quantity!$B$7:$B$32,0)),0) -> 0 | D137: =IFERROR(INDEX(Quantity!E$7:E$32,MATCH(INDEX(Quantity!$B$7:$B$32,MATCH(LEFT($B135,FIND("outputs",$B135)-2),Quantity!$K$7:$K$32,0),0),Quantity!$B$7:$B$32,0)),0) -> 0 | E137: =IFERROR(INDEX(Quantity!F$7:F$32,MATCH(INDEX(Quantity!$B$7:$B$32,MATCH(LEFT($B135,FIND("outputs",$B135)-2),Quantity!$K$7:$K$32,0),0),Quantity!$B$7:$B$32,0)),0) -> 0 | F137: =IFERROR(INDEX(Quantity!G$7:G$32,MATCH(INDEX(Quantity!$B$7:$B$32,MATCH(LEFT($B135,FIND("outputs",$B135)-2),Quantity!$K$7:$K$32,0),0),Quantity!$B$7:$B$32,0)),0) -> 0 | G137: =IFERROR(INDEX(Quantity!H$7:H$32,MATCH(INDEX(Quantity!$B$7:$B$32,MATCH(LEFT($B135,FIND("outputs",$B135)-2),Quantity!$K$7:$K$32,0),0),Quantity!$B$7:$B$32,0)),0) -> 0
B138: Opex | C138: =IFERROR(C136*C137,0) -> 0 | D138: =IFERROR(D136*D137,0) -> 0 | E138: =IFERROR(E136*E137,0) -> 0 | F138: =IFERROR(F136*F137,0) -> 0 | G138: =IFERROR(G136*G137,0) -> 0

Sheet Capex_Inputs
B2: =IFERROR(General_inputs!$C$5&" public lighting capex inputs",0) -> Powercor public lighting capex inputs | C2: Inputs
B3: =IFERROR("($m Real "&General_inputs!$C$9&")",0) -> ($m Real 2025-26)
B5: General input parameters | C5: =IFERROR(Quantity!D$6,0) -> 2026-27 | D5: =IFERROR(Quantity!E$6,0) -> 2027-28 | E5: =IFERROR(Quantity!F$6,0) -> 2028-29 | F5: =IFERROR(Quantity!G$6,0) -> 2029-30 | G5: =IFERROR(Quantity!H$6,0) -> 2030-31
B7: Inputs - all lamps
B8: Labour rate (per hour) | C8: =Opex_Inputs!C12 -> 118.1654827 | D8: =Opex_Inputs!D12 -> 119.2825353 | E8: =Opex_Inputs!E12 -> 120.6754105 | F8: =Opex_Inputs!F12 -> 122.1330454 | G8: =Opex_Inputs!G12 -> 123.4878088
B9: Number of men in crew | C9: 2
B10: Elevated platform vehicle (per hour) - urban | C10: =Opex_Inputs!C14 -> 62.25276407 | D10: =Opex_Inputs!D14 -> 62.25276407 | E10: =Opex_Inputs!E14 -> 62.25276407 | F10: =Opex_Inputs!F14 -> 62.25276407 | G10: =Opex_Inputs!G14 -> 62.25276407
B11: Elevated platform vehicle (per hour) - rural | C11: =Opex_Inputs!C15 -> 78.59613326 | D11: =Opex_Inputs!D15 -> 78.59613326 | E11: =Opex_Inputs!E15 -> 78.59613326 | F11: =Opex_Inputs!F15 -> 78.59613326 | G11: =Opex_Inputs!G15 -> 78.59613326
B12: Crane truck rate (per hour) | C12: 198.5290218
B13: Tipper (per hour) | C13: 26.5877709
B14: Number of hours in a day | C14: 8
B15: Material premium for rural areas | C15: 0.05
B18: =IFERROR(Capex_Calcs!B6&" inputs",0) -> Dedicated street lighting poles inputs | C18: =IFERROR(LEFT(Quantity!$D$6,4)&"-"&RIGHT(Quantity!$H$6,2),0) -> 2026-31
B19: Unit cost - Pole and bracket | C19: 1985.052797
B20: Number of poles and brackets replaced per day | C20: 3
C22: =IFERROR(Quantity!D$6,0) -> 2026-27 | D22: =IFERROR(Quantity!E$6,0) -> 2027-28 | E22: =IFERROR(Quantity!F$6,0) -> 2028-29 | F22: =IFERROR(Quantity!G$6,0) -> 2029-30 | G22: =IFERROR(Quantity!H$6,0) -> 2030-31
B23: Number of poles and brackets replaced per year - urban | C23: 365.3797432 | D23: 437.8416082 | E23: 510.3034732 | F23: 582.7653383 | G23: 654.6131197
B24: Number of poles and brackets replaced per year - rural | C24: 203.6779577 | D24: 244.0712334 | E24: 284.464509 | F24: 324.8577847 | G24: 364.9087444
B25: Number of poles and brackets replaced per year - remote | C25: 25.94229912 | D25: 31.08715844 | E25: 36.23201776 | F25: 41.37687708 | G25: 46.4781359
B27: Other poles & brackets Capex - reinforecements and unearthed conductive poles | C27: 476000 | D27: 570400 | E27: 664800 | F27: 759200 | G27: 852800
B30: =IFERROR(Capex_Calcs!B65&" inputs",0) -> Brackets on non-dedicated poles inputs | C30: =IFERROR(LEFT(Quantity!$D$6,4)&"-"&RIGHT(Quantity!$H$6,2),0) -> 2026-31
B31: Unit cost - Bracket on non-dedicated poles | C31: 161.1749167
B32: Number of non-dedicated pole brackets replaced per day | C32: 17.28
C34: =IFERROR(Quantity!D$6,0) -> 2026-27 | D34: =IFERROR(Quantity!E$6,0) -> 2027-28 | E34: =IFERROR(Quantity!F$6,0) -> 2028-29 | F34: =IFERROR(Quantity!G$6,0) -> 2029-30 | G34: =IFERROR(Quantity!H$6,0) -> 2030-31
B35: Number of non-dedicated pole brackets replaced per year - urban | C35: 72.24906877 | D35: 72.24906877 | E35: 72.24906877 | F35: 72.24906877 | G35: 72.24906877
B36: Number of non-dedicated pole brackets replaced per year - rural | C36: 25.41767503 | D36: 30.45849126 | E36: 35.49930748 | F36: 40.54012371 | G36: 45.53822115
B37: Number of non-dedicated pole brackets replaced per year - remote | C37: 4.961101256 | D37: 5.944983522 | E37: 6.928865788 | F37: 7.912748053 | G37: 8.888292334
B40: =IFERROR(Capex_Calcs!B107&" inputs",0) -> LED P inputs | C40: =IFERROR(LEFT(Quantity!$D$6,4)&"-"&RIGHT(Quantity!$H$6,2),0) -> 2026-31
B41: Unit cost - luminaire | C41: =Opex_Inputs!$C$152 -> 217.3027113
C43: =IFERROR(Quantity!D$6,0) -> 2026-27 | D43: =IFERROR(Quantity!E$6,0) -> 2027-28 | E43: =IFERROR(Quantity!F$6,0) -> 2028-29 | F43: =IFERROR(Quantity!G$6,0) -> 2029-30 | G43: =IFERROR(Quantity!H$6,0) -> 2030-31
B44: Number of luminaires replaced per day - urban | C44: 12 | D44: 12 | E44: 12 | F44: 12 | G44: 12
B45: Number of luminaires replaced per day - rural | C45: 10 | D45: 10 | E45: 10 | F45: 10 | G45: 10
B46: Number of luminaires replaced per day - remote | C46: 8 | D46: 8 | E46: 8 | F46: 8 | G46: 8
B47: Number of luminaires replaced per year - urban | C47: 3679.837934 | D47: 2648.804442 | E47: 2577.280661 | F47: 1878.408459 | G47: 3174.322395
B48: Number of luminaires replaced per year - rural | C48: 2115.938925 | D48: 1523.08567 | E48: 1481.958872 | F48: 1080.101257 | G48: 1825.263079
B49: Number of luminaires replaced per year - remote | C49: 275.223141 | D49: 198.1098874 | E49: 192.7604671 | F49: 140.490284 | G49: 237.4145263
B50: Number of luminaires replacing other lights per year - urban | C50: 845.9202471 | D50: 1015.104297 | E50: 1218.125156 | F50: 1461.750187 | G50: 1754.100224
B51: Number of luminaires replacing other lights per year - rural | C51: 486.4115243 | D51: 583.6938292 | E51: 700.432595 | F51: 840.519114 | G51: 1008.622937
B52: Number of luminaires replacing other lights per year - remote | C52: 63.26822856 | D52: 75.92187427 | E52: 91.10624912 | F52: 109.3274989 | G52: 131.1929987
B55: =IFERROR(Capex_Calcs!B151&" inputs",0) -> LED V inputs | C55: =IFERROR(LEFT(Quantity!$D$6,4)&"-"&RIGHT(Quantity!$H$6,2),0) -> 2026-31
B56: Unit cost - luminaire | C56: =Opex_Inputs!$C$202 -> 386.1758246
C58: =IFERROR(Quantity!D$6,0) -> 2026-27 | D58: =IFERROR(Quantity!E$6,0) -> 2027-28 | E58: =IFERROR(Quantity!F$6,0) -> 2028-29 | F58: =IFERROR(Quantity!G$6,0) -> 2029-30 | G58: =IFERROR(Quantity!H$6,0) -> 2030-31
B59: Number of luminaires replaced per day - urban | C59: 12 | D59: 12 | E59: 12 | F59: 12 | G59: 12
B60: Number of luminaires replaced per day - rural | C60: 10 | D60: 10 | E60: 10 | F60: 10 | G60: 10
B61: Number of luminaires replaced per day - remote | C61: 8 | D61: 8 | E61: 8 | F61: 8 | G61: 8
B62: Number of luminaires replaced per year - urban | C62: 626.365274 | D62: 626.365274 | E62: 626.365274 | F62: 626.365274 | G62: 626.365274
B63: Number of luminaires replaced per year - rural | C63: 349.1622132 | D63: 349.1622132 | E63: 349.1622132 | F63: 349.1622132 | G63: 349.1622132
B64: Number of luminaires replaced per year - remote | C64: 44.47251277 | D64: 44.47251277 | E64: 44.47251277 | F64: 44.47251277 | G64: 44.47251277
B65: Number of luminaires replacing other lights per year - urban | C65: 123.0623538 | D65: 123.0623538 | E65: 123.0623538 | F65: 123.0623538 | G65: 123.0623538
B66: Number of luminaires replacing other lights per year - rural | C66: 68.60010542 | D66: 68.60010542 | E66: 68.60010542 | F66: 68.60010542 | G66: 68.60010542
B67: Number of luminaires replacing other lights per year - remote | C67: 8.737540745 | D67: 8.737540745 | E67: 8.737540745 | F67: 8.737540745 | G67: 8.737540745
B70: Category V LED ACCELARATED TRANSITION - SMART CELLS
B71: LED V
B73: Category V LED ACCELARATED TRANSITION - SMART CELLS calcs | C73: 2026-27 | D73: 2027-28 | E73: 2028-29 | F73: 2029-30 | G73: 2030-31
B74: Unitised replacement cost - Infill smart cells | C74: 244.8207173 | D74: 244.8207173 | E74: 244.8207173 | F74: 244.8207173 | G74: 244.8207173
B75: Unitised replacement cost - Additional Lanterns | C75: 560.1261972 | D75: 560.1261972 | E75: 560.1261972 | F75: 560.1261972 | G75: 560.1261972
B77: Number of infill smart cells | C77: 5973.4 | D77: 5973.4 | E77: 5973.4 | F77: 5973.4 | G77: 5973.4
B78: Number of additional lanterns | C78: 505.4 | D78: 505.4 | E78: 505.4 | F78: 505.4 | G78: 505.4

Sheet Capex_Calcs
B2: =IFERROR(General_inputs!$C$5&" public lighting capex calculations",0) -> Powercor public lighting capex calculations
B3: =IFERROR("($m Real "&General_inputs!$C$9&")",0) -> ($m Real 2025-26)
B6: Dedicated street lighting poles
B9: =IFERROR($B$6&" calcs",0) -> Dedicated street lighting poles calcs | C9: =IFERROR(Quantity!D$6,0) -> 2026-27 | D9: =IFERROR(Quantity!E$6,0) -> 2027-28 | E9: =IFERROR(Quantity!F$6,0) -> 2028-29 | F9: =IFERROR(Quantity!G$6,0) -> 2029-30 | G9: =IFERROR(Quantity!H$6,0) -> 2030-31
B10: =B30 -> Capex - Dedicated street lighting poles - Urban | C10: =G30 -> 1630643.581 | D10: =L30 -> 1956640.211 | E10: =Q30 -> 2284250.924 | F10: =V30 -> 2613139.506 | G10: =AA30 -> 2940037.235
B11: =B46 -> Capex - Dedicated street lighting poles - Rural | C11: =G46 -> 769031.5981 | D11: =L46 -> 922999.5098 | E11: =Q46 -> 1077867.179 | F11: =V46 -> 1233447.186 | G11: =AA46 -> 1388152.631
B12: =B62 -> Capex - Dedicated street lighting poles - Remote | C12: =G62 -> 98376.78055 | D12: =L62 -> 118072.0028 | E12: =Q62 -> 137881.8265 | F12: =V62 -> 157782.38 | G12: =AA62 -> 177570.8256
B13: ="Total Capex - "&B6 -> Total Capex - Dedicated street lighting poles | C13: =SUM(C10:C12) -> 2498051.959 | D13: =SUM(D10:D12) -> 2997711.723 | E13: =SUM(E10:E12) -> 3499999.93 | F13: =SUM(F10:F12) -> 4004369.072 | G13: =SUM(G10:G12) -> 4505760.692
C15: =C9 -> 2026-27 | H15: =D9 -> 2027-28 | M15: =E9 -> 2028-29 | R15: =F9 -> 2029-30 | W15: =G9 -> 2030-31
B16: =IFERROR($B$6&" detailed cost build-up - urban",0) -> Dedicated street lighting poles detailed cost build-up - urban | C16: Unit rate | D16: Number | E16: Hours | F16: Cost | G16: Annualised | H16: Unit rate | I16: Number | J16: Hours | K16: Cost | L16: Annualised | M16: Unit rate | N16: Number | O16: Hours | P16: Cost | Q16: Annualised | R16: Unit rate | S16: Number | T16: Hours | U16: Cost | V16: Annualised | W16: Unit rate | X16: Number | Y16: Hours | Z16: Cost | AA16: Annualised
G17: cost | L17: cost | Q17: cost | V17: cost | AA17: cost
B18: Material | C18: =IFERROR(Capex_Inputs!$C$19,0) -> 1985.052797 | D18: =IFERROR(Capex_Inputs!$C$20,0) -> 3 | F18: =IFERROR(C18*D18,0) -> 5955.158392 | G18: =(F18+F19+F20)/D18 -> 2781.276076 | H18: =IFERROR(Capex_Inputs!$C$19,0) -> 1985.052797 | I18: =IFERROR(Capex_Inputs!$C$20,0) -> 3 | K18: =IFERROR(H18*I18,0) -> 5955.158392 | L18: =(K18+K19+K20)/I18 -> 2787.23369 | M18: =IFERROR(Capex_Inputs!$C$19,0) -> 1985.052797 | N18: =IFERROR(Capex_Inputs!$C$20,0) -> 3 | P18: =IFERROR(M18*N18,0) -> 5955.158392 | Q18: =(P18+P19+P20)/N18 -> 2794.662358 | R18: =IFERROR(Capex_Inputs!$C$19,0) -> 1985.052797 | S18: =IFERROR(Capex_Inputs!$C$20,0) -> 3 | U18: =IFERROR(R18*S18,0) -> 5955.158392 | V18: =(U18+U19+U20)/S18 -> 2802.43641 | W18: =IFERROR(Capex_Inputs!$C$19,0) -> 1985.052797 | X18: =IFERROR(Capex_Inputs!$C$20,0) -> 3 | Z18: =IFERROR(W18*X18,0) -> 5955.158392 | AA18: =(Z18+Z19+Z20)/X18 -> 2809.661815
B19: Crew costs | C19: =IFERROR(Capex_Inputs!$C$8,0) -> 118.1654827 | D19: =IFERROR(Capex_Inputs!$C$9,0) -> 2 | E19: =IFERROR(Capex_Inputs!$C$14,0) -> 8 | F19: =IFERROR(C19*D19*E19,0) -> 1890.647723 | H19: =IFERROR(Capex_Inputs!$D$8,0) -> 119.2825353 | I19: =IFERROR(Capex_Inputs!$C$9,0) -> 2 | J19: =IFERROR(Capex_Inputs!$C$14,0) -> 8 | K19: =IFERROR(H19*I19*J19,0) -> 1908.520565 | M19: =IFERROR(Capex_Inputs!$E$8,0) -> 120.6754105 | N19: =IFERROR(Capex_Inputs!$C$9,0) -> 2 | O19: =IFERROR(Capex_Inputs!$C$14,0) -> 8 | P19: =IFERROR(M19*N19*O19,0) -> 1930.806568 | R19: =IFERROR(Capex_Inputs!$F$8,0) -> 122.1330454 | S19: =IFERROR(Capex_Inputs!$C$9,0) -> 2 | T19: =IFERROR(Capex_Inputs!$C$14,0) -> 8 | U19: =IFERROR(R19*S19*T19,0) -> 1954.128726 | W19: =IFERROR(Capex_Inputs!$G$8,0) -> 123.4878088 | X19: =IFERROR(Capex_Inputs!$C$9,0) -> 2 | Y19: =IFERROR(Capex_Inputs!$C$14,0) -> 8 | Z19: =IFERROR(W19*X19*Y19,0) -> 1975.804941
B20: Elevated platform vehicle costs | C20: =IFERROR(Capex_Inputs!$C$10,0) -> 62.25276407 | D20: 1 | E20: =IFERROR(E$19,0) -> 8 | F20: =IFERROR(C20*D20*E20,0) -> 498.0221125 | H20: =IFERROR(Capex_Inputs!$D$10,0) -> 62.25276407 | I20: 1 | J20: =IFERROR(J$19,0) -> 8 | K20: =IFERROR(H20*I20*J20,0) -> 498.0221125 | M20: =IFERROR(Capex_Inputs!$E$10,0) -> 62.25276407 | N20: 1 | O20: =IFERROR(O$19,0) -> 8 | P20: =IFERROR(M20*N20*O20,0) -> 498.0221125 | R20: =IFERROR(Capex_Inputs!$F$10,0) -> 62.25276407 | S20: 1 | T20: =IFERROR(T$19,0) -> 8 | U20: =IFERROR(R20*S20*T20,0) -> 498.0221125 | W20: =IFERROR(Capex_Inputs!$G$10,0) -> 62.25276407 | X20: 1 | Y20: =IFERROR(Y$19,0) -> 8 | Z20: =IFERROR(W20*X20*Y20,0) -> 498.0221125
B22: Crane truck rate (per hour) | C22: =IFERROR(Capex_Inputs!$C$12,0) -> 198.5290218 | D22: 1 | E22: =IFERROR(E$19,0) -> 8 | F22: =IFERROR(C22*D22*E22,0) -> 1588.232174 | G22: =(F22+F23)/D18 -> 600.3114472 | H22: =IFERROR(Capex_Inputs!$C$12,0) -> 198.5290218 | I22: 1 | J22: =IFERROR(J$19,0) -> 8 | K22: =IFERROR(H22*I22*J22,0) -> 1588.232174 | L22: =(K22+K23)/I18 -> 600.3114472 | M22: =IFERROR(Capex_Inputs!$C$12,0) -> 198.5290218 | N22: 1 | O22: =IFERROR(O$19,0) -> 8 | P22: =IFERROR(M22*N22*O22,0) -> 1588.232174 | Q22: =(P22+P23)/N18 -> 600.3114472 | R22: =IFERROR(Capex_Inputs!$C$12,0) -> 198.5290218 | S22: 1 | T22: =IFERROR(T$19,0) -> 8 | U22: =IFERROR(R22*S22*T22,0) -> 1588.232174 | V22: =(U22+U23)/S18 -> 600.3114472 | W22: =IFERROR(Capex_Inputs!$C$12,0) -> 198.5290218 | X22: 1 | Y22: =IFERROR(Y$19,0) -> 8 | Z22: =IFERROR(W22*X22*Y22,0) -> 1588.232174 | AA22: =(Z22+Z23)/X18 -> 600.3114472
B23: Tipper (per hour) | C23: =IFERROR(Capex_Inputs!$C$13,0) -> 26.5877709 | D23: 1 | E23: =IFERROR(E$19,0) -> 8 | F23: =IFERROR(C23*D23*E23,0) -> 212.7021672 | H23: =IFERROR(Capex_Inputs!$C$13,0) -> 26.5877709 | I23: 1 | J23: =IFERROR(J$19,0) -> 8 | K23: =IFERROR(H23*I23*J23,0) -> 212.7021672 | M23: =IFERROR(Capex_Inputs!$C$13,0) -> 26.5877709 | N23: 1 | O23: =IFERROR(O$19,0) -> 8 | P23: =IFERROR(M23*N23*O23,0) -> 212.7021672 | R23: =IFERROR(Capex_Inputs!$C$13,0) -> 26.5877709 | S23: 1 | T23: =IFERROR(T$19,0) -> 8 | U23: =IFERROR(R23*S23*T23,0) -> 212.7021672 | W23: =IFERROR(Capex_Inputs!$C$13,0) -> 26.5877709 | X23: 1 | Y23: =IFERROR(Y$19,0) -> 8 | Z23: =IFERROR(W23*X23*Y23,0) -> 212.7021672
G24: =SUM(G18,G22) -> 3381.587523 | L24: =SUM(L18,L22) -> 3387.545137 | Q24: =SUM(Q18,Q22) -> 3394.973805 | V24: =SUM(V18,V22) -> 3402.747857 | AA24: =SUM(AA18,AA22) -> 3409.973263
B26: Number of poles & brackets replaced | G26: =Capex_Inputs!$C$23 -> 365.3797432 | L26: =Capex_Inputs!$D$23 -> 437.8416082 | Q26: =Capex_Inputs!$E$23 -> 510.3034732 | V26: =Capex_Inputs!$F$23 -> 582.7653383 | AA26: =Capex_Inputs!$G$23 -> 654.6131197
B28: Other capex | G28: =Capex_Inputs!C$27*Opex_Inputs!$C$166 -> 395080 | L28: =Capex_Inputs!D$27*Opex_Inputs!$C$166 -> 473432 | Q28: =Capex_Inputs!E$27*Opex_Inputs!$C$166 -> 551784 | V28: =Capex_Inputs!F$27*Opex_Inputs!$C$166 -> 630136 | AA28: =Capex_Inputs!G$27*Opex_Inputs!$C$166 -> 707824
B30: ="Capex - "&$B$6&" - Urban" -> Capex - Dedicated street lighting poles - Urban | G30: =G24*G26+G28 -> 1630643.581 | L30: =L24*L26+L28 -> 1956640.211 | Q30: =Q24*Q26+Q28 -> 2284250.924 | V30: =V24*V26+V28 -> 2613139.506 | AA30: =AA24*AA26+AA28 -> 2940037.235
B32: =IFERROR($B$6&" detailed cost build-up - rural",0) -> Dedicated street lighting poles detailed cost build-up - rural | C32: Unit rate | D32: Number | E32: Hours | F32: Cost | G32: Annualised | H32: Unit rate | I32: Number | J32: Hours | K32: Cost | L32: Annualised | M32: Unit rate | N32: Number | O32: Hours | P32: Cost | Q32: Annualised | R32: Unit rate | S32: Number | T32: Hours | U32: Cost | V32: Annualised | W32: Unit rate | X32: Number | Y32: Hours | Z32: Cost | AA32: Annualised
G33: cost | L33: cost | Q33: cost | V33: cost | AA33: cost
B34: Material | C34: =IFERROR(Capex_Inputs!$C$19,0) -> 1985.052797 | D34: =IFERROR(Capex_Inputs!$C$20,0) -> 3 | F34: =IFERROR(C34*D34,0) -> 5955.158392 | G34: =(F34+F35+F36)/D34 -> 2824.858394 | H34: =IFERROR(Capex_Inputs!$C$19,0) -> 1985.052797 | I34: =IFERROR(Capex_Inputs!$C$20,0) -> 3 | K34: =IFERROR(H34*I34,0) -> 5955.158392 | L34: =(K34+K35+K36)/I34 -> 2830.816008 | M34: =IFERROR(Capex_Inputs!$C$19,0) -> 1985.052797 | N34: =IFERROR(Capex_Inputs!$C$20,0) -> 3 | P34: =IFERROR(M34*N34,0) -> 5955.158392 | Q34: =(P34+P35+P36)/N34 -> 2838.244675 | R34: =IFERROR(Capex_Inputs!$C$19,0) -> 1985.052797 | S34: =IFERROR(Capex_Inputs!$C$20,0) -> 3 | U34: =IFERROR(R34*S34,0) -> 5955.158392 | V34: =(U34+U35+U36)/S34 -> 2846.018728 | W34: =IFERROR(Capex_Inputs!$C$19,0) -> 1985.052797 | X34: =IFERROR(Capex_Inputs!$C$20,0) -> 3 | Z34: =IFERROR(W34*X34,0) -> 5955.158392 | AA34: =(Z34+Z35+Z36)/X34 -> 2853.244133
B35: Crew costs | C35: =IFERROR(Capex_Inputs!$C$8,0) -> 118.1654827 | D35: =IFERROR(Capex_Inputs!$C$9,0) -> 2 | E35: =IFERROR(Capex_Inputs!$C$14,0) -> 8 | F35: =IFERROR(C35*D35*E35,0) -> 1890.647723 | H35: =IFERROR(Capex_Inputs!$D$8,0) -> 119.2825353 | I35: =IFERROR(Capex_Inputs!$C$9,0) -> 2 | J35: =IFERROR(Capex_Inputs!$C$14,0) -> 8 | K35: =IFERROR(H35*I35*J35,0) -> 1908.520565 | M35: =IFERROR(Capex_Inputs!$E$8,0) -> 120.6754105 | N35: =IFERROR(Capex_Inputs!$C$9,0) -> 2 | O35: =IFERROR(Capex_Inputs!$C$14,0) -> 8 | P35: =IFERROR(M35*N35*O35,0) -> 1930.806568 | R35: =IFERROR(Capex_Inputs!$F$8,0) -> 122.1330454 | S35: =IFERROR(Capex_Inputs!$C$9,0) -> 2 | T35: =IFERROR(Capex_Inputs!$C$14,0) -> 8 | U35: =IFERROR(R35*S35*T35,0) -> 1954.128726 | W35: =IFERROR(Capex_Inputs!$G$8,0) -> 123.4878088 | X35: =IFERROR(Capex_Inputs!$C$9,0) -> 2 | Y35: =IFERROR(Capex_Inputs!$C$14,0) -> 8 | Z35: =IFERROR(W35*X35*Y35,0) -> 1975.804941
B36: Elevated platform vehicle costs | C36: =IFERROR(Capex_Inputs!$C$11,0) -> 78.59613326 | D36: 1 | E36: =IFERROR(E$19,0) -> 8 | F36: =IFERROR(C36*D36*E36,0) -> 628.7690661 | H36: =IFERROR(Capex_Inputs!$D$11,0) -> 78.59613326 | I36: 1 | J36: =IFERROR(J$19,0) -> 8 | K36: =IFERROR(H36*I36*J36,0) -> 628.7690661 | M36: =IFERROR(Capex_Inputs!$E$11,0) -> 78.59613326 | N36: 1 | O36: =IFERROR(O$19,0) -> 8 | P36: =IFERROR(M36*N36*O36,0) -> 628.7690661 | R36: =IFERROR(Capex_Inputs!$F$11,0) -> 78.59613326 | S36: 1 | T36: =IFERROR(T$19,0) -> 8 | U36: =IFERROR(R36*S36*T36,0) -> 628.7690661 | W36: =IFERROR(Capex_Inputs!$G$11,0) -> 78.59613326 | X36: 1 | Y36: =IFERROR(Y$19,0) -> 8 | Z36: =IFERROR(W36*X36*Y36,0) -> 628.7690661
B38: Crane truck rate (per hour) | C38: =IFERROR(Capex_Inputs!$C$12,0) -> 198.5290218 | D38: 1 | E38: =IFERROR(E$19,0) -> 8 | F38: =IFERROR(C38*D38*E38,0) -> 1588.232174 | G38: =(F38+F39)/D34 -> 600.3114472 | H38: =IFERROR(Capex_Inputs!$C$12,0) -> 198.5290218 | I38: 1 | J38: =IFERROR(J$19,0) -> 8 | K38: =IFERROR(H38*I38*J38,0) -> 1588.232174 | L38: =(K38+K39)/I34 -> 600.3114472 | M38: =IFERROR(Capex_Inputs!$C$12,0) -> 198.5290218 | N38: 1 | O38: =IFERROR(O$19,0) -> 8 | P38: =IFERROR(M38*N38*O38,0) -> 1588.232174 | Q38: =(P38+P39)/N34 -> 600.3114472 | R38: =IFERROR(Capex_Inputs!$C$12,0) -> 198.5290218 | S38: 1 | T38: =IFERROR(T$19,0) -> 8 | U38: =IFERROR(R38*S38*T38,0) -> 1588.232174 | V38: =(U38+U39)/S34 -> 600.3114472 | W38: =IFERROR(Capex_Inputs!$C$12,0) -> 198.5290218 | X38: 1 | Y38: =IFERROR(Y$19,0) -> 8 | Z38: =IFERROR(W38*X38*Y38,0) -> 1588.232174 | AA38: =(Z38+Z39)/X34 -> 600.3114472
B39: Tipper (per hour) | C39: =IFERROR(Capex_Inputs!$C$13,0) -> 26.5877709 | D39: 1 | E39: =IFERROR(E$19,0) -> 8 | F39: =IFERROR(C39*D39*E39,0) -> 212.7021672 | H39: =IFERROR(Capex_Inputs!$C$13,0) -> 26.5877709 | I39: 1 | J39: =IFERROR(J$19,0) -> 8 | K39: =IFERROR(H39*I39*J39,0) -> 212.7021672 | M39: =IFERROR(Capex_Inputs!$C$13,0) -> 26.5877709 | N39: 1 | O39: =IFERROR(O$19,0) -> 8 | P39: =IFERROR(M39*N39*O39,0) -> 212.7021672 | R39: =IFERROR(Capex_Inputs!$C$13,0) -> 26.5877709 | S39: 1 | T39: =IFERROR(T$19,0) -> 8 | U39: =IFERROR(R39*S39*T39,0) -> 212.7021672 | W39: =IFERROR(Capex_Inputs!$C$13,0) -> 26.5877709 | X39: 1 | Y39: =IFERROR(Y$19,0) -> 8 | Z39: =IFERROR(W39*X39*Y39,0) -> 212.7021672
G40: =SUM(G34,G38) -> 3425.169841 | L40: =SUM(L34,L38) -> 3431.127455 | Q40: =SUM(Q34,Q38) -> 3438.556123 | V40: =SUM(V34,V38) -> 3446.330175 | AA40: =SUM(AA34,AA38) -> 3453.55558
B42: Number of poles & brackets replaced | G42: =Capex_Inputs!$C$24 -> 203.6779577 | L42: =Capex_Inputs!$D$24 -> 244.0712334 | Q42: =Capex_Inputs!$E$24 -> 284.464509 | V42: =Capex_Inputs!$F$24 -> 324.8577847 | AA42: =Capex_Inputs!$G$24 -> 364.9087444
B44: Other capex | G44: =Capex_Inputs!C$27*Opex_Inputs!$C$167 -> 71400 | L44: =Capex_Inputs!D$27*Opex_Inputs!$C$167 -> 85560 | Q44: =Capex_Inputs!E$27*Opex_Inputs!$C$167 -> 99720 | V44: =Capex_Inputs!F$27*Opex_Inputs!$C$167 -> 113880 | AA44: =Capex_Inputs!G$27*Opex_Inputs!$C$167 -> 127920
B46: ="Capex - "&$B$6&" - Rural" -> Capex - Dedicated street lighting poles - Rural | G46: =G40*G42+G44 -> 769031.5981 | L46: =L40*L42+L44 -> 922999.5098 | Q46: =Q40*Q42+Q44 -> 1077867.179 | V46: =V40*V42+V44 -> 1233447.186 | AA46: =AA40*AA42+AA44 -> 1388152.631
B48: =IFERROR($B$6&" detailed cost build-up - remote",0) -> Dedicated street lighting poles detailed cost build-up - remote | C48: Unit rate | D48: Number | E48: Hours | F48: Cost | G48: Annualised | H48: Unit rate | I48: Number | J48: Hours | K48: Cost | L48: Annualised | M48: Unit rate | N48: Number | O48: Hours | P48: Cost | Q48: Annualised | R48: Unit rate | S48: Number | T48: Hours | U48: Cost | V48: Annualised | W48: Unit rate | X48: Number | Y48: Hours | Z48: Cost | AA48: Annualised
G49: cost | L49: cost | Q49: cost | V49: cost | AA49: cost
B50: Material | C50: =IFERROR(Capex_Inputs!$C$19,0) -> 1985.052797 | D50: =IFERROR(Capex_Inputs!$C$20,0) -> 3 | F50: =IFERROR(C50*D50,0) -> 5955.158392 | G50: =(F50+F51+F52)/D50 -> 2824.858394 | H50: =IFERROR(Capex_Inputs!$C$19,0) -> 1985.052797 | I50: =IFERROR(Capex_Inputs!$C$20,0) -> 3 | K50: =IFERROR(H50*I50,0) -> 5955.158392 | L50: =(K50+K51+K52)/I50 -> 2830.816008 | M50: =IFERROR(Capex_Inputs!$C$19,0) -> 1985.052797 | N50: =IFERROR(Capex_Inputs!$C$20,0) -> 3 | P50: =IFERROR(M50*N50,0) -> 5955.158392 | Q50: =(P50+P51+P52)/N50 -> 2838.244675 | R50: =IFERROR(Capex_Inputs!$C$19,0) -> 1985.052797 | S50: =IFERROR(Capex_Inputs!$C$20,0) -> 3 | U50: =IFERROR(R50*S50,0) -> 5955.158392 | V50: =(U50+U51+U52)/S50 -> 2846.018728 | W50: =IFERROR(Capex_Inputs!$C$19,0) -> 1985.052797 | X50: =IFERROR(Capex_Inputs!$C$20,0) -> 3 | Z50: =IFERROR(W50*X50,0) -> 5955.158392 | AA50: =(Z50+Z51+Z52)/X50 -> 2853.244133
B51: Crew costs | C51: =IFERROR(Capex_Inputs!$C$8,0) -> 118.1654827 | D51: =IFERROR(Capex_Inputs!$C$9,0) -> 2 | E51: =IFERROR(Capex_Inputs!$C$14,0) -> 8 | F51: =IFERROR(C51*D51*E51,0) -> 1890.647723 | H51: =IFERROR(Capex_Inputs!$D$8,0) -> 119.2825353 | I51: =IFERROR(Capex_Inputs!$C$9,0) -> 2 | J51: =IFERROR(Capex_Inputs!$C$14,0) -> 8 | K51: =IFERROR(H51*I51*J51,0) -> 1908.520565 | M51: =IFERROR(Capex_Inputs!$E$8,0) -> 120.6754105 | N51: =IFERROR(Capex_Inputs!$C$9,0) -> 2 | O51: =IFERROR(Capex_Inputs!$C$14,0) -> 8 | P51: =IFERROR(M51*N51*O51,0) -> 1930.806568 | R51: =IFERROR(Capex_Inputs!$F$8,0) -> 122.1330454 | S51: =IFERROR(Capex_Inputs!$C$9,0) -> 2 | T51: =IFERROR(Capex_Inputs!$C$14,0) -> 8 | U51: =IFERROR(R51*S51*T51,0) -> 1954.128726 | W51: =IFERROR(Capex_Inputs!$G$8,0) -> 123.4878088 | X51: =IFERROR(Capex_Inputs!$C$9,0) -> 2 | Y51: =IFERROR(Capex_Inputs!$C$14,0) -> 8 | Z51: =IFERROR(W51*X51*Y51,0) -> 1975.804941
B52: Elevated platform vehicle costs | C52: =IFERROR(Capex_Inputs!$C$11,0) -> 78.59613326 | D52: 1 | E52: =IFERROR(E$19,0) -> 8 | F52: =IFERROR(C52*D52*E52,0) -> 628.7690661 | H52: =IFERROR(Capex_Inputs!$D$11,0) -> 78.59613326 | I52: 1 | J52: =IFERROR(J$19,0) -> 8 | K52: =IFERROR(H52*I52*J52,0) -> 628.7690661 | M52: =IFERROR(Capex_Inputs!$E$11,0) -> 78.59613326 | N52: 1 | O52: =IFERROR(O$19,0) -> 8 | P52: =IFERROR(M52*N52*O52,0) -> 628.7690661 | R52: =IFERROR(Capex_Inputs!$F$11,0) -> 78.59613326 | S52: 1 | T52: =IFERROR(T$19,0) -> 8 | U52: =IFERROR(R52*S52*T52,0) -> 628.7690661 | W52: =IFERROR(Capex_Inputs!$G$11,0) -> 78.59613326 | X52: 1 | Y52: =IFERROR(Y$19,0) -> 8 | Z52: =IFERROR(W52*X52*Y52,0) -> 628.7690661
B54: Crane truck rate (per hour) | C54: =IFERROR(Capex_Inputs!$C$12,0) -> 198.5290218 | D54: 1 | E54: =IFERROR(E$19,0) -> 8 | F54: =IFERROR(C54*D54*E54,0) -> 1588.232174 | G54: =(F54+F55)/D50 -> 600.3114472 | H54: =IFERROR(Capex_Inputs!$C$12,0) -> 198.5290218 | I54: 1 | J54: =IFERROR(J$19,0) -> 8 | K54: =IFERROR(H54*I54*J54,0) -> 1588.232174 | L54: =(K54+K55)/I50 -> 600.3114472 | M54: =IFERROR(Capex_Inputs!$C$12,0) -> 198.5290218 | N54: 1 | O54: =IFERROR(O$19,0) -> 8 | P54: =IFERROR(M54*N54*O54,0) -> 1588.232174 | Q54: =(P54+P55)/N50 -> 600.3114472 | R54: =IFERROR(Capex_Inputs!$C$12,0) -> 198.5290218 | S54: 1 | T54: =IFERROR(T$19,0) -> 8 | U54: =IFERROR(R54*S54*T54,0) -> 1588.232174 | V54: =(U54+U55)/S50 -> 600.3114472 | W54: =IFERROR(Capex_Inputs!$C$12,0) -> 198.5290218 | X54: 1 | Y54: =IFERROR(Y$19,0) -> 8 | Z54: =IFERROR(W54*X54*Y54,0) -> 1588.232174 | AA54: =(Z54+Z55)/X50 -> 600.3114472
B55: Tipper (per hour) | C55: =IFERROR(Capex_Inputs!$C$13,0) -> 26.5877709 | D55: 1 | E55: =IFERROR(E$19,0) -> 8 | F55: =IFERROR(C55*D55*E55,0) -> 212.7021672 | H55: =IFERROR(Capex_Inputs!$C$13,0) -> 26.5877709 | I55: 1 | J55: =IFERROR(J$19,0) -> 8 | K55: =IFERROR(H55*I55*J55,0) -> 212.7021672 | M55: =IFERROR(Capex_Inputs!$C$13,0) -> 26.5877709 | N55: 1 | O55: =IFERROR(O$19,0) -> 8 | P55: =IFERROR(M55*N55*O55,0) -> 212.7021672 | R55: =IFERROR(Capex_Inputs!$C$13,0) -> 26.5877709 | S55: 1 | T55: =IFERROR(T$19,0) -> 8 | U55: =IFERROR(R55*S55*T55,0) -> 212.7021672 | W55: =IFERROR(Capex_Inputs!$C$13,0) -> 26.5877709 | X55: 1 | Y55: =IFERROR(Y$19,0) -> 8 | Z55: =IFERROR(W55*X55*Y55,0) -> 212.7021672
G56: =SUM(G50,G54) -> 3425.169841 | L56: =SUM(L50,L54) -> 3431.127455 | Q56: =SUM(Q50,Q54) -> 3438.556123 | V56: =SUM(V50,V54) -> 3446.330175 | AA56: =SUM(AA50,AA54) -> 3453.55558
B58: Number of poles & brackets replaced | G58: =Capex_Inputs!$C$25 -> 25.94229912 | L58: =Capex_Inputs!$D$25 -> 31.08715844 | Q58: =Capex_Inputs!$E$25 -> 36.23201776 | V58: =Capex_Inputs!$F$25 -> 41.37687708 | AA58: =Capex_Inputs!$G$25 -> 46.4781359
B60: Other capex | G60: =Capex_Inputs!C$27*Opex_Inputs!$C$168 -> 9520 | L60: =Capex_Inputs!D$27*Opex_Inputs!$C$168 -> 11408 | Q60: =Capex_Inputs!E$27*Opex_Inputs!$C$168 -> 13296 | V60: =Capex_Inputs!F$27*Opex_Inputs!$C$168 -> 15184 | AA60: =Capex_Inputs!G$27*Opex_Inputs!$C$168 -> 17056
B62: ="Capex - "&$B$6&" - Remote" -> Capex - Dedicated street lighting poles - Remote | G62: =G56*G58+G60 -> 98376.78055 | L62: =L56*L58+L60 -> 118072.0028 | Q62: =Q56*Q58+Q60 -> 137881.8265 | V62: =V56*V58+V60 -> 157782.38 | AA62: =AA56*AA58+AA60 -> 177570.8256
B65: Brackets on non-dedicated poles
B68: =IFERROR("Brackets"&" calcs",0) -> Brackets calcs | C68: =IFERROR(Quantity!D$6,0) -> 2026-27 | D68: =IFERROR(Quantity!E$6,0) -> 2027-28 | E68: =IFERROR(Quantity!F$6,0) -> 2028-29 | F68: =IFERROR(Quantity!G$6,0) -> 2029-30 | G68: =IFERROR(Quantity!H$6,0) -> 2030-31
B69: =B83 -> Capex - Brackets on non-dedicated poles - Urban | C69: =G83 -> 21631.9582 | D69: =L83 -> 21706.68599 | E69: =Q83 -> 21799.86555 | F69: =V83 -> 21897.37737 | G69: =AA83 -> 21988.00737
B70: =B93 -> Capex - Brackets on non-dedicated poles - Rural | C70: =G93 -> 7802.578069 | D70: =L93 -> 9381.483566 | E70: =Q93 -> 10979.88279 | F70: =V93 -> 12593.71518 | G70: =AA93 -> 14203.48863
B71: =B103 -> Capex - Brackets on non-dedicated poles - Remote | C71: =G103 -> 1522.931574 | D71: =L103 -> 1831.107284 | E71: =Q103 -> 2143.087841 | F71: =V103 -> 2458.080691 | G71: =AA103 -> 2772.281303
B72: Unit cost | C72: =IFERROR(SUM(C69:C71),0) -> 30957.46784 | D72: =IFERROR(SUM(D69:D71),0) -> 32919.27684 | E72: =IFERROR(SUM(E69:E71),0) -> 34922.83618 | F72: =IFERROR(SUM(F69:F71),0) -> 36949.17324 | G72: =IFERROR(SUM(G69:G71),0) -> 38963.7773
C74: =C68 -> 2026-27 | H74: =D68 -> 2027-28 | M74: =E68 -> 2028-29 | R74: =F68 -> 2029-30 | W74: =G68 -> 2030-31
B75: =IFERROR($B$65&" detailed cost build-up - urban",0) -> Brackets on non-dedicated poles detailed cost build-up - urban | C75: Unit rate | D75: Number | E75: Hours | F75: Cost | G75: Annualised | H75: Unit rate | I75: Number | J75: Hours | K75: Cost | L75: Annualised | M75: Unit rate | N75: Number | O75: Hours | P75: Cost | Q75: Annualised | R75: Unit rate | S75: Number | T75: Hours | U75: Cost | V75: Annualised | W75: Unit rate | X75: Number | Y75: Hours | Z75: Cost | AA75: Annualised
G76: cost | L76: cost | Q76: cost | V76: cost | AA76: cost
B77: Material | C77: =IFERROR(Capex_Inputs!$C$31,0) -> 161.1749167 | D77: =IFERROR(Capex_Inputs!$C$32,0) -> 17.28 | F77: =IFERROR(C77*D77,0) -> 2785.10256 | G77: =(F77+F78+F79)/D77 -> 299.4081248 | H77: =IFERROR(Capex_Inputs!$C$31,0) -> 161.1749167 | I77: =IFERROR(Capex_Inputs!$C$32,0) -> 17.28 | K77: =IFERROR(H77*I77,0) -> 2785.10256 | L77: =(K77+K78+K79)/I77 -> 300.4424327 | M77: =IFERROR(Capex_Inputs!$C$31,0) -> 161.1749167 | N77: =IFERROR(Capex_Inputs!$C$32,0) -> 17.28 | P77: =IFERROR(M77*N77,0) -> 2785.10256 | Q77: =(P77+P78+P79)/N77 -> 301.732132 | R77: =IFERROR(Capex_Inputs!$C$31,0) -> 161.1749167 | S77: =IFERROR(Capex_Inputs!$C$32,0) -> 17.28 | U77: =IFERROR(R77*S77,0) -> 2785.10256 | V77: =(U77+U78+U79)/S77 -> 303.0817939 | W77: =IFERROR(Capex_Inputs!$C$31,0) -> 161.1749167 | X77: =IFERROR(Capex_Inputs!$C$32,0) -> 17.28 | Z77: =IFERROR(W77*X77,0) -> 2785.10256 | AA77: =(Z77+Z78+Z79)/X77 -> 304.3362045
B78: Crew costs | C78: =IFERROR(Capex_Inputs!$C$8,0) -> 118.1654827 | D78: =IFERROR(Capex_Inputs!$C$9,0) -> 2 | E78: =IFERROR(Capex_Inputs!$C$14,0) -> 8 | F78: =IFERROR(C78*D78*E78,0) -> 1890.647723 | H78: =IFERROR(Capex_Inputs!$D$8,0) -> 119.2825353 | I78: =IFERROR(Capex_Inputs!$C$9,0) -> 2 | J78: =IFERROR(Capex_Inputs!$C$14,0) -> 8 | K78: =IFERROR(H78*I78*J78,0) -> 1908.520565 | M78: =IFERROR(Capex_Inputs!$E$8,0) -> 120.6754105 | N78: =IFERROR(Capex_Inputs!$C$9,0) -> 2 | O78: =IFERROR(Capex_Inputs!$C$14,0) -> 8 | P78: =IFERROR(M78*N78*O78,0) -> 1930.806568 | R78: =IFERROR(Capex_Inputs!$F$8,0) -> 122.1330454 | S78: =IFERROR(Capex_Inputs!$C$9,0) -> 2 | T78: =IFERROR(Capex_Inputs!$C$14,0) -> 8 | U78: =IFERROR(R78*S78*T78,0) -> 1954.128726 | W78: =IFERROR(Capex_Inputs!$G$8,0) -> 123.4878088 | X78: =IFERROR(Capex_Inputs!$C$9,0) -> 2 | Y78: =IFERROR(Capex_Inputs!$C$14,0) -> 8 | Z78: =IFERROR(W78*X78*Y78,0) -> 1975.804941
B79: Elevated platform vehicle costs | C79: =IFERROR(Capex_Inputs!$C$10,0) -> 62.25276407 | D79: 1 | E79: =IFERROR(E$19,0) -> 8 | F79: =IFERROR(C79*D79*E79,0) -> 498.0221125 | H79: =IFERROR(Capex_Inputs!$D$10,0) -> 62.25276407 | I79: 1 | J79: =IFERROR(J$19,0) -> 8 | K79: =IFERROR(H79*I79*J79,0) -> 498.0221125 | M79: =IFERROR(Capex_Inputs!$E$10,0) -> 62.25276407 | N79: 1 | O79: =IFERROR(O$19,0) -> 8 | P79: =IFERROR(M79*N79*O79,0) -> 498.0221125 | R79: =IFERROR(Capex_Inputs!$F$10,0) -> 62.25276407 | S79: 1 | T79: =IFERROR(T$19,0) -> 8 | U79: =IFERROR(R79*S79*T79,0) -> 498.0221125 | W79: =IFERROR(Capex_Inputs!$G$10,0) -> 62.25276407 | X79: 1 | Y79: =IFERROR(Y$19,0) -> 8 | Z79: =IFERROR(W79*X79*Y79,0) -> 498.0221125
B81: Number of poles & brackets replaced | G81: =Capex_Inputs!$C$35 -> 72.24906877 | L81: =Capex_Inputs!$D$35 -> 72.24906877 | Q81: =Capex_Inputs!$E$35 -> 72.24906877 | V81: =Capex_Inputs!$F$35 -> 72.24906877 | AA81: =Capex_Inputs!$G$35 -> 72.24906877
B83: ="Capex - "&$B$65&" - Urban" -> Capex - Brackets on non-dedicated poles - Urban | G83: =G77*G81 -> 21631.9582 | L83: =L77*L81 -> 21706.68599 | Q83: =Q77*Q81 -> 21799.86555 | V83: =V77*V81 -> 21897.37737 | AA83: =AA77*AA81 -> 21988.00737
B85: =IFERROR($B$65&" detailed cost build-up - rural",0) -> Brackets on non-dedicated poles detailed cost build-up - rural | C85: Unit rate | D85: Number | E85: Hours | F85: Cost | G85: Annualised | H85: Unit rate | I85: Number | J85: Hours | K85: Cost | L85: Annualised | M85: Unit rate | N85: Number | O85: Hours | P85: Cost | Q85: Annualised | R85: Unit rate | S85: Number | T85: Hours | U85: Cost | V85: Annualised | W85: Unit rate | X85: Number | Y85: Hours | Z85: Cost | AA85: Annualised
G86: cost | L86: cost | Q86: cost | V86: cost | AA86: cost
B87: Material | C87: =IFERROR(Capex_Inputs!$C$31,0) -> 161.1749167 | D87: =IFERROR(Capex_Inputs!$C$32,0) -> 17.28 | F87: =IFERROR(C87*D87,0) -> 2785.10256 | G87: =(F87+F88+F89)/D87 -> 306.9744994 | H87: =IFERROR(Capex_Inputs!$C$31,0) -> 161.1749167 | I87: =IFERROR(Capex_Inputs!$C$32,0) -> 17.28 | K87: =IFERROR(H87*I87,0) -> 2785.10256 | L87: =(K87+K88+K89)/I87 -> 308.0088074 | M87: =IFERROR(Capex_Inputs!$C$31,0) -> 161.1749167 | N87: =IFERROR(Capex_Inputs!$C$32,0) -> 17.28 | P87: =IFERROR(M87*N87,0) -> 2785.10256 | Q87: =(P87+P88+P89)/N87 -> 309.2985066 | R87: =IFERROR(Capex_Inputs!$C$31,0) -> 161.1749167 | S87: =IFERROR(Capex_Inputs!$C$32,0) -> 17.28 | U87: =IFERROR(R87*S87,0) -> 2785.10256 | V87: =(U87+U88+U89)/S87 -> 310.6481685 | W87: =IFERROR(Capex_Inputs!$C$31,0) -> 161.1749167 | X87: =IFERROR(Capex_Inputs!$C$32,0) -> 17.28 | Z87: =IFERROR(W87*X87,0) -> 2785.10256 | AA87: =(Z87+Z88+Z89)/X87 -> 311.9025791
B88: Crew costs | C88: =IFERROR(Capex_Inputs!$C$8,0) -> 118.1654827 | D88: =IFERROR(Capex_Inputs!$C$9,0) -> 2 | E88: =IFERROR(Capex_Inputs!$C$14,0) -> 8 | F88: =IFERROR(C88*D88*E88,0) -> 1890.647723 | H88: =IFERROR(Capex_Inputs!$D$8,0) -> 119.2825353 | I88: =IFERROR(Capex_Inputs!$C$9,0) -> 2 | J88: =IFERROR(Capex_Inputs!$C$14,0) -> 8 | K88: =IFERROR(H88*I88*J88,0) -> 1908.520565 | M88: =IFERROR(Capex_Inputs!$E$8,0) -> 120.6754105 | N88: =IFERROR(Capex_Inputs!$C$9,0) -> 2 | O88: =IFERROR(Capex_Inputs!$C$14,0) -> 8 | P88: =IFERROR(M88*N88*O88,0) -> 1930.806568 | R88: =IFERROR(Capex_Inputs!$F$8,0) -> 122.1330454 | S88: =IFERROR(Capex_Inputs!$C$9,0) -> 2 | T88: =IFERROR(Capex_Inputs!$C$14,0) -> 8 | U88: =IFERROR(R88*S88*T88,0) -> 1954.128726 | W88: =IFERROR(Capex_Inputs!$G$8,0) -> 123.4878088 | X88: =IFERROR(Capex_Inputs!$C$9,0) -> 2 | Y88: =IFERROR(Capex_Inputs!$C$14,0) -> 8 | Z88: =IFERROR(W88*X88*Y88,0) -> 1975.804941
B89: Elevated platform vehicle costs | C89: =IFERROR(Capex_Inputs!$C$11,0) -> 78.59613326 | D89: 1 | E89: =IFERROR(E$19,0) -> 8 | F89: =IFERROR(C89*D89*E89,0) -> 628.7690661 | H89: =IFERROR(Capex_Inputs!$D$11,0) -> 78.59613326 | I89: 1 | J89: =IFERROR(J$19,0) -> 8 | K89: =IFERROR(H89*I89*J89,0) -> 628.7690661 | M89: =IFERROR(Capex_Inputs!$E$11,0) -> 78.59613326 | N89: 1 | O89: =IFERROR(O$19,0) -> 8 | P89: =IFERROR(M89*N89*O89,0) -> 628.7690661 | R89: =IFERROR(Capex_Inputs!$F$11,0) -> 78.59613326 | S89: 1 | T89: =IFERROR(T$19,0) -> 8 | U89: =IFERROR(R89*S89*T89,0) -> 628.7690661 | W89: =IFERROR(Capex_Inputs!$G$11,0) -> 78.59613326 | X89: 1 | Y89: =IFERROR(Y$19,0) -> 8 | Z89: =IFERROR(W89*X89*Y89,0) -> 628.7690661
B91: Number of poles & brackets replaced | G91: =Capex_Inputs!$C$36 -> 25.41767503 | L91: =Capex_Inputs!$D$36 -> 30.45849126 | Q91: =Capex_Inputs!$E$36 -> 35.49930748 | V91: =Capex_Inputs!$F$36 -> 40.54012371 | AA91: =Capex_Inputs!$G$36 -> 45.53822115
B93: ="Capex - "&$B$65&" - Rural" -> Capex - Brackets on non-dedicated poles - Rural | G93: =G87*G91 -> 7802.578069 | L93: =L87*L91 -> 9381.483566 | Q93: =Q87*Q91 -> 10979.88279 | V93: =V87*V91 -> 12593.71518 | AA93: =AA87*AA91 -> 14203.48863
B95: =IFERROR($B$65&" detailed cost build-up - remote",0) -> Brackets on non-dedicated poles detailed cost build-up - remote | C95: Unit rate | D95: Number | E95: Hours | F95: Cost | G95: Annualised | H95: Unit rate | I95: Number | J95: Hours | K95: Cost | L95: Annualised | M95: Unit rate | N95: Number | O95: Hours | P95: Cost | Q95: Annualised | R95: Unit rate | S95: Number | T95: Hours | U95: Cost | V95: Annualised | W95: Unit rate | X95: Number | Y95: Hours | Z95: Cost | AA95: Annualised
G96: cost | L96: cost | Q96: cost | V96: cost | AA96: cost
B97: Material | C97: =IFERROR(Capex_Inputs!$C$31,0) -> 161.1749167 | D97: =IFERROR(Capex_Inputs!$C$32,0) -> 17.28 | F97: =IFERROR(C97*D97,0) -> 2785.10256 | G97: =(F97+F98+F99)/D97 -> 306.9744994 | H97: =IFERROR(Capex_Inputs!$C$31,0) -> 161.1749167 | I97: =IFERROR(Capex_Inputs!$C$32,0) -> 17.28 | K97: =IFERROR(H97*I97,0) -> 2785.10256 | L97: =(K97+K98+K99)/I97 -> 308.0088074 | M97: =IFERROR(Capex_Inputs!$C$31,0) -> 161.1749167 | N97: =IFERROR(Capex_Inputs!$C$32,0) -> 17.28 | P97: =IFERROR(M97*N97,0) -> 2785.10256 | Q97: =(P97+P98+P99)/N97 -> 309.2985066 | R97: =IFERROR(Capex_Inputs!$C$31,0) -> 161.1749167 | S97: =IFERROR(Capex_Inputs!$C$32,0) -> 17.28 | U97: =IFERROR(R97*S97,0) -> 2785.10256 | V97: =(U97+U98+U99)/S97 -> 310.6481685 | W97: =IFERROR(Capex_Inputs!$C$31,0) -> 161.1749167 | X97: =IFERROR(Capex_Inputs!$C$32,0) -> 17.28 | Z97: =IFERROR(W97*X97,0) -> 2785.10256 | AA97: =(Z97+Z98+Z99)/X97 -> 311.9025791
B98: Crew costs | C98: =IFERROR(Capex_Inputs!$C$8,0) -> 118.1654827 | D98: =IFERROR(Capex_Inputs!$C$9,0) -> 2 | E98: =IFERROR(Capex_Inputs!$C$14,0) -> 8 | F98: =IFERROR(C98*D98*E98,0) -> 1890.647723 | H98: =IFERROR(Capex_Inputs!$D$8,0) -> 119.2825353 | I98: =IFERROR(Capex_Inputs!$C$9,0) -> 2 | J98: =IFERROR(Capex_Inputs!$C$14,0) -> 8 | K98: =IFERROR(H98*I98*J98,0) -> 1908.520565 | M98: =IFERROR(Capex_Inputs!$E$8,0) -> 120.6754105 | N98: =IFERROR(Capex_Inputs!$C$9,0) -> 2 | O98: =IFERROR(Capex_Inputs!$C$14,0) -> 8 | P98: =IFERROR(M98*N98*O98,0) -> 1930.806568 | R98: =IFERROR(Capex_Inputs!$F$8,0) -> 122.1330454 | S98: =IFERROR(Capex_Inputs!$C$9,0) -> 2 | T98: =IFERROR(Capex_Inputs!$C$14,0) -> 8 | U98: =IFERROR(R98*S98*T98,0) -> 1954.128726 | W98: =IFERROR(Capex_Inputs!$G$8,0) -> 123.4878088 | X98: =IFERROR(Capex_Inputs!$C$9,0) -> 2 | Y98: =IFERROR(Capex_Inputs!$C$14,0) -> 8 | Z98: =IFERROR(W98*X98*Y98,0) -> 1975.804941
B99: Elevated platform vehicle costs | C99: =IFERROR(Capex_Inputs!$C$11,0) -> 78.59613326 | D99: 1 | E99: =IFERROR(E$19,0) -> 8 | F99: =IFERROR(C99*D99*E99,0) -> 628.7690661 | H99: =IFERROR(Capex_Inputs!$D$11,0) -> 78.59613326 | I99: 1 | J99: =IFERROR(J$19,0) -> 8 | K99: =IFERROR(H99*I99*J99,0) -> 628.7690661 | M99: =IFERROR(Capex_Inputs!$E$11,0) -> 78.59613326 | N99: 1 | O99: =IFERROR(O$19,0) -> 8 | P99: =IFERROR(M99*N99*O99,0) -> 628.7690661 | R99: =IFERROR(Capex_Inputs!$F$11,0) -> 78.59613326 | S99: 1 | T99: =IFERROR(T$19,0) -> 8 | U99: =IFERROR(R99*S99*T99,0) -> 628.7690661 | W99: =IFERROR(Capex_Inputs!$G$11,0) -> 78.59613326 | X99: 1 | Y99: =IFERROR(Y$19,0) -> 8 | Z99: =IFERROR(W99*X99*Y99,0) -> 628.7690661
B101: Number of poles & brackets replaced | G101: =Capex_Inputs!$C$37 -> 4.961101256 | L101: =Capex_Inputs!$D$37 -> 5.944983522 | Q101: =Capex_Inputs!$E$37 -> 6.928865788 | V101: =Capex_Inputs!$F$37 -> 7.912748053 | AA101: =Capex_Inputs!$G$37 -> 8.888292334
B103: ="Capex - "&$B$65&" - Remote" -> Capex - Brackets on non-dedicated poles - Remote | G103: =G97*G101 -> 1522.931574 | L103: =L97*L101 -> 1831.107284 | Q103: =Q97*Q101 -> 2143.087841 | V103: =V97*V101 -> 2458.080691 | AA103: =AA97*AA101 -> 2772.281303
B106: Category P LED
B107: LED P
B109: =IFERROR(B106&" calcs",0) -> Category P LED calcs | C109: =IFERROR(Quantity!D$6,0) -> 2026-27 | D109: =IFERROR(Quantity!E$6,0) -> 2027-28 | E109: =IFERROR(Quantity!F$6,0) -> 2028-29 | F109: =IFERROR(Quantity!G$6,0) -> 2029-30 | G109: =IFERROR(Quantity!H$6,0) -> 2030-31
B110: =B125 -> Capex - Category P LED - Urban | C110: =G125 -> 1884338.028 | D110: =L125 -> 1530956.699 | E110: =Q125 -> 1592951.183 | F110: =V125 -> 1408373.266 | G110: =AA125 -> 2086965.032
B111: =B136 -> Capex - Category P LED - Rural | C111: =G136 -> 1221138.35 | D111: =L136 -> 992359.8753 | E111: =Q136 -> 1032839.185 | F111: =V136 -> 913432.6255 | G111: =AA136 -> 1353917.7
B112: =B147 -> Capex - Category P LED - Remote | C112: =G147 -> 180155.1973 | D112: =L147 -> 146460.0882 | E112: =Q147 -> 152507.2983 | F112: =V147 -> 134942.8066 | G112: =AA147 -> 200107.612
B113: Unit cost | C113: =IFERROR(SUM(C110:C112),0) -> 3285631.575 | D113: =IFERROR(SUM(D110:D112),0) -> 2669776.662 | E113: =IFERROR(SUM(E110:E112),0) -> 2778297.667 | F113: =IFERROR(SUM(F110:F112),0) -> 2456748.698 | G113: =IFERROR(SUM(G110:G112),0) -> 3640990.344
C115: =C109 -> 2026-27 | H115: =D109 -> 2027-28 | M115: =E109 -> 2028-29 | R115: =F109 -> 2029-30 | W115: =G109 -> 2030-31
B116: =IFERROR($B$106&" detailed cost build-up - urban",0) -> Category P LED detailed cost build-up - urban | C116: Unit rate | D116: Number | E116: Hours | F116: Cost | G116: Annualised | H116: Unit rate | I116: Number | J116: Hours | K116: Cost | L116: Annualised | M116: Unit rate | N116: Number | O116: Hours | P116: Cost | Q116: Annualised | R116: Unit rate | S116: Number | T116: Hours | U116: Cost | V116: Annualised | W116: Unit rate | X116: Number | Y116: Hours | Z116: Cost | AA116: Annualised
G117: cost | L117: cost | Q117: cost | V117: cost | AA117: cost
B118: Material | C118: =Capex_Inputs!$C$41 -> 217.3027113 | D118: =Capex_Inputs!C$44 -> 12 | F118: =IFERROR(C118*D118,0) -> 2607.632536 | G118: =(F118+F119+F120)/D118 -> 416.358531 | H118: =Capex_Inputs!$C$41 -> 217.3027113 | I118: =Capex_Inputs!D$44 -> 12 | K118: =IFERROR(H118*I118,0) -> 2607.632536 | L118: =(K118+K119+K120)/I118 -> 417.8479345 | M118: =Capex_Inputs!$C$41 -> 217.3027113 | N118: =Capex_Inputs!E$44 -> 12 | P118: =IFERROR(M118*N118,0) -> 2607.632536 | Q118: =(P118+P119+P120)/N118 -> 419.7051014 | R118: =Capex_Inputs!$C$41 -> 217.3027113 | S118: =Capex_Inputs!F$44 -> 12 | U118: =IFERROR(R118*S118,0) -> 2607.632536 | V118: =(U118+U119+U120)/S118 -> 421.6486145 | W118: =Capex_Inputs!$C$41 -> 217.3027113 | X118: =Capex_Inputs!G$44 -> 12 | Z118: =IFERROR(W118*X118,0) -> 2607.632536 | AA118: =(Z118+Z119+Z120)/X118 -> 423.4549658
B119: Crew costs | C119: =IFERROR(Capex_Inputs!$C$8,0) -> 118.1654827 | D119: =IFERROR(Capex_Inputs!$C$9,0) -> 2 | E119: =IFERROR(Capex_Inputs!$C$14,0) -> 8 | F119: =IFERROR(C119*D119*E119,0) -> 1890.647723 | H119: =IFERROR(Capex_Inputs!$D$8,0) -> 119.2825353 | I119: =IFERROR(Capex_Inputs!$C$9,0) -> 2 | J119: =IFERROR(Capex_Inputs!$C$14,0) -> 8 | K119: =IFERROR(H119*I119*J119,0) -> 1908.520565 | M119: =IFERROR(Capex_Inputs!$E$8,0) -> 120.6754105 | N119: =IFERROR(Capex_Inputs!$C$9,0) -> 2 | O119: =IFERROR(Capex_Inputs!$C$14,0) -> 8 | P119: =IFERROR(M119*N119*O119,0) -> 1930.806568 | R119: =IFERROR(Capex_Inputs!$F$8,0) -> 122.1330454 | S119: =IFERROR(Capex_Inputs!$C$9,0) -> 2 | T119: =IFERROR(Capex_Inputs!$C$14,0) -> 8 | U119: =IFERROR(R119*S119*T119,0) -> 1954.128726 | W119: =IFERROR(Capex_Inputs!$G$8,0) -> 123.4878088 | X119: =IFERROR(Capex_Inputs!$C$9,0) -> 2 | Y119: =IFERROR(Capex_Inputs!$C$14,0) -> 8 | Z119: =IFERROR(W119*X119*Y119,0) -> 1975.804941
B120: Elevated platform vehicle costs | C120: =IFERROR(Capex_Inputs!$C$10,0) -> 62.25276407 | D120: 1 | E120: =IFERROR(E$19,0) -> 8 | F120: =IFERROR(C120*D120*E120,0) -> 498.0221125 | H120: =IFERROR(Capex_Inputs!$D$10,0) -> 62.25276407 | I120: 1 | J120: =IFERROR(J$19,0) -> 8 | K120: =IFERROR(H120*I120*J120,0) -> 498.0221125 | M120: =IFERROR(Capex_Inputs!$E$10,0) -> 62.25276407 | N120: 1 | O120: =IFERROR(O$19,0) -> 8 | P120: =IFERROR(M120*N120*O120,0) -> 498.0221125 | R120: =IFERROR(Capex_Inputs!$F$10,0) -> 62.25276407 | S120: 1 | T120: =IFERROR(T$19,0) -> 8 | U120: =IFERROR(R120*S120*T120,0) -> 498.0221125 | W120: =IFERROR(Capex_Inputs!$G$10,0) -> 62.25276407 | X120: 1 | Y120: =IFERROR(Y$19,0) -> 8 | Z120: =IFERROR(W120*X120*Y120,0) -> 498.0221125
B122: Number of luminaires replaced | G122: =Capex_Inputs!C$47 -> 3679.837934 | L122: =Capex_Inputs!D$47 -> 2648.804442 | Q122: =Capex_Inputs!E$47 -> 2577.280661 | V122: =Capex_Inputs!F$47 -> 1878.408459 | AA122: =Capex_Inputs!G$47 -> 3174.322395
B123: Number of luminaires replacing other lights | G123: =Capex_Inputs!C$50 -> 845.9202471 | L123: =Capex_Inputs!D$50 -> 1015.104297 | Q123: =Capex_Inputs!E$50 -> 1218.125156 | V123: =Capex_Inputs!F$50 -> 1461.750187 | AA123: =Capex_Inputs!G$50 -> 1754.100224
B125: ="Capex - "&$B$106&" - Urban" -> Capex - Category P LED - Urban | G125: =SUM(G122:G123)*G118 -> 1884338.028 | L125: =SUM(L122:L123)*L118 -> 1530956.699 | Q125: =SUM(Q122:Q123)*Q118 -> 1592951.183 | V125: =SUM(V122:V123)*V118 -> 1408373.266 | AA125: =SUM(AA122:AA123)*AA118 -> 2086965.032
B127: =IFERROR($B$106&" detailed cost build-up - rural",0) -> Category P LED detailed cost build-up - rural | C127: Unit rate | D127: Number | E127: Hours | F127: Cost | G127: Annualised | H127: Unit rate | I127: Number | J127: Hours | K127: Cost | L127: Annualised | M127: Unit rate | N127: Number | O127: Hours | P127: Cost | Q127: Annualised | R127: Unit rate | S127: Number | T127: Hours | U127: Cost | V127: Annualised | W127: Unit rate | X127: Number | Y127: Hours | Z127: Cost | AA127: Annualised
G128: cost | L128: cost | Q128: cost | V128: cost | AA128: cost
B129: Material | C129: =Capex_Inputs!$C$41 -> 217.3027113 | D129: =Capex_Inputs!C$45 -> 10 | F129: =IFERROR(C129*D129,0) -> 2173.027113 | G129: =IFERROR((F129+F130+F131)/D129,0) -> 469.2443903 | H129: =Capex_Inputs!$C$41 -> 217.3027113 | I129: =Capex_Inputs!D$45 -> 10 | K129: =IFERROR(H129*I129,0) -> 2173.027113 | L129: =IFERROR((K129+K130+K131)/I129,0) -> 471.0316745 | M129: =Capex_Inputs!$C$41 -> 217.3027113 | N129: =Capex_Inputs!E$45 -> 10 | P129: =IFERROR(M129*N129,0) -> 2173.027113 | Q129: =IFERROR((P129+P130+P131)/N129,0) -> 473.2602747 | R129: =Capex_Inputs!$C$41 -> 217.3027113 | S129: =Capex_Inputs!F$45 -> 10 | U129: =IFERROR(R129*S129,0) -> 2173.027113 | V129: =IFERROR((U129+U130+U131)/S129,0) -> 475.5924905 | W129: =Capex_Inputs!$C$41 -> 217.3027113 | X129: =Capex_Inputs!G$45 -> 10 | Z129: =IFERROR(W129*X129,0) -> 2173.027113 | AA129: =IFERROR((Z129+Z130+Z131)/X129,0) -> 477.7601121
B130: Crew costs | C130: =IFERROR(Capex_Inputs!$C$8,0) -> 118.1654827 | D130: =IFERROR(Capex_Inputs!$C$9,0) -> 2 | E130: =IFERROR(Capex_Inputs!$C$14,0) -> 8 | F130: =IFERROR(C130*D130*E130,0) -> 1890.647723 | H130: =IFERROR(Capex_Inputs!$D$8,0) -> 119.2825353 | I130: =IFERROR(Capex_Inputs!$C$9,0) -> 2 | J130: =IFERROR(Capex_Inputs!$C$14,0) -> 8 | K130: =IFERROR(H130*I130*J130,0) -> 1908.520565 | M130: =IFERROR(Capex_Inputs!$E$8,0) -> 120.6754105 | N130: =IFERROR(Capex_Inputs!$C$9,0) -> 2 | O130: =IFERROR(Capex_Inputs!$C$14,0) -> 8 | P130: =IFERROR(M130*N130*O130,0) -> 1930.806568 | R130: =IFERROR(Capex_Inputs!$F$8,0) -> 122.1330454 | S130: =IFERROR(Capex_Inputs!$C$9,0) -> 2 | T130: =IFERROR(Capex_Inputs!$C$14,0) -> 8 | U130: =IFERROR(R130*S130*T130,0) -> 1954.128726 | W130: =IFERROR(Capex_Inputs!$G$8,0) -> 123.4878088 | X130: =IFERROR(Capex_Inputs!$C$9,0) -> 2 | Y130: =IFERROR(Capex_Inputs!$C$14,0) -> 8 | Z130: =IFERROR(W130*X130*Y130,0) -> 1975.804941
B131: Elevated platform vehicle costs | C131: =IFERROR(Capex_Inputs!$C$11,0) -> 78.59613326 | D131: 1 | E131: =IFERROR(E$19,0) -> 8 | F131: =IFERROR(C131*D131*E131,0) -> 628.7690661 | H131: =IFERROR(Capex_Inputs!$D$11,0) -> 78.59613326 | I131: 1 | J131: =IFERROR(J$19,0) -> 8 | K131: =IFERROR(H131*I131*J131,0) -> 628.7690661 | M131: =IFERROR(Capex_Inputs!$E$11,0) -> 78.59613326 | N131: 1 | O131: =IFERROR(O$19,0) -> 8 | P131: =IFERROR(M131*N131*O131,0) -> 628.7690661 | R131: =IFERROR(Capex_Inputs!$F$11,0) -> 78.59613326 | S131: 1 | T131: =IFERROR(T$19,0) -> 8 | U131: =IFERROR(R131*S131*T131,0) -> 628.7690661 | W131: =IFERROR(Capex_Inputs!$G$11,0) -> 78.59613326 | X131: 1 | Y131: =IFERROR(Y$19,0) -> 8 | Z131: =IFERROR(W131*X131*Y131,0) -> 628.7690661
B133: Number of luminaires replaced | G133: =Capex_Inputs!C$48 -> 2115.938925 | L133: =Capex_Inputs!D$48 -> 1523.08567 | Q133: =Capex_Inputs!E$48 -> 1481.958872 | V133: =Capex_Inputs!F$48 -> 1080.101257 | AA133: =Capex_Inputs!G$48 -> 1825.263079
B134: Number of luminaires replacing other lights | G134: =Capex_Inputs!C$51 -> 486.4115243 | L134: =Capex_Inputs!D$51 -> 583.6938292 | Q134: =Capex_Inputs!E$51 -> 700.432595 | V134: =Capex_Inputs!F$51 -> 840.519114 | AA134: =Capex_Inputs!G$51 -> 1008.622937
B136: ="Capex - "&$B$106&" - Rural" -> Capex - Category P LED - Rural | G136: =SUM(G133:G134)*G129 -> 1221138.35 | L136: =SUM(L133:L134)*L129 -> 992359.8753 | Q136: =SUM(Q133:Q134)*Q129 -> 1032839.185 | V136: =SUM(V133:V134)*V129 -> 913432.6255 | AA136: =SUM(AA133:AA134)*AA129 -> 1353917.7
B138: =IFERROR($B$106&" detailed cost build-up - remote",0) -> Category P LED detailed cost build-up - remote | C138: Unit rate | D138: Number | E138: Hours | F138: Cost | G138: Annualised | H138: Unit rate | I138: Number | J138: Hours | K138: Cost | L138: Annualised | M138: Unit rate | N138: Number | O138: Hours | P138: Cost | Q138: Annualised | R138: Unit rate | S138: Number | T138: Hours | U138: Cost | V138: Annualised | W138: Unit rate | X138: Number | Y138: Hours | Z138: Cost | AA138: Annualised
G139: cost | L139: cost | Q139: cost | V139: cost | AA139: cost
B140: Material | C140: =Capex_Inputs!$C$41 -> 217.3027113 | D140: =Capex_Inputs!C$46 -> 8 | F140: =IFERROR(C140*D140,0) -> 1738.421691 | G140: =IFERROR((F140+F141+F142)/D140,0) -> 532.22981 | H140: =Capex_Inputs!$C$41 -> 217.3027113 | I140: =Capex_Inputs!D$46 -> 8 | K140: =IFERROR(H140*I140,0) -> 1738.421691 | L140: =IFERROR((K140+K141+K142)/I140,0) -> 534.4639153 | M140: =Capex_Inputs!$C$41 -> 217.3027113 | N140: =Capex_Inputs!E$46 -> 8 | P140: =IFERROR(M140*N140,0) -> 1738.421691 | Q140: =IFERROR((P140+P141+P142)/N140,0) -> 537.2496656 | R140: =Capex_Inputs!$C$41 -> 217.3027113 | S140: =Capex_Inputs!F$46 -> 8 | U140: =IFERROR(R140*S140,0) -> 1738.421691 | V140: =IFERROR((U140+U141+U142)/S140,0) -> 540.1649353 | W140: =Capex_Inputs!$C$41 -> 217.3027113 | X140: =Capex_Inputs!G$46 -> 8 | Z140: =IFERROR(W140*X140,0) -> 1738.421691 | AA140: =IFERROR((Z140+Z141+Z142)/X140,0) -> 542.8744623
B141: Crew costs | C141: =IFERROR(Capex_Inputs!$C$8,0) -> 118.1654827 | D141: =IFERROR(Capex_Inputs!$C$9,0) -> 2 | E141: =IFERROR(Capex_Inputs!$C$14,0) -> 8 | F141: =IFERROR(C141*D141*E141,0) -> 1890.647723 | H141: =IFERROR(Capex_Inputs!$D$8,0) -> 119.2825353 | I141: =IFERROR(Capex_Inputs!$C$9,0) -> 2 | J141: =IFERROR(Capex_Inputs!$C$14,0) -> 8 | K141: =IFERROR(H141*I141*J141,0) -> 1908.520565 | M141: =IFERROR(Capex_Inputs!$E$8,0) -> 120.6754105 | N141: =IFERROR(Capex_Inputs!$C$9,0) -> 2 | O141: =IFERROR(Capex_Inputs!$C$14,0) -> 8 | P141: =IFERROR(M141*N141*O141,0) -> 1930.806568 | R141: =IFERROR(Capex_Inputs!$F$8,0) -> 122.1330454 | S141: =IFERROR(Capex_Inputs!$C$9,0) -> 2 | T141: =IFERROR(Capex_Inputs!$C$14,0) -> 8 | U141: =IFERROR(R141*S141*T141,0) -> 1954.128726 | W141: =IFERROR(Capex_Inputs!$G$8,0) -> 123.4878088 | X141: =IFERROR(Capex_Inputs!$C$9,0) -> 2 | Y141: =IFERROR(Capex_Inputs!$C$14,0) -> 8 | Z141: =IFERROR(W141*X141*Y141,0) -> 1975.804941
B142: Elevated platform vehicle costs | C142: =IFERROR(Capex_Inputs!$C$11,0) -> 78.59613326 | D142: 1 | E142: =IFERROR(E$19,0) -> 8 | F142: =IFERROR(C142*D142*E142,0) -> 628.7690661 | H142: =IFERROR(Capex_Inputs!$D$11,0) -> 78.59613326 | I142: 1 | J142: =IFERROR(J$19,0) -> 8 | K142: =IFERROR(H142*I142*J142,0) -> 628.7690661 | M142: =IFERROR(Capex_Inputs!$E$11,0) -> 78.59613326 | N142: 1 | O142: =IFERROR(O$19,0) -> 8 | P142: =IFERROR(M142*N142*O142,0) -> 628.7690661 | R142: =IFERROR(Capex_Inputs!$F$11,0) -> 78.59613326 | S142: 1 | T142: =IFERROR(T$19,0) -> 8 | U142: =IFERROR(R142*S142*T142,0) -> 628.7690661 | W142: =IFERROR(Capex_Inputs!$G$11,0) -> 78.59613326 | X142: 1 | Y142: =IFERROR(Y$19,0) -> 8 | Z142: =IFERROR(W142*X142*Y142,0) -> 628.7690661
B144: Number of luminaires replaced | G144: =Capex_Inputs!C$49 -> 275.223141 | L144: =Capex_Inputs!D$49 -> 198.1098874 | Q144: =Capex_Inputs!E$49 -> 192.7604671 | V144: =Capex_Inputs!F$49 -> 140.490284 | AA144: =Capex_Inputs!G$49 -> 237.4145263
B145: Number of luminaires replacing other lights | G145: =Capex_Inputs!C$52 -> 63.26822856 | L145: =Capex_Inputs!D$52 -> 75.92187427 | Q145: =Capex_Inputs!E$52 -> 91.10624912 | V145: =Capex_Inputs!F$52 -> 109.3274989 | AA145: =Capex_Inputs!G$52 -> 131.1929987
B147: ="Capex - "&$B$106&" - Remote" -> Capex - Category P LED - Remote | G147: =SUM(G144:G145)*G140 -> 180155.1973 | L147: =SUM(L144:L145)*L140 -> 146460.0882 | Q147: =SUM(Q144:Q145)*Q140 -> 152507.2983 | V147: =SUM(V144:V145)*V140 -> 134942.8066 | AA147: =SUM(AA144:AA145)*AA140 -> 200107.612
B150: Category V LED
B151: LED V
B153: =IFERROR(B150&" calcs",0) -> Category V LED calcs | C153: =IFERROR(Quantity!D$6,0) -> 2026-27 | D153: =IFERROR(Quantity!E$6,0) -> 2027-28 | E153: =IFERROR(Quantity!F$6,0) -> 2028-29 | F153: =IFERROR(Quantity!G$6,0) -> 2029-30 | G153: =IFERROR(Quantity!H$6,0) -> 2030-31
B154: =B169 -> Capex - Category P LED - Urban | C154: =G169 -> 438588.7629 | D154: =L169 -> 439704.963 | E154: =Q169 -> 441096.7752 | F154: =V169 -> 442553.2977 | G154: =AA169 -> 443907.0272
B155: =B180 -> Capex - Category P LED - Rural | C155: =G180 -> 266581.4479 | D155: =L180 -> 267328.1078 | E155: =Q180 -> 268259.1331 | F155: =V180 -> 269233.4449 | G155: =AA180 -> 270138.9955
B156: =B191 -> Capex - Category P LED - Remote | C156: =G191 -> 37305.72407 | D156: =L191 -> 37424.60093 | E156: =Q191 -> 37572.83086 | F156: =V191 -> 37727.95251 | G156: =AA191 -> 37872.12659
B157: Unit cost | C157: =IFERROR(SUM(C154:C156),0) -> 742475.9348 | D157: =IFERROR(SUM(D154:D156),0) -> 744457.6718 | E157: =IFERROR(SUM(E154:E156),0) -> 746928.7391 | F157: =IFERROR(SUM(F154:F156),0) -> 749514.6951 | G157: =IFERROR(SUM(G154:G156),0) -> 751918.1493
C159: =C153 -> 2026-27 | H159: =D153 -> 2027-28 | M159: =E153 -> 2028-29 | R159: =F153 -> 2029-30 | W159: =G153 -> 2030-31
B160: =IFERROR($B$106&" detailed cost build-up - urban",0) -> Category P LED detailed cost build-up - urban | C160: Unit rate | D160: Number | E160: Hours | F160: Cost | G160: Annualised | H160: Unit rate | I160: Number | J160: Hours | K160: Cost | L160: Annualised | M160: Unit rate | N160: Number | O160: Hours | P160: Cost | Q160: Annualised | R160: Unit rate | S160: Number | T160: Hours | U160: Cost | V160: Annualised | W160: Unit rate | X160: Number | Y160: Hours | Z160: Cost | AA160: Annualised
G161: cost | L161: cost | Q161: cost | V161: cost | AA161: cost
B162: Material | C162: =Capex_Inputs!$C$56 -> 386.1758246 | D162: =Capex_Inputs!C$59 -> 12 | F162: =IFERROR(C162*D162,0) -> 4634.109895 | G162: =(F162+F163+F164)/D162 -> 585.2316443 | H162: =Capex_Inputs!$C$56 -> 386.1758246 | I162: =Capex_Inputs!D$59 -> 12 | K162: =IFERROR(H162*I162,0) -> 4634.109895 | L162: =(K162+K163+K164)/I162 -> 586.7210478 | M162: =Capex_Inputs!$C$56 -> 386.1758246 | N162: =Capex_Inputs!E$59 -> 12 | P162: =IFERROR(M162*N162,0) -> 4634.109895 | Q162: =(P162+P163+P164)/N162 -> 588.5782147 | R162: =Capex_Inputs!$C$56 -> 386.1758246 | S162: =Capex_Inputs!F$59 -> 12 | U162: =IFERROR(R162*S162,0) -> 4634.109895 | V162: =(U162+U163+U164)/S162 -> 590.5217278 | W162: =Capex_Inputs!$C$56 -> 386.1758246 | X162: =Capex_Inputs!G$59 -> 12 | Z162: =IFERROR(W162*X162,0) -> 4634.109895 | AA162: =(Z162+Z163+Z164)/X162 -> 592.3280791
B163: Crew costs | C163: =IFERROR(Capex_Inputs!$C$8,0) -> 118.1654827 | D163: =IFERROR(Capex_Inputs!$C$9,0) -> 2 | E163: =IFERROR(Capex_Inputs!$C$14,0) -> 8 | F163: =IFERROR(C163*D163*E163,0) -> 1890.647723 | H163: =IFERROR(Capex_Inputs!$D$8,0) -> 119.2825353 | I163: =IFERROR(Capex_Inputs!$C$9,0) -> 2 | J163: =IFERROR(Capex_Inputs!$C$14,0) -> 8 | K163: =IFERROR(H163*I163*J163,0) -> 1908.520565 | M163: =IFERROR(Capex_Inputs!$E$8,0) -> 120.6754105 | N163: =IFERROR(Capex_Inputs!$C$9,0) -> 2 | O163: =IFERROR(Capex_Inputs!$C$14,0) -> 8 | P163: =IFERROR(M163*N163*O163,0) -> 1930.806568 | R163: =IFERROR(Capex_Inputs!$F$8,0) -> 122.1330454 | S163: =IFERROR(Capex_Inputs!$C$9,0) -> 2 | T163: =IFERROR(Capex_Inputs!$C$14,0) -> 8 | U163: =IFERROR(R163*S163*T163,0) -> 1954.128726 | W163: =IFERROR(Capex_Inputs!$G$8,0) -> 123.4878088 | X163: =IFERROR(Capex_Inputs!$C$9,0) -> 2 | Y163: =IFERROR(Capex_Inputs!$C$14,0) -> 8 | Z163: =IFERROR(W163*X163*Y163,0) -> 1975.804941
B164: Elevated platform vehicle costs | C164: =IFERROR(Capex_Inputs!$C$10,0) -> 62.25276407 | D164: 1 | E164: =IFERROR(E$19,0) -> 8 | F164: =IFERROR(C164*D164*E164,0) -> 498.0221125 | H164: =IFERROR(Capex_Inputs!$D$10,0) -> 62.25276407 | I164: 1 | J164: =IFERROR(J$19,0) -> 8 | K164: =IFERROR(H164*I164*J164,0) -> 498.0221125 | M164: =IFERROR(Capex_Inputs!$E$10,0) -> 62.25276407 | N164: 1 | O164: =IFERROR(O$19,0) -> 8 | P164: =IFERROR(M164*N164*O164,0) -> 498.0221125 | R164: =IFERROR(Capex_Inputs!$F$10,0) -> 62.25276407 | S164: 1 | T164: =IFERROR(T$19,0) -> 8 | U164: =IFERROR(R164*S164*T164,0) -> 498.0221125 | W164: =IFERROR(Capex_Inputs!$G$10,0) -> 62.25276407 | X164: 1 | Y164: =IFERROR(Y$19,0) -> 8 | Z164: =IFERROR(W164*X164*Y164,0) -> 498.0221125
B166: Number of luminaires replaced | G166: =Capex_Inputs!C$62 -> 626.365274 | L166: =Capex_Inputs!D$62 -> 626.365274 | Q166: =Capex_Inputs!E$62 -> 626.365274 | V166: =Capex_Inputs!F$62 -> 626.365274 | AA166: =Capex_Inputs!G$62 -> 626.365274
B167: Number of luminaires replacing other lights | G167: =Capex_Inputs!C$65 -> 123.0623538 | L167: =Capex_Inputs!D$65 -> 123.0623538 | Q167: =Capex_Inputs!E$65 -> 123.0623538 | V167: =Capex_Inputs!F$65 -> 123.0623538 | AA167: =Capex_Inputs!G$65 -> 123.0623538
B169: ="Capex - "&$B$106&" - Urban" -> Capex - Category P LED - Urban | G169: =SUM(G166:G167)*G162 -> 438588.7629 | L169: =SUM(L166:L167)*L162 -> 439704.963 | Q169: =SUM(Q166:Q167)*Q162 -> 441096.7752 | V169: =SUM(V166:V167)*V162 -> 442553.2977 | AA169: =SUM(AA166:AA167)*AA162 -> 443907.0272
B171: =IFERROR($B$106&" detailed cost build-up - rural",0) -> Category P LED detailed cost build-up - rural | C171: Unit rate | D171: Number | E171: Hours | F171: Cost | G171: Annualised | H171: Unit rate | I171: Number | J171: Hours | K171: Cost | L171: Annualised | M171: Unit rate | N171: Number | O171: Hours | P171: Cost | Q171: Annualised | R171: Unit rate | S171: Number | T171: Hours | U171: Cost | V171: Annualised | W171: Unit rate | X171: Number | Y171: Hours | Z171: Cost | AA171: Annualised
G172: cost | L172: cost | Q172: cost | V172: cost | AA172: cost
B173: Material | C173: =Capex_Inputs!$C$56 -> 386.1758246 | D173: =Capex_Inputs!C$60 -> 10 | F173: =IFERROR(C173*D173,0) -> 3861.758246 | G173: =IFERROR((F173+F174+F175)/D173,0) -> 638.1175036 | H173: =Capex_Inputs!$C$56 -> 386.1758246 | I173: =Capex_Inputs!D$60 -> 10 | K173: =IFERROR(H173*I173,0) -> 3861.758246 | L173: =IFERROR((K173+K174+K175)/I173,0) -> 639.9047877 | M173: =Capex_Inputs!$C$56 -> 386.1758246 | N173: =Capex_Inputs!E$60 -> 10 | P173: =IFERROR(M173*N173,0) -> 3861.758246 | Q173: =IFERROR((P173+P174+P175)/N173,0) -> 642.133388 | R173: =Capex_Inputs!$C$56 -> 386.1758246 | S173: =Capex_Inputs!F$60 -> 10 | U173: =IFERROR(R173*S173,0) -> 3861.758246 | V173: =IFERROR((U173+U174+U175)/S173,0) -> 644.4656038 | W173: =Capex_Inputs!$C$56 -> 386.1758246 | X173: =Capex_Inputs!G$60 -> 10 | Z173: =IFERROR(W173*X173,0) -> 3861.758246 | AA173: =IFERROR((Z173+Z174+Z175)/X173,0) -> 646.6332254
B174: Crew costs | C174: =IFERROR(Capex_Inputs!$C$8,0) -> 118.1654827 | D174: =IFERROR(Capex_Inputs!$C$9,0) -> 2 | E174: =IFERROR(Capex_Inputs!$C$14,0) -> 8 | F174: =IFERROR(C174*D174*E174,0) -> 1890.647723 | H174: =IFERROR(Capex_Inputs!$D$8,0) -> 119.2825353 | I174: =IFERROR(Capex_Inputs!$C$9,0) -> 2 | J174: =IFERROR(Capex_Inputs!$C$14,0) -> 8 | K174: =IFERROR(H174*I174*J174,0) -> 1908.520565 | M174: =IFERROR(Capex_Inputs!$E$8,0) -> 120.6754105 | N174: =IFERROR(Capex_Inputs!$C$9,0) -> 2 | O174: =IFERROR(Capex_Inputs!$C$14,0) -> 8 | P174: =IFERROR(M174*N174*O174,0) -> 1930.806568 | R174: =IFERROR(Capex_Inputs!$F$8,0) -> 122.1330454 | S174: =IFERROR(Capex_Inputs!$C$9,0) -> 2 | T174: =IFERROR(Capex_Inputs!$C$14,0) -> 8 | U174: =IFERROR(R174*S174*T174,0) -> 1954.128726 | W174: =IFERROR(Capex_Inputs!$G$8,0) -> 123.4878088 | X174: =IFERROR(Capex_Inputs!$C$9,0) -> 2 | Y174: =IFERROR(Capex_Inputs!$C$14,0) -> 8 | Z174: =IFERROR(W174*X174*Y174,0) -> 1975.804941
B175: Elevated platform vehicle costs | C175: =IFERROR(Capex_Inputs!$C$11,0) -> 78.59613326 | D175: 1 | E175: =IFERROR(E$19,0) -> 8 | F175: =IFERROR(C175*D175*E175,0) -> 628.7690661 | H175: =IFERROR(Capex_Inputs!$D$11,0) -> 78.59613326 | I175: 1 | J175: =IFERROR(J$19,0) -> 8 | K175: =IFERROR(H175*I175*J175,0) -> 628.7690661 | M175: =IFERROR(Capex_Inputs!$E$11,0) -> 78.59613326 | N175: 1 | O175: =IFERROR(O$19,0) -> 8 | P175: =IFERROR(M175*N175*O175,0) -> 628.7690661 | R175: =IFERROR(Capex_Inputs!$F$11,0) -> 78.59613326 | S175: 1 | T175: =IFERROR(T$19,0) -> 8 | U175: =IFERROR(R175*S175*T175,0) -> 628.7690661 | W175: =IFERROR(Capex_Inputs!$G$11,0) -> 78.59613326 | X175: 1 | Y175: =IFERROR(Y$19,0) -> 8 | Z175: =IFERROR(W175*X175*Y175,0) -> 628.7690661
B177: Number of luminaires replaced | G177: =Capex_Inputs!C$63 -> 349.1622132 | L177: =Capex_Inputs!D$63 -> 349.1622132 | Q177: =Capex_Inputs!E$63 -> 349.1622132 | V177: =Capex_Inputs!F$63 -> 349.1622132 | AA177: =Capex_Inputs!G$63 -> 349.1622132
B178: Number of luminaires replacing other lights | G178: =Capex_Inputs!C$66 -> 68.60010542 | L178: =Capex_Inputs!D$66 -> 68.60010542 | Q178: =Capex_Inputs!E$66 -> 68.60010542 | V178: =Capex_Inputs!F$66 -> 68.60010542 | AA178: =Capex_Inputs!G$66 -> 68.60010542
B180: ="Capex - "&$B$106&" - Rural" -> Capex - Category P LED - Rural | G180: =SUM(G177:G178)*G173 -> 266581.4479 | L180: =SUM(L177:L178)*L173 -> 267328.1078 | Q180: =SUM(Q177:Q178)*Q173 -> 268259.1331 | V180: =SUM(V177:V178)*V173 -> 269233.4449 | AA180: =SUM(AA177:AA178)*AA173 -> 270138.9955
B182: =IFERROR($B$106&" detailed cost build-up - remote",0) -> Category P LED detailed cost build-up - remote | C182: Unit rate | D182: Number | E182: Hours | F182: Cost | G182: Annualised | H182: Unit rate | I182: Number | J182: Hours | K182: Cost | L182: Annualised | M182: Unit rate | N182: Number | O182: Hours | P182: Cost | Q182: Annualised | R182: Unit rate | S182: Number | T182: Hours | U182: Cost | V182: Annualised | W182: Unit rate | X182: Number | Y182: Hours | Z182: Cost | AA182: Annualised
G183: cost | L183: cost | Q183: cost | V183: cost | AA183: cost
B184: Material | C184: =Capex_Inputs!$C$56 -> 386.1758246 | D184: =Capex_Inputs!C$61 -> 8 | F184: =IFERROR(C184*D184,0) -> 3089.406597 | G184: =IFERROR((F184+F185+F186)/D184,0) -> 701.1029233 | H184: =Capex_Inputs!$C$56 -> 386.1758246 | I184: =Capex_Inputs!D$61 -> 8 | K184: =IFERROR(H184*I184,0) -> 3089.406597 | L184: =IFERROR((K184+K185+K186)/I184,0) -> 703.3370285 | M184: =Capex_Inputs!$C$56 -> 386.1758246 | N184: =Capex_Inputs!E$61 -> 8 | P184: =IFERROR(M184*N184,0) -> 3089.406597 | Q184: =IFERROR((P184+P185+P186)/N184,0) -> 706.1227789 | R184: =Capex_Inputs!$C$56 -> 386.1758246 | S184: =Capex_Inputs!F$61 -> 8 | U184: =IFERROR(R184*S184,0) -> 3089.406597 | V184: =IFERROR((U184+U185+U186)/S184,0) -> 709.0380486 | W184: =Capex_Inputs!$C$56 -> 386.1758246 | X184: =Capex_Inputs!G$61 -> 8 | Z184: =IFERROR(W184*X184,0) -> 3089.406597 | AA184: =IFERROR((Z184+Z185+Z186)/X184,0) -> 711.7475755
B185: Crew costs | C185: =IFERROR(Capex_Inputs!$C$8,0) -> 118.1654827 | D185: =IFERROR(Capex_Inputs!$C$9,0) -> 2 | E185: =IFERROR(Capex_Inputs!$C$14,0) -> 8 | F185: =IFERROR(C185*D185*E185,0) -> 1890.647723 | H185: =IFERROR(Capex_Inputs!$D$8,0) -> 119.2825353 | I185: =IFERROR(Capex_Inputs!$C$9,0) -> 2 | J185: =IFERROR(Capex_Inputs!$C$14,0) -> 8 | K185: =IFERROR(H185*I185*J185,0) -> 1908.520565 | M185: =IFERROR(Capex_Inputs!$E$8,0) -> 120.6754105 | N185: =IFERROR(Capex_Inputs!$C$9,0) -> 2 | O185: =IFERROR(Capex_Inputs!$C$14,0) -> 8 | P185: =IFERROR(M185*N185*O185,0) -> 1930.806568 | R185: =IFERROR(Capex_Inputs!$F$8,0) -> 122.1330454 | S185: =IFERROR(Capex_Inputs!$C$9,0) -> 2 | T185: =IFERROR(Capex_Inputs!$C$14,0) -> 8 | U185: =IFERROR(R185*S185*T185,0) -> 1954.128726 | W185: =IFERROR(Capex_Inputs!$G$8,0) -> 123.4878088 | X185: =IFERROR(Capex_Inputs!$C$9,0) -> 2 | Y185: =IFERROR(Capex_Inputs!$C$14,0) -> 8 | Z185: =IFERROR(W185*X185*Y185,0) -> 1975.804941
B186: Elevated platform vehicle costs | C186: =IFERROR(Capex_Inputs!$C$11,0) -> 78.59613326 | D186: 1 | E186: =IFERROR(E$19,0) -> 8 | F186: =IFERROR(C186*D186*E186,0) -> 628.7690661 | H186: =IFERROR(Capex_Inputs!$D$11,0) -> 78.59613326 | I186: 1 | J186: =IFERROR(J$19,0) -> 8 | K186: =IFERROR(H186*I186*J186,0) -> 628.7690661 | M186: =IFERROR(Capex_Inputs!$E$11,0) -> 78.59613326 | N186: 1 | O186: =IFERROR(O$19,0) -> 8 | P186: =IFERROR(M186*N186*O186,0) -> 628.7690661 | R186: =IFERROR(Capex_Inputs!$F$11,0) -> 78.59613326 | S186: 1 | T186: =IFERROR(T$19,0) -> 8 | U186: =IFERROR(R186*S186*T186,0) -> 628.7690661 | W186: =IFERROR(Capex_Inputs!$G$11,0) -> 78.59613326 | X186: 1 | Y186: =IFERROR(Y$19,0) -> 8 | Z186: =IFERROR(W186*X186*Y186,0) -> 628.7690661
B188: Number of luminaires replaced | G188: =Capex_Inputs!C$64 -> 44.47251277 | L188: =Capex_Inputs!D$64 -> 44.47251277 | Q188: =Capex_Inputs!E$64 -> 44.47251277 | V188: =Capex_Inputs!F$64 -> 44.47251277 | AA188: =Capex_Inputs!G$64 -> 44.47251277
B189: Number of luminaires replacing other lights | G189: =Capex_Inputs!C$67 -> 8.737540745 | L189: =Capex_Inputs!D$67 -> 8.737540745 | Q189: =Capex_Inputs!E$67 -> 8.737540745 | V189: =Capex_Inputs!F$67 -> 8.737540745 | AA189: =Capex_Inputs!G$67 -> 8.737540745
B191: ="Capex - "&$B$106&" - Remote" -> Capex - Category P LED - Remote | G191: =SUM(G188:G189)*G184 -> 37305.72407 | L191: =SUM(L188:L189)*L184 -> 37424.60093 | Q191: =SUM(Q188:Q189)*Q184 -> 37572.83086 | V191: =SUM(V188:V189)*V184 -> 37727.95251 | AA191: =SUM(AA188:AA189)*AA184 -> 37872.12659
B194: Category V LED ACCELARATED TRANSITION - SMART CELLS
B195: LED V
B197: Category V LED ACCELARATED TRANSITION - SMART CELLS calcs | C197: 2026-27 | D197: 2027-28 | E197: 2028-29 | F197: 2029-30 | G197: 2030-31
B198: Infill smart cells and additional lanterns | C198: =SUMPRODUCT(Capex_Inputs!C74:C75,Capex_Inputs!C77:C78) -> 1745499.853 | D198: =SUMPRODUCT(Capex_Inputs!D74:D75,Capex_Inputs!D77:D78) -> 1745499.853 | E198: =SUMPRODUCT(Capex_Inputs!E74:E75,Capex_Inputs!E77:E78) -> 1745499.853 | F198: =SUMPRODUCT(Capex_Inputs!F74:F75,Capex_Inputs!F77:F78) -> 1745499.853 | G198: =SUMPRODUCT(Capex_Inputs!G74:G75,Capex_Inputs!G77:G78) -> 1745499.853

Sheet Capex_Outputs
B2: =IFERROR(General_inputs!$C$5&" public lighting capex outputs",0) -> Powercor public lighting capex outputs
B3: =IFERROR("($m Real "&General_inputs!$C$9&")",0) -> ($m Real 2025-26)
B5: Total capex | C5: =PTRM_Inputs!D$12 -> 2026-27 | D5: =PTRM_Inputs!E$12 -> 2027-28 | E5: =PTRM_Inputs!F$12 -> 2028-29 | F5: =PTRM_Inputs!G$12 -> 2029-30 | G5: =PTRM_Inputs!H$12 -> 2030-31
B6: Poles and Brackets | C6: =(Capex_Calcs!C13+Capex_Calcs!C72)/1000000 -> 2.529009427 | D6: =(Capex_Calcs!D13+Capex_Calcs!D72)/1000000 -> 3.030631 | E6: =(Capex_Calcs!E13+Capex_Calcs!E72)/1000000 -> 3.534922766 | F6: =(Capex_Calcs!F13+Capex_Calcs!F72)/1000000 -> 4.041318245 | G6: =(Capex_Calcs!G13+Capex_Calcs!G72)/1000000 -> 4.544724469
B7: Existing Lights | C7: 0 | D7: 0 | E7: 0 | F7: 0 | G7: 0
B8: Energy Efficient Lights | C8: =(Capex_Calcs!C113+Capex_Calcs!C157+Capex_Calcs!C198)/1000000 -> 5.773607363 | D8: =(Capex_Calcs!D113+Capex_Calcs!D157+Capex_Calcs!D198)/1000000 -> 5.159734187 | E8: =(Capex_Calcs!E113+Capex_Calcs!E157+Capex_Calcs!E198)/1000000 -> 5.270726258 | F8: =(Capex_Calcs!F113+Capex_Calcs!F157+Capex_Calcs!F198)/1000000 -> 4.951763245 | G8: =(Capex_Calcs!G113+Capex_Calcs!G157+Capex_Calcs!G198)/1000000 -> 6.138408346

Sheet Roll Forward
B2: =IFERROR(General_inputs!$C$5&" public lighting roll forward","") -> Powercor public lighting roll forward
B3: ($ nominal)
E4: =ROUND(SUM(CE9:CE85),6)=0 -> TRUE
E6: 2005 | F6: 2006 | G6: 2007 | H6: 2008 | I6: 2009 | J6: 2010 | K6: 2011 | L6: 2012 | M6: 2013 | N6: 2014 | O6: 2015 | P6: 2016 | Q6: 2017 | R6: 2018 | S6: 2019 | T6: 2020 | U6: HY2021 | V6: 2021/22 | W6: 2022/23 | X6: 2023/24 | Y6: 2024/25 | Z6: 2025/26 | AA6: 2026/27 | AB6: 2027/28 | AC6: 2028/29 | AD6: 2029/30 | AE6: 2030/31 | AF6: 2031/32 | AG6: 2032/33 | AH6: 2033/34 | AI6: 2034/35 | AJ6: 2035/36 | AK6: 2036/37 | AL6: 2037/38 | AM6: 2038/39 | AN6: 2039/40 | AO6: 2040/41 | AP6: 2041/42 | AQ6: 2042/43 | AR6: 2043/44 | AS6: 2044/45 | AT6: 2045/46 | AU6: 2046/47 | AV6: 2047/48 | AW6: 2048/49 | AX6: 2049/50 | AY6: 2050/51 | AZ6: 2051/52 | BA6: 2052/53 | BB6: 2053/54 | BC6: 2054/55 | BD6: 2055/56 | BE6: 2056/57 | BF6: 2057/58 | BG6: 2058/59 | BH6: 2059/60 | BI6: 2060/61 | BJ6: 2061/62 | BK6: 2062/63 | BL6: 2063/64 | BM6: 2064/65 | BN6: 2065/66 | BO6: 2066/67 | BP6: 2067/68 | BQ6: 2068/69 | BR6: 2069/70 | BS6: 2070/71 | BT6: 2071/72 | BU6: 2072/73 | BV6: 2073/74 | BW6: 2074/75 | BX6: 2075/76 | BY6: 2076/77 | BZ6: 2077/78 | CA6: 2078/79 | CB6: 2079/80 | CC6: 2080/81 | CE6: Check
C7: Life (years) | D7: Capex | E7: Depn | F7: Depn | G7: Depn | H7: Depn | I7: Depn | J7: Depn | K7: Depn | L7: Depn | M7: Depn | N7: Depn | O7: Depn | P7: Depn | Q7: Depn | R7: Depn | S7: Depn | T7: Depn | U7: Depn | V7: Depn | W7: Depn | X7: Depn | Y7: Depn | Z7: Depn | AA7: Depn | AB7: Depn | AC7: Depn | AD7: Depn | AE7: Depn | AF7: Depn | AG7: Depn | AH7: Depn | AI7: Depn | AJ7: Depn | AK7: Depn | AL7: Depn | AM7: Depn | AN7: Depn | AO7: Depn | AP7: Depn | AQ7: Depn | AR7: Depn | AS7: Depn | AT7: Depn | AU7: Depn | AV7: Depn | AW7: Depn | AX7: Depn | AY7: Depn | AZ7: Depn | BA7: Depn | BB7: Depn | BC7: Depn | BD7: Depn | BE7: Depn | BF7: Depn | BG7: Depn | BH7: Depn | BI7: Depn | BJ7: Depn | BK7: Depn | BL7: Depn | BM7: Depn | BN7: Depn | BO7: Depn | BP7: Depn | BQ7: Depn | BR7: Depn | BS7: Depn | BT7: Depn | BU7: Depn | BV7: Depn | BW7: Depn | BX7: Depn | BY7: Depn | BZ7: Depn | CA7: Depn | CB7: Depn | CC7: Depn
B8: Poles and Brackets | C8: 35
B9: 2001-04 | D9: 4361161.42 | E9: 132156.4067 | F9: 132156.4067 | G9: 132156.4067 | H9: 132156.4067 | I9: 132156.4067 | J9: 132156.4067 | K9: 132156.4067 | L9: 132156.4067 | M9: 132156.4067 | N9: 132156.4067 | O9: 132156.4067 | P9: 132156.4067 | Q9: 132156.4067 | R9: 132156.4067 | S9: 132156.4067 | T9: 132156.4067 | U9: 66078.20333 | V9: 132156.4067 | W9: 132156.4067 | X9: 132156.4067 | Y9: 132156.4067 | Z9: 132156.4067 | AA9: =IF(ABS($D9-SUM($E9:Z9))>=ABS(Z9),Z9,IF(ABS($D9-SUM($E9:Z9))>0,$D9-SUM($E9:Z9),0)) -> 132156.4067 | AB9: =IF(ABS($D9-SUM($E9:AA9))>=ABS(AA9),AA9,IF(ABS($D9-SUM($E9:AA9))>0,$D9-SUM($E9:AA9),0)) -> 132156.4067 | AC9: =IF(ABS($D9-SUM($E9:AB9))>=ABS(AB9),AB9,IF(ABS($D9-SUM($E9:AB9))>0,$D9-SUM($E9:AB9),0)) -> 132156.4067 | AD9: =IF(ABS($D9-SUM($E9:AC9))>=ABS(AC9),AC9,IF(ABS($D9-SUM($E9:AC9))>0,$D9-SUM($E9:AC9),0)) -> 132156.4067 | AE9: =IF(ABS($D9-SUM($E9:AD9))>=ABS(AD9),AD9,IF(ABS($D9-SUM($E9:AD9))>0,$D9-SUM($E9:AD9),0)) -> 132156.4067 | AF9: =IF(ABS($D9-SUM($E9:AE9))>=ABS(AE9),AE9,IF(ABS($D9-SUM($E9:AE9))>0,$D9-SUM($E9:AE9),0)) -> 132156.4067 | AG9: =IF(ABS($D9-SUM($E9:AF9))>=ABS(AF9),AF9,IF(ABS($D9-SUM($E9:AF9))>0,$D9-SUM($E9:AF9),0)) -> 132156.4067 | AH9: =IF(ABS($D9-SUM($E9:AG9))>=ABS(AG9),AG9,IF(ABS($D9-SUM($E9:AG9))>0,$D9-SUM($E9:AG9),0)) -> 132156.4067 | AI9: =IF(ABS($D9-SUM($E9:AH9))>=ABS(AH9),AH9,IF(ABS($D9-SUM($E9:AH9))>0,$D9-SUM($E9:AH9),0)) -> 132156.4067 | AJ9: =IF(ABS($D9-SUM($E9:AI9))>=ABS(AI9),AI9,IF(ABS($D9-SUM($E9:AI9))>0,$D9-SUM($E9:AI9),0)) -> 132156.4067 | AK9: =IF(ABS($D9-SUM($E9:AJ9))>=ABS(AJ9),AJ9,IF(ABS($D9-SUM($E9:AJ9))>0,$D9-SUM($E9:AJ9),0)) -> 132156.4067 | AL9: =IF(ABS($D9-SUM($E9:AK9))>=ABS(AK9),AK9,IF(ABS($D9-SUM($E9:AK9))>0,$D9-SUM($E9:AK9),0)) -> 66078.20333 | AM9: =IF(ABS($D9-SUM($E9:AL9))>=ABS(AL9),AL9,IF(ABS($D9-SUM($E9:AL9))>0,$D9-SUM($E9:AL9),0)) -> 0 | AN9: =IF(ABS($D9-SUM($E9:AM9))>=ABS(AM9),AM9,IF(ABS($D9-SUM($E9:AM9))>0,$D9-SUM($E9:AM9),0)) -> 0 | AO9: =IF(ABS($D9-SUM($E9:AN9))>=ABS(AN9),AN9,IF(ABS($D9-SUM($E9:AN9))>0,$D9-SUM($E9:AN9),0)) -> 0 | AP9: =IF(ABS($D9-SUM($E9:AO9))>=ABS(AO9),AO9,IF(ABS($D9-SUM($E9:AO9))>0,$D9-SUM($E9:AO9),0)) -> 0 | AQ9: =IF(ABS($D9-SUM($E9:AP9))>=ABS(AP9),AP9,IF(ABS($D9-SUM($E9:AP9))>0,$D9-SUM($E9:AP9),0)) -> 0 | AR9: =IF(ABS($D9-SUM($E9:AQ9))>=ABS(AQ9),AQ9,IF(ABS($D9-SUM($E9:AQ9))>0,$D9-SUM($E9:AQ9),0)) -> 0 | AS9: =IF(ABS($D9-SUM($E9:AR9))>=ABS(AR9),AR9,IF(ABS($D9-SUM($E9:AR9))>0,$D9-SUM($E9:AR9),0)) -> 0 | AT9: =IF(ABS($D9-SUM($E9:AS9))>=ABS(AS9),AS9,IF(ABS($D9-SUM($E9:AS9))>0,$D9-SUM($E9:AS9),0)) -> 0 | AU9: =IF(ABS($D9-SUM($E9:AT9))>=ABS(AT9),AT9,IF(ABS($D9-SUM($E9:AT9))>0,$D9-SUM($E9:AT9),0)) -> 0 | AV9: =IF(ABS($D9-SUM($E9:AU9))>=ABS(AU9),AU9,IF(ABS($D9-SUM($E9:AU9))>0,$D9-SUM($E9:AU9),0)) -> 0 | AW9: =IF(ABS($D9-SUM($E9:AV9))>=ABS(AV9),AV9,IF(ABS($D9-SUM($E9:AV9))>0,$D9-SUM($E9:AV9),0)) -> 0 | AX9: =IF(ABS($D9-SUM($E9:AW9))>=ABS(AW9),AW9,IF(ABS($D9-SUM($E9:AW9))>0,$D9-SUM($E9:AW9),0)) -> 0 | AY9: =IF(ABS($D9-SUM($E9:AX9))>=ABS(AX9),AX9,IF(ABS($D9-SUM($E9:AX9))>0,$D9-SUM($E9:AX9),0)) -> 0 | AZ9: =IF(ABS($D9-SUM($E9:AY9))>=ABS(AY9),AY9,IF(ABS($D9-SUM($E9:AY9))>0,$D9-SUM($E9:AY9),0)) -> 0 | BA9: =IF(ABS($D9-SUM($E9:AZ9))>=ABS(AZ9),AZ9,IF(ABS($D9-SUM($E9:AZ9))>0,$D9-SUM($E9:AZ9),0)) -> 0 | BB9: =IF(ABS($D9-SUM($E9:BA9))>=ABS(BA9),BA9,IF(ABS($D9-SUM($E9:BA9))>0,$D9-SUM($E9:BA9),0)) -> 0 | BC9: =IF(ABS($D9-SUM($E9:BB9))>=ABS(BB9),BB9,IF(ABS($D9-SUM($E9:BB9))>0,$D9-SUM($E9:BB9),0)) -> 0 | BD9: =IF(ABS($D9-SUM($E9:BC9))>=ABS(BC9),BC9,IF(ABS($D9-SUM($E9:BC9))>0,$D9-SUM($E9:BC9),0)) -> 0 | BE9: =IF(ABS($D9-SUM($E9:BD9))>=ABS(BD9),BD9,IF(ABS($D9-SUM($E9:BD9))>0,$D9-SUM($E9:BD9),0)) -> 0 | BF9: =IF(ABS($D9-SUM($E9:BE9))>=ABS(BE9),BE9,IF(ABS($D9-SUM($E9:BE9))>0,$D9-SUM($E9:BE9),0)) -> 0 | BG9: =IF(ABS($D9-SUM($E9:BF9))>=ABS(BF9),BF9,IF(ABS($D9-SUM($E9:BF9))>0,$D9-SUM($E9:BF9),0)) -> 0 | BH9: =IF(ABS($D9-SUM($E9:BG9))>=ABS(BG9),BG9,IF(ABS($D9-SUM($E9:BG9))>0,$D9-SUM($E9:BG9),0)) -> 0 | BI9: =IF(ABS($D9-SUM($E9:BH9))>=ABS(BH9),BH9,IF(ABS($D9-SUM($E9:BH9))>0,$D9-SUM($E9:BH9),0)) -> 0 | BJ9: =IF(ABS($D9-SUM($E9:BI9))>=ABS(BI9),BI9,IF(ABS($D9-SUM($E9:BI9))>0,$D9-SUM($E9:BI9),0)) -> 0 | BK9: =IF(ABS($D9-SUM($E9:BJ9))>=ABS(BJ9),BJ9,IF(ABS($D9-SUM($E9:BJ9))>0,$D9-SUM($E9:BJ9),0)) -> 0 | BL9: =IF(ABS($D9-SUM($E9:BK9))>=ABS(BK9),BK9,IF(ABS($D9-SUM($E9:BK9))>0,$D9-SUM($E9:BK9),0)) -> 0 | BM9: =IF(ABS($D9-SUM($E9:BL9))>=ABS(BL9),BL9,IF(ABS($D9-SUM($E9:BL9))>0,$D9-SUM($E9:BL9),0)) -> 0 | BN9: =IF(ABS($D9-SUM($E9:BM9))>=ABS(BM9),BM9,IF(ABS($D9-SUM($E9:BM9))>0,$D9-SUM($E9:BM9),0)) -> 0 | BO9: =IF(ABS($D9-SUM($E9:BN9))>=ABS(BN9),BN9,IF(ABS($D9-SUM($E9:BN9))>0,$D9-SUM($E9:BN9),0)) -> 0 | BP9: =IF(ABS($D9-SUM($E9:BO9))>=ABS(BO9),BO9,IF(ABS($D9-SUM($E9:BO9))>0,$D9-SUM($E9:BO9),0)) -> 0 | BQ9: =IF(ABS($D9-SUM($E9:BP9))>=ABS(BP9),BP9,IF(ABS($D9-SUM($E9:BP9))>0,$D9-SUM($E9:BP9),0)) -> 0 | BR9: =IF(ABS($D9-SUM($E9:BQ9))>=ABS(BQ9),BQ9,IF(ABS($D9-SUM($E9:BQ9))>0,$D9-SUM($E9:BQ9),0)) -> 0 | BS9: =IF(ABS($D9-SUM($E9:BR9))>=ABS(BR9),BR9,IF(ABS($D9-SUM($E9:BR9))>0,$D9-SUM($E9:BR9),0)) -> 0 | BT9: =IF(ABS($D9-SUM($E9:BS9))>=ABS(BS9),BS9,IF(ABS($D9-SUM($E9:BS9))>0,$D9-SUM($E9:BS9),0)) -> 0 | BU9: =IF(ABS($D9-SUM($E9:BT9))>=ABS(BT9),BT9,IF(ABS($D9-SUM($E9:BT9))>0,$D9-SUM($E9:BT9),0)) -> 0 | BV9: =IF(ABS($D9-SUM($E9:BU9))>=ABS(BU9),BU9,IF(ABS($D9-SUM($E9:BU9))>0,$D9-SUM($E9:BU9),0)) -> 0 | BW9: =IF(ABS($D9-SUM($E9:BV9))>=ABS(BV9),BV9,IF(ABS($D9-SUM($E9:BV9))>0,$D9-SUM($E9:BV9),0)) -> 0 | BX9: =IF(ABS($D9-SUM($E9:BW9))>=ABS(BW9),BW9,IF(ABS($D9-SUM($E9:BW9))>0,$D9-SUM($E9:BW9),0)) -> 0 | BY9: =IF(ABS($D9-SUM($E9:BX9))>=ABS(BX9),BX9,IF(ABS($D9-SUM($E9:BX9))>0,$D9-SUM($E9:BX9),0)) -> 0 | BZ9: =IF(ABS($D9-SUM($E9:BY9))>=ABS(BY9),BY9,IF(ABS($D9-SUM($E9:BY9))>0,$D9-SUM($E9:BY9),0)) -> 0 | CA9: =IF(ABS($D9-SUM($E9:BZ9))>=ABS(BZ9),BZ9,IF(ABS($D9-SUM($E9:BZ9))>0,$D9-SUM($E9:BZ9),0)) -> 0 | CB9: =IF(ABS($D9-SUM($E9:CA9))>=ABS(CA9),CA9,IF(ABS($D9-SUM($E9:CA9))>0,$D9-SUM($E9:CA9),0)) -> 0 | CC9: =IF(ABS($D9-SUM($E9:CB9))>=ABS(CB9),CB9,IF(ABS($D9-SUM($E9:CB9))>0,$D9-SUM($E9:CB9),0)) -> 0 | CE9: =D9-SUM(E9:CC9) -> 0
B10: =$E$6 -> 2005 | D10: 591600 | E10: 8451.428571 | F10: 16902.85714 | G10: 16902.85714 | H10: 16902.85714 | I10: 16902.85714 | J10: 16902.85714 | K10: 16902.85714 | L10: 16902.85714 | M10: 16902.85714 | N10: 16902.85714 | O10: 16902.85714 | P10: 16902.85714 | Q10: 16902.85714 | R10: 16902.85714 | S10: 16902.85714 | T10: 16902.85714 | U10: 8451.428571 | V10: 16902.85714 | W10: 16902.85714 | X10: 16902.85714 | Y10: 16902.85714 | Z10: 16902.85714 | AA10: =IF(ABS($D10-SUM($E10:Z10))>=ABS(Z10),Z10,IF(ABS($D10-SUM($E10:Z10))>0,$D10-SUM($E10:Z10),0)) -> 16902.85714 | AB10: =IF(ABS($D10-SUM($E10:AA10))>=ABS(AA10),AA10,IF(ABS($D10-SUM($E10:AA10))>0,$D10-SUM($E10:AA10),0)) -> 16902.85714 | AC10: =IF(ABS($D10-SUM($E10:AB10))>=ABS(AB10),AB10,IF(ABS($D10-SUM($E10:AB10))>0,$D10-SUM($E10:AB10),0)) -> 16902.85714 | AD10: =IF(ABS($D10-SUM($E10:AC10))>=ABS(AC10),AC10,IF(ABS($D10-SUM($E10:AC10))>0,$D10-SUM($E10:AC10),0)) -> 16902.85714 | AE10: =IF(ABS($D10-SUM($E10:AD10))>=ABS(AD10),AD10,IF(ABS($D10-SUM($E10:AD10))>0,$D10-SUM($E10:AD10),0)) -> 16902.85714 | AF10: =IF(ABS($D10-SUM($E10:AE10))>=ABS(AE10),AE10,IF(ABS($D10-SUM($E10:AE10))>0,$D10-SUM($E10:AE10),0)) -> 16902.85714 | AG10: =IF(ABS($D10-SUM($E10:AF10))>=ABS(AF10),AF10,IF(ABS($D10-SUM($E10:AF10))>0,$D10-SUM($E10:AF10),0)) -> 16902.85714 | AH10: =IF(ABS($D10-SUM($E10:AG10))>=ABS(AG10),AG10,IF(ABS($D10-SUM($E10:AG10))>0,$D10-SUM($E10:AG10),0)) -> 16902.85714 | AI10: =IF(ABS($D10-SUM($E10:AH10))>=ABS(AH10),AH10,IF(ABS($D10-SUM($E10:AH10))>0,$D10-SUM($E10:AH10),0)) -> 16902.85714 | AJ10: =IF(ABS($D10-SUM($E10:AI10))>=ABS(AI10),AI10,IF(ABS($D10-SUM($E10:AI10))>0,$D10-SUM($E10:AI10),0)) -> 16902.85714 | AK10: =IF(ABS($D10-SUM($E10:AJ10))>=ABS(AJ10),AJ10,IF(ABS($D10-SUM($E10:AJ10))>0,$D10-SUM($E10:AJ10),0)) -> 16902.85714 | AL10: =IF(ABS($D10-SUM($E10:AK10))>=ABS(AK10),AK10,IF(ABS($D10-SUM($E10:AK10))>0,$D10-SUM($E10:AK10),0)) -> 16902.85714 | AM10: =IF(ABS($D10-SUM($E10:AL10))>=ABS(AL10),AL10,IF(ABS($D10-SUM($E10:AL10))>0,$D10-SUM($E10:AL10),0)) -> 16902.85714 | AN10: =IF(ABS($D10-SUM($E10:AM10))>=ABS(AM10),AM10,IF(ABS($D10-SUM($E10:AM10))>0,$D10-SUM($E10:AM10),0)) -> 16902.85714 | AO10: =IF(ABS($D10-SUM($E10:AN10))>=ABS(AN10),AN10,IF(ABS($D10-SUM($E10:AN10))>0,$D10-SUM($E10:AN10),0)) -> 0 | AP10: =IF(ABS($D10-SUM($E10:AO10))>=ABS(AO10),AO10,IF(ABS($D10-SUM($E10:AO10))>0,$D10-SUM($E10:AO10),0)) -> 0 | AQ10: =IF(ABS($D10-SUM($E10:AP10))>=ABS(AP10),AP10,IF(ABS($D10-SUM($E10:AP10))>0,$D10-SUM($E10:AP10),0)) -> 0 | AR10: =IF(ABS($D10-SUM($E10:AQ10))>=ABS(AQ10),AQ10,IF(ABS($D10-SUM($E10:AQ10))>0,$D10-SUM($E10:AQ10),0)) -> 0 | AS10: =IF(ABS($D10-SUM($E10:AR10))>=ABS(AR10),AR10,IF(ABS($D10-SUM($E10:AR10))>0,$D10-SUM($E10:AR10),0)) -> 0 | AT10: =IF(ABS($D10-SUM($E10:AS10))>=ABS(AS10),AS10,IF(ABS($D10-SUM($E10:AS10))>0,$D10-SUM($E10:AS10),0)) -> 0 | AU10: =IF(ABS($D10-SUM($E10:AT10))>=ABS(AT10),AT10,IF(ABS($D10-SUM($E10:AT10))>0,$D10-SUM($E10:AT10),0)) -> 0 | AV10: =IF(ABS($D10-SUM($E10:AU10))>=ABS(AU10),AU10,IF(ABS($D10-SUM($E10:AU10))>0,$D10-SUM($E10:AU10),0)) -> 0 | AW10: =IF(ABS($D10-SUM($E10:AV10))>=ABS(AV10),AV10,IF(ABS($D10-SUM($E10:AV10))>0,$D10-SUM($E10:AV10),0)) -> 0 | AX10: =IF(ABS($D10-SUM($E10:AW10))>=ABS(AW10),AW10,IF(ABS($D10-SUM($E10:AW10))>0,$D10-SUM($E10:AW10),0)) -> 0 | AY10: =IF(ABS($D10-SUM($E10:AX10))>=ABS(AX10),AX10,IF(ABS($D10-SUM($E10:AX10))>0,$D10-SUM($E10:AX10),0)) -> 0 | AZ10: =IF(ABS($D10-SUM($E10:AY10))>=ABS(AY10),AY10,IF(ABS($D10-SUM($E10:AY10))>0,$D10-SUM($E10:AY10),0)) -> 0 | BA10: =IF(ABS($D10-SUM($E10:AZ10))>=ABS(AZ10),AZ10,IF(ABS($D10-SUM($E10:AZ10))>0,$D10-SUM($E10:AZ10),0)) -> 0 | BB10: =IF(ABS($D10-SUM($E10:BA10))>=ABS(BA10),BA10,IF(ABS($D10-SUM($E10:BA10))>0,$D10-SUM($E10:BA10),0)) -> 0 | BC10: =IF(ABS($D10-SUM($E10:BB10))>=ABS(BB10),BB10,IF(ABS($D10-SUM($E10:BB10))>0,$D10-SUM($E10:BB10),0)) -> 0 | BD10: =IF(ABS($D10-SUM($E10:BC10))>=ABS(BC10),BC10,IF(ABS($D10-SUM($E10:BC10))>0,$D10-SUM($E10:BC10),0)) -> 0 | BE10: =IF(ABS($D10-SUM($E10:BD10))>=ABS(BD10),BD10,IF(ABS($D10-SUM($E10:BD10))>0,$D10-SUM($E10:BD10),0)) -> 0 | BF10: =IF(ABS($D10-SUM($E10:BE10))>=ABS(BE10),BE10,IF(ABS($D10-SUM($E10:BE10))>0,$D10-SUM($E10:BE10),0)) -> 0 | BG10: =IF(ABS($D10-SUM($E10:BF10))>=ABS(BF10),BF10,IF(ABS($D10-SUM($E10:BF10))>0,$D10-SUM($E10:BF10),0)) -> 0 | BH10: =IF(ABS($D10-SUM($E10:BG10))>=ABS(BG10),BG10,IF(ABS($D10-SUM($E10:BG10))>0,$D10-SUM($E10:BG10),0)) -> 0 | BI10: =IF(ABS($D10-SUM($E10:BH10))>=ABS(BH10),BH10,IF(ABS($D10-SUM($E10:BH10))>0,$D10-SUM($E10:BH10),0)) -> 0 | BJ10: =IF(ABS($D10-SUM($E10:BI10))>=ABS(BI10),BI10,IF(ABS($D10-SUM($E10:BI10))>0,$D10-SUM($E10:BI10),0)) -> 0 | BK10: =IF(ABS($D10-SUM($E10:BJ10))>=ABS(BJ10),BJ10,IF(ABS($D10-SUM($E10:BJ10))>0,$D10-SUM($E10:BJ10),0)) -> 0 | BL10: =IF(ABS($D10-SUM($E10:BK10))>=ABS(BK10),BK10,IF(ABS($D10-SUM($E10:BK10))>0,$D10-SUM($E10:BK10),0)) -> 0 | BM10: =IF(ABS($D10-SUM($E10:BL10))>=ABS(BL10),BL10,IF(ABS($D10-SUM($E10:BL10))>0,$D10-SUM($E10:BL10),0)) -> 0 | BN10: =IF(ABS($D10-SUM($E10:BM10))>=ABS(BM10),BM10,IF(ABS($D10-SUM($E10:BM10))>0,$D10-SUM($E10:BM10),0)) -> 0 | BO10: =IF(ABS($D10-SUM($E10:BN10))>=ABS(BN10),BN10,IF(ABS($D10-SUM($E10:BN10))>0,$D10-SUM($E10:BN10),0)) -> 0 | BP10: =IF(ABS($D10-SUM($E10:BO10))>=ABS(BO10),BO10,IF(ABS($D10-SUM($E10:BO10))>0,$D10-SUM($E10:BO10),0)) -> 0 | BQ10: =IF(ABS($D10-SUM($E10:BP10))>=ABS(BP10),BP10,IF(ABS($D10-SUM($E10:BP10))>0,$D10-SUM($E10:BP10),0)) -> 0 | BR10: =IF(ABS($D10-SUM($E10:BQ10))>=ABS(BQ10),BQ10,IF(ABS($D10-SUM($E10:BQ10))>0,$D10-SUM($E10:BQ10),0)) -> 0 | BS10: =IF(ABS($D10-SUM($E10:BR10))>=ABS(BR10),BR10,IF(ABS($D10-SUM($E10:BR10))>0,$D10-SUM($E10:BR10),0)) -> 0 | BT10: =IF(ABS($D10-SUM($E10:BS10))>=ABS(BS10),BS10,IF(ABS($D10-SUM($E10:BS10))>0,$D10-SUM($E10:BS10),0)) -> 0 | BU10: =IF(ABS($D10-SUM($E10:BT10))>=ABS(BT10),BT10,IF(ABS($D10-SUM($E10:BT10))>0,$D10-SUM($E10:BT10),0)) -> 0 | BV10: =IF(ABS($D10-SUM($E10:BU10))>=ABS(BU10),BU10,IF(ABS($D10-SUM($E10:BU10))>0,$D10-SUM($E10:BU10),0)) -> 0 | BW10: =IF(ABS($D10-SUM($E10:BV10))>=ABS(BV10),BV10,IF(ABS($D10-SUM($E10:BV10))>0,$D10-SUM($E10:BV10),0)) -> 0 | BX10: =IF(ABS($D10-SUM($E10:BW10))>=ABS(BW10),BW10,IF(ABS($D10-SUM($E10:BW10))>0,$D10-SUM($E10:BW10),0)) -> 0 | BY10: =IF(ABS($D10-SUM($E10:BX10))>=ABS(BX10),BX10,IF(ABS($D10-SUM($E10:BX10))>0,$D10-SUM($E10:BX10),0)) -> 0 | BZ10: =IF(ABS($D10-SUM($E10:BY10))>=ABS(BY10),BY10,IF(ABS($D10-SUM($E10:BY10))>0,$D10-SUM($E10:BY10),0)) -> 0 | CA10: =IF(ABS($D10-SUM($E10:BZ10))>=ABS(BZ10),BZ10,IF(ABS($D10-SUM($E10:BZ10))>0,$D10-SUM($E10:BZ10),0)) -> 0 | CB10: =IF(ABS($D10-SUM($E10:CA10))>=ABS(CA10),CA10,IF(ABS($D10-SUM($E10:CA10))>0,$D10-SUM($E10:CA10),0)) -> 0 | CC10: =IF(ABS($D10-SUM($E10:CB10))>=ABS(CB10),CB10,IF(ABS($D10-SUM($E10:CB10))>0,$D10-SUM($E10:CB10),0)) -> 0 | CE10: =D10-SUM(E10:CC10) -> 0
B11: =$F$6 -> 2006 | D11: 171600 | F11: 2451.428571 | G11: 4902.857143 | H11: 4902.857143 | I11: 4902.857143 | J11: 4902.857143 | K11: 4902.857143 | L11: 4902.857143 | M11: 4902.857143 | N11: 4902.857143 | O11: 4902.857143 | P11: 4902.857143 | Q11: 4902.857143 | R11: 4902.857143 | S11: 4902.857143 | T11: 4902.857143 | U11: 2451.428571 | V11: 4902.857143 | W11: 4902.857143 | X11: 4902.857143 | Y11: 4902.857143 | Z11: 4902.857143 | AA11: =IF(ABS($D11-SUM($E11:Z11))>=ABS(Z11),Z11,IF(ABS($D11-SUM($E11:Z11))>0,$D11-SUM($E11:Z11),0)) -> 4902.857143 | AB11: =IF(ABS($D11-SUM($E11:AA11))>=ABS(AA11),AA11,IF(ABS($D11-SUM($E11:AA11))>0,$D11-SUM($E11:AA11),0)) -> 4902.857143 | AC11: =IF(ABS($D11-SUM($E11:AB11))>=ABS(AB11),AB11,IF(ABS($D11-SUM($E11:AB11))>0,$D11-SUM($E11:AB11),0)) -> 4902.857143 | AD11: =IF(ABS($D11-SUM($E11:AC11))>=ABS(AC11),AC11,IF(ABS($D11-SUM($E11:AC11))>0,$D11-SUM($E11:AC11),0)) -> 4902.857143 | AE11: =IF(ABS($D11-SUM($E11:AD11))>=ABS(AD11),AD11,IF(ABS($D11-SUM($E11:AD11))>0,$D11-SUM($E11:AD11),0)) -> 4902.857143 | AF11: =IF(ABS($D11-SUM($E11:AE11))>=ABS(AE11),AE11,IF(ABS($D11-SUM($E11:AE11))>0,$D11-SUM($E11:AE11),0)) -> 4902.857143 | AG11: =IF(ABS($D11-SUM($E11:AF11))>=ABS(AF11),AF11,IF(ABS($D11-SUM($E11:AF11))>0,$D11-SUM($E11:AF11),0)) -> 4902.857143 | AH11: =IF(ABS($D11-SUM($E11:AG11))>=ABS(AG11),AG11,IF(ABS($D11-SUM($E11:AG11))>0,$D11-SUM($E11:AG11),0)) -> 4902.857143 | AI11: =IF(ABS($D11-SUM($E11:AH11))>=ABS(AH11),AH11,IF(ABS($D11-SUM($E11:AH11))>0,$D11-SUM($E11:AH11),0)) -> 4902.857143 | AJ11: =IF(ABS($D11-SUM($E11:AI11))>=ABS(AI11),AI11,IF(ABS($D11-SUM($E11:AI11))>0,$D11-SUM($E11:AI11),0)) -> 4902.857143 | AK11: =IF(ABS($D11-SUM($E11:AJ11))>=ABS(AJ11),AJ11,IF(ABS($D11-SUM($E11:AJ11))>0,$D11-SUM($E11:AJ11),0)) -> 4902.857143 | AL11: =IF(ABS($D11-SUM($E11:AK11))>=ABS(AK11),AK11,IF(ABS($D11-SUM($E11:AK11))>0,$D11-SUM($E11:AK11),0)) -> 4902.857143 | AM11: =IF(ABS($D11-SUM($E11:AL11))>=ABS(AL11),AL11,IF(ABS($D11-SUM($E11:AL11))>0,$D11-SUM($E11:AL11),0)) -> 4902.857143 | AN11: =IF(ABS($D11-SUM($E11:AM11))>=ABS(AM11),AM11,IF(ABS($D11-SUM($E11:AM11))>0,$D11-SUM($E11:AM11),0)) -> 4902.857143 | AO11: =IF(ABS($D11-SUM($E11:AN11))>=ABS(AN11),AN11,IF(ABS($D11-SUM($E11:AN11))>0,$D11-SUM($E11:AN11),0)) -> 4902.857143 | AP11: =IF(ABS($D11-SUM($E11:AO11))>=ABS(AO11),AO11,IF(ABS($D11-SUM($E11:AO11))>0,$D11-SUM($E11:AO11),0)) -> 5.820766091e-11 | AQ11: =IF(ABS($D11-SUM($E11:AP11))>=ABS(AP11),AP11,IF(ABS($D11-SUM($E11:AP11))>0,$D11-SUM($E11:AP11),0)) -> 0 | AR11: =IF(ABS($D11-SUM($E11:AQ11))>=ABS(AQ11),AQ11,IF(ABS($D11-SUM($E11:AQ11))>0,$D11-SUM($E11:AQ11),0)) -> 0 | AS11: =IF(ABS($D11-SUM($E11:AR11))>=ABS(AR11),AR11,IF(ABS($D11-SUM($E11:AR11))>0,$D11-SUM($E11:AR11),0)) -> 0 | AT11: =IF(ABS($D11-SUM($E11:AS11))>=ABS(AS11),AS11,IF(ABS($D11-SUM($E11:AS11))>0,$D11-SUM($E11:AS11),0)) -> 0 | AU11: =IF(ABS($D11-SUM($E11:AT11))>=ABS(AT11),AT11,IF(ABS($D11-SUM($E11:AT11))>0,$D11-SUM($E11:AT11),0)) -> 0 | AV11: =IF(ABS($D11-SUM($E11:AU11))>=ABS(AU11),AU11,IF(ABS($D11-SUM($E11:AU11))>0,$D11-SUM($E11:AU11),0)) -> 0 | AW11: =IF(ABS($D11-SUM($E11:AV11))>=ABS(AV11),AV11,IF(ABS($D11-SUM($E11:AV11))>0,$D11-SUM($E11:AV11),0)) -> 0 | AX11: =IF(ABS($D11-SUM($E11:AW11))>=ABS(AW11),AW11,IF(ABS($D11-SUM($E11:AW11))>0,$D11-SUM($E11:AW11),0)) -> 0 | AY11: =IF(ABS($D11-SUM($E11:AX11))>=ABS(AX11),AX11,IF(ABS($D11-SUM($E11:AX11))>0,$D11-SUM($E11:AX11),0)) -> 0 | AZ11: =IF(ABS($D11-SUM($E11:AY11))>=ABS(AY11),AY11,IF(ABS($D11-SUM($E11:AY11))>0,$D11-SUM($E11:AY11),0)) -> 0 | BA11: =IF(ABS($D11-SUM($E11:AZ11))>=ABS(AZ11),AZ11,IF(ABS($D11-SUM($E11:AZ11))>0,$D11-SUM($E11:AZ11),0)) -> 0 | BB11: =IF(ABS($D11-SUM($E11:BA11))>=ABS(BA11),BA11,IF(ABS($D11-SUM($E11:BA11))>0,$D11-SUM($E11:BA11),0)) -> 0 | BC11: =IF(ABS($D11-SUM($E11:BB11))>=ABS(BB11),BB11,IF(ABS($D11-SUM($E11:BB11))>0,$D11-SUM($E11:BB11),0)) -> 0 | BD11: =IF(ABS($D11-SUM($E11:BC11))>=ABS(BC11),BC11,IF(ABS($D11-SUM($E11:BC11))>0,$D11-SUM($E11:BC11),0)) -> 0 | BE11: =IF(ABS($D11-SUM($E11:BD11))>=ABS(BD11),BD11,IF(ABS($D11-SUM($E11:BD11))>0,$D11-SUM($E11:BD11),0)) -> 0 | BF11: =IF(ABS($D11-SUM($E11:BE11))>=ABS(BE11),BE11,IF(ABS($D11-SUM($E11:BE11))>0,$D11-SUM($E11:BE11),0)) -> 0 | BG11: =IF(ABS($D11-SUM($E11:BF11))>=ABS(BF11),BF11,IF(ABS($D11-SUM($E11:BF11))>0,$D11-SUM($E11:BF11),0)) -> 0 | BH11: =IF(ABS($D11-SUM($E11:BG11))>=ABS(BG11),BG11,IF(ABS($D11-SUM($E11:BG11))>0,$D11-SUM($E11:BG11),0)) -> 0 | BI11: =IF(ABS($D11-SUM($E11:BH11))>=ABS(BH11),BH11,IF(ABS($D11-SUM($E11:BH11))>0,$D11-SUM($E11:BH11),0)) -> 0 | BJ11: =IF(ABS($D11-SUM($E11:BI11))>=ABS(BI11),BI11,IF(ABS($D11-SUM($E11:BI11))>0,$D11-SUM($E11:BI11),0)) -> 0 | BK11: =IF(ABS($D11-SUM($E11:BJ11))>=ABS(BJ11),BJ11,IF(ABS($D11-SUM($E11:BJ11))>0,$D11-SUM($E11:BJ11),0)) -> 0 | BL11: =IF(ABS($D11-SUM($E11:BK11))>=ABS(BK11),BK11,IF(ABS($D11-SUM($E11:BK11))>0,$D11-SUM($E11:BK11),0)) -> 0 | BM11: =IF(ABS($D11-SUM($E11:BL11))>=ABS(BL11),BL11,IF(ABS($D11-SUM($E11:BL11))>0,$D11-SUM($E11:BL11),0)) -> 0 | BN11: =IF(ABS($D11-SUM($E11:BM11))>=ABS(BM11),BM11,IF(ABS($D11-SUM($E11:BM11))>0,$D11-SUM($E11:BM11),0)) -> 0 | BO11: =IF(ABS($D11-SUM($E11:BN11))>=ABS(BN11),BN11,IF(ABS($D11-SUM($E11:BN11))>0,$D11-SUM($E11:BN11),0)) -> 0 | BP11: =IF(ABS($D11-SUM($E11:BO11))>=ABS(BO11),BO11,IF(ABS($D11-SUM($E11:BO11))>0,$D11-SUM($E11:BO11),0)) -> 0 | BQ11: =IF(ABS($D11-SUM($E11:BP11))>=ABS(BP11),BP11,IF(ABS($D11-SUM($E11:BP11))>0,$D11-SUM($E11:BP11),0)) -> 0 | BR11: =IF(ABS($D11-SUM($E11:BQ11))>=ABS(BQ11),BQ11,IF(ABS($D11-SUM($E11:BQ11))>0,$D11-SUM($E11:BQ11),0)) -> 0 | BS11: =IF(ABS($D11-SUM($E11:BR11))>=ABS(BR11),BR11,IF(ABS($D11-SUM($E11:BR11))>0,$D11-SUM($E11:BR11),0)) -> 0 | BT11: =IF(ABS($D11-SUM($E11:BS11))>=ABS(BS11),BS11,IF(ABS($D11-SUM($E11:BS11))>0,$D11-SUM($E11:BS11),0)) -> 0 | BU11: =IF(ABS($D11-SUM($E11:BT11))>=ABS(BT11),BT11,IF(ABS($D11-SUM($E11:BT11))>0,$D11-SUM($E11:BT11),0)) -> 0 | BV11: =IF(ABS($D11-SUM($E11:BU11))>=ABS(BU11),BU11,IF(ABS($D11-SUM($E11:BU11))>0,$D11-SUM($E11:BU11),0)) -> 0 | BW11: =IF(ABS($D11-SUM($E11:BV11))>=ABS(BV11),BV11,IF(ABS($D11-SUM($E11:BV11))>0,$D11-SUM($E11:BV11),0)) -> 0 | BX11: =IF(ABS($D11-SUM($E11:BW11))>=ABS(BW11),BW11,IF(ABS($D11-SUM($E11:BW11))>0,$D11-SUM($E11:BW11),0)) -> 0 | BY11: =IF(ABS($D11-SUM($E11:BX11))>=ABS(BX11),BX11,IF(ABS($D11-SUM($E11:BX11))>0,$D11-SUM($E11:BX11),0)) -> 0 | BZ11: =IF(ABS($D11-SUM($E11:BY11))>=ABS(BY11),BY11,IF(ABS($D11-SUM($E11:BY11))>0,$D11-SUM($E11:BY11),0)) -> 0 | CA11: =IF(ABS($D11-SUM($E11:BZ11))>=ABS(BZ11),BZ11,IF(ABS($D11-SUM($E11:BZ11))>0,$D11-SUM($E11:BZ11),0)) -> 0 | CB11: =IF(ABS($D11-SUM($E11:CA11))>=ABS(CA11),CA11,IF(ABS($D11-SUM($E11:CA11))>0,$D11-SUM($E11:CA11),0)) -> 0 | CC11: =IF(ABS($D11-SUM($E11:CB11))>=ABS(CB11),CB11,IF(ABS($D11-SUM($E11:CB11))>0,$D11-SUM($E11:CB11),0)) -> 0 | CE11: 0
B12: =$G$6 -> 2007 | D12: 70000 | G12: 1000 | H12: 2000 | I12: 2000 | J12: 2000 | K12: 2000 | L12: 2000 | M12: 2000 | N12: 2000 | O12: 2000 | P12: 2000 | Q12: 2000 | R12: 2000 | S12: 2000 | T12: 2000 | U12: 1000 | V12: 2000 | W12: 2000 | X12: 2000 | Y12: 2000 | Z12: 2000 | AA12: =IF(ABS($D12-SUM($E12:Z12))>=ABS(Z12),Z12,IF(ABS($D12-SUM($E12:Z12))>0,$D12-SUM($E12:Z12),0)) -> 2000 | AB12: =IF(ABS($D12-SUM($E12:AA12))>=ABS(AA12),AA12,IF(ABS($D12-SUM($E12:AA12))>0,$D12-SUM($E12:AA12),0)) -> 2000 | AC12: =IF(ABS($D12-SUM($E12:AB12))>=ABS(AB12),AB12,IF(ABS($D12-SUM($E12:AB12))>0,$D12-SUM($E12:AB12),0)) -> 2000 | AD12: =IF(ABS($D12-SUM($E12:AC12))>=ABS(AC12),AC12,IF(ABS($D12-SUM($E12:AC12))>0,$D12-SUM($E12:AC12),0)) -> 2000 | AE12: =IF(ABS($D12-SUM($E12:AD12))>=ABS(AD12),AD12,IF(ABS($D12-SUM($E12:AD12))>0,$D12-SUM($E12:AD12),0)) -> 2000 | AF12: =IF(ABS($D12-SUM($E12:AE12))>=ABS(AE12),AE12,IF(ABS($D12-SUM($E12:AE12))>0,$D12-SUM($E12:AE12),0)) -> 2000 | AG12: =IF(ABS($D12-SUM($E12:AF12))>=ABS(AF12),AF12,IF(ABS($D12-SUM($E12:AF12))>0,$D12-SUM($E12:AF12),0)) -> 2000 | AH12: =IF(ABS($D12-SUM($E12:AG12))>=ABS(AG12),AG12,IF(ABS($D12-SUM($E12:AG12))>0,$D12-SUM($E12:AG12),0)) -> 2000 | AI12: =IF(ABS($D12-SUM($E12:AH12))>=ABS(AH12),AH12,IF(ABS($D12-SUM($E12:AH12))>0,$D12-SUM($E12:AH12),0)) -> 2000 | AJ12: =IF(ABS($D12-SUM($E12:AI12))>=ABS(AI12),AI12,IF(ABS($D12-SUM($E12:AI12))>0,$D12-SUM($E12:AI12),0)) -> 2000 | AK12: =IF(ABS($D12-SUM($E12:AJ12))>=ABS(AJ12),AJ12,IF(ABS($D12-SUM($E12:AJ12))>0,$D12-SUM($E12:AJ12),0)) -> 2000 | AL12: =IF(ABS($D12-SUM($E12:AK12))>=ABS(AK12),AK12,IF(ABS($D12-SUM($E12:AK12))>0,$D12-SUM($E12:AK12),0)) -> 2000 | AM12: =IF(ABS($D12-SUM($E12:AL12))>=ABS(AL12),AL12,IF(ABS($D12-SUM($E12:AL12))>0,$D12-SUM($E12:AL12),0)) -> 2000 | AN12: =IF(ABS($D12-SUM($E12:AM12))>=ABS(AM12),AM12,IF(ABS($D12-SUM($E12:AM12))>0,$D12-SUM($E12:AM12),0)) -> 2000 | AO12: =IF(ABS($D12-SUM($E12:AN12))>=ABS(AN12),AN12,IF(ABS($D12-SUM($E12:AN12))>0,$D12-SUM($E12:AN12),0)) -> 2000 | AP12: =IF(ABS($D12-SUM($E12:AO12))>=ABS(AO12),AO12,IF(ABS($D12-SUM($E12:AO12))>0,$D12-SUM($E12:AO12),0)) -> 2000 | AQ12: =IF(ABS($D12-SUM($E12:AP12))>=ABS(AP12),AP12,IF(ABS($D12-SUM($E12:AP12))>0,$D12-SUM($E12:AP12),0)) -> 0 | AR12: =IF(ABS($D12-SUM($E12:AQ12))>=ABS(AQ12),AQ12,IF(ABS($D12-SUM($E12:AQ12))>0,$D12-SUM($E12:AQ12),0)) -> 0 | AS12: =IF(ABS($D12-SUM($E12:AR12))>=ABS(AR12),AR12,IF(ABS($D12-SUM($E12:AR12))>0,$D12-SUM($E12:AR12),0)) -> 0 | AT12: =IF(ABS($D12-SUM($E12:AS12))>=ABS(AS12),AS12,IF(ABS($D12-SUM($E12:AS12))>0,$D12-SUM($E12:AS12),0)) -> 0 | AU12: =IF(ABS($D12-SUM($E12:AT12))>=ABS(AT12),AT12,IF(ABS($D12-SUM($E12:AT12))>0,$D12-SUM($E12:AT12),0)) -> 0 | AV12: =IF(ABS($D12-SUM($E12:AU12))>=ABS(AU12),AU12,IF(ABS($D12-SUM($E12:AU12))>0,$D12-SUM($E12:AU12),0)) -> 0 | AW12: =IF(ABS($D12-SUM($E12:AV12))>=ABS(AV12),AV12,IF(ABS($D12-SUM($E12:AV12))>0,$D12-SUM($E12:AV12),0)) -> 0 | AX12: =IF(ABS($D12-SUM($E12:AW12))>=ABS(AW12),AW12,IF(ABS($D12-SUM($E12:AW12))>0,$D12-SUM($E12:AW12),0)) -> 0 | AY12: =IF(ABS($D12-SUM($E12:AX12))>=ABS(AX12),AX12,IF(ABS($D12-SUM($E12:AX12))>0,$D12-SUM($E12:AX12),0)) -> 0 | AZ12: =IF(ABS($D12-SUM($E12:AY12))>=ABS(AY12),AY12,IF(ABS($D12-SUM($E12:AY12))>0,$D12-SUM($E12:AY12),0)) -> 0 | BA12: =IF(ABS($D12-SUM($E12:AZ12))>=ABS(AZ12),AZ12,IF(ABS($D12-SUM($E12:AZ12))>0,$D12-SUM($E12:AZ12),0)) -> 0 | BB12: =IF(ABS($D12-SUM($E12:BA12))>=ABS(BA12),BA12,IF(ABS($D12-SUM($E12:BA12))>0,$D12-SUM($E12:BA12),0)) -> 0 | BC12: =IF(ABS($D12-SUM($E12:BB12))>=ABS(BB12),BB12,IF(ABS($D12-SUM($E12:BB12))>0,$D12-SUM($E12:BB12),0)) -> 0 | BD12: =IF(ABS($D12-SUM($E12:BC12))>=ABS(BC12),BC12,IF(ABS($D12-SUM($E12:BC12))>0,$D12-SUM($E12:BC12),0)) -> 0 | BE12: =IF(ABS($D12-SUM($E12:BD12))>=ABS(BD12),BD12,IF(ABS($D12-SUM($E12:BD12))>0,$D12-SUM($E12:BD12),0)) -> 0 | BF12: =IF(ABS($D12-SUM($E12:BE12))>=ABS(BE12),BE12,IF(ABS($D12-SUM($E12:BE12))>0,$D12-SUM($E12:BE12),0)) -> 0 | BG12: =IF(ABS($D12-SUM($E12:BF12))>=ABS(BF12),BF12,IF(ABS($D12-SUM($E12:BF12))>0,$D12-SUM($E12:BF12),0)) -> 0 | BH12: =IF(ABS($D12-SUM($E12:BG12))>=ABS(BG12),BG12,IF(ABS($D12-SUM($E12:BG12))>0,$D12-SUM($E12:BG12),0)) -> 0 | BI12: =IF(ABS($D12-SUM($E12:BH12))>=ABS(BH12),BH12,IF(ABS($D12-SUM($E12:BH12))>0,$D12-SUM($E12:BH12),0)) -> 0 | BJ12: =IF(ABS($D12-SUM($E12:BI12))>=ABS(BI12),BI12,IF(ABS($D12-SUM($E12:BI12))>0,$D12-SUM($E12:BI12),0)) -> 0 | BK12: =IF(ABS($D12-SUM($E12:BJ12))>=ABS(BJ12),BJ12,IF(ABS($D12-SUM($E12:BJ12))>0,$D12-SUM($E12:BJ12),0)) -> 0 | BL12: =IF(ABS($D12-SUM($E12:BK12))>=ABS(BK12),BK12,IF(ABS($D12-SUM($E12:BK12))>0,$D12-SUM($E12:BK12),0)) -> 0 | BM12: =IF(ABS($D12-SUM($E12:BL12))>=ABS(BL12),BL12,IF(ABS($D12-SUM($E12:BL12))>0,$D12-SUM($E12:BL12),0)) -> 0 | BN12: =IF(ABS($D12-SUM($E12:BM12))>=ABS(BM12),BM12,IF(ABS($D12-SUM($E12:BM12))>0,$D12-SUM($E12:BM12),0)) -> 0 | BO12: =IF(ABS($D12-SUM($E12:BN12))>=ABS(BN12),BN12,IF(ABS($D12-SUM($E12:BN12))>0,$D12-SUM($E12:BN12),0)) -> 0 | BP12: =IF(ABS($D12-SUM($E12:BO12))>=ABS(BO12),BO12,IF(ABS($D12-SUM($E12:BO12))>0,$D12-SUM($E12:BO12),0)) -> 0 | BQ12: =IF(ABS($D12-SUM($E12:BP12))>=ABS(BP12),BP12,IF(ABS($D12-SUM($E12:BP12))>0,$D12-SUM($E12:BP12),0)) -> 0 | BR12: =IF(ABS($D12-SUM($E12:BQ12))>=ABS(BQ12),BQ12,IF(ABS($D12-SUM($E12:BQ12))>0,$D12-SUM($E12:BQ12),0)) -> 0 | BS12: =IF(ABS($D12-SUM($E12:BR12))>=ABS(BR12),BR12,IF(ABS($D12-SUM($E12:BR12))>0,$D12-SUM($E12:BR12),0)) -> 0 | BT12: =IF(ABS($D12-SUM($E12:BS12))>=ABS(BS12),BS12,IF(ABS($D12-SUM($E12:BS12))>0,$D12-SUM($E12:BS12),0)) -> 0 | BU12: =IF(ABS($D12-SUM($E12:BT12))>=ABS(BT12),BT12,IF(ABS($D12-SUM($E12:BT12))>0,$D12-SUM($E12:BT12),0)) -> 0 | BV12: =IF(ABS($D12-SUM($E12:BU12))>=ABS(BU12),BU12,IF(ABS($D12-SUM($E12:BU12))>0,$D12-SUM($E12:BU12),0)) -> 0 | BW12: =IF(ABS($D12-SUM($E12:BV12))>=ABS(BV12),BV12,IF(ABS($D12-SUM($E12:BV12))>0,$D12-SUM($E12:BV12),0)) -> 0 | BX12: =IF(ABS($D12-SUM($E12:BW12))>=ABS(BW12),BW12,IF(ABS($D12-SUM($E12:BW12))>0,$D12-SUM($E12:BW12),0)) -> 0 | BY12: =IF(ABS($D12-SUM($E12:BX12))>=ABS(BX12),BX12,IF(ABS($D12-SUM($E12:BX12))>0,$D12-SUM($E12:BX12),0)) -> 0 | BZ12: =IF(ABS($D12-SUM($E12:BY12))>=ABS(BY12),BY12,IF(ABS($D12-SUM($E12:BY12))>0,$D12-SUM($E12:BY12),0)) -> 0 | CA12: =IF(ABS($D12-SUM($E12:BZ12))>=ABS(BZ12),BZ12,IF(ABS($D12-SUM($E12:BZ12))>0,$D12-SUM($E12:BZ12),0)) -> 0 | CB12: =IF(ABS($D12-SUM($E12:CA12))>=ABS(CA12),CA12,IF(ABS($D12-SUM($E12:CA12))>0,$D12-SUM($E12:CA12),0)) -> 0 | CC12: =IF(ABS($D12-SUM($E12:CB12))>=ABS(CB12),CB12,IF(ABS($D12-SUM($E12:CB12))>0,$D12-SUM($E12:CB12),0)) -> 0 | CE12: 0
